Workbook

Sheet LÍNEA 1
B3: ALCALDÍA DE BUCARAMANGA
B4: PLAN DE DESARROLLO 2016 - 2019 "GOBIERNO DE LAS CIUDADANAS Y LOS CIUDADANOS"
B5: LÍNEA ESTRATÉGICA 1: GOBERNANZA DEMOCRÁTICA
B8: POND | C8: LÍNEA ESTRATÉGICA | D8: POND | E8: COMPONENTE | F8: META DE RESULTADO | G8: LÍNEA BASE | H8: RESULTADO CUATRIENIO | I8: POND | J8: PROGRAMA | K8: META DE PRODUCTO | L8: RUBRO PPTAL | M8: INDICADOR DE PRODUCTO | X8: LOGRO POR VIGENCIA | AB8: PORCENTAJE DE CUMPLIMIENTO | AM8: RECURSOS POR FUENTE DE FINANCIACIÓN PARA CADA VIGENCIA (Cifras en Miles de Pesos) | BL8: ODS | BM8: SECTOR
AM9: 2016 | AR9: 2017 | AW9: 2018 | BB9: 2019 | BG9: 2016 - 2019
M10: NOMBRE INDICADOR | N10: LÍNEA BASE | O10: ESPERADO CUATRIENIO | P10: 2016 | R10: 2017 | T10: 2018 | V10: 2019 | X10: 2016 | Y10: 2017 | Z10: 2018 | AA10: 2019 | AB10: 2016 | AD10: 2017 | AF10: 2018 | AH10: 2019 | AJ10: 2016 - 2019 | AM10: RECURSOS PROGRAMADOS | AN10: RECURSOS EJECUTADOS | AO10: RECURSOS GESTIONADOS | AP10: PORCENTAJE EJECUCIÓN | AQ10: NIVEL DE GESTIÓN | AR10: RECURSOS PROGRAMADOS | AS10: RECURSOS EJECUTADOS | AT10: RECURSOS GESTIONADOS | AU10: PORCENTAJE EJECUCIÓN | AV10: NIVEL DE GESTIÓN | AW10: RECURSOS PROGRAMADOS | AX10: RECURSOS EJECUTADOS | AY10: RECURSOS GESTIONADOS | AZ10: PORCENTAJE EJECUCIÓN | BA10: NIVEL DE GESTIÓN | BB10: RECURSOS PROGRAMADOS | BC10: RECURSOS EJECUTADOS | BD10: RECURSOS GESTIONADOS | BE10: PORCENTAJE EJECUCIÓN | BF10: NIVEL DE GESTIÓN | BG10: RECURSOS PROGRAMADOS | BH10: RECURSOS EJECUTADOS | BI10: RECURSOS GESTIONADOS | BJ10: PORCENTAJE EJECUCIÓN | BK10: NIVEL DE GESTIÓN | BN10: RESPONSABLE
B11: =+RESUMEN!J8 -> 0.1143493134 | C11: 1 - GOBERNANZA DEMOCRÁTICA | D11: =+RESUMEN!J9 -> 0.1168219503 | E11: GOBIERNO PARTICIPATIVO Y ABIERTO | F11: Lograr una calificación de 85 sobre 100 en el componente visibilidad en el Índice de Transparencia de las Entidades Públicas - ITEP. | G11: 69.8 | H11: 85 | I11: =+RESUMEN!J10 -> 0.08333333333 | J11: NUEVOS LIDERAZGOS | K11: Implementar y mantener la estrategia de casas para nuevos liderazgos. | L11: 2210980 | M11: Número de estrategias de casas para nuevos liderazgos implementadas y mantenidas. | N11: 0 | O11: 1 | P11: 1 | Q11: 0.25 | R11: 1 | S11: 0.25 | T11: 1 | U11: 0.25 | V11: 1 | W11: 0.25 | X11: 1 | Y11: 0 | Z11: 0 | AA11: 0 | AB11: =IF(P11=0," -",X11/P11) -> 1 | AC11: =IF(P11=0," -",IF(AB11>100%,100%,AB11)) -> 1 | AD11: =IF(R11=0," -",Y11/R11) -> 0 | AE11: =IF(R11=0," -",IF(AD11>100%,100%,AD11)) -> 0 | AF11: =IF(T11=0," -",Z11/T11) -> 0 | AG11: =IF(T11=0," -",IF(AF11>100%,100%,AF11)) -> 0 | AH11: =IF(V11=0," -",AA11/V11) -> 0 | AI11: =IF(V11=0," -",IF(AH11>100%,100%,AH11)) -> 0 | AJ11: =+AVERAGE(X11:AA11)/O11 -> 0.25 | AK11: =+IF(AJ11>100%,100%,AJ11) -> 0.25 | AL11: =+AK11 -> 0.25 | AM11: 100000 | AN11: 87500 | AO11: 0 | AP11: =IF(AM11=0," -",AN11/AM11) -> 0.875 | AQ11: =IF(AO11=0," -",IF(AN11=0,100%,AO11/AN11)) -> - | AR11: 213500 | AS11: 0 | AT11: 0 | AU11: =IF(AR11=0," -",AS11/AR11) -> 0 | AV11: =IF(AT11=0," -",IF(AS11=0,100%,AT11/AS11)) -> - | AW11: 223500 | AX11: 0 | AY11: 0 | AZ11: =IF(AW11=0," -",AX11/AW11) -> 0 | BA11: =IF(AY11=0," -",IF(AX11=0,100%,AY11/AX11)) -> - | BB11: 213500 | BC11: 0 | BD11: 0 | BE11: =IF(BB11=0," -",BC11/BB11) -> 0 | BF11: =IF(BD11=0," -",IF(BC11=0,100%,BD11/BC11)) -> - | BG11: =+AM11+AR11+AW11+BB11 -> 750500 | BH11: 87500 | BI11: 0 | BJ11: =IF(BG11=0," -",BH11/BG11) -> 0.1165889407 | BK11: =IF(BI11=0," -",IF(BH11=0,100%,BI11/BH11)) -> - | BL11: 16. Paz, justicia e instituciones sólidas | BM11: Promoción del Desarrollo | BN11: Sec. Interior
K12: Implementar y mantener la estrategia escuela de liderazgo para mujeres las Mil Manuelas. | L12: 0 | M12: Número de estrategias escuela de liderazgo para mujeres las Mil Manuelas implementadas y mantenidas. | N12: 0 | O12: 1 | P12: 0 | Q12: =+P12/O12 -> 0 | R12: 1 | S12: 0.33 | T12: 1 | U12: 0.33 | V12: 1 | W12: 0.34 | X12: 0 | Y12: 0 | Z12: 0 | AA12: 0 | AB12: =IF(P12=0," -",X12/P12) -> - | AC12: =IF(P12=0," -",IF(AB12>100%,100%,AB12)) -> - | AD12: =IF(R12=0," -",Y12/R12) -> 0 | AE12: =IF(R12=0," -",IF(AD12>100%,100%,AD12)) -> 0 | AF12: =IF(T12=0," -",Z12/T12) -> 0 | AG12: =IF(T12=0," -",IF(AF12>100%,100%,AF12)) -> 0 | AH12: =IF(V12=0," -",AA12/V12) -> 0 | AI12: =IF(V12=0," -",IF(AH12>100%,100%,AH12)) -> 0 | AJ12: =+AVERAGE(Y12:AA12)/O12 -> 0 | AK12: =+IF(AJ12>100%,100%,AJ12) -> 0 | AL12: =+AK12 -> 0 | AM12: 0 | AN12: 0 | AO12: 0 | AP12: =IF(AM12=0," -",AN12/AM12) -> - | AQ12: =IF(AO12=0," -",IF(AN12=0,100%,AO12/AN12)) -> - | AR12: 150000 | AS12: 0 | AT12: 0 | AU12: =IF(AR12=0," -",AS12/AR12) -> 0 | AV12: =IF(AT12=0," -",IF(AS12=0,100%,AT12/AS12)) -> - | AW12: 150000 | AX12: 0 | AY12: 0 | AZ12: =IF(AW12=0," -",AX12/AW12) -> 0 | BA12: =IF(AY12=0," -",IF(AX12=0,100%,AY12/AX12)) -> - | BB12: 150000 | BC12: 0 | BD12: 0 | BE12: =IF(BB12=0," -",BC12/BB12) -> 0 | BF12: =IF(BD12=0," -",IF(BC12=0,100%,BD12/BC12)) -> - | BG12: 450000 | BH12: 0 | BI12: 0 | BJ12: =IF(BG12=0," -",BH12/BG12) -> 0 | BK12: =IF(BI12=0," -",IF(BH12=0,100%,BI12/BH12)) -> - | BL12: 10. Reducción de las desigualdades | BM12: Promoción del Desarrollo | BN12: Sec. Desarrollo Social
K13: Realizar 35 actividades o iniciativas para promover, visibilizar y empoderar el gobierno escolar en las instituciones educativas oficiales. | L13: 0 | M13: Número de actividades o iniciativas realizadas para promover, visibilizar y empoderar el gobierno escolar en las instituciones educativas oficiales. | N13: 0 | O13: 35 | P13: 3 | Q13: =+P13/O13 -> 0.08571428571 | R13: 12 | S13: =+R13/O13 -> 0.3428571429 | T13: 10 | U13: =+T13/O13 -> 0.2857142857 | V13: 10 | W13: =+V13/O13 -> 0.2857142857 | X13: 0 | Y13: 0 | Z13: 0 | AA13: 0 | AB13: 0 | AC13: 0 | AD13: 0 | AE13: 0 | AF13: 0 | AG13: 0 | AH13: 0 | AI13: 0 | AJ13: =+SUM(X13:AA13)/O13 -> 0 | AK13: 0 | AL13: 0 | AM13: 0 | AN13: 0 | AO13: 0 | AP13: =IF(AM13=0," -",AN13/AM13) -> - | AQ13: =IF(AO13=0," -",IF(AN13=0,100%,AO13/AN13)) -> - | AR13: 20000 | AS13: 0 | AT13: 0 | AU13: =IF(AR13=0," -",AS13/AR13) -> 0 | AV13: =IF(AT13=0," -",IF(AS13=0,100%,AT13/AS13)) -> - | AW13: 20000 | AX13: 0 | AY13: 0 | AZ13: =IF(AW13=0," -",AX13/AW13) -> 0 | BA13: =IF(AY13=0," -",IF(AX13=0,100%,AY13/AX13)) -> - | BB13: 20000 | BC13: 0 | BD13: 0 | BE13: =IF(BB13=0," -",BC13/BB13) -> 0 | BF13: =IF(BD13=0," -",IF(BC13=0,100%,BD13/BC13)) -> - | BG13: =+AM13+AR13+AW13+BB13 -> 60000 | BH13: =+AN13+AS13+AX13+BC13 -> 0 | BI13: =+AO13+AT13+AY13+BD13 -> 0 | BJ13: =IF(BG13=0," -",BH13/BG13) -> 0 | BK13: =IF(BI13=0," -",IF(BH13=0,100%,BI13/BH13)) -> - | BL13: 16. Paz, justicia e instituciones sólidas | BM13: Educación | BN13: Sec. Educación
I14: =+RESUMEN!J11 -> 0.2916666667 | J14: PRESUPUESTOS INCLUYENTES | K14: Crear y mantener 1 sección web en línea para que la ciudadanía pueda consultar el presupuesto y vigilar su aprobación y ejecución. | L14: - | M14: Número de secciones web en línea creadas y mantenidas para que la ciudadanía pueda consultar el presupuesto y vigilar su aprobación y ejecución. | N14: 0 | O14: 1 | P14: 1 | Q14: 0.25 | R14: 1 | S14: 0.25 | T14: 1 | U14: 0.25 | V14: 1 | W14: 0.25 | X14: 1 | Y14: 0 | Z14: 0 | AA14: 0 | AB14: 1 | AC14: 1 | AD14: 0 | AE14: 0 | AF14: 0 | AG14: 0 | AH14: 0 | AI14: 0 | AJ14: =+AVERAGE(X14:AA14)/O14 -> 0.25 | AK14: 0.25 | AL14: 0.25 | AM14: 0 | AN14: 0 | AO14: 0 | AP14: - | AQ14: - | AR14: 0 | AS14: 0 | AT14: 0 | AU14: - | AV14: - | AW14: 0 | AX14: 0 | AY14: 0 | AZ14: - | BA14: - | BB14: 0 | BC14: 0 | BD14: 0 | BE14: - | BF14: - | BG14: 0 | BH14: 0 | BI14: 0 | BJ14: - | BK14: - | BL14: 16. Paz, justicia e instituciones sólidas | BM14: Fortalecimiento Institucional | BN14: Sec. Hacienda
K15: Ejecutar 4 planes de socialización del proyecto de acuerdo del presupuesto municipal previa presentación al Concejo. | L15: - | M15: Número de planes de socialización ejecutados del proyecto de acuerdo del presupuesto municipal previa presentación al Concejo. | N15: 0 | O15: 4 | P15: 1 | Q15: 0.25 | R15: 1 | S15: 0.25 | T15: 1 | U15: 0.25 | V15: 1 | W15: 0.25 | X15: 3 | Y15: 0 | Z15: 0 | AA15: 0 | AB15: 3 | AC15: 1 | AD15: 0 | AE15: 0 | AF15: 0 | AG15: 0 | AH15: 0 | AI15: 0 | AJ15: =+SUM(X15:AA15)/O15 -> 0.75 | AK15: 0.75 | AL15: 0.75 | AM15: 0 | AN15: 0 | AO15: 0 | AP15: - | AQ15: - | AR15: 0 | AS15: 0 | AT15: 0 | AU15: - | AV15: - | AW15: 0 | AX15: 0 | AY15: 0 | AZ15: - | BA15: - | BB15: 0 | BC15: 0 | BD15: 0 | BE15: - | BF15: - | BG15: 0 | BH15: 0 | BI15: 0 | BJ15: - | BK15: - | BL15: 16. Paz, justicia e instituciones sólidas | BM15: Fortalecimiento Institucional | BN15: Sec. Hacienda
K16: Celebrar 4 cabildos ciudadanos para asignar presupuesto a obras comunitarias y discutir otros asuntos del presupuesto. | L16: - | M16: Número de cabildos ciudadanos celebrados para asignar presupuesto a obras comunitarias y discutir otros asuntos del presupuesto. | N16: 0 | O16: 4 | P16: 1 | Q16: 0.25 | R16: 1 | S16: 0.25 | T16: 1 | U16: 0.25 | V16: 1 | W16: 0.25 | X16: 1 | Y16: 0 | Z16: 0 | AA16: 0 | AB16: 1 | AC16: 1 | AD16: 0 | AE16: 0 | AF16: 0 | AG16: 0 | AH16: 0 | AI16: 0 | AJ16: =+SUM(X16:AA16)/O16 -> 0.25 | AK16: 0.25 | AL16: 0.25 | AM16: 0 | AN16: 0 | AO16: 0 | AP16: - | AQ16: - | AR16: 0 | AS16: 0 | AT16: 0 | AU16: - | AV16: - | AW16: 0 | AX16: 0 | AY16: 0 | AZ16: - | BA16: - | BB16: 0 | BC16: 0 | BD16: 0 | BE16: - | BF16: - | BG16: 0 | BH16: 0 | BI16: 0 | BJ16: - | BK16: - | BL16: 16. Paz, justicia e instituciones sólidas | BM16: Fortalecimiento Institucional | BN16: Sec. Hacienda
K17: Implementar y mantener 1 estrategia de implementación del acuerdo de presupuestos participativos y del decreto reglamentario. | L17: - | M17: Número de estrategias de implementación del acuerdo de presupuestos participativos y del decreto reglamentario implementadas y mantenidas. | N17: 1 | O17: 1 | P17: 1 | Q17: 0.25 | R17: 1 | S17: 0.25 | T17: 1 | U17: 0.25 | V17: 1 | W17: 0.25 | X17: 1 | Y17: 0 | Z17: 0 | AA17: 0 | AB17: 1 | AC17: 1 | AD17: 0 | AE17: 0 | AF17: 0 | AG17: 0 | AH17: 0 | AI17: 0 | AJ17: 0.25 | AK17: 0.25 | AL17: 0.25 | AM17: 0 | AN17: 0 | AO17: 0 | AP17: - | AQ17: - | AR17: 0 | AS17: 0 | AT17: 0 | AU17: - | AV17: - | AW17: 0 | AX17: 0 | AY17: 0 | AZ17: - | BA17: - | BB17: 0 | BC17: 0 | BD17: 0 | BE17: - | BF17: - | BG17: 0 | BH17: 0 | BI17: 0 | BJ17: - | BK17: - | BL17: 16. Paz, justicia e instituciones sólidas | BM17: Fortalecimiento Institucional | BN17: Sec. Planeación
K18: Implementar 1 estrategia para la formación y capacitación técnica en planeación participativa para los ciudadanos bumangueses. | L18: 2210230 | M18: Número de estrategias implementadas para la formación y capacitación técnica en planeación participativa para los ciudadanos bumangueses. | N18: 0 | O18: 1 | P18: 1 | Q18: 0.25 | R18: 1 | S18: 0.25 | T18: 1 | U18: 0.25 | V18: 1 | W18: 0.25 | X18: 1 | Y18: 0 | Z18: 0 | AA18: 0 | AB18: 1 | AC18: 1 | AD18: 0 | AE18: 0 | AF18: 0 | AG18: 0 | AH18: 0 | AI18: 0 | AJ18: 0.25 | AK18: 0.25 | AL18: 0.25 | AM18: 35000 | AN18: 15000 | AO18: 0 | AP18: 0.4285714286 | AQ18: - | AR18: 50000 | AS18: 0 | AT18: 0 | AU18: 0 | AV18: - | AW18: 50000 | AX18: 0 | AY18: 0 | AZ18: 0 | BA18: - | BB18: 50000 | BC18: 0 | BD18: 0 | BE18: 0 | BF18: - | BG18: 185000 | BH18: 15000 | BI18: 0 | BJ18: 0.08108108108 | BK18: - | BL18: 16. Paz, justicia e instituciones sólidas | BM18: Fortalecimiento Institucional | BN18: Sec. Desarrollo Social
K19: Ejecutar obras comunitarias con presupuestos participatios en las 17 comunas. | L19: - | M19: Número de comunas con obras comunitarias ejecutadas con presupuesto participativo. | N19: 0 | O19: 17 | P19: 17 | Q19: 0.25 | R19: 17 | S19: 0.25 | T19: 17 | U19: 0.25 | V19: 17 | W19: 0.25 | X19: 0 | Y19: 0 | Z19: 0 | AA19: 0 | AB19: 0 | AC19: 0 | AD19: 0 | AE19: 0 | AF19: 0 | AG19: 0 | AH19: 0 | AI19: 0 | AJ19: 0 | AK19: 0 | AL19: 0 | AM19: 0 | AN19: 0 | AO19: 0 | AP19: - | AQ19: - | AR19: 0 | AS19: 0 | AT19: 0 | AU19: - | AV19: - | AW19: 0 | AX19: 0 | AY19: 0 | AZ19: - | BA19: - | BB19: 0 | BC19: 0 | BD19: 0 | BE19: - | BF19: - | BG19: 0 | BH19: 0 | BI19: 0 | BJ19: - | BK19: - | BL19: 16. Paz, justicia e instituciones sólidas | BM19: Fortalecimiento Institucional | BN19: Sec. Infraestructura
I20: =+RESUMEN!J12 -> 0.1499444444 | J20: CIUDADANÍA EMPODERADA Y DEBATE PÚBLICO | K20: Implementar y mantener 1 estrategia de comunicaciones para difundir las iniciativas de la Administración Municipal y promover el debate público sobre temas de gobierno y de ciudad. | L20: 0 | M20: Número de estrategias de comunicación implementadas y mantenidas para difundir las iniciativas de la Administración Municipal y promover el debate público sobre temas de gobierno y de ciudad. | N20: 0 | O20: 1 | P20: 1 | Q20: 0.25 | R20: 1 | S20: 0.25 | T20: 1 | U20: 0.25 | V20: 1 | W20: 0.25 | X20: 1 | Y20: 0 | Z20: 0 | AA20: 0 | AB20: 1 | AC20: 1 | AD20: 0 | AE20: 0 | AF20: 0 | AG20: 0 | AH20: 0 | AI20: 0 | AJ20: 0.25 | AK20: 0.25 | AL20: 0.25 | AM20: 354995 | AN20: 247402 | AO20: 0 | AP20: 0.696916858 | AQ20: - | AR20: 500000 | AS20: 0 | AT20: 0 | AU20: 0 | AV20: - | AW20: 500000 | AX20: 0 | AY20: 0 | AZ20: 0 | BA20: - | BB20: 500000 | BC20: 0 | BD20: 0 | BE20: 0 | BF20: - | BG20: 1854995 | BH20: 247402 | BI20: 0 | BJ20: 0.1333707099 | BK20: - | BL20: 16. Paz, justicia e instituciones sólidas | BM20: Fortalecimiento Institucional | BN20: Ofc. Prensa
K21: Implementar y mantener 1 Plan de medios para informar a la ciudadanía sobre las políticas e iniciativas del gobierno. | L21: - | M21: Número de Planes de medios implementados y mantenidos para informar a la ciudadanía las políticas e iniciativas del gobierno. | N21: 0 | O21: 1 | P21: 1 | Q21: 0.25 | R21: 1 | S21: 0.25 | T21: 1 | U21: 0.25 | V21: 1 | W21: 0.25 | X21: 0 | Y21: 0 | Z21: 0 | AA21: 0 | AB21: 0 | AC21: 0 | AD21: 0 | AE21: 0 | AF21: 0 | AG21: 0 | AH21: 0 | AI21: 0 | AJ21: 0 | AK21: 0 | AL21: 0 | AM21: 600000 | AN21: 0 | AO21: 0 | AP21: 0 | AQ21: - | AR21: 0 | AS21: 0 | AT21: 0 | AU21: - | AV21: - | AW21: 0 | AX21: 0 | AY21: 0 | AZ21: - | BA21: - | BB21: 0 | BC21: 0 | BD21: 0 | BE21: - | BF21: - | BG21: 600000 | BH21: 0 | BI21: 0 | BJ21: 0 | BK21: - | BL21: 16. Paz, justicia e instituciones sólidas | BM21: Fortalecimiento Institucional | BN21: Ofc. Prensa
K22: Implementar y mantener 1 estrategia de comunicaciones para difundir las acciones de la Administración Municipal y promover el debate público sobre temas de gobierno y de ciudad en la emisora cultural. | L22: 0 | M22: Número de estrategias de comunicación implementadas y mantenidas para difundir las acciones de la Administración Municipal y promover el debate público sobre temas de gobierno y de ciudad en la emisora cultural. | N22: 0 | O22: 1 | P22: 1 | Q22: 0.25 | R22: 1 | S22: 0.25 | T22: 1 | U22: 0.25 | V22: 1 | W22: 0.25 | X22: 1 | Y22: 0 | Z22: 0 | AA22: 0 | AB22: 1 | AC22: 1 | AD22: 0 | AE22: 0 | AF22: 0 | AG22: 0 | AH22: 0 | AI22: 0 | AJ22: 0.25 | AK22: 0.25 | AL22: 0.25 | AM22: 100000 | AN22: 0 | AO22: 0 | AP22: 0 | AQ22: - | AR22: 200000 | AS22: 0 | AT22: 0 | AU22: 0 | AV22: - | AW22: 200000 | AX22: 0 | AY22: 0 | AZ22: 0 | BA22: - | BB22: 300000 | BC22: 0 | BD22: 0 | BE22: 0 | BF22: - | BG22: 800000 | BH22: 0 | BI22: 0 | BJ22: 0 | BK22: - | BL22: 16. Paz, justicia e instituciones sólidas | BM22: Fortalecimiento Institucional | BN22: Ofc. Prensa
K23: Convocar y realizar 40 ruedas de prensa por el despacho del Alcalde. | L23: - | M23: Número de ruedas de prensa convocadas y realizadas por el despacho del Alcalde. | N23: 0 | O23: 40 | P23: 6 | Q23: 0.15 | R23: 12 | S23: 0.3 | T23: 12 | U23: 0.3 | V23: 10 | W23: 0.25 | X23: 30 | Y23: 0 | Z23: 0 | AA23: 0 | AB23: 5 | AC23: 1 | AD23: 0 | AE23: 0 | AF23: 0 | AG23: 0 | AH23: 0 | AI23: 0 | AJ23: =+SUM(X23:AA23)/O23 -> 0.75 | AK23: 0.75 | AL23: 0.75 | AM23: 0 | AN23: 0 | AO23: 0 | AP23: - | AQ23: - | AR23: 0 | AS23: 0 | AT23: 0 | AU23: - | AV23: - | AW23: 0 | AX23: 0 | AY23: 0 | AZ23: - | BA23: - | BB23: 0 | BC23: 0 | BD23: 0 | BE23: - | BF23: - | BG23: 0 | BH23: 0 | BI23: 0 | BJ23: - | BK23: - | BL23: 16. Paz, justicia e instituciones sólidas | BM23: Fortalecimiento Institucional | BN23: Ofc. Prensa
K24: Implementar y mantener 1 estrategia de comunicación para promover la participación ciudadana sobre asuntos de interés públicos. | L24: 0 | M24: Número de estrategias de comunicación implementadas y mantenidas para promover la participación ciudadana sobre asuntos de interés públicos. | N24: 0 | O24: 1 | P24: 1 | Q24: 0.25 | R24: 1 | S24: 0.25 | T24: 1 | U24: 0.25 | V24: 1 | W24: 0.25 | X24: 1 | Y24: 0 | Z24: 0 | AA24: 0 | AB24: 1 | AC24: 1 | AD24: 0 | AE24: 0 | AF24: 0 | AG24: 0 | AH24: 0 | AI24: 0 | AJ24: 0.25 | AK24: 0.25 | AL24: 0.25 | AM24: 0 | AN24: 0 | AO24: 0 | AP24: - | AQ24: - | AR24: 100000 | AS24: 0 | AT24: 0 | AU24: 0 | AV24: - | AW24: 100000 | AX24: 0 | AY24: 0 | AZ24: 0 | BA24: - | BB24: 100000 | BC24: 0 | BD24: 0 | BE24: 0 | BF24: - | BG24: 300000 | BH24: 0 | BI24: 0 | BJ24: 0 | BK24: - | BL24: 16. Paz, justicia e instituciones sólidas | BM24: Fortalecimiento Institucional | BN24: Ofc. Prensa
F25: Lograr una calificación de 80 sobre 100 en el componente de control y sanción en el Índice de Transparencia de las Entidades Públicas - ITEP. | G25: 62.4 | H25: 80 | K25: Implementar y mantener 1 estrategia para la creación y promoción del Consejo Municipal de participación ciudadana. | L25: 0 | M25: Número de estrategias implementadas y mantenidas para la creación y promoción del Consejo Municipal de participación ciudadana. | N25: 0 | O25: 1 | P25: 1 | Q25: 0.25 | R25: 1 | S25: 0.25 | T25: 1 | U25: 0.25 | V25: 1 | W25: 0.25 | X25: 0 | Y25: 0 | Z25: 0 | AA25: 0 | AB25: 0 | AC25: 0 | AD25: 0 | AE25: 0 | AF25: 0 | AG25: 0 | AH25: 0 | AI25: 0 | AJ25: 0 | AK25: 0 | AL25: 0 | AM25: 0 | AN25: 0 | AO25: 0 | AP25: - | AQ25: - | AR25: 25000 | AS25: 0 | AT25: 0 | AU25: 0 | AV25: - | AW25: 25000 | AX25: 0 | AY25: 0 | AZ25: 0 | BA25: - | BB25: 25000 | BC25: 0 | BD25: 0 | BE25: 0 | BF25: - | BG25: 75000 | BH25: 0 | BI25: 0 | BJ25: 0 | BK25: - | BL25: 16. Paz, justicia e instituciones sólidas | BM25: Fortalecimiento Institucional | BN25: Sec. Desarrollo Social
K26: Implementar y mantener 1 estrategia para difundir la ley 1757 de 2015 y promover la apropiación por parte de la ciudadanía de los mecanismos allí establecidos. | L26: 0 | M26: Número de estrategias implementadas y mantenidas para difundir la ley 1757 de 2015 y promover la apropiación por parte de la ciudadanía de los mecanismos allí establecidos. | N26: 0 | O26: 1 | P26: 1 | Q26: 0.25 | R26: 1 | S26: 0.25 | T26: 1 | U26: 0.25 | V26: 1 | W26: 0.25 | X26: 1 | Y26: 0 | Z26: 0 | AA26: 0 | AB26: 1 | AC26: 1 | AD26: 0 | AE26: 0 | AF26: 0 | AG26: 0 | AH26: 0 | AI26: 0 | AJ26: 0.25 | AK26: 0.25 | AL26: 0.25 | AM26: 0 | AN26: 0 | AO26: 0 | AP26: - | AQ26: - | AR26: 25000 | AS26: 0 | AT26: 0 | AU26: 0 | AV26: - | AW26: 25000 | AX26: 0 | AY26: 0 | AZ26: 0 | BA26: - | BB26: 25000 | BC26: 0 | BD26: 0 | BE26: 0 | BF26: - | BG26: 75000 | BH26: 0 | BI26: 0 | BJ26: 0 | BK26: - | BL26: 16. Paz, justicia e instituciones sólidas | BM26: Fortalecimiento Institucional | BN26: Sec. Desarrollo Social
K27: Implementar y mantener 1 estrategia de gobierno para la aplicación cabal de la ley 1757 de 2015 de participación ciudadana. | L27: - | M27: Número de estrategias de gobierno implementadas y mantenidas para la aplicación cabal de la ley 1757 de 2015 de participación ciudadana. | N27: 0 | O27: 1 | P27: 1 | Q27: 0.25 | R27: 1 | S27: 0.25 | T27: 1 | U27: 0.25 | V27: 1 | W27: 0.25 | X27: 0 | Y27: 0 | Z27: 0 | AA27: 0 | AB27: 0 | AC27: 0 | AD27: 0 | AE27: 0 | AF27: 0 | AG27: 0 | AH27: 0 | AI27: 0 | AJ27: 0 | AK27: 0 | AL27: 0 | AM27: 0 | AN27: 0 | AO27: 0 | AP27: - | AQ27: - | AR27: 0 | AS27: 0 | AT27: 0 | AU27: - | AV27: - | AW27: 0 | AX27: 0 | AY27: 0 | AZ27: - | BA27: - | BB27: 0 | BC27: 0 | BD27: 0 | BE27: - | BF27: - | BG27: 0 | BH27: 0 | BI27: 0 | BJ27: - | BK27: - | BL27: 16. Paz, justicia e instituciones sólidas | BM27: Fortalecimiento Institucional | BN27: Sec. Desarrollo Social
K28: Implementar y mantener 1 estrategia para la promoción y el fortalecimiento de las veedurías. | L28: 0 | M28: Número de estrategias implementadas y mantenidas para la promoción y el fortalecimiento de las veedurías. | N28: 0 | O28: 1 | P28: 1 | Q28: 0.25 | R28: 1 | S28: 0.25 | T28: 1 | U28: 0.25 | V28: 1 | W28: 0.25 | X28: 0 | Y28: 0 | Z28: 0 | AA28: 0 | AB28: 0 | AC28: 0 | AD28: 0 | AE28: 0 | AF28: 0 | AG28: 0 | AH28: 0 | AI28: 0 | AJ28: 0 | AK28: 0 | AL28: 0 | AM28: 0 | AN28: 0 | AO28: 0 | AP28: - | AQ28: - | AR28: 25000 | AS28: 0 | AT28: 0 | AU28: 0 | AV28: - | AW28: 25000 | AX28: 0 | AY28: 0 | AZ28: 0 | BA28: - | BB28: 25000 | BC28: 0 | BD28: 0 | BE28: 0 | BF28: - | BG28: 75000 | BH28: 0 | BI28: 0 | BJ28: 0 | BK28: - | BL28: 16. Paz, justicia e instituciones sólidas | BM28: Fortalecimiento Institucional | BN28: Sec. Desarrollo Social
K29: Implementar y mantener 1 estrategia para el fortalecimiento del Consejo Municipal de Desarrollo Rural. | L29: 0 | M29: Número de estrategias implementadas y mantenidas para el fortalecimiento del Consejo Municipal de Desarrollo Rural. | N29: 1 | O29: 1 | P29: 1 | Q29: 0.25 | R29: 1 | S29: 0.25 | T29: 1 | U29: 0.25 | V29: 1 | W29: 0.25 | X29: 1 | Y29: 0 | Z29: 0 | AA29: 0 | AB29: 1 | AC29: 1 | AD29: 0 | AE29: 0 | AF29: 0 | AG29: 0 | AH29: 0 | AI29: 0 | AJ29: 0.25 | AK29: 0.25 | AL29: 0.25 | AM29: 0 | AN29: 0 | AO29: 0 | AP29: - | AQ29: - | AR29: 25000 | AS29: 0 | AT29: 0 | AU29: 0 | AV29: - | AW29: 25000 | AX29: 0 | AY29: 0 | AZ29: 0 | BA29: - | BB29: 25000 | BC29: 0 | BD29: 0 | BE29: 0 | BF29: - | BG29: 75000 | BH29: 0 | BI29: 0 | BJ29: 0 | BK29: - | BL29: 16. Paz, justicia e instituciones sólidas | BM29: Fortalecimiento Institucional | BN29: Sec. Desarrollo Social
K30: Crear 1 cargo del nivel directivo o asesor para que la coordinación de los asuntos de prensa y comunicaciones (Jefe de Prensa). | L30: - | M30: Número de cargos creados para la coordinación de los asuntos de prensa y comunicaciones (Jefe de prensa) | N30: 0 | O30: 1 | P30: 0 | Q30: 0 | R30: 1 | S30: 1 | T30: 0 | U30: 0 | V30: 0 | W30: 0 | X30: 0 | Y30: 0 | Z30: 0 | AA30: 0 | AB30: - | AC30: - | AD30: 0 | AE30: 0 | AF30: - | AG30: - | AH30: - | AI30: - | AJ30: =+SUM(X30:AA30)/O30 -> 0 | AK30: 0 | AL30: 0 | AM30: 0 | AN30: 0 | AO30: 0 | AP30: - | AQ30: - | AR30: 0 | AS30: 0 | AT30: 0 | AU30: - | AV30: - | AW30: 0 | AX30: 0 | AY30: 0 | AZ30: - | BA30: - | BB30: 0 | BC30: 0 | BD30: 0 | BE30: - | BF30: - | BG30: 0 | BH30: 0 | BI30: 0 | BJ30: - | BK30: - | BL30: 16. Paz, justicia e instituciones sólidas | BM30: Fortalecimiento Institucional | BN30: Sec. Administrativa
K31: Crear 1 cargo del nivel directivo y/o asesor adscrito al despacho del Alcalde como encargado de asuntos de participación ciudadana. | L31: - | M31: Número de cargos del nivel directivo y/o asesor adscritos al despacho del Alcalde como encargado de asuntos de participación ciudadana. | N31: 0 | O31: 1 | P31: 0 | Q31: 0 | R31: 1 | S31: 1 | T31: 0 | U31: 0 | V31: 0 | W31: 0 | X31: 0 | Y31: 0 | Z31: 0 | AA31: 0 | AB31: - | AC31: - | AD31: 0 | AE31: 0 | AF31: - | AG31: - | AH31: - | AI31: - | AJ31: =+SUM(X31:AA31)/O31 -> 0 | AK31: 0 | AL31: 0 | AM31: 0 | AN31: 0 | AO31: 0 | AP31: - | AQ31: - | AR31: 0 | AS31: 0 | AT31: 0 | AU31: - | AV31: - | AW31: 0 | AX31: 0 | AY31: 0 | AZ31: - | BA31: - | BB31: 0 | BC31: 0 | BD31: 0 | BE31: - | BF31: - | BG31: 0 | BH31: 0 | BI31: 0 | BJ31: - | BK31: - | BL31: 16. Paz, justicia e instituciones sólidas | BM31: Fortalecimiento Institucional | BN31: Sec. Administrativa
K32: Convocar y realizar 48 conversatorios con organizaciones sociales, organizaciones políticas, periodísticas o grupos de líderes de opinión para discutir asuntos del gobierno y la ciudad. | L32: - | M32: Número de conversatorios convocados y realizados con organizaciones sociales, organizaciones políticas, periodísticas o grupos de líderes de opinión para discutir asuntos del gobierno y la ciudad. | N32: 0 | O32: 48 | P32: 4 | Q32: 0.08333333333 | R32: 15 | S32: 0.3125 | T32: 14 | U32: 0.2916666667 | V32: 15 | W32: 0.3125 | X32: 2 | Y32: 0 | Z32: 0 | AA32: 0 | AB32: 0.5 | AC32: 0.5 | AD32: 0 | AE32: 0 | AF32: 0 | AG32: 0 | AH32: 0 | AI32: 0 | AJ32: =+SUM(X32:AA32)/O32 -> 0.04166666667 | AK32: 0.04166666667 | AL32: 0.04166666667 | AM32: 0 | AN32: 0 | AO32: 0 | AP32: - | AQ32: - | AR32: 0 | AS32: 0 | AT32: 0 | AU32: - | AV32: - | AW32: 0 | AX32: 0 | AY32: 0 | AZ32: - | BA32: - | BB32: 0 | BC32: 0 | BD32: 0 | BE32: - | BF32: - | BG32: 0 | BH32: 0 | BI32: 0 | BJ32: - | BK32: - | BL32: 16. Paz, justicia e instituciones sólidas | BM32: Fortalecimiento Institucional | BN32: Sec. Interior
K33: Implementar y mantener 1 sección en la página web institucional para informar sobre los debates, las relaciones y los acuerdos con el Concejo e interactuar con la ciudadanía. | L33: - | M33: Número de secciones implementadas y mantenidas en la página web institucional para informar sobre los debates, las relaciones y los acuerdos con el Concejo e interactuar con la ciudadanía. | N33: 0 | O33: 1 | P33: 1 | Q33: 0.25 | R33: 1 | S33: 0.25 | T33: 1 | U33: 0.25 | V33: 1 | W33: 0.25 | X33: 0.33 | Y33: 0 | Z33: 0 | AA33: 0 | AB33: 0.33 | AC33: 0.33 | AD33: 0 | AE33: 0 | AF33: 0 | AG33: 0 | AH33: 0 | AI33: 0 | AJ33: 0.0825 | AK33: 0.0825 | AL33: 0.0825 | AM33: 0 | AN33: 0 | AO33: 0 | AP33: - | AQ33: - | AR33: 0 | AS33: 0 | AT33: 0 | AU33: - | AV33: - | AW33: 0 | AX33: 0 | AY33: 0 | AZ33: - | BA33: - | BB33: 0 | BC33: 0 | BD33: 0 | BE33: - | BF33: - | BG33: 0 | BH33: 0 | BI33: 0 | BJ33: - | BK33: - | BL33: 16. Paz, justicia e instituciones sólidas | BM33: Fortalecimiento Institucional | BN33: Ofc. Sistemas
K34: Implementar y mantener 1 sección en la página web institucional para que la ciudadanía pueda compartir textos, imágenes, audios y videos sobre condiciones y problemas de la ciudad o propuestas de política. | L34: - | M34: Número de secciones implementadas y mantenidas en la página web institucional para que la ciudadanía pueda compartir textos, imágenes, audios y videos sobre condiciones y problemas de la ciudad o propuestas de política. | N34: 0 | O34: 1 | P34: 1 | Q34: 0.25 | R34: 1 | S34: 0.25 | T34: 1 | U34: 0.25 | V34: 1 | W34: 0.25 | X34: 0.5 | Y34: 0 | Z34: 0 | AA34: 0 | AB34: 0.5 | AC34: 0.5 | AD34: 0 | AE34: 0 | AF34: 0 | AG34: 0 | AH34: 0 | AI34: 0 | AJ34: 0.125 | AK34: 0.125 | AL34: 0.125 | AM34: 0 | AN34: 0 | AO34: 0 | AP34: - | AQ34: - | AR34: 0 | AS34: 0 | AT34: 0 | AU34: - | AV34: - | AW34: 0 | AX34: 0 | AY34: 0 | AZ34: - | BA34: - | BB34: 0 | BC34: 0 | BD34: 0 | BE34: - | BF34: - | BG34: 0 | BH34: 0 | BI34: 0 | BJ34: - | BK34: - | BL34: 16. Paz, justicia e instituciones sólidas | BM34: Fortalecimiento Institucional | BN34: Ofc. Sistemas
I35: =+RESUMEN!J13 -> 0.09482307692 | J35: INSTITUCIONES DEMOCRÁTICAS DE BASE FORTALECIDAS E INCLUYENTES | K35: Beneficiar al 100% de los ediles con pago de EPS, Pensión, ARL y póliza de vida. | L35: 2210216 | M35: Porcentaje de ediles beneficiados con pago de EPS, Pensión, ARL y póliza de vida. | N35: 1 | O35: 1 | P35: 1 | Q35: 0.25 | R35: 1 | S35: 0.25 | T35: 1 | U35: 0.25 | V35: 1 | W35: 0.25 | X35: 1 | Y35: 0 | Z35: 0 | AA35: 0 | AB35: 1 | AC35: 1 | AD35: 0 | AE35: 0 | AF35: 0 | AG35: 0 | AH35: 0 | AI35: 0 | AJ35: 0.25 | AK35: 0.25 | AL35: 0.25 | AM35: 500000 | AN35: 402405 | AO35: 0 | AP35: 0.80481 | AQ35: - | AR35: 836000 | AS35: 0 | AT35: 0 | AU35: 0 | AV35: - | AW35: 873620 | AX35: 0 | AY35: 0 | AZ35: 0 | BA35: - | BB35: 912933 | BC35: 0 | BD35: 0 | BE35: 0 | BF35: - | BG35: 3122553 | BH35: 402405 | BI35: 0 | BJ35: 0.1288705108 | BK35: - | BL35: 16. Paz, justicia e instituciones sólidas | BM35: Fortalecimiento Institucional | BN35: Sec. Desarrollo Social
K36: Implementar y mantener 1 estrategia para fortalecer la Unidad de Desarrollo Comunitario - UNDECO. | L36: 2210706 | M36: Número de estrategias implementadas y mantenidas para fortalecer la Unidad de Desarrollo Comunitario - UNDECO. | N36: 1 | O36: 1 | P36: 1 | Q36: 0.25 | R36: 1 | S36: 0.25 | T36: 1 | U36: 0.25 | V36: 1 | W36: 0.25 | X36: 1 | Y36: 0 | Z36: 0 | AA36: 0 | AB36: 1 | AC36: 1 | AD36: 0 | AE36: 0 | AF36: 0 | AG36: 0 | AH36: 0 | AI36: 0 | AJ36: 0.25 | AK36: 0.25 | AL36: 0.25 | AM36: 300000 | AN36: 234249 | AO36: 0 | AP36: 0.78083 | AQ36: - | AR36: 0 | AS36: 0 | AT36: 0 | AU36: - | AV36: - | AW36: 0 | AX36: 0 | AY36: 0 | AZ36: - | BA36: - | BB36: 0 | BC36: 0 | BD36: 0 | BE36: - | BF36: - | BG36: 300000 | BH36: 234249 | BI36: 0 | BJ36: 0.78083 | BK36: - | BL36: 16. Paz, justicia e instituciones sólidas | BM36: Desarrollo Comunitario | BN36: Sec. Desarrollo Social
K37: Realizar ejercicios de participación y construcción del territorio con 100 Juntas de Acción Comunal - JAC. | L37: 2210706 | M37: Número de Juntas de Acción Comunal - JAC que participan en ejercicios de construcción del territorio. | N37: 0 | O37: 100 | P37: 25 | Q37: 0.25 | R37: 25 | S37: 0.25 | T37: 25 | U37: 0.25 | V37: 25 | W37: 0.25 | X37: 0 | Y37: 0 | Z37: 0 | AA37: 0 | AB37: 0 | AC37: 0 | AD37: 0 | AE37: 0 | AF37: 0 | AG37: 0 | AH37: 0 | AI37: 0 | AJ37: =+SUM(X37:AA37)/O37 -> 0 | AK37: 0 | AL37: 0 | AM37: 35000 | AN37: 15000 | AO37: 0 | AP37: 0.4285714286 | AQ37: - | AR37: 25000 | AS37: 0 | AT37: 0 | AU37: 0 | AV37: - | AW37: 26125 | AX37: 0 | AY37: 0 | AZ37: 0 | BA37: - | BB37: 27300 | BC37: 0 | BD37: 0 | BE37: 0 | BF37: - | BG37: 113425 | BH37: 15000 | BI37: 0 | BJ37: 0.1322459775 | BK37: - | BL37: 16. Paz, justicia e instituciones sólidas | BM37: Desarrollo Comunitario | BN37: Sec. Desarrollo Social
F38: Lograr que el 60% de los ciudadanos confíe en la gestión del Alcalde/Gobierno Municipal de acuerdo a la encuesta Cómo Vamos. | G38: 0.3 | H38: 0.6 | K38: Implementar y mantener la estrategia "Voces de los comuneros". | L38: - | M38: Número de estrategias "Voces de los comuneros" implementadas y mantenidas. | N38: 0 | O38: 1 | P38: 1 | Q38: 0.25 | R38: 1 | S38: 0.25 | T38: 1 | U38: 0.25 | V38: 1 | W38: 0.25 | X38: 1 | Y38: 0 | Z38: 0 | AA38: 0 | AB38: 1 | AC38: 1 | AD38: 0 | AE38: 0 | AF38: 0 | AG38: 0 | AH38: 0 | AI38: 0 | AJ38: 0.25 | AK38: 0.25 | AL38: 0.25 | AM38: 0 | AN38: 0 | AO38: 0 | AP38: - | AQ38: - | AR38: 0 | AS38: 0 | AT38: 0 | AU38: - | AV38: - | AW38: 0 | AX38: 0 | AY38: 0 | AZ38: - | BA38: - | BB38: 0 | BC38: 0 | BD38: 0 | BE38: - | BF38: - | BG38: 0 | BH38: 0 | BI38: 0 | BJ38: - | BK38: - | BL38: 16. Paz, justicia e instituciones sólidas | BM38: Justicia y Seguridad | BN38: Sec. Desarrollo Social
K39: Realizar 2 actividades de dotación para ediles con el fin de apoyar su ejercicio democrático. | L39: 0 | M39: Número de actividades de dotación realizadas para ediles con el fin de apoyar su ejercicio democrático. | N39: 1 | O39: 2 | P39: 0 | Q39: 0 | R39: 1 | S39: 0.5 | T39: 0 | U39: 0 | V39: 1 | W39: 0.5 | X39: 0 | Y39: 0 | Z39: 0 | AA39: 0 | AB39: - | AC39: - | AD39: 0 | AE39: 0 | AF39: - | AG39: - | AH39: 0 | AI39: 0 | AJ39: =+SUM(X39:AA39)/O39 -> 0 | AK39: 0 | AL39: 0 | AM39: 0 | AN39: 0 | AO39: 0 | AP39: - | AQ39: - | AR39: 40000 | AS39: 0 | AT39: 0 | AU39: 0 | AV39: - | AW39: 0 | AX39: 0 | AY39: 0 | AZ39: - | BA39: - | BB39: 41800 | BC39: 0 | BD39: 0 | BE39: 0 | BF39: - | BG39: 81800 | BH39: 0 | BI39: 0 | BJ39: 0 | BK39: - | BL39: 16. Paz, justicia e instituciones sólidas | BM39: Desarrollo Comunitario | BN39: Sec. Desarrollo Social
K40: Realizar 4 concursos "embellece tu barrio". | L40: 2210706 | M40: Número de concursos "embellece tu barrio" realizados. | N40: 0 | O40: 4 | P40: 1 | Q40: 0.25 | R40: 1 | S40: 0.25 | T40: 1 | U40: 0.25 | V40: 1 | W40: 0.25 | X40: 0 | Y40: 0 | Z40: 0 | AA40: 0 | AB40: 0 | AC40: 0 | AD40: 0 | AE40: 0 | AF40: 0 | AG40: 0 | AH40: 0 | AI40: 0 | AJ40: =+SUM(X40:AA40)/O40 -> 0 | AK40: 0 | AL40: 0 | AM40: 30000 | AN40: 0 | AO40: 0 | AP40: 0 | AQ40: - | AR40: 20900 | AS40: 0 | AT40: 0 | AU40: 0 | AV40: - | AW40: 21840 | AX40: 0 | AY40: 0 | AZ40: 0 | BA40: - | BB40: 22823 | BC40: 0 | BD40: 0 | BE40: 0 | BF40: - | BG40: 95563 | BH40: 0 | BI40: 0 | BJ40: 0 | BK40: - | BL40: 13. Acción por el clima | BM40: Ambiental | BN40: Sec. Desarrollo Social
K41: Brindar 10.000 entradas gratuitas a ediles, dignatarios y afiliados de las JAL y JAC a espacios de recreación y cultura. | L41: 2210230 | M41: Número de entradas gratuitas brindadas a ediles, dignatarios y afiliados de las JAL y JAC a espacios de recreación y cultura. | N41: 0 | O41: 10000 | P41: 2500 | Q41: 0.25 | R41: 2500 | S41: 0.25 | T41: 2500 | U41: 0.25 | V41: 2500 | W41: 0.25 | X41: 2 | Y41: 0 | Z41: 0 | AA41: 0 | AB41: 0.0008 | AC41: 0.0008 | AD41: 0 | AE41: 0 | AF41: 0 | AG41: 0 | AH41: 0 | AI41: 0 | AJ41: 0.0002 | AK41: 0.0002 | AL41: 0.0002 | AM41: 21000 | AN41: 21000 | AO41: 0 | AP41: 1 | AQ41: - | AR41: 0 | AS41: 0 | AT41: 0 | AU41: - | AV41: - | AW41: 0 | AX41: 0 | AY41: 0 | AZ41: - | BA41: - | BB41: 0 | BC41: 0 | BD41: 0 | BE41: - | BF41: - | BG41: 21000 | BH41: 21000 | BI41: 0 | BJ41: 1 | BK41: - | BL41: 16. Paz, justicia e instituciones sólidas | BM41: Desarrollo Comunitario | BN41: Sec. Desarrollo Social
K42: Realizar 80 reuniones en el territorio con Juntas Administradoras Locales - JAL para discutir política pública y problemas de la comunidad. | L42: 2210706 | M42: Número de reuniones realizadas en el territorio con Juntas Administradoras Locales - JAL para discutir política pública y problemas de la comunidad. | N42: 0 | O42: 80 | P42: 20 | Q42: 0.25 | R42: 20 | S42: 0.25 | T42: 20 | U42: 0.25 | V42: 20 | W42: 0.25 | X42: 2 | Y42: 0 | Z42: 0 | AA42: 0 | AB42: 0.1 | AC42: 0.1 | AD42: 0 | AE42: 0 | AF42: 0 | AG42: 0 | AH42: 0 | AI42: 0 | AJ42: 0.025 | AK42: 0.025 | AL42: 0.025 | AM42: 20000 | AN42: 0 | AO42: 0 | AP42: 0 | AQ42: - | AR42: 20000 | AS42: 0 | AT42: 0 | AU42: 0 | AV42: - | AW42: 20000 | AX42: 0 | AY42: 0 | AZ42: 0 | BA42: - | BB42: 20000 | BC42: 0 | BD42: 0 | BE42: 0 | BF42: - | BG42: 80000 | BH42: 0 | BI42: 0 | BJ42: 0 | BK42: - | BL42: 16. Paz, justicia e instituciones sólidas | BM42: Desarrollo Comunitario | BN42: Sec. Desarrollo Social
K43: Desarrollar 1 estrategia para la formación de los conciliadores de las JAC que promuevan una cultura de trasformación de los conflictos cotidianos en la comunidad para disminuir los índices de violencia por intolerancia social. | L43: - | M43: Número de estrategias desarrolladas para la formación de los conciliadores de las JAC que promuevan una cultura de trasformación de los conflictos cotidianos en la comunidad para disminuir los índices de violencia por intolerancia social. | N43: 0 | O43: 1 | P43: 0 | Q43: 0 | R43: 1 | S43: 1 | T43: 0 | U43: 0 | V43: 0 | W43: 0 | X43: 0 | Y43: 0 | Z43: 0 | AA43: 0 | AB43: - | AC43: - | AD43: 0 | AE43: 0 | AF43: - | AG43: - | AH43: - | AI43: - | AJ43: 0 | AK43: 0 | AL43: 0 | AM43: 0 | AN43: 0 | AO43: 0 | AP43: - | AQ43: - | AR43: 0 | AS43: 0 | AT43: 0 | AU43: - | AV43: - | AW43: 0 | AX43: 0 | AY43: 0 | AZ43: - | BA43: - | BB43: 0 | BC43: 0 | BD43: 0 | BE43: - | BF43: - | BG43: 0 | BH43: 0 | BI43: 0 | BJ43: - | BK43: - | BL43: 16. Paz, justicia e instituciones sólidas | BM43: Desarrollo Comunitario | BN43: Sec. Desarrollo Social
K44: Realizar 8 actividades para el fortalecimiento del Consejo Territorial de Planeación. | L44: 2210842 | M44: Número de actividades realizadas para el fortalecimiento del Consejo Territorial de Planeación. | N44: 0 | O44: 8 | P44: 1 | Q44: 0.125 | R44: 2 | S44: 0.25 | T44: 3 | U44: 0.375 | V44: 2 | W44: 0.25 | X44: 1 | Y44: 0 | Z44: 0 | AA44: 0 | AB44: 1 | AC44: 1 | AD44: 0 | AE44: 0 | AF44: 0 | AG44: 0 | AH44: 0 | AI44: 0 | AJ44: 0.125 | AK44: 0.125 | AL44: 0.125 | AM44: 33500 | AN44: 8500 | AO44: 0 | AP44: 0.2537313433 | AQ44: - | AR44: 20000 | AS44: 0 | AT44: 0 | AU44: 0 | AV44: - | AW44: 20000 | AX44: 0 | AY44: 0 | AZ44: 0 | BA44: - | BB44: 20000 | BC44: 0 | BD44: 0 | BE44: 0 | BF44: - | BG44: 93500 | BH44: 8500 | BI44: 0 | BJ44: 0.09090909091 | BK44: - | BL44: 16. Paz, justicia e instituciones sólidas | BM44: Desarrollo Comunitario | BN44: Sec. Planeación
K45: Construir o adecuar 1 espacio de trabajo con equipamiento para ediles. | L45: 0 | M45: Número de espacios de trabajo construidos o adecuados con equipamiento para ediles. | N45: 0 | O45: 1 | P45: 0 | Q45: 0 | R45: 0 | S45: 0 | T45: 1 | U45: 1 | V45: 0 | W45: 0 | X45: 0 | Y45: 0 | Z45: 0 | AA45: 0 | AB45: - | AC45: - | AD45: - | AE45: - | AF45: 0 | AG45: 0 | AH45: - | AI45: - | AJ45: 0 | AK45: 0 | AL45: 0 | AM45: 0 | AN45: 0 | AO45: 0 | AP45: - | AQ45: - | AR45: 0 | AS45: 0 | AT45: 0 | AU45: - | AV45: - | AW45: 0 | AX45: 0 | AY45: 0 | AZ45: - | BA45: - | BB45: 0 | BC45: 0 | BD45: 0 | BE45: - | BF45: - | BG45: 0 | BH45: 0 | BI45: 0 | BJ45: - | BK45: - | BL45: 16. Paz, justicia e instituciones sólidas | BM45: Desarrollo Comunitario | BN45: Sec. Infraestructura
K46: Implementar y mantener 1 plataforma de interacción, registro de información y visibilización en línea para Juntas de Acción Comunal, Juntas Administradoras Locales y comités de desarrollo y control social. | L46: - | M46: Número de plataformas de interacción, registro de información y visibilización en línea implementadas y mantenidas para Juntas de Acción Comunal, Juntas Administradoras Locales y comités de desarrollo y control social. | N46: 0 | O46: 1 | P46: 1 | Q46: 0.25 | R46: 1 | S46: 0.25 | T46: 1 | U46: 0.25 | V46: 1 | W46: 0.25 | X46: 0.33 | Y46: 0 | Z46: 0 | AA46: 0 | AB46: 0.33 | AC46: 0.33 | AD46: 0 | AE46: 0 | AF46: 0 | AG46: 0 | AH46: 0 | AI46: 0 | AJ46: 0.0825 | AK46: 0.0825 | AL46: 0.0825 | AM46: 0 | AN46: 0 | AO46: 0 | AP46: - | AQ46: - | AR46: 0 | AS46: 0 | AT46: 0 | AU46: - | AV46: - | AW46: 0 | AX46: 0 | AY46: 0 | AZ46: - | BA46: - | BB46: 0 | BC46: 0 | BD46: 0 | BE46: - | BF46: - | BG46: 0 | BH46: 0 | BI46: 0 | BJ46: - | BK46: - | BL46: 16. Paz, justicia e instituciones sólidas | BM46: Desarrollo Comunitario | BN46: Ofc. Sistemas
K47: Mantener el acompañamiento y/o asesoría al 100% de los comites de desarrollo y control social que lo requieran. | L47: - | M47: Porcentaje de comités de desarrollo y control social con el acompañamiento según lo requerido. | N47: 1 | O47: 1 | P47: 1 | Q47: 0.25 | R47: 1 | S47: 0.25 | T47: 1 | U47: 0.25 | V47: 1 | W47: 0.25 | X47: 1 | Y47: 0 | Z47: 0 | AA47: 0 | AB47: 1 | AC47: 1 | AD47: 0 | AE47: 0 | AF47: 0 | AG47: 0 | AH47: 0 | AI47: 0 | AJ47: 0.25 | AK47: 0.25 | AL47: 0.25 | AM47: 0 | AN47: 0 | AO47: 0 | AP47: - | AQ47: - | AR47: 0 | AS47: 0 | AT47: 0 | AU47: - | AV47: - | AW47: 0 | AX47: 0 | AY47: 0 | AZ47: - | BA47: - | BB47: 0 | BC47: 0 | BD47: 0 | BE47: - | BF47: - | BG47: 0 | BH47: 0 | BI47: 0 | BJ47: - | BK47: - | BL47: 16. Paz, justicia e instituciones sólidas | BM47: Fortalecimiento Institucional | BN47: UTSP
I48: =+RESUMEN!J14 -> 0.06944444444 | J48: RENDICIÓN DE CUENTAS PERMANENTE E INTERACTIVA | K48: Mantener 1 sección en línea y actualizada sobre los planes anti-corrupción y su cumplimiento. | L48: - | M48: Número de secciones mantenidas en línea y actualizada sobre los planes anti-corrupción y su cumplimiento. | N48: 1 | O48: 1 | P48: 1 | Q48: 0.25 | R48: 1 | S48: 0.25 | T48: 1 | U48: 0.25 | V48: 1 | W48: 0.25 | X48: 0.5 | Y48: 0 | Z48: 0 | AA48: 0 | AB48: 0.5 | AC48: 0.5 | AD48: 0 | AE48: 0 | AF48: 0 | AG48: 0 | AH48: 0 | AI48: 0 | AJ48: 0.125 | AK48: 0.125 | AL48: 0.125 | AM48: 0 | AN48: 0 | AO48: 0 | AP48: - | AQ48: - | AR48: 0 | AS48: 0 | AT48: 0 | AU48: - | AV48: - | AW48: 0 | AX48: 0 | AY48: 0 | AZ48: - | BA48: - | BB48: 0 | BC48: 0 | BD48: 0 | BE48: - | BF48: - | BG48: 0 | BH48: 0 | BI48: 0 | BJ48: - | BK48: - | BL48: 16. Paz, justicia e instituciones sólidas | BM48: Fortalecimiento Institucional | BN48: Ofc. Sistemas
K49: Implementar y mantener 1 sección en línea y actualizada de los planes de compras y adquisiciones y su ejecución. | L49: - | M49: Número de secciones implementadas y mantenidas en línea y actualizada de los planes de compras y adquisiciones y su ejecución. | N49: 1 | O49: 1 | P49: 1 | Q49: 0.25 | R49: 1 | S49: 0.25 | T49: 1 | U49: 0.25 | V49: 1 | W49: 0.25 | X49: 0 | Y49: 0 | Z49: 0 | AA49: 0 | AB49: 0 | AC49: 0 | AD49: 0 | AE49: 0 | AF49: 0 | AG49: 0 | AH49: 0 | AI49: 0 | AJ49: 0 | AK49: 0 | AL49: 0 | AM49: 0 | AN49: 0 | AO49: 0 | AP49: - | AQ49: - | AR49: 0 | AS49: 0 | AT49: 0 | AU49: - | AV49: - | AW49: 0 | AX49: 0 | AY49: 0 | AZ49: - | BA49: - | BB49: 0 | BC49: 0 | BD49: 0 | BE49: - | BF49: - | BG49: 0 | BH49: 0 | BI49: 0 | BJ49: - | BK49: - | BL49: 16. Paz, justicia e instituciones sólidas | BM49: Fortalecimiento Institucional | BN49: Ofc. Sistemas
K50: Mantener 1 sección en línea y actualizada sobre el Plan de Desarrollo y su ejecución. | L50: - | M50: Número de secciones mantenidas en línea y actualizada sobre el Plan de Desarrollo y su ejecución. | N50: 1 | O50: 1 | P50: 1 | Q50: 0.25 | R50: 1 | S50: 0.25 | T50: 1 | U50: 0.25 | V50: 1 | W50: 0.25 | X50: 0.25 | Y50: 0 | Z50: 0 | AA50: 0 | AB50: 0.25 | AC50: 0.25 | AD50: 0 | AE50: 0 | AF50: 0 | AG50: 0 | AH50: 0 | AI50: 0 | AJ50: 0.0625 | AK50: 0.0625 | AL50: 0.0625 | AM50: 0 | AN50: 0 | AO50: 0 | AP50: - | AQ50: - | AR50: 0 | AS50: 0 | AT50: 0 | AU50: - | AV50: - | AW50: 0 | AX50: 0 | AY50: 0 | AZ50: - | BA50: - | BB50: 0 | BC50: 0 | BD50: 0 | BE50: - | BF50: - | BG50: 0 | BH50: 0 | BI50: 0 | BJ50: - | BK50: - | BL50: 16. Paz, justicia e instituciones sólidas | BM50: Fortalecimiento Institucional | BN50: Ofc. Sistemas
F51: Lograr que el 60% de los ciudadanos considere que la Alcaldía es transparente en sus actividades de acuerdo a encuesta Cómo Vamos. | G51: 0.14 | H51: 0.6 | K51: Implementar y mantener 1 sección en línea y actualizada para que la ciudadanía pueda seguir la ejecución y los costos de las obras de infraestructura. | L51: - | M51: Número de secciones implementadas y mantenidas en línea y actualizada para que la ciudadanía pueda seguir la ejecución y los costos de las obras de infraestructura. | N51: 0 | O51: 1 | P51: 1 | Q51: 0.25 | R51: 1 | S51: 0.25 | T51: 1 | U51: 0.25 | V51: 1 | W51: 0.25 | X51: 0 | Y51: 0 | Z51: 0 | AA51: 0 | AB51: 0 | AC51: 0 | AD51: 0 | AE51: 0 | AF51: 0 | AG51: 0 | AH51: 0 | AI51: 0 | AJ51: 0 | AK51: 0 | AL51: 0 | AM51: 0 | AN51: 0 | AO51: 0 | AP51: - | AQ51: - | AR51: 0 | AS51: 0 | AT51: 0 | AU51: - | AV51: - | AW51: 0 | AX51: 0 | AY51: 0 | AZ51: - | BA51: - | BB51: 0 | BC51: 0 | BD51: 0 | BE51: - | BF51: - | BG51: 0 | BH51: 0 | BI51: 0 | BJ51: - | BK51: - | BL51: 16. Paz, justicia e instituciones sólidas | BM51: Fortalecimiento Institucional | BN51: Ofc. Sistemas
K52: Implementar y mantener 1 sección en línea y actualizada sobre los contratos de prestación de servicios celebrados por la Administración Central. | L52: - | M52: Número de secciones implementadas y mantenidas en línea y actualizada sobre los contratos de prestación de servicios celebrados por la Administración Central. | N52: 0 | O52: 1 | P52: 1 | Q52: 0.25 | R52: 1 | S52: 0.25 | T52: 1 | U52: 0.25 | V52: 1 | W52: 0.25 | X52: 1 | Y52: 0 | Z52: 0 | AA52: 0 | AB52: 1 | AC52: 1 | AD52: 0 | AE52: 0 | AF52: 0 | AG52: 0 | AH52: 0 | AI52: 0 | AJ52: 0.25 | AK52: 0.25 | AL52: 0.25 | AM52: 0 | AN52: 0 | AO52: 0 | AP52: - | AQ52: - | AR52: 0 | AS52: 0 | AT52: 0 | AU52: - | AV52: - | AW52: 0 | AX52: 0 | AY52: 0 | AZ52: - | BA52: - | BB52: 0 | BC52: 0 | BD52: 0 | BE52: - | BF52: - | BG52: 0 | BH52: 0 | BI52: 0 | BJ52: - | BK52: - | BL52: 16. Paz, justicia e instituciones sólidas | BM52: Fortalecimiento Institucional | BN52: Ofc. Sistemas
K53: Implementar y mantener 1 sección en línea y actualizada sobre la ejecución de los proyectos estratégicos. | L53: - | M53: Número de secciones implementadas y mantenidas en línea y actualizada sobre la ejecución de los proyectos estratégicos. | N53: 0 | O53: 1 | P53: 1 | Q53: 0.25 | R53: 1 | S53: 0.25 | T53: 1 | U53: 0.25 | V53: 1 | W53: 0.25 | X53: 0.25 | Y53: 0 | Z53: 0 | AA53: 0 | AB53: 0.25 | AC53: 0.25 | AD53: 0 | AE53: 0 | AF53: 0 | AG53: 0 | AH53: 0 | AI53: 0 | AJ53: 0.0625 | AK53: 0.0625 | AL53: 0.0625 | AM53: 0 | AN53: 0 | AO53: 0 | AP53: - | AQ53: - | AR53: 0 | AS53: 0 | AT53: 0 | AU53: - | AV53: - | AW53: 0 | AX53: 0 | AY53: 0 | AZ53: - | BA53: - | BB53: 0 | BC53: 0 | BD53: 0 | BE53: - | BF53: - | BG53: 0 | BH53: 0 | BI53: 0 | BJ53: - | BK53: - | BL53: 16. Paz, justicia e instituciones sólidas | BM53: Fortalecimiento Institucional | BN53: Ofc. Sistemas
K54: Implementar y mantener 1 sección en línea y actualizada sobre los gastos de funcionamiento de la Administración Central. | L54: - | M54: Número de secciones implementadas y mantenidas en línea y actualizada sobre los gastos de funcionamiento de la Administración Central. | N54: 1 | O54: 1 | P54: 1 | Q54: 0.25 | R54: 1 | S54: 0.25 | T54: 1 | U54: 0.25 | V54: 1 | W54: 0.25 | X54: 0.5 | Y54: 0 | Z54: 0 | AA54: 0 | AB54: 0.5 | AC54: 0.5 | AD54: 0 | AE54: 0 | AF54: 0 | AG54: 0 | AH54: 0 | AI54: 0 | AJ54: 0.125 | AK54: 0.125 | AL54: 0.125 | AM54: 0 | AN54: 0 | AO54: 0 | AP54: - | AQ54: - | AR54: 0 | AS54: 0 | AT54: 0 | AU54: - | AV54: - | AW54: 0 | AX54: 0 | AY54: 0 | AZ54: - | BA54: - | BB54: 0 | BC54: 0 | BD54: 0 | BE54: - | BF54: - | BG54: 0 | BH54: 0 | BI54: 0 | BJ54: - | BK54: - | BL54: 16. Paz, justicia e instituciones sólidas | BM54: Fortalecimiento Institucional | BN54: Ofc. Sistemas
K55: Celebrar 7 reuniones populares para rendir cuentas de la ejecución del Plan de Desarrollo y la ejecución del presupuesto. | L55: 2210277 | M55: Número de reuniones populares celebradas para rendir cuentas de la ejecución del Plan de Desarrollo y la ejecución del presupuesto. | N55: 0 | O55: 7 | P55: 1 | Q55: 0.1428571429 | R55: 2 | S55: 0.2857142857 | T55: 2 | U55: 0.2857142857 | V55: 2 | W55: 0.2857142857 | X55: 0 | Y55: 0 | Z55: 0 | AA55: 0 | AB55: 0 | AC55: 0 | AD55: 0 | AE55: 0 | AF55: 0 | AG55: 0 | AH55: 0 | AI55: 0 | AJ55: =+SUM(X55:AA55)/O55 -> 0 | AK55: 0 | AL55: 0 | AM55: 0 | AN55: 0 | AO55: 0 | AP55: - | AQ55: - | AR55: 40000 | AS55: 0 | AT55: 0 | AU55: 0 | AV55: - | AW55: 40000 | AX55: 0 | AY55: 0 | AZ55: 0 | BA55: - | BB55: 40000 | BC55: 0 | BD55: 0 | BE55: 0 | BF55: - | BG55: 120000 | BH55: 0 | BI55: 0 | BJ55: 0 | BK55: - | BL55: 16. Paz, justicia e instituciones sólidas | BM55: Fortalecimiento Institucional | BN55: Sec. Hacienda
K56: Implementar y mantener 1 estrategia para el informe anual de rendición de cuentas en cultura. | L56: - | M56: Número de estrategias para el informe anual de rendición de cuentas en cultura implementadas y mantenidas | N56: 0 | O56: 1 | P56: 1 | Q56: 0.25 | R56: 1 | S56: 0.25 | T56: 1 | U56: 0.25 | V56: 1 | W56: 0.25 | X56: 0 | Y56: 0 | Z56: 0 | AA56: 0 | AB56: 0 | AC56: 0 | AD56: 0 | AE56: 0 | AF56: 0 | AG56: 0 | AH56: 0 | AI56: 0 | AJ56: 0 | AK56: 0 | AL56: 0 | AM56: 0 | AN56: 0 | AO56: 0 | AP56: - | AQ56: - | AR56: 0 | AS56: 0 | AT56: 0 | AU56: - | AV56: - | AW56: 0 | AX56: 0 | AY56: 0 | AZ56: - | BA56: - | BB56: 0 | BC56: 0 | BD56: 0 | BE56: - | BF56: - | BG56: 0 | BH56: 0 | BI56: 0 | BJ56: - | BK56: - | BL56: 16. Paz, justicia e instituciones sólidas | BM56: Cultura | BN56: IMCT
I57: =+RESUMEN!J15 -> 0 | J57: CULTURA METROPOLITANA Y CIUDAD REGIÓN: PARTICIPACIÓN QUE ATRAVIESA FRONTERAS | K57: Realizar 4 audiencias de participación metropolitana en conjunto con la Alcaldía de Floridablanca. | L57: - | M57: Número de audiencias de participación metropolitana realizadas en conjunto con la Alcaldía de Floridablanca. | N57: 0 | O57: 4 | P57: 1 | Q57: 0.25 | R57: 1 | S57: 0.25 | T57: 1 | U57: 0.25 | V57: 1 | W57: 0.25 | X57: 0 | Y57: 0 | Z57: 0 | AA57: 0 | AB57: 0 | AC57: 0 | AD57: 0 | AE57: 0 | AF57: 0 | AG57: 0 | AH57: 0 | AI57: 0 | AJ57: =+SUM(X57:AA57)/O57 -> 0 | AK57: 0 | AL57: 0 | AM57: 0 | AN57: 0 | AO57: 0 | AP57: - | AQ57: - | AR57: 0 | AS57: 0 | AT57: 0 | AU57: - | AV57: - | AW57: 0 | AX57: 0 | AY57: 0 | AZ57: - | BA57: - | BB57: 0 | BC57: 0 | BD57: 0 | BE57: - | BF57: - | BG57: 0 | BH57: 0 | BI57: 0 | BJ57: - | BK57: - | BL57: 16. Paz, justicia e instituciones sólidas | BM57: Fortalecimiento Institucional | BN57: AMB
K58: Realizar 4 audiencias de participación metropolitana en conjunto con la Alcaldía de Piedecuesta. | L58: - | M58: Número de audiencias de participación metropolitana realizadas en conjunto con la Alcaldía de Piedecuesta. | N58: 0 | O58: 4 | P58: 1 | Q58: 0.25 | R58: 1 | S58: 0.25 | T58: 1 | U58: 0.25 | V58: 1 | W58: 0.25 | X58: 0 | Y58: 0 | Z58: 0 | AA58: 0 | AB58: 0 | AC58: 0 | AD58: 0 | AE58: 0 | AF58: 0 | AG58: 0 | AH58: 0 | AI58: 0 | AJ58: 0 | AK58: 0 | AL58: 0 | AM58: 0 | AN58: 0 | AO58: 0 | AP58: - | AQ58: - | AR58: 0 | AS58: 0 | AT58: 0 | AU58: - | AV58: - | AW58: 0 | AX58: 0 | AY58: 0 | AZ58: - | BA58: - | BB58: 0 | BC58: 0 | BD58: 0 | BE58: - | BF58: - | BG58: 0 | BH58: 0 | BI58: 0 | BJ58: - | BK58: - | BL58: 16. Paz, justicia e instituciones sólidas | BM58: Fortalecimiento Institucional | BN58: AMB
K59: Realizar 4 audiencias de participación metropolitana en conjunto con la Alcaldía de Girón. | L59: - | M59: Número de audiencias de participación metropolitana realizadas en conjunto con la Alcaldía de Girón. | N59: 0 | O59: 4 | P59: 1 | Q59: 0.25 | R59: 1 | S59: 0.25 | T59: 1 | U59: 0.25 | V59: 1 | W59: 0.25 | X59: 0 | Y59: 0 | Z59: 0 | AA59: 0 | AB59: 0 | AC59: 0 | AD59: 0 | AE59: 0 | AF59: 0 | AG59: 0 | AH59: 0 | AI59: 0 | AJ59: 0 | AK59: 0 | AL59: 0 | AM59: 0 | AN59: 0 | AO59: 0 | AP59: - | AQ59: - | AR59: 0 | AS59: 0 | AT59: 0 | AU59: - | AV59: - | AW59: 0 | AX59: 0 | AY59: 0 | AZ59: - | BA59: - | BB59: 0 | BC59: 0 | BD59: 0 | BE59: - | BF59: - | BG59: 0 | BH59: 0 | BI59: 0 | BJ59: - | BK59: - | BL59: 16. Paz, justicia e instituciones sólidas | BM59: Fortalecimiento Institucional | BN59: AMB
K60: Realizar 8 juntas abiertas del Área Metropolitana de Bucaramanga con presencia de los integrantes de la junta metropolitana y participación de la comunidad para una discusión pública sobre asuntos metropolitanos. | L60: - | M60: Número de juntas abiertas del Área Metropolitana de Bucaramanga realizadas con presencia de los integrantes de la junta metropolitana y participación de la comunidad para una discusión pública sobre asuntos metropolitanos. | N60: 0 | O60: 8 | P60: 2 | Q60: 0.25 | R60: 2 | S60: 0.25 | T60: 2 | U60: 0.25 | V60: 2 | W60: 0.25 | X60: 0 | Y60: 0 | Z60: 0 | AA60: 0 | AB60: 0 | AC60: 0 | AD60: 0 | AE60: 0 | AF60: 0 | AG60: 0 | AH60: 0 | AI60: 0 | AJ60: 0 | AK60: 0 | AL60: 0 | AM60: 0 | AN60: 0 | AO60: 0 | AP60: - | AQ60: - | AR60: 0 | AS60: 0 | AT60: 0 | AU60: - | AV60: - | AW60: 0 | AX60: 0 | AY60: 0 | AZ60: - | BA60: - | BB60: 0 | BC60: 0 | BD60: 0 | BE60: - | BF60: - | BG60: 0 | BH60: 0 | BI60: 0 | BJ60: - | BK60: - | BL60: 16. Paz, justicia e instituciones sólidas | BM60: Desarrollo Comunitario | BN60: AMB
I61: =+RESUMEN!J16 -> 0.1288636364 | J61: GOBIERNO TRANSPARENTE | K61: Formular e implementar 1 estrategia de comunicación para difundir los procesos de contratación pública de selección abierta y promover la participación de oferentes así como el control social ciudadano. | L61: 0 | M61: Número de estrategias de comunicaciones formuladas e implementadas para difundir los procesos de contratación pública de selección abierta y promover la participación de oferentes así como el control social ciudadano. | N61: 0 | O61: 1 | P61: 1 | Q61: 0.25 | R61: 1 | S61: 0.25 | T61: 1 | U61: 0.25 | V61: 1 | W61: 0.25 | X61: 1 | Y61: 0 | Z61: 0 | AA61: 0 | AB61: 1 | AC61: 1 | AD61: 0 | AE61: 0 | AF61: 0 | AG61: 0 | AH61: 0 | AI61: 0 | AJ61: 0.25 | AK61: 0.25 | AL61: 0.25 | AM61: 0 | AN61: 0 | AO61: 0 | AP61: - | AQ61: - | AR61: 50000 | AS61: 0 | AT61: 0 | AU61: 0 | AV61: - | AW61: 50000 | AX61: 0 | AY61: 0 | AZ61: 0 | BA61: - | BB61: 50000 | BC61: 0 | BD61: 0 | BE61: 0 | BF61: - | BG61: 150000 | BH61: 0 | BI61: 0 | BJ61: 0 | BK61: - | BL61: 16. Paz, justicia e instituciones sólidas | BM61: Fortalecimiento Institucional | BN61: Ofc. Prensa
K62: Elaborar y difundir 16 informes de contratación pública. | L62: - | M62: Número de informes de contratación pública elaboras y difundidas. | N62: 0 | O62: 16 | P62: 4 | Q62: 0.25 | R62: 4 | S62: 0.25 | T62: 4 | U62: 0.25 | V62: 4 | W62: 0.25 | X62: 2 | Y62: 0 | Z62: 0 | AA62: 0 | AB62: 0.5 | AC62: 0.5 | AD62: 0 | AE62: 0 | AF62: 0 | AG62: 0 | AH62: 0 | AI62: 0 | AJ62: =+SUM(X62:AA62)/O62 -> 0.125 | AK62: 0.125 | AL62: 0.125 | AM62: 0 | AN62: 0 | AO62: 0 | AP62: - | AQ62: - | AR62: 0 | AS62: 0 | AT62: 0 | AU62: - | AV62: - | AW62: 0 | AX62: 0 | AY62: 0 | AZ62: - | BA62: - | BB62: 0 | BC62: 0 | BD62: 0 | BE62: - | BF62: - | BG62: 0 | BH62: 0 | BI62: 0 | BJ62: - | BK62: - | BL62: 16. Paz, justicia e instituciones sólidas | BM62: Fortalecimiento Institucional | BN62: Sec. Jurídica
K63: Implementar y mantener actualizado en línea 1 registro de intereses privados de los secretarios y sub-secretarios así como de los asesores del despacho del alcalde. | L63: - | M63: Número registros implementados y mantenidos actualizados en línea de intereses privados de los secretarios y sub-secretarios así como de los asesores del despacho del alcalde. | N63: 0 | O63: 1 | P63: 1 | Q63: 0.25 | R63: 1 | S63: 0.25 | T63: 1 | U63: 0.25 | V63: 1 | W63: 0.25 | X63: 1 | Y63: 0 | Z63: 0 | AA63: 0 | AB63: 1 | AC63: 1 | AD63: 0 | AE63: 0 | AF63: 0 | AG63: 0 | AH63: 0 | AI63: 0 | AJ63: 0.25 | AK63: 0.25 | AL63: 0.25 | AM63: 0 | AN63: 0 | AO63: 0 | AP63: - | AQ63: - | AR63: 0 | AS63: 0 | AT63: 0 | AU63: - | AV63: - | AW63: 0 | AX63: 0 | AY63: 0 | AZ63: - | BA63: - | BB63: 0 | BC63: 0 | BD63: 0 | BE63: - | BF63: - | BG63: 0 | BH63: 0 | BI63: 0 | BJ63: - | BK63: - | BL63: 16. Paz, justicia e instituciones sólidas | BM63: Fortalecimiento Institucional | BN63: Sec. Jurídica
F64: Lograr una calificación de 90 en el componente exposición de la información del IGA. | G64: 79.4 | H64: 90 | K64: Formular e implementar 1 plan de la excelencia por la transparencia enfocado al mejoramiento continuo del índice ITEP en todas sus dimensiones. | L64: 0 | M64: Número de planes de la excelencia formulados e implementados por la transparencia enfocado al mejoramiento continuo del índice ITEP en todas sus dimensiones. | N64: 0 | O64: 1 | P64: 0 | Q64: 0 | R64: 1 | S64: 0.33 | T64: 1 | U64: 0.33 | V64: 1 | W64: 0.34 | X64: 1 | Y64: 0 | Z64: 0 | AA64: 0 | AB64: - | AC64: - | AD64: 0 | AE64: 0 | AF64: 0 | AG64: 0 | AH64: 0 | AI64: 0 | AJ64: =+AVERAGE(Y64:AA64)/O64 -> 0 | AK64: 0 | AL64: 0 | AM64: 250000 | AN64: 14250 | AO64: 0 | AP64: 0.057 | AQ64: - | AR64: 200000 | AS64: 0 | AT64: 0 | AU64: 0 | AV64: - | AW64: 200000 | AX64: 0 | AY64: 0 | AZ64: 0 | BA64: - | BB64: 200000 | BC64: 0 | BD64: 0 | BE64: 0 | BF64: - | BG64: 850000 | BH64: 14250 | BI64: 0 | BJ64: 0.01676470588 | BK64: - | BL64: 16. Paz, justicia e instituciones sólidas | BM64: Fortalecimiento Institucional | BN64: Sec. Jurídica
K65: Actualizar la estrategia integral de gobierno para la aplicación cabal de los postulados y mandatos de la ley 1712 de 2014 de transparencia y del derecho al acceso a la información pública. | L65: - | M65: Número de estrategias integrales de gobierno actualizadas para la aplicación cabal de los postulados y mandatos de la ley 1712 de 2014 de transparencia y del derecho al acceso a la información pública. | N65: 1 | O65: 1 | P65: 1 | Q65: 0.25 | R65: 1 | S65: 0.25 | T65: 1 | U65: 0.25 | V65: 1 | W65: 0.25 | X65: 0.5 | Y65: 0 | Z65: 0 | AA65: 0 | AB65: 0.5 | AC65: 0.5 | AD65: 0 | AE65: 0 | AF65: 0 | AG65: 0 | AH65: 0 | AI65: 0 | AJ65: 0.125 | AK65: 0.125 | AL65: 0.125 | AM65: 0 | AN65: 0 | AO65: 0 | AP65: - | AQ65: - | AR65: 0 | AS65: 0 | AT65: 0 | AU65: - | AV65: - | AW65: 0 | AX65: 0 | AY65: 0 | AZ65: - | BA65: - | BB65: 0 | BC65: 0 | BD65: 0 | BE65: - | BF65: - | BG65: 0 | BH65: 0 | BI65: 0 | BJ65: - | BK65: - | BL65: 16. Paz, justicia e instituciones sólidas | BM65: Fortalecimiento Institucional | BN65: Sec. Jurídica
K66: Actualizar el manual de contratación. | L66: - | M66: Número de manuales de contratación actualizados. | N66: 1 | O66: 1 | P66: 1 | Q66: 1 | R66: 0 | S66: 0 | T66: 0 | U66: 0 | V66: 0 | W66: 0 | X66: 0 | Y66: 0 | Z66: 0 | AA66: 0 | AB66: 0 | AC66: 0 | AD66: - | AE66: - | AF66: - | AG66: - | AH66: - | AI66: - | AJ66: =+SUM(X66:AA66)/O66 -> 0 | AK66: 0 | AL66: 0 | AM66: 0 | AN66: 0 | AO66: 0 | AP66: - | AQ66: - | AR66: 0 | AS66: 0 | AT66: 0 | AU66: - | AV66: - | AW66: 0 | AX66: 0 | AY66: 0 | AZ66: - | BA66: - | BB66: 0 | BC66: 0 | BD66: 0 | BE66: - | BF66: - | BG66: 0 | BH66: 0 | BI66: 0 | BJ66: - | BK66: - | BL66: 16. Paz, justicia e instituciones sólidas | BM66: Fortalecimiento Institucional | BN66: Sec. Jurídica
K67: Crear 1 cargo del nivel directivo y/o asesor adscrito al despacho del Alcalde como encargado de asuntos de transparencia en la gestión pública. | L67: - | M67: Número de cargos creados del nivel directivo y/o asesor adscritos al despacho del Alcalde como encargado de asuntos de transparencia en la gestión pública | N67: 1 | O67: 1 | P67: 0 | Q67: 0 | R67: 1 | S67: 1 | T67: 0 | U67: 0 | V67: 0 | W67: 0 | X67: 0 | Y67: 0 | Z67: 0 | AA67: 0 | AB67: - | AC67: - | AD67: 0 | AE67: 0 | AF67: - | AG67: - | AH67: - | AI67: - | AJ67: 0 | AK67: 0 | AL67: 0 | AM67: 0 | AN67: 0 | AO67: 0 | AP67: - | AQ67: - | AR67: 0 | AS67: 0 | AT67: 0 | AU67: - | AV67: - | AW67: 0 | AX67: 0 | AY67: 0 | AZ67: - | BA67: - | BB67: 0 | BC67: 0 | BD67: 0 | BE67: - | BF67: - | BG67: 0 | BH67: 0 | BI67: 0 | BJ67: - | BK67: - | BL67: 16. Paz, justicia e instituciones sólidas | BM67: Fortalecimiento Institucional | BN67: Sec. Administrativa
K68: Implementar y mantener 1 estrategia para publicar en línea necesidades de trabajo o de provisión de servicios del municipio y recopilar hojas de vida o propuestas (Tu Talento es lo que Vale). | L68: - | M68: Número de estrategias implementadas y mantenidas para publicar en línea necesidades de trabajo o de provisión de servicios del municipio y recopilar hojas de vida o propuestas (Tu Talento es lo que Vale). | N68: 0 | O68: 1 | P68: 0 | Q68: 0 | R68: 1 | S68: 0.33 | T68: 1 | U68: 0.33 | V68: 1 | W68: 0.34 | X68: 0 | Y68: 0 | Z68: 0 | AA68: 0 | AB68: - | AC68: - | AD68: 0 | AE68: 0 | AF68: 0 | AG68: 0 | AH68: 0 | AI68: 0 | AJ68: =+AVERAGE(Y68:AA68)/O68 -> 0 | AK68: 0 | AL68: 0 | AM68: 0 | AN68: 0 | AO68: 0 | AP68: - | AQ68: - | AR68: 0 | AS68: 0 | AT68: 0 | AU68: - | AV68: - | AW68: 0 | AX68: 0 | AY68: 0 | AZ68: - | BA68: - | BB68: 0 | BC68: 0 | BD68: 0 | BE68: - | BF68: - | BG68: 0 | BH68: 0 | BI68: 0 | BJ68: - | BK68: - | BL68: 16. Paz, justicia e instituciones sólidas | BM68: Fortalecimiento Institucional | BN68: Sec. Administrativa
K69: Implementar y mantener 1 sección en línea y actualizada dentro de la página web institucional para consultar todos los procesos de contratación pública. | L69: - | M69: Número de secciones implementadas y mantenidas en línea y actualizada dentro de la página web institucional para consultar todos los procesos de contratación pública. | N69: 0 | O69: 1 | P69: 1 | Q69: 0.25 | R69: 1 | S69: 0.25 | T69: 1 | U69: 0.25 | V69: 1 | W69: 0.25 | X69: 0.67 | Y69: 0 | Z69: 0 | AA69: 0 | AB69: 0.67 | AC69: 0.67 | AD69: 0 | AE69: 0 | AF69: 0 | AG69: 0 | AH69: 0 | AI69: 0 | AJ69: 0.1675 | AK69: 0.1675 | AL69: 0.1675 | AM69: 0 | AN69: 0 | AO69: 0 | AP69: - | AQ69: - | AR69: 0 | AS69: 0 | AT69: 0 | AU69: - | AV69: - | AW69: 0 | AX69: 0 | AY69: 0 | AZ69: - | BA69: - | BB69: 0 | BC69: 0 | BD69: 0 | BE69: - | BF69: - | BG69: 0 | BH69: 0 | BI69: 0 | BJ69: - | BK69: - | BL69: 16. Paz, justicia e instituciones sólidas | BM69: Fortalecimiento Institucional | BN69: Ofc. Sistemas
K70: Mantener 1 sección en línea dentro de la página web institucional con información actualizada sobre decretos y resolución de la Administración así como de proyectos de acuerdo y acuerdos municipales. | L70: - | M70: Número de secciones mantenidas en línea dentro de la página web institucional con información actualizada sobre decretos y resolución de la Administración así como de proyectos de acuerdo y acuerdos municipales. | N70: 1 | O70: 1 | P70: 1 | Q70: 0.25 | R70: 1 | S70: 0.25 | T70: 1 | U70: 0.25 | V70: 1 | W70: 0.25 | X70: 1 | Y70: 0 | Z70: 0 | AA70: 0 | AB70: 1 | AC70: 1 | AD70: 0 | AE70: 0 | AF70: 0 | AG70: 0 | AH70: 0 | AI70: 0 | AJ70: 0.25 | AK70: 0.25 | AL70: 0.25 | AM70: 0 | AN70: 0 | AO70: 0 | AP70: - | AQ70: - | AR70: 0 | AS70: 0 | AT70: 0 | AU70: - | AV70: - | AW70: 0 | AX70: 0 | AY70: 0 | AZ70: - | BA70: - | BB70: 0 | BC70: 0 | BD70: 0 | BE70: - | BF70: - | BG70: 0 | BH70: 0 | BI70: 0 | BJ70: - | BK70: - | BL70: 16. Paz, justicia e instituciones sólidas | BM70: Fortalecimiento Institucional | BN70: Ofc. Sistemas
K71: Implementar y mantener 1 estrategia para la socialización del plan anti-corrupción y atención al ciudadano. | L71: - | M71: Número de estrategias implementadas y mantenidas para la socialización del plan anti-corrupción y atención al ciudadano. | N71: 0 | O71: 1 | P71: 1 | Q71: 0.25 | R71: 1 | S71: 0.25 | T71: 1 | U71: 0.25 | V71: 1 | W71: 0.25 | X71: 1 | Y71: 0 | Z71: 0 | AA71: 0 | AB71: 1 | AC71: 1 | AD71: 0 | AE71: 0 | AF71: 0 | AG71: 0 | AH71: 0 | AI71: 0 | AJ71: 0.25 | AK71: 0.25 | AL71: 0.25 | AM71: 0 | AN71: 0 | AO71: 0 | AP71: - | AQ71: - | AR71: 0 | AS71: 0 | AT71: 0 | AU71: - | AV71: - | AW71: 0 | AX71: 0 | AY71: 0 | AZ71: - | BA71: - | BB71: 0 | BC71: 0 | BD71: 0 | BE71: - | BF71: - | BG71: 0 | BH71: 0 | BI71: 0 | BJ71: - | BK71: - | BL71: 16. Paz, justicia e instituciones sólidas | BM71: Fortalecimiento Institucional | BN71: Sec. Planeación
I72: =+RESUMEN!J17 -> 0.1165 | J72: GOBIERNO COMPRENSIBLE Y ACCESIBLE | K72: Publicar mantener en línea el 100% de la información sobre la estructura orgánica, las funciones y los deberes de las dependencias así como los medios de contacto y/o servicios de estas. | L72: - | M72: Porcentaje de información publicados y mantenidos en línea sobre la estructura orgánica, las funciones y los deberes de las dependencias así como los medios de contacto y/o servicios de estas. | N72: 0.5 | O72: 1 | P72: 1 | Q72: 0.25 | R72: 1 | S72: 0.25 | T72: 1 | U72: 0.25 | V72: 1 | W72: 0.25 | X72: 0.33 | Y72: 0 | Z72: 0 | AA72: 0 | AB72: 0.33 | AC72: 0.33 | AD72: 0 | AE72: 0 | AF72: 0 | AG72: 0 | AH72: 0 | AI72: 0 | AJ72: 0.0825 | AK72: 0.0825 | AL72: 0.0825 | AM72: 0 | AN72: 0 | AO72: 0 | AP72: - | AQ72: - | AR72: 0 | AS72: 0 | AT72: 0 | AU72: - | AV72: - | AW72: 0 | AX72: 0 | AY72: 0 | AZ72: - | BA72: - | BB72: 0 | BC72: 0 | BD72: 0 | BE72: - | BF72: - | BG72: 0 | BH72: 0 | BI72: 0 | BJ72: - | BK72: - | BL72: 16. Paz, justicia e instituciones sólidas | BM72: Fortalecimiento Institucional | BN72: Ofc. Sistemas
K73: Publicar y mantener actualizado en línea el directorio de servidores públicos. | L73: - | M73: Número de directorios de servidores públicos publicados y mantenidos en línea. | N73: 1 | O73: 1 | P73: 1 | Q73: 0.25 | R73: 1 | S73: 0.25 | T73: 1 | U73: 0.25 | V73: 1 | W73: 0.25 | X73: 0.5 | Y73: 0 | Z73: 0 | AA73: 0 | AB73: 0.5 | AC73: 0.5 | AD73: 0 | AE73: 0 | AF73: 0 | AG73: 0 | AH73: 0 | AI73: 0 | AJ73: 0.125 | AK73: 0.125 | AL73: 0.125 | AM73: 0 | AN73: 0 | AO73: 0 | AP73: - | AQ73: - | AR73: 0 | AS73: 0 | AT73: 0 | AU73: - | AV73: - | AW73: 0 | AX73: 0 | AY73: 0 | AZ73: - | BA73: - | BB73: 0 | BC73: 0 | BD73: 0 | BE73: - | BF73: - | BG73: 0 | BH73: 0 | BI73: 0 | BJ73: - | BK73: - | BL73: 16. Paz, justicia e instituciones sólidas | BM73: Fortalecimiento Institucional | BN73: Ofc. Sistemas
K74: Publicar y mantener actualizado en línea el manual de funciones de la Administración Central. | L74: - | M74: Número de directorios de manuales de funciones de la Administración Central publicados y mantenidos en línea. | N74: 1 | O74: 1 | P74: 1 | Q74: 0.25 | R74: 1 | S74: 0.25 | T74: 1 | U74: 0.25 | V74: 1 | W74: 0.25 | X74: 0.5 | Y74: 0 | Z74: 0 | AA74: 0 | AB74: 0.5 | AC74: 0.5 | AD74: 0 | AE74: 0 | AF74: 0 | AG74: 0 | AH74: 0 | AI74: 0 | AJ74: 0.125 | AK74: 0.125 | AL74: 0.125 | AM74: 0 | AN74: 0 | AO74: 0 | AP74: - | AQ74: - | AR74: 0 | AS74: 0 | AT74: 0 | AU74: - | AV74: - | AW74: 0 | AX74: 0 | AY74: 0 | AZ74: - | BA74: - | BB74: 0 | BC74: 0 | BD74: 0 | BE74: - | BF74: - | BG74: 0 | BH74: 0 | BI74: 0 | BJ74: - | BK74: - | BL74: 16. Paz, justicia e instituciones sólidas | BM74: Fortalecimiento Institucional | BN74: Ofc. Sistemas
K75: Realizar 1 caracterización de las personas que requieren trámites y servicios administrativos del gobierno municipal. | L75: - | M75: Número de caracterizaciones de las personas que requieren trámites y servicios administrativos del gobierno municipal realizadas. | N75: 0 | O75: 1 | P75: 0 | Q75: 0 | R75: 1 | S75: 1 | T75: 0 | U75: 0 | V75: 0 | W75: 0 | X75: 0 | Y75: 0 | Z75: 0 | AA75: 0 | AB75: - | AC75: - | AD75: 0 | AE75: 0 | AF75: - | AG75: - | AH75: - | AI75: - | AJ75: =+SUM(X75:AA75)/O75 -> 0 | AK75: 0 | AL75: 0 | AM75: 0 | AN75: 0 | AO75: 0 | AP75: - | AQ75: - | AR75: 0 | AS75: 0 | AT75: 0 | AU75: - | AV75: - | AW75: 0 | AX75: 0 | AY75: 0 | AZ75: - | BA75: - | BB75: 0 | BC75: 0 | BD75: 0 | BE75: - | BF75: - | BG75: 0 | BH75: 0 | BI75: 0 | BJ75: - | BK75: - | BL75: 16. Paz, justicia e instituciones sólidas | BM75: Fortalecimiento Institucional | BN75: Sec. Administrativa
K76: Implementar y mantener 1 estrategia de comunicaciones para difundir y promover la oferta institucional así como de sus funciones, deberes y/u obligaciones legales dirigida a la población con enfoque diferencial. | L76: 0 | M76: Número de estrategias de comunicaciones implementadas y mantenidas para difundir y promover la oferta institucional así como de sus funciones, deberes y/u obligaciones legales dirigida a la población con enfoque diferencial. | N76: 0 | O76: 1 | P76: 1 | Q76: 0.25 | R76: 1 | S76: 0.25 | T76: 1 | U76: 0.25 | V76: 1 | W76: 0.25 | X76: 1 | Y76: 0 | Z76: 0 | AA76: 0 | AB76: =IF(P76=0," -",X76/P76) -> 1 | AC76: =IF(P76=0," -",IF(AB76>100%,100%,AB76)) -> 1 | AD76: =IF(R76=0," -",Y76/R76) -> 0 | AE76: =IF(R76=0," -",IF(AD76>100%,100%,AD76)) -> 0 | AF76: =IF(T76=0," -",Z76/T76) -> 0 | AG76: =IF(T76=0," -",IF(AF76>100%,100%,AF76)) -> 0 | AH76: =IF(V76=0," -",AA76/V76) -> 0 | AI76: =IF(V76=0," -",IF(AH76>100%,100%,AH76)) -> 0 | AJ76: =+AVERAGE(X76:AA76)/O76 -> 0.25 | AK76: =+IF(AJ76>100%,100%,AJ76) -> 0.25 | AL76: =+AK76 -> 0.25 | AM76: 0 | AN76: 0 | AO76: 0 | AP76: - | AQ76: - | AR76: 250000 | AS76: 0 | AT76: 0 | AU76: 0 | AV76: - | AW76: 250000 | AX76: 0 | AY76: 0 | AZ76: 0 | BA76: - | BB76: 250000 | BC76: 0 | BD76: 0 | BE76: 0 | BF76: - | BG76: 750000 | BH76: 0 | BI76: 0 | BJ76: 0 | BK76: - | BL76: 16. Paz, justicia e instituciones sólidas | BM76: Fortalecimiento Institucional | BN76: Ofc. Prensa
Q77: =+AVERAGE(Q11:Q76) -> 0.2134379509 | S77: =+AVERAGE(S11:S76) -> 0.3103192641 | U77: =+AVERAGE(U11:U76) -> 0.2428499278 | W77: =+AVERAGE(W11:W76) -> 0.2333928571 | AC77: =+AVERAGE(AC11:AC76) -> 0.5225142857 | AE77: 0 | AG77: 0 | AI77: 0 | AK77: =+AVERAGE(AK11:AK76) -> 0.1228313131
D78: =+RESUMEN!J18 -> 0.1171853726 | E78: GOBIERNO LEGAL Y EFECTIVO | F78: Aumentar en un 30% los ingresos provenientes del impuesto predial. | G78: 0 | H78: 0.3 | I78: =+RESUMEN!J19 -> 0 | J78: NUEVO MODELO DE ATENCIÓN A LA CIUDADANÍA | K78: Formular e implementar 1 plan de la excelencia para la gestión de PQRSD en la Administración Municipal (procedimientos e infraestructura). | L78: 0 | M78: Número de planes de la excelencia formulados e implementados para la gestión de PQRSD en la Administración Municipal (procedimientos e infraestructura). | N78: 0 | O78: 1 | P78: 0 | Q78: =+P78/O78 -> 0 | R78: 1 | S78: 0.33 | T78: 1 | U78: 0.33 | V78: 1 | W78: 0.34 | X78: 0 | Y78: 0 | Z78: 0 | AA78: 0 | AB78: - | AC78: - | AD78: 0 | AE78: 0 | AF78: 0 | AG78: 0 | AH78: 0 | AI78: 0 | AJ78: =+AVERAGE(Y78:AA78)/O78 -> 0 | AK78: 0 | AL78: 0 | AM78: 0 | AN78: 0 | AO78: 0 | AP78: =IF(AM78=0," -",AN78/AM78) -> - | AQ78: =IF(AO78=0," -",IF(AN78=0,100%,AO78/AN78)) -> - | AR78: 1500000 | AS78: 0 | AT78: 0 | AU78: =IF(AR78=0," -",AS78/AR78) -> 0 | AV78: =IF(AT78=0," -",IF(AS78=0,100%,AT78/AS78)) -> - | AW78: 500000 | AX78: 0 | AY78: 0 | AZ78: =IF(AW78=0," -",AX78/AW78) -> 0 | BA78: =IF(AY78=0," -",IF(AX78=0,100%,AY78/AX78)) -> - | BB78: 500000 | BC78: 0 | BD78: 0 | BE78: =IF(BB78=0," -",BC78/BB78) -> 0 | BF78: =IF(BD78=0," -",IF(BC78=0,100%,BD78/BC78)) -> - | BG78: =+AM78+AR78+AW78+BB78 -> 2500000 | BH78: =+AN78+AS78+AX78+BC78 -> 0 | BI78: =+AO78+AT78+AY78+BD78 -> 0 | BJ78: =IF(BG78=0," -",BH78/BG78) -> 0 | BK78: =IF(BI78=0," -",IF(BH78=0,100%,BI78/BH78)) -> - | BL78: 16. Paz, justicia e instituciones sólidas | BM78: Fortalecimiento Institucional | BN78: Sec. Administrativa
K79: Crear 1 cargo del nivel directivo y/o asesor para coordinar la atención a la comunidad en la administración municipal. | L79: - | M79: Número de cargos creados del nivel directivo y/o asesor creados para coordinar la atención a la comunidad en la administración municipal. | N79: 0 | O79: 1 | P79: 0 | Q79: 0 | R79: 1 | S79: =+R79/O79 -> 1 | T79: 0 | U79: =+T79/O79 -> 0 | V79: 0 | W79: =+V79/O79 -> 0 | X79: 0 | Y79: 0 | Z79: 0 | AA79: 0 | AB79: - | AC79: - | AD79: 0 | AE79: 0 | AF79: - | AG79: - | AH79: - | AI79: - | AJ79: =+SUM(X79:AA79)/O79 -> 0 | AK79: 0 | AL79: 0 | AM79: 0 | AN79: 0 | AO79: 0 | AP79: - | AQ79: - | AR79: 0 | AS79: 0 | AT79: 0 | AU79: - | AV79: - | AW79: 0 | AX79: 0 | AY79: 0 | AZ79: - | BA79: - | BB79: 0 | BC79: 0 | BD79: 0 | BE79: - | BF79: - | BG79: 0 | BH79: 0 | BI79: 0 | BJ79: - | BK79: - | BL79: 16. Paz, justicia e instituciones sólidas | BM79: Fortalecimiento Institucional | BN79: Sec. Administrativa
K80: Implementar y mantener 1 red incluyente de asesores de la comunidad en las oficinas de la Administración Municipal. | L80: 0 | M80: Número de redes incluyentes de asesores de la comunidad implementadas y mantenidas en las oficinas de la Administración Municipal. | N80: 0 | O80: 1 | P80: 0 | Q80: 0 | R80: 1 | S80: 0.33 | T80: 1 | U80: 0.33 | V80: 1 | W80: 0.34 | X80: 0 | Y80: 0 | Z80: 0 | AA80: 0 | AB80: - | AC80: - | AD80: 0 | AE80: 0 | AF80: 0 | AG80: 0 | AH80: 0 | AI80: 0 | AJ80: =+AVERAGE(Y80:AA80)/O80 -> 0 | AK80: 0 | AL80: 0 | AM80: 0 | AN80: 0 | AO80: 0 | AP80: - | AQ80: - | AR80: 250000 | AS80: 0 | AT80: 0 | AU80: 0 | AV80: - | AW80: 250000 | AX80: 0 | AY80: 0 | AZ80: 0 | BA80: - | BB80: 250000 | BC80: 0 | BD80: 0 | BE80: 0 | BF80: - | BG80: 750000 | BH80: 0 | BI80: 0 | BJ80: 0 | BK80: - | BL80: 16. Paz, justicia e instituciones sólidas | BM80: Fortalecimiento Institucional | BN80: Sec. Administrativa
K81: Crear e implementar 2 "Centros de atención municipal especializados (CAME)". | L81: 0 | M81: Número de "Centros de atención municipal especializados (CAME)" creados e implementados. | N81: 0 | O81: 2 | P81: 0 | Q81: 0 | R81: 1 | S81: 0.5 | T81: 1 | U81: 0.5 | V81: 0 | W81: 0 | X81: 0 | Y81: 0 | Z81: 0 | AA81: 0 | AB81: - | AC81: - | AD81: 0 | AE81: 0 | AF81: 0 | AG81: 0 | AH81: - | AI81: - | AJ81: =+SUM(X81:AA81)/O81 -> 0 | AK81: 0 | AL81: 0 | AM81: 0 | AN81: 0 | AO81: 0 | AP81: - | AQ81: - | AR81: 1000000 | AS81: 0 | AT81: 0 | AU81: 0 | AV81: - | AW81: 1000000 | AX81: 0 | AY81: 0 | AZ81: 0 | BA81: - | BB81: 0 | BC81: 0 | BD81: 0 | BE81: - | BF81: - | BG81: 2000000 | BH81: 0 | BI81: 0 | BJ81: 0 | BK81: - | BL81: 16. Paz, justicia e instituciones sólidas | BM81: Fortalecimiento Institucional | BN81: Sec. Administrativa
I82: =+RESUMEN!J20 -> 0.125 | J82: ACCIONES CONSTITUCIONALES Y ACCIONES LEGALES: RESPUESTA Y GESTIÓN SOCIAL Y ESTRATÉGICA | K82: Implementar y mantener el observatorio de acciones constitucionales (derechos de petición, tutelas, acciones populares y acciones de cumplimiento). | L82: 0 | M82: Número de observatorios de acciones constitucionales (derechos de petición, tutelas, acciones populares y acciones de cumplimiento) implementados y mantenidos. | N82: 0 | O82: 1 | P82: 1 | Q82: 0.25 | R82: 1 | S82: 0.25 | T82: 1 | U82: 0.25 | V82: 1 | W82: 0.25 | X82: 0 | Y82: 0 | Z82: 0 | AA82: 0 | AB82: 0 | AC82: 0 | AD82: 0 | AE82: 0 | AF82: 0 | AG82: 0 | AH82: 0 | AI82: 0 | AJ82: 0 | AK82: 0 | AL82: 0 | AM82: 0 | AN82: 0 | AO82: 0 | AP82: - | AQ82: - | AR82: 200000 | AS82: 0 | AT82: 0 | AU82: 0 | AV82: - | AW82: 200000 | AX82: 0 | AY82: 0 | AZ82: 0 | BA82: - | BB82: 200000 | BC82: 0 | BD82: 0 | BE82: 0 | BF82: - | BG82: 600000 | BH82: 0 | BI82: 0 | BJ82: 0 | BK82: - | BL82: 16. Paz, justicia e instituciones sólidas | BM82: Justicia y Seguridad | BN82: Sec. Jurídica
K83: Implementar y mantener 1 estrategia para la prevención del daño antijurídico. | L83: - | M83: Número de estrategias para la prevención del daño antijurídico implementadas y mantenidas. | N83: 0 | O83: 1 | P83: 1 | Q83: 0.25 | R83: 1 | S83: 0.25 | T83: 1 | U83: 0.25 | V83: 1 | W83: 0.25 | X83: 0.5 | Y83: 0 | Z83: 0 | AA83: 0 | AB83: 0.5 | AC83: 0.5 | AD83: 0 | AE83: 0 | AF83: 0 | AG83: 0 | AH83: 0 | AI83: 0 | AJ83: 0.125 | AK83: 0.125 | AL83: 0.125 | AM83: 0 | AN83: 0 | AO83: 0 | AP83: - | AQ83: - | AR83: 0 | AS83: 0 | AT83: 0 | AU83: - | AV83: - | AW83: 0 | AX83: 0 | AY83: 0 | AZ83: - | BA83: - | BB83: 0 | BC83: 0 | BD83: 0 | BE83: - | BF83: - | BG83: 0 | BH83: 0 | BI83: 0 | BJ83: - | BK83: - | BL83: 16. Paz, justicia e instituciones sólidas | BM83: Justicia y Seguridad | BN83: Sec. Jurídica
K84: Implementar y mantener 1 sistema de información misional que agilice el registro, seguimiento y control de los asuntos de la secretaría jurídica. | L84: 0 | M84: Número de sistemas de información misional implementados que agilice el registro, seguimiento y control de los asuntos de la secretaría jurídica. | N84: 0 | O84: 1 | P84: 1 | Q84: 0.25 | R84: 1 | S84: 0.25 | T84: 1 | U84: 0.25 | V84: 1 | W84: 0.25 | X84: 1 | Y84: 0 | Z84: 0 | AA84: 0 | AB84: 1 | AC84: 1 | AD84: 0 | AE84: 0 | AF84: 0 | AG84: 0 | AH84: 0 | AI84: 0 | AJ84: 0.25 | AK84: 0.25 | AL84: 0.25 | AM84: 19000 | AN84: 19000 | AO84: 0 | AP84: 1 | AQ84: - | AR84: 300000 | AS84: 0 | AT84: 0 | AU84: 0 | AV84: - | AW84: 300000 | AX84: 0 | AY84: 0 | AZ84: 0 | BA84: - | BB84: 300000 | BC84: 0 | BD84: 0 | BE84: 0 | BF84: - | BG84: 919000 | BH84: 19000 | BI84: 0 | BJ84: 0.02067464635 | BK84: - | BL84: 16. Paz, justicia e instituciones sólidas | BM84: Fortalecimiento Institucional | BN84: Sec. Jurídica
I85: =+RESUMEN!J21 -> 0.112 | J85: ADMINISTRACIÓN ARTICULADA Y COHERENTE | K85: Ajustar y mantener implementado el Plan Institucional de Capacitación y Formación y el Plan de Bienestar y Estímulos. | L85: 2210526 | M85: Número de Planes institucionales de capacitación y formación y de bienestar y estímulos ajustados y mantenidos. | N85: 2 | O85: 2 | P85: 2 | Q85: 0.25 | R85: 2 | S85: 0.25 | T85: 2 | U85: 0.25 | V85: 2 | W85: 0.25 | X85: 2 | Y85: 0 | Z85: 0 | AA85: 0 | AB85: 1 | AC85: 1 | AD85: 0 | AE85: 0 | AF85: 0 | AG85: 0 | AH85: 0 | AI85: 0 | AJ85: 0.25 | AK85: 0.25 | AL85: 0.25 | AM85: 0 | AN85: 0 | AO85: 0 | AP85: - | AQ85: - | AR85: 1000000 | AS85: 0 | AT85: 0 | AU85: 0 | AV85: - | AW85: 1000000 | AX85: 0 | AY85: 0 | AZ85: 0 | BA85: - | BB85: 1000000 | BC85: 0 | BD85: 0 | BE85: 0 | BF85: - | BG85: 3000000 | BH85: 0 | BI85: 0 | BJ85: 0 | BK85: - | BL85: 16. Paz, justicia e instituciones sólidas | BM85: Fortalecimiento Institucional | BN85: Sec. Administrativa
K86: Mantener 1 sistema de gestión y control certificado. | L86: 2210527 | M86: Número de sistemas de gestión y control certificados mantenidos. | N86: 1 | O86: 1 | P86: 1 | Q86: 0.25 | R86: 1 | S86: 0.25 | T86: 1 | U86: 0.25 | V86: 1 | W86: 0.25 | X86: 1 | Y86: 0 | Z86: 0 | AA86: 0 | AB86: 1 | AC86: 1 | AD86: 0 | AE86: 0 | AF86: 0 | AG86: 0 | AH86: 0 | AI86: 0 | AJ86: 0.25 | AK86: 0.25 | AL86: 0.25 | AM86: 0 | AN86: 0 | AO86: 0 | AP86: - | AQ86: - | AR86: 300000 | AS86: 0 | AT86: 0 | AU86: 0 | AV86: - | AW86: 300000 | AX86: 0 | AY86: 0 | AZ86: 0 | BA86: - | BB86: 300000 | BC86: 0 | BD86: 0 | BE86: 0 | BF86: - | BG86: 900000 | BH86: 0 | BI86: 0 | BJ86: 0 | BK86: - | BL86: 16. Paz, justicia e instituciones sólidas | BM86: Fortalecimiento Institucional | BN86: Sec. Administrativa
K87: Realizar 3 auditorías de seguimiento por el ente certificador. | L87: 2210527 | M87: Número de auditorías de seguimiento por el ente certificador realizadas. | N87: 3 | O87: 3 | P87: 1 | Q87: 0.3333333333 | R87: 0 | S87: 0 | T87: 1 | U87: 0.3333333333 | V87: 1 | W87: 0.3333333333 | X87: 0 | Y87: 0 | Z87: 0 | AA87: 0 | AB87: 0 | AC87: 0 | AD87: - | AE87: - | AF87: 0 | AG87: 0 | AH87: 0 | AI87: 0 | AJ87: =+SUM(X87:AA87)/O87 -> 0 | AK87: 0 | AL87: 0 | AM87: 0 | AN87: 0 | AO87: 0 | AP87: - | AQ87: - | AR87: 0 | AS87: 0 | AT87: 0 | AU87: - | AV87: - | AW87: 70000 | AX87: 0 | AY87: 0 | AZ87: 0 | BA87: - | BB87: 70000 | BC87: 0 | BD87: 0 | BE87: 0 | BF87: - | BG87: 140000 | BH87: 0 | BI87: 0 | BJ87: 0 | BK87: - | BL87: 16. Paz, justicia e instituciones sólidas | BM87: Fortalecimiento Institucional | BN87: Sec. Administrativa
F88: Lograr una calificación de 85 en el Índice de Desempeño Integral del DNP. | G88: 75 | H88: 85 | K88: Realizar 1 auditoría de recertificación por el ente certificador. | L88: 2210527 | M88: Número de auditorías de recertificación por el ente certificador realizadas. | N88: 1 | O88: 1 | P88: 0 | Q88: 0 | R88: 1 | S88: 1 | T88: 0 | U88: 0 | V88: 0 | W88: 0 | X88: 0 | Y88: 0 | Z88: 0 | AA88: 0 | AB88: - | AC88: - | AD88: 0 | AE88: 0 | AF88: - | AG88: - | AH88: - | AI88: - | AJ88: 0 | AK88: 0 | AL88: 0 | AM88: 0 | AN88: 0 | AO88: 0 | AP88: - | AQ88: - | AR88: 100000 | AS88: 0 | AT88: 0 | AU88: 0 | AV88: - | AW88: 0 | AX88: 0 | AY88: 0 | AZ88: - | BA88: - | BB88: 0 | BC88: 0 | BD88: 0 | BE88: - | BF88: - | BG88: 100000 | BH88: 0 | BI88: 0 | BJ88: 0 | BK88: - | BL88: 16. Paz, justicia e instituciones sólidas | BM88: Fortalecimiento Institucional | BN88: Sec. Administrativa
K89: Formular e implementar el Programa de Gestión Documental - PGD y el Plan Institucional de Archivos - PINAR. | L89: 2210524 | M89: Número de Programas de Gestión Documental y Planes Institucional de Archivos formulados e implementados. | N89: 2 | O89: 2 | P89: 2 | Q89: 0.25 | R89: 2 | S89: 0.25 | T89: 2 | U89: 0.25 | V89: 2 | W89: 0.25 | X89: 2 | Y89: 0 | Z89: 0 | AA89: 0 | AB89: 1 | AC89: 1 | AD89: 0 | AE89: 0 | AF89: 0 | AG89: 0 | AH89: 0 | AI89: 0 | AJ89: 0.25 | AK89: 0.25 | AL89: 0.25 | AM89: 0 | AN89: 0 | AO89: 0 | AP89: - | AQ89: - | AR89: 3000000 | AS89: 0 | AT89: 0 | AU89: 0 | AV89: - | AW89: 200000 | AX89: 0 | AY89: 0 | AZ89: 0 | BA89: - | BB89: 200000 | BC89: 0 | BD89: 0 | BE89: 0 | BF89: - | BG89: 3400000 | BH89: 0 | BI89: 0 | BJ89: 0 | BK89: - | BL89: 16. Paz, justicia e instituciones sólidas | BM89: Fortalecimiento Institucional | BN89: Sec. Administrativa
K90: Formular e implementar 1 estrategia de gobierno para la aplicación cabal de la ley 1474 de 2011 estatuto anti-corrupción y el CONPES 167 de 2013. | L90: - | M90: Número de estrategias de gobierno formuladas e implementadas para la aplicación cabal de la ley 1474 de 2011 estatuto anti-corrupción y el CONPES 167 de 2013. | N90: 1 | O90: 1 | P90: 0 | Q90: 0 | R90: 1 | S90: 0.33 | T90: 1 | U90: 0.33 | V90: 1 | W90: 0.34 | X90: 1 | Y90: 0 | Z90: 0 | AA90: 0 | AB90: - | AC90: - | AD90: 0 | AE90: 0 | AF90: 0 | AG90: 0 | AH90: 0 | AI90: 0 | AJ90: =+AVERAGE(Y90:AA90)/O90 -> 0 | AK90: 0 | AL90: 0 | AM90: 0 | AN90: 0 | AO90: 0 | AP90: - | AQ90: - | AR90: 0 | AS90: 0 | AT90: 0 | AU90: - | AV90: - | AW90: 0 | AX90: 0 | AY90: 0 | AZ90: - | BA90: - | BB90: 0 | BC90: 0 | BD90: 0 | BE90: - | BF90: - | BG90: 0 | BH90: 0 | BI90: 0 | BJ90: - | BK90: - | BL90: 16. Paz, justicia e instituciones sólidas | BM90: Fortalecimiento Institucional | BN90: Sec. Administrativa
K91: Implementar y mantener el 100% de los procesos necesarios para la formulación y ejecución del Plan Anti-corrupción y Atención al Ciudadano. | L91: - | M91: Porcentaje de procesos necesarios implementados y mantenidos para la formulación y ejecución del Plan Anti-corrupción y Atención al Ciudadano. | N91: 0 | O91: 1 | P91: 1 | Q91: 0.25 | R91: 1 | S91: 0.25 | T91: 1 | U91: 0.25 | V91: 1 | W91: 0.25 | X91: 1 | Y91: 0 | Z91: 0 | AA91: 0 | AB91: 1 | AC91: 1 | AD91: 0 | AE91: 0 | AF91: 0 | AG91: 0 | AH91: 0 | AI91: 0 | AJ91: 0.25 | AK91: 0.25 | AL91: 0.25 | AM91: 0 | AN91: 0 | AO91: 0 | AP91: - | AQ91: - | AR91: 0 | AS91: 0 | AT91: 0 | AU91: - | AV91: - | AW91: 0 | AX91: 0 | AY91: 0 | AZ91: - | BA91: - | BB91: 0 | BC91: 0 | BD91: 0 | BE91: - | BF91: - | BG91: 0 | BH91: 0 | BI91: 0 | BJ91: - | BK91: - | BL91: 16. Paz, justicia e instituciones sólidas | BM91: Fortalecimiento Institucional | BN91: Sec. Administrativa
K92: Formular e implementar 1 plan de modernización de la planta de personal. | L92: 2210252 | M92: Porcentaje de avance de la formulación e implementación del plan de modernización de la planta de personal. | N92: 0 | O92: 1 | P92: 0 | Q92: 0 | R92: 0.7 | S92: 0.7 | T92: 0.3 | U92: 0.3 | V92: 0 | W92: 0 | X92: 0.1 | Y92: 0 | Z92: 0 | AA92: 0 | AB92: - | AC92: - | AD92: 0 | AE92: 0 | AF92: 0 | AG92: 0 | AH92: - | AI92: - | AJ92: =+SUM(X92:AA92)/O92 -> 0.1 | AK92: 0.1 | AL92: 0.1 | AM92: 0 | AN92: 0 | AO92: 0 | AP92: - | AQ92: - | AR92: 0 | AS92: 0 | AT92: 0 | AU92: - | AV92: - | AW92: 0 | AX92: 0 | AY92: 0 | AZ92: - | BA92: - | BB92: 0 | BC92: 0 | BD92: 0 | BE92: - | BF92: - | BG92: 0 | BH92: 0 | BI92: 0 | BJ92: - | BK92: - | BL92: 16. Paz, justicia e instituciones sólidas | BM92: Fortalecimiento Institucional | BN92: Sec. Administrativa
K93: Crear 1 cargo del nivel directivo y/o asesor adscrito al despacho del Alcalde encargado de la coordinación del gabinete municipal (Jefe de Gabinete). | L93: - | M93: Número de cargos creados adscritos al despacho del Alcalde para la coordinación del gabinete municipal (Jefe de Gabinete). | N93: 0 | O93: 1 | P93: 0 | Q93: 0 | R93: 1 | S93: 1 | T93: 0 | U93: 0 | V93: 0 | W93: 0 | X93: 0 | Y93: 0 | Z93: 0 | AA93: 0 | AB93: - | AC93: - | AD93: 0 | AE93: 0 | AF93: - | AG93: - | AH93: - | AI93: - | AJ93: 0 | AK93: 0 | AL93: 0 | AM93: 0 | AN93: 0 | AO93: 0 | AP93: - | AQ93: - | AR93: 0 | AS93: 0 | AT93: 0 | AU93: - | AV93: - | AW93: 0 | AX93: 0 | AY93: 0 | AZ93: - | BA93: - | BB93: 0 | BC93: 0 | BD93: 0 | BE93: - | BF93: - | BG93: 0 | BH93: 0 | BI93: 0 | BJ93: - | BK93: - | BL93: 16. Paz, justicia e instituciones sólidas | BM93: Fortalecimiento Institucional | BN93: Sec. Administrativa
K94: Formular e implementar 1 estrategia de gobierno para la aplicación cabal de la ley 1551 de 2012 por medio de la cual se dictaron normas para modernizar la organización y el funcionamiento de los municipios. | L94: - | M94: Número de estrategias de gobierno formuladas e implementadas para la aplicación cabal de la ley 1551 de 2012 por medio de la cual se dictaron normas para modernizar la organización y el funcionamiento de los municipios. | N94: 0 | O94: 1 | P94: 1 | Q94: 0.25 | R94: 1 | S94: 0.25 | T94: 1 | U94: 0.25 | V94: 1 | W94: 0.25 | X94: 1 | Y94: 0 | Z94: 0 | AA94: 0 | AB94: 1 | AC94: 1 | AD94: 0 | AE94: 0 | AF94: 0 | AG94: 0 | AH94: 0 | AI94: 0 | AJ94: 0.25 | AK94: 0.25 | AL94: 0.25 | AM94: 0 | AN94: 0 | AO94: 0 | AP94: - | AQ94: - | AR94: 0 | AS94: 0 | AT94: 0 | AU94: - | AV94: - | AW94: 0 | AX94: 0 | AY94: 0 | AZ94: - | BA94: - | BB94: 0 | BC94: 0 | BD94: 0 | BE94: - | BF94: - | BG94: 0 | BH94: 0 | BI94: 0 | BJ94: - | BK94: - | BL94: 16. Paz, justicia e instituciones sólidas | BM94: Fortalecimiento Institucional | BN94: Sec. Hacienda
K95: Adecuar física y tecnológicamente el archivo de planos. | L95: 2210289 | M95: Porcentaje de avance en la adecuación física y tecnológica del archivo de planos. | N95: 0 | O95: 1 | P95: 0.1 | Q95: 0.1 | R95: 0 | S95: 0 | T95: 0.9 | U95: 0.9 | V95: 0 | W95: 0 | X95: 0 | Y95: 0 | Z95: 0 | AA95: 0 | AB95: 0 | AC95: 0 | AD95: - | AE95: - | AF95: 0 | AG95: 0 | AH95: - | AI95: - | AJ95: =+SUM(X95:AA95)/O95 -> 0 | AK95: 0 | AL95: 0 | AM95: 0 | AN95: 0 | AO95: 0 | AP95: - | AQ95: - | AR95: 0 | AS95: 0 | AT95: 0 | AU95: - | AV95: - | AW95: 500000 | AX95: 0 | AY95: 0 | AZ95: 0 | BA95: - | BB95: 0 | BC95: 0 | BD95: 0 | BE95: - | BF95: - | BG95: 500000 | BH95: 0 | BI95: 0 | BJ95: 0 | BK95: - | BL95: 16. Paz, justicia e instituciones sólidas | BM95: Fortalecimiento Institucional | BN95: Sec. Planeación
K96: Celebrar 20 acuerdos populares en el territorio para comprometer acciones diversas de gobierno ante problemas comunitarios. | L96: - | M96: Número de acuerdos populares celebrados en el territorio para comprometer acciones diversas de gobierno ante problemas comunitarios. | N96: 0 | O96: 20 | P96: 3 | Q96: 0.15 | R96: 6 | S96: 0.3 | T96: 6 | U96: 0.3 | V96: 5 | W96: 0.25 | X96: 0 | Y96: 0 | Z96: 0 | AA96: 0 | AB96: 0 | AC96: 0 | AD96: 0 | AE96: 0 | AF96: 0 | AG96: 0 | AH96: 0 | AI96: 0 | AJ96: 0 | AK96: 0 | AL96: 0 | AM96: 0 | AN96: 0 | AO96: 0 | AP96: - | AQ96: - | AR96: 0 | AS96: 0 | AT96: 0 | AU96: - | AV96: - | AW96: 0 | AX96: 0 | AY96: 0 | AZ96: - | BA96: - | BB96: 0 | BC96: 0 | BD96: 0 | BE96: - | BF96: - | BG96: 0 | BH96: 0 | BI96: 0 | BJ96: - | BK96: - | BL96: 16. Paz, justicia e instituciones sólidas | BM96: Fortalecimiento Institucional | BN96: Sec. Desarrollo Social
K97: Formular e implementar 1 plan institucional en Bomberos de Bucaramanga. | L97: 22141 22151 22161 | M97: Número de planes institucionales integrales formulados e implementados en Bomberos de Bucaramanga. | N97: 0 | O97: 1 | P97: 1 | Q97: 0.25 | R97: 1 | S97: 0.25 | T97: 1 | U97: 0.25 | V97: 1 | W97: 0.25 | X97: 0 | Y97: 0 | Z97: 0 | AA97: 0 | AB97: 0 | AC97: 0 | AD97: 0 | AE97: 0 | AF97: 0 | AG97: 0 | AH97: 0 | AI97: 0 | AJ97: 0 | AK97: 0 | AL97: 0 | AM97: 770000 | AN97: 0 | AO97: 0 | AP97: 0 | AQ97: - | AR97: 808500 | AS97: 0 | AT97: 0 | AU97: 0 | AV97: - | AW97: 848925 | AX97: 0 | AY97: 0 | AZ97: 0 | BA97: - | BB97: 891371 | BC97: 0 | BD97: 0 | BE97: 0 | BF97: - | BG97: 3318796 | BH97: 0 | BI97: 0 | BJ97: 0 | BK97: - | BL97: 16. Paz, justicia e instituciones sólidas | BM97: Fortalecimiento Institucional | BN97: Bomberos
F98: Mantener una calificación de solvente en el Índice de Desempeño Fiscal del DNP. | G98: Solvente | H98: Solvente | K98: Formular e implementar 1 plan de adquisición de equipos tecnológicos. | L98: 2210289 | M98: Porcentaje de avance en la formulación e implementación del plan de adquisición de equipos tecnológicos. | N98: 0 | O98: 1 | P98: 0.25 | Q98: 0.25 | R98: 0.25 | S98: 0.25 | T98: 0.25 | U98: 0.25 | V98: 0.25 | W98: 0.25 | X98: 0.13 | Y98: 0 | Z98: 0 | AA98: 0 | AB98: 0.52 | AC98: 0.52 | AD98: 0 | AE98: 0 | AF98: 0 | AG98: 0 | AH98: 0 | AI98: 0 | AJ98: =+SUM(X98:AA98)/O98 -> 0.13 | AK98: 0.13 | AL98: 0.13 | AM98: 0 | AN98: 0 | AO98: 0 | AP98: - | AQ98: - | AR98: 1650000 | AS98: 0 | AT98: 0 | AU98: 0 | AV98: - | AW98: 1650000 | AX98: 0 | AY98: 0 | AZ98: 0 | BA98: - | BB98: 1650000 | BC98: 0 | BD98: 0 | BE98: 0 | BF98: - | BG98: 4950000 | BH98: 0 | BI98: 0 | BJ98: 0 | BK98: - | BL98: 16. Paz, justicia e instituciones sólidas | BM98: Fortalecimiento Institucional | BN98: Ofc. Sistemas
K99: Formular e implementar 1 plan de fortalecimiento institucional para la Dirección de Tránsito de Bucaramanga. | L99: O535060101 O535060102 O535060103 O535060104 | M99: Número de planes de fortalecimiento institucional para la Dirección de tránsito de Bucaramanga formulados e implementados. | N99: 1 | O99: 1 | P99: 1 | Q99: 0.25 | R99: 1 | S99: 0.25 | T99: 1 | U99: 0.25 | V99: 1 | W99: 0.25 | X99: 0.8 | Y99: 0 | Z99: 0 | AA99: 0 | AB99: 0.8 | AC99: 0.8 | AD99: 0 | AE99: 0 | AF99: 0 | AG99: 0 | AH99: 0 | AI99: 0 | AJ99: 0.2 | AK99: 0.2 | AL99: 0.2 | AM99: 2830991 | AN99: 170243 | AO99: 0 | AP99: 0.06013547906 | AQ99: - | AR99: 1432100 | AS99: 0 | AT99: 0 | AU99: 0 | AV99: - | AW99: 1503705 | AX99: 0 | AY99: 0 | AZ99: 0 | BA99: - | BB99: 1578890 | BC99: 0 | BD99: 0 | BE99: 0 | BF99: - | BG99: 7345686 | BH99: 170243 | BI99: 0 | BJ99: 0.02317591577 | BK99: - | BL99: 16. Paz, justicia e instituciones sólidas | BM99: Fortalecimiento Institucional | BN99: Dir. Tránsito
I100: =+RESUMEN!J22 -> 0.06346153846 | J100: UNA CIUDAD VISIBLE QUE TOMA DECISIONES INTELIGENTES | K100: Mantener actualizada la base de datos del SISBEN. | L100: 2210844 | M100: Número de bases de datos del SISBEN actualizadas. | N100: 1 | O100: 1 | P100: 1 | Q100: 0.25 | R100: 1 | S100: 0.25 | T100: 1 | U100: 0.25 | V100: 1 | W100: 0.25 | X100: 1 | Y100: 0 | Z100: 0 | AA100: 0 | AB100: 1 | AC100: 1 | AD100: 0 | AE100: 0 | AF100: 0 | AG100: 0 | AH100: 0 | AI100: 0 | AJ100: 0.25 | AK100: 0.25 | AL100: 0.25 | AM100: 355000 | AN100: 241500 | AO100: 0 | AP100: 0.6802816901 | AQ100: - | AR100: 600000 | AS100: 0 | AT100: 0 | AU100: 0 | AV100: - | AW100: 0 | AX100: 0 | AY100: 0 | AZ100: - | BA100: - | BB100: 0 | BC100: 0 | BD100: 0 | BE100: - | BF100: - | BG100: 955000 | BH100: 241500 | BI100: 0 | BJ100: 0.2528795812 | BK100: - | BL100: 16. Paz, justicia e instituciones sólidas | BM100: Salud | BN100: Sec. Planeación
K101: Implementar la nueva metodología SISBEN 4. | L101: 2210844 | M101: Número de metodologías SISBEN 4 implementadas. | N101: 0 | O101: 1 | P101: 0 | Q101: 0 | R101: 1 | S101: 1 | T101: 0 | U101: 0 | V101: 0 | W101: 0 | X101: 0 | Y101: 0 | Z101: 0 | AA101: 0 | AB101: - | AC101: - | AD101: 0 | AE101: 0 | AF101: - | AG101: - | AH101: - | AI101: - | AJ101: =+SUM(X101:AA101)/O101 -> 0 | AK101: 0 | AL101: 0 | AM101: 0 | AN101: 0 | AO101: 0 | AP101: - | AQ101: - | AR101: 200000 | AS101: 0 | AT101: 0 | AU101: 0 | AV101: - | AW101: 0 | AX101: 0 | AY101: 0 | AZ101: - | BA101: - | BB101: 0 | BC101: 0 | BD101: 0 | BE101: - | BF101: - | BG101: 200000 | BH101: 0 | BI101: 0 | BJ101: 0 | BK101: - | BL101: 16. Paz, justicia e instituciones sólidas | BM101: Salud | BN101: Sec. Planeación
K102: Readecuar 1 oficina para el SISBEN | L102: 2210844 | M102: Número de oficinas para el SISBEN readecuadas. | N102: 0 | O102: 1 | P102: 0 | Q102: 0 | R102: 0 | S102: 0 | T102: 1 | U102: 1 | V102: 0 | W102: 0 | X102: 0 | Y102: 0 | Z102: 0 | AA102: 0 | AB102: - | AC102: - | AD102: - | AE102: - | AF102: 0 | AG102: 0 | AH102: - | AI102: - | AJ102: 0 | AK102: 0 | AL102: 0 | AM102: 0 | AN102: 0 | AO102: 0 | AP102: - | AQ102: - | AR102: 0 | AS102: 0 | AT102: 0 | AU102: - | AV102: - | AW102: 0 | AX102: 0 | AY102: 0 | AZ102: - | BA102: - | BB102: 0 | BC102: 0 | BD102: 0 | BE102: - | BF102: - | BG102: 0 | BH102: 0 | BI102: 0 | BJ102: - | BK102: - | BL102: 16. Paz, justicia e instituciones sólidas | BM102: Fortalecimiento Institucional | BN102: Sec. Planeación
K103: Mantener el fortalecimiento del grupo de clasificación socioeconómico y estadístico. | L103: 2210844 | M103: Número de grupos de clasificación socioeconómico y estadístico fortalecidos. | N103: 1 | O103: 1 | P103: 1 | Q103: 0.25 | R103: 1 | S103: 0.25 | T103: 1 | U103: 0.25 | V103: 1 | W103: 0.25 | X103: 1 | Y103: 0 | Z103: 0 | AA103: 0 | AB103: 1 | AC103: 1 | AD103: 0 | AE103: 0 | AF103: 0 | AG103: 0 | AH103: 0 | AI103: 0 | AJ103: 0.25 | AK103: 0.25 | AL103: 0.25 | AM103: 0 | AN103: 0 | AO103: 0 | AP103: - | AQ103: - | AR103: 30000 | AS103: 0 | AT103: 0 | AU103: 0 | AV103: - | AW103: 30000 | AX103: 0 | AY103: 0 | AZ103: 0 | BA103: - | BB103: 30000 | BC103: 0 | BD103: 0 | BE103: 0 | BF103: - | BG103: 90000 | BH103: 0 | BI103: 0 | BJ103: 0 | BK103: - | BL103: 16. Paz, justicia e instituciones sólidas | BM103: Fortalecimiento Institucional | BN103: Sec. Planeación
K104: Mantener actualizada la base de datos de estratificación urbana y rural. | L104: 2210833 | M104: Número de base de datos de estratificación urbana y rural actualizada. | N104: 1 | O104: 1 | P104: 1 | Q104: 0.25 | R104: 1 | S104: 0.25 | T104: 1 | U104: 0.25 | V104: 1 | W104: 0.25 | X104: 1 | Y104: 0 | Z104: 0 | AA104: 0 | AB104: 1 | AC104: 1 | AD104: 0 | AE104: 0 | AF104: 0 | AG104: 0 | AH104: 0 | AI104: 0 | AJ104: 0.25 | AK104: 0.25 | AL104: 0.25 | AM104: 47245 | AN104: 26445 | AO104: 0 | AP104: 0.5597417716 | AQ104: - | AR104: 0 | AS104: 0 | AT104: 0 | AU104: - | AV104: - | AW104: 0 | AX104: 0 | AY104: 0 | AZ104: - | BA104: - | BB104: 0 | BC104: 0 | BD104: 0 | BE104: - | BF104: - | BG104: 47245 | BH104: 26445 | BI104: 0 | BJ104: 0.5597417716 | BK104: - | BL104: 16. Paz, justicia e instituciones sólidas | BM104: Fortalecimiento Institucional | BN104: Sec. Planeación
K105: Realizar la revisión general de la estratificación urbana y rural y su respectiva socialización. | L105: - | M105: Número de revisiones y socializaciones generales de la estratificación urbana y rural realizadas. | N105: 0 | O105: 1 | P105: 0 | Q105: 0 | R105: 1 | S105: 1 | T105: 0 | U105: 0 | V105: 0 | W105: 0 | X105: 0 | Y105: 0 | Z105: 0 | AA105: 0 | AB105: - | AC105: - | AD105: 0 | AE105: 0 | AF105: - | AG105: - | AH105: - | AI105: - | AJ105: =+SUM(X105:AA105)/O105 -> 0 | AK105: 0 | AL105: 0 | AM105: 0 | AN105: 0 | AO105: 0 | AP105: - | AQ105: - | AR105: 0 | AS105: 0 | AT105: 0 | AU105: - | AV105: - | AW105: 0 | AX105: 0 | AY105: 0 | AZ105: - | BA105: - | BB105: 0 | BC105: 0 | BD105: 0 | BE105: - | BF105: - | BG105: 0 | BH105: 0 | BI105: 0 | BJ105: - | BK105: - | BL105: 16. Paz, justicia e instituciones sólidas | BM105: Fortalecimiento Institucional | BN105: Sec. Planeación
K106: Implementar y mantener 1 estrategia para fortalecer el observatorio metropolitano y ampliar su alcance. | L106: 2210100 | M106: Número de estrategias implementadas y mantenidas para fortalecer el Observatorio Metropolitano y ampliar su alcance. | N106: 0 | O106: 1 | P106: 1 | Q106: 0.25 | R106: 1 | S106: 0.25 | T106: 1 | U106: 0.25 | V106: 1 | W106: 0.25 | X106: 0 | Y106: 0 | Z106: 0 | AA106: 0 | AB106: 0 | AC106: 0 | AD106: 0 | AE106: 0 | AF106: 0 | AG106: 0 | AH106: 0 | AI106: 0 | AJ106: 0 | AK106: 0 | AL106: 0 | AM106: 0 | AN106: 0 | AO106: 0 | AP106: - | AQ106: - | AR106: 250000 | AS106: 0 | AT106: 0 | AU106: 0 | AV106: - | AW106: 500000 | AX106: 0 | AY106: 0 | AZ106: 0 | BA106: - | BB106: 500000 | BC106: 0 | BD106: 0 | BE106: 0 | BF106: - | BG106: 1250000 | BH106: 0 | BI106: 0 | BJ106: 0 | BK106: - | BL106: 16. Paz, justicia e instituciones sólidas | BM106: Fortalecimiento Institucional | BN106: Sec. Planeación
K107: Crear 4 rankings MI (Medición Integral) Ciudad. | L107: - | M107: Número de rankings MI (Medición Integral) Ciudad creados. | N107: 0 | O107: 4 | P107: 0 | Q107: 0 | R107: 1 | S107: 0.25 | T107: 2 | U107: 0.5 | V107: 1 | W107: 0.25 | X107: 0 | Y107: 0 | Z107: 0 | AA107: 0 | AB107: - | AC107: - | AD107: 0 | AE107: 0 | AF107: 0 | AG107: 0 | AH107: 0 | AI107: 0 | AJ107: =+SUM(X107:AA107)/O107 -> 0 | AK107: 0 | AL107: 0 | AM107: 0 | AN107: 0 | AO107: 0 | AP107: - | AQ107: - | AR107: 0 | AS107: 0 | AT107: 0 | AU107: - | AV107: - | AW107: 0 | AX107: 0 | AY107: 0 | AZ107: - | BA107: - | BB107: 0 | BC107: 0 | BD107: 0 | BE107: - | BF107: - | BG107: 0 | BH107: 0 | BI107: 0 | BJ107: - | BK107: - | BL107: 16. Paz, justicia e instituciones sólidas | BM107: Fortalecimiento Institucional | BN107: Sec. Planeación
F108: Lograr que el 60% de los ciudadanos considere como buena la gestión del Alcalde/Gobierno municipal de acuerdo a la encuesta Cómo Vamos. | G108: 0.3 | H108: 0.6 | K108: Apoyar 4 investigaciones académicas sobre temas urbanos de Bucaramanga que contribuyan a la comprensión de un problema público y a la formulación de políticas para solucionarlo. | L108: 2210100 | M108: Número de investigaciones académicas apoyadas sobre temas urbanos de Bucaramanga que contribuyan a la comprensión de un problema público y a la formulación de políticas para solucionarlo. | N108: 0 | O108: 4 | P108: 0 | Q108: 0 | R108: 0 | S108: 0 | T108: 2 | U108: 0.5 | V108: 2 | W108: 0.5 | X108: 0 | Y108: 0 | Z108: 0 | AA108: 0 | AB108: - | AC108: - | AD108: - | AE108: - | AF108: 0 | AG108: 0 | AH108: 0 | AI108: 0 | AJ108: 0 | AK108: 0 | AL108: 0 | AM108: 0 | AN108: 0 | AO108: 0 | AP108: - | AQ108: - | AR108: 0 | AS108: 0 | AT108: 0 | AU108: - | AV108: - | AW108: 100000 | AX108: 0 | AY108: 0 | AZ108: 0 | BA108: - | BB108: 100000 | BC108: 0 | BD108: 0 | BE108: 0 | BF108: - | BG108: 200000 | BH108: 0 | BI108: 0 | BJ108: 0 | BK108: - | BL108: 16. Paz, justicia e instituciones sólidas | BM108: Fortalecimiento Institucional | BN108: Sec. Planeación
K109: Crear y mantener 1 banco de datos y estadísticas para la gestión pública. | L109: 0 | M109: Número de bancos de datos y estadísticas para la gestión pública creados y mantenidos. | N109: 0 | O109: 1 | P109: 1 | Q109: 0.25 | R109: 1 | S109: 0.25 | T109: 1 | U109: 0.25 | V109: 1 | W109: 0.25 | X109: 0.3 | Y109: 0 | Z109: 0 | AA109: 0 | AB109: 0.3 | AC109: 0.3 | AD109: 0 | AE109: 0 | AF109: 0 | AG109: 0 | AH109: 0 | AI109: 0 | AJ109: 0.075 | AK109: 0.075 | AL109: 0.075 | AM109: 150000 | AN109: 0 | AO109: 0 | AP109: 0 | AQ109: - | AR109: 200000 | AS109: 0 | AT109: 0 | AU109: 0 | AV109: - | AW109: 200000 | AX109: 0 | AY109: 0 | AZ109: 0 | BA109: - | BB109: 200000 | BC109: 0 | BD109: 0 | BE109: 0 | BF109: - | BG109: 750000 | BH109: 0 | BI109: 0 | BJ109: 0 | BK109: - | BL109: 16. Paz, justicia e instituciones sólidas | BM109: Fortalecimiento Institucional | BN109: Sec. Salud y Ambiente
K110: Implementar y mantener 1 estrategia de comunicación y pedagógica para promover la apropiación del territorio y para fortalecer el conocimiento de la propia ciudad entre los ciudadanos. | L110: 2.2.1.35.2 | M110: Número de estrategias de comunicación y pedagógicas implementadas y mantenidas para promover la apropiación del territorio y para fortalecer el conocimiento de la propia ciudad entre los ciudadanos. | N110: 0 | O110: 1 | P110: 1 | Q110: 0.25 | R110: 1 | S110: 0.25 | T110: 1 | U110: 0.25 | V110: 1 | W110: 0.25 | X110: 0 | Y110: 0 | Z110: 0 | AA110: 0 | AB110: 0 | AC110: 0 | AD110: 0 | AE110: 0 | AF110: 0 | AG110: 0 | AH110: 0 | AI110: 0 | AJ110: 0 | AK110: 0 | AL110: 0 | AM110: 30000 | AN110: 0 | AO110: 0 | AP110: 0 | AQ110: - | AR110: 100000 | AS110: 0 | AT110: 0 | AU110: 0 | AV110: - | AW110: 100000 | AX110: 0 | AY110: 0 | AZ110: 0 | BA110: - | BB110: 100000 | BC110: 0 | BD110: 0 | BE110: 0 | BF110: - | BG110: 330000 | BH110: 0 | BI110: 0 | BJ110: 0 | BK110: - | BL110: 16. Paz, justicia e instituciones sólidas | BM110: Cultura | BN110: IMCT
K111: Implementar y mantener 1 plataforma en línea sobre temas y datos actualizados de la ciudad (historia, cultura, turismo, geografía, economía, sociales, movilidad, espacio público entre otros factores). | L111: 2.2.1.35.3 | M111: Número de plataformas en línea implementadas y mantenidas sobre temas y datos actualizados de la ciudad (historia, cultura, turismo, geografía, economía, sociales, movilidad, espacio público entre otros factores). | N111: 0 | O111: 1 | P111: 1 | Q111: 0.25 | R111: 1 | S111: 0.25 | T111: 1 | U111: 0.25 | V111: 1 | W111: 0.25 | X111: 0 | Y111: 0 | Z111: 0 | AA111: 0 | AB111: 0 | AC111: 0 | AD111: 0 | AE111: 0 | AF111: 0 | AG111: 0 | AH111: 0 | AI111: 0 | AJ111: 0 | AK111: 0 | AL111: 0 | AM111: 20000 | AN111: 0 | AO111: 0 | AP111: 0 | AQ111: - | AR111: 0 | AS111: 0 | AT111: 0 | AU111: - | AV111: - | AW111: 0 | AX111: 0 | AY111: 0 | AZ111: - | BA111: - | BB111: 0 | BC111: 0 | BD111: 0 | BE111: - | BF111: - | BG111: 20000 | BH111: 0 | BI111: 0 | BJ111: 0 | BK111: - | BL111: 16. Paz, justicia e instituciones sólidas | BM111: Cultura | BN111: IMCT
K112: Crear y mantener el libro virtual o plataforma en línea de la historia de las comunas. | L112: 2.2.1.35.4 | M112: Número de libros virtuales o plataformas en línea creadas y mantenidas de la historia de las comunas. | N112: 0 | O112: 1 | P112: 1 | Q112: 0.25 | R112: 1 | S112: 0.25 | T112: 1 | U112: 0.25 | V112: 1 | W112: 0.25 | X112: 0 | Y112: 0 | Z112: 0 | AA112: 0 | AB112: 0 | AC112: 0 | AD112: 0 | AE112: 0 | AF112: 0 | AG112: 0 | AH112: 0 | AI112: 0 | AJ112: 0 | AK112: 0 | AL112: 0 | AM112: 50000 | AN112: 0 | AO112: 0 | AP112: 0 | AQ112: - | AR112: 0 | AS112: 0 | AT112: 0 | AU112: - | AV112: - | AW112: 0 | AX112: 0 | AY112: 0 | AZ112: - | BA112: - | BB112: 0 | BC112: 0 | BD112: 0 | BE112: - | BF112: - | BG112: 50000 | BH112: 0 | BI112: 0 | BJ112: 0 | BK112: - | BL112: 16. Paz, justicia e instituciones sólidas | BM112: Cultura | BN112: IMCT
I113: =+RESUMEN!J23 -> 0.2941666667 | J113: FINANZAS PÚBLICAS SOSTENIBLES Y COMPRENSIBLES PARA LA CIUDADANÍA | K113: Garantizar que 3 documentos financieros estén disponibles y sean de fácil acceso e interpretación. | L113: - | M113: Número de documentos financieros disponibles de fácil acceso e interpretación. | N113: 0 | O113: 3 | P113: 3 | Q113: 0.25 | R113: 3 | S113: 0.25 | T113: 3 | U113: 0.25 | V113: 3 | W113: 0.25 | X113: 1 | Y113: 0 | Z113: 0 | AA113: 0 | AB113: 0.3333333333 | AC113: 0.3333333333 | AD113: 0 | AE113: 0 | AF113: 0 | AG113: 0 | AH113: 0 | AI113: 0 | AJ113: 0.08333333333 | AK113: 0.08333333333 | AL113: 0.08333333333 | AM113: 0 | AN113: 0 | AO113: 0 | AP113: - | AQ113: - | AR113: 0 | AS113: 0 | AT113: 0 | AU113: - | AV113: - | AW113: 0 | AX113: 0 | AY113: 0 | AZ113: - | BA113: - | BB113: 0 | BC113: 0 | BD113: 0 | BE113: - | BF113: - | BG113: 0 | BH113: 0 | BI113: 0 | BJ113: - | BK113: - | BL113: 16. Paz, justicia e instituciones sólidas | BM113: Fortalecimiento Institucional | BN113: Sec. Hacienda
K114: Realizar 16 videos que permitan dar a conocer de manera didáctica al ciudadano la información financiera del municipio. | L114: - | M114: Número de videos realizados que permitan dar a conocer de manera didáctica al ciudadano la información financiera del municipio. | N114: 0 | O114: 16 | P114: 4 | Q114: 0.25 | R114: 4 | S114: 0.25 | T114: 4 | U114: 0.25 | V114: 4 | W114: 0.25 | X114: 3 | Y114: 0 | Z114: 0 | AA114: 0 | AB114: 0.75 | AC114: 0.75 | AD114: 0 | AE114: 0 | AF114: 0 | AG114: 0 | AH114: 0 | AI114: 0 | AJ114: =+SUM(X114:AA114)/O114 -> 0.1875 | AK114: 0.1875 | AL114: 0.1875 | AM114: 0 | AN114: 0 | AO114: 0 | AP114: - | AQ114: - | AR114: 0 | AS114: 0 | AT114: 0 | AU114: - | AV114: - | AW114: 0 | AX114: 0 | AY114: 0 | AZ114: - | BA114: - | BB114: 0 | BC114: 0 | BD114: 0 | BE114: - | BF114: - | BG114: 0 | BH114: 0 | BI114: 0 | BJ114: - | BK114: - | BL114: 16. Paz, justicia e instituciones sólidas | BM114: Fortalecimiento Institucional | BN114: Sec. Hacienda
K115: Implementar y mantener la norma internacional de información financiera - NIIF. | L115: 2210277 | M115: Número de normas internacionales de información financiera - NIIF implementadas y mantenidas. | N115: 0 | O115: 1 | P115: 1 | Q115: 0.25 | R115: 1 | S115: 0.25 | T115: 1 | U115: 0.25 | V115: 1 | W115: 0.25 | X115: 0 | Y115: 0 | Z115: 0 | AA115: 0 | AB115: 0 | AC115: 0 | AD115: 0 | AE115: 0 | AF115: 0 | AG115: 0 | AH115: 0 | AI115: 0 | AJ115: 0 | AK115: 0 | AL115: 0 | AM115: 400000 | AN115: 59940 | AO115: 0 | AP115: 0.14985 | AQ115: - | AR115: 300000 | AS115: 0 | AT115: 0 | AU115: 0 | AV115: - | AW115: 0 | AX115: 0 | AY115: 0 | AZ115: - | BA115: - | BB115: 0 | BC115: 0 | BD115: 0 | BE115: - | BF115: - | BG115: 700000 | BH115: 59940 | BI115: 0 | BJ115: 0.08562857143 | BK115: - | BL115: 16. Paz, justicia e instituciones sólidas | BM115: Fortalecimiento Institucional | BN115: Sec. Hacienda
K116: Actualizar el estatuto tributario. | L116: - | M116: Número de estatutos tributarios actualizados. | N116: 1 | O116: 1 | P116: 1 | Q116: 1 | R116: 0 | S116: 0 | T116: 0 | U116: 0 | V116: 0 | W116: 0 | X116: 1 | Y116: 0 | Z116: 0 | AA116: 0 | AB116: 1 | AC116: 1 | AD116: - | AE116: - | AF116: - | AG116: - | AH116: - | AI116: - | AJ116: =+SUM(X116:AA116)/O116 -> 1 | AK116: 1 | AL116: 1 | AM116: 0 | AN116: 0 | AO116: 0 | AP116: - | AQ116: - | AR116: 0 | AS116: 0 | AT116: 0 | AU116: - | AV116: - | AW116: 0 | AX116: 0 | AY116: 0 | AZ116: - | BA116: - | BB116: 0 | BC116: 0 | BD116: 0 | BE116: - | BF116: - | BG116: 0 | BH116: 0 | BI116: 0 | BJ116: - | BK116: - | BL116: 16. Paz, justicia e instituciones sólidas | BM116: Fortalecimiento Institucional | BN116: Sec. Hacienda
F117: Lograr una calificación de 80 en el componente organización de la información del IGA. | G117: 53.3 | H117: 80 | K117: Realizar 5 acciones tendientes al fortalecimiento de los ingresos. | L117: 2210289 2210272 2210277 | M117: Número de acciones realizadas tendientes al fortalecimiento de los ingresos. | N117: 1 | O117: 5 | P117: 2 | Q117: 0.4 | R117: 3 | S117: 0.6 | T117: 0 | U117: 0 | V117: 0 | W117: 0 | X117: 1 | Y117: 0 | Z117: 0 | AA117: 0 | AB117: 0.5 | AC117: 0.5 | AD117: 0 | AE117: 0 | AF117: - | AG117: - | AH117: - | AI117: - | AJ117: 0.2 | AK117: 0.2 | AL117: 0.2 | AM117: 2000000 | AN117: 827317 | AO117: 0 | AP117: 0.4136585 | AQ117: - | AR117: 8470000 | AS117: 0 | AT117: 0 | AU117: 0 | AV117: - | AW117: 0 | AX117: 0 | AY117: 0 | AZ117: - | BA117: - | BB117: 0 | BC117: 0 | BD117: 0 | BE117: - | BF117: - | BG117: 10470000 | BH117: 827317 | BI117: 0 | BJ117: 0.07901786055 | BK117: - | BL117: 16. Paz, justicia e instituciones sólidas | BM117: Fortalecimiento Institucional | BN117: Sec. Hacienda
I118: =+RESUMEN!J24 -> 0.01 | J118: GESTIÓN INTELIGENTE DEL PATRIMONIO INMOBILIARIO MUNICIPAL | K118: Realizar y mantener actualizado en línea 1 inventario del los bienes inmuebles del municipio. | L118: - | M118: Número de inventarios en línea de los bienes inmuebles del municipio realizados y mantenidos. | N118: 0 | O118: 1 | P118: 1 | Q118: 0.25 | R118: 1 | S118: 0.25 | T118: 1 | U118: 0.25 | V118: 1 | W118: 0.25 | X118: 0.12 | Y118: 0 | Z118: 0 | AA118: 0 | AB118: 0.12 | AC118: 0.12 | AD118: 0 | AE118: 0 | AF118: 0 | AG118: 0 | AH118: 0 | AI118: 0 | AJ118: 0.03 | AK118: 0.03 | AL118: 0.03 | AM118: 0 | AN118: 0 | AO118: 0 | AP118: - | AQ118: - | AR118: 0 | AS118: 0 | AT118: 0 | AU118: - | AV118: - | AW118: 0 | AX118: 0 | AY118: 0 | AZ118: - | BA118: - | BB118: 0 | BC118: 0 | BD118: 0 | BE118: - | BF118: - | BG118: 0 | BH118: 0 | BI118: 0 | BJ118: - | BK118: - | BL118: 16. Paz, justicia e instituciones sólidas | BM118: Equipamiento | BN118: DADEP
K119: Incorporar 300 predios de propiedad del municipio cuya titulación se encuentra pendiente. | L119: - | M119: Número de predios de propiedad del municipio cuya titulación se encuentra pendiente incorporados. | N119: 208 | O119: 300 | P119: 0 | Q119: 0 | R119: 0 | S119: 0 | T119: 150 | U119: 0.5 | V119: 150 | W119: 0.5 | X119: 0 | Y119: 0 | Z119: 0 | AA119: 0 | AB119: - | AC119: - | AD119: - | AE119: - | AF119: 0 | AG119: 0 | AH119: 0 | AI119: 0 | AJ119: =+SUM(X119:AA119)/O119 -> 0 | AK119: 0 | AL119: 0 | AM119: 0 | AN119: 0 | AO119: 0 | AP119: - | AQ119: - | AR119: 0 | AS119: 0 | AT119: 0 | AU119: - | AV119: - | AW119: 0 | AX119: 0 | AY119: 0 | AZ119: - | BA119: - | BB119: 0 | BC119: 0 | BD119: 0 | BE119: - | BF119: - | BG119: 0 | BH119: 0 | BI119: 0 | BJ119: - | BK119: - | BL119: 16. Paz, justicia e instituciones sólidas | BM119: Equipamiento | BN119: DADEP
K120: Adquirir el 100% de los predios requeridos para la ejecución de obras de desarrollo para la ciudad. | L120: - | M120: Porcentaje de predios requeridos adquiridos para la ejecución de obras de desarrollo para la ciudad. | N120: 1 | O120: 1 | P120: 1 | Q120: 0.25 | R120: 1 | S120: 0.25 | T120: 1 | U120: 0.25 | V120: 1 | W120: 0.25 | X120: 0 | Y120: 0 | Z120: 0 | AA120: 0 | AB120: 0 | AC120: 0 | AD120: 0 | AE120: 0 | AF120: 0 | AG120: 0 | AH120: 0 | AI120: 0 | AJ120: 0 | AK120: 0 | AL120: 0 | AM120: 0 | AN120: 0 | AO120: 0 | AP120: - | AQ120: - | AR120: 0 | AS120: 0 | AT120: 0 | AU120: - | AV120: - | AW120: 0 | AX120: 0 | AY120: 0 | AZ120: - | BA120: - | BB120: 0 | BC120: 0 | BD120: 0 | BE120: - | BF120: - | BG120: 0 | BH120: 0 | BI120: 0 | BJ120: - | BK120: - | BL120: 9. Industria, innovación e infraestructura | BM120: Equipamiento | BN120: Sec. Infraestructura
I121: =+RESUMEN!J25 -> 0.1080740741 | J121: INSPECCIONES Y COMISARÍAS QUE FUNCIONAN | K121: Sistematizar el 100% de los procesos que adelantan las inspecciones de policía. | L121: 0 | M121: Porcentaje de avance en la sistematización de los procesos que adelantan las inspecciones de policía. | N121: 0 | O121: 1 | P121: 0 | Q121: 0 | R121: 0.7 | S121: 0.7 | T121: 0.3 | U121: 0.3 | V121: 0 | W121: 0 | X121: 0 | Y121: 0 | Z121: 0 | AA121: 0 | AB121: - | AC121: - | AD121: 0 | AE121: 0 | AF121: 0 | AG121: 0 | AH121: - | AI121: - | AJ121: =+SUM(X121:AA121)/O121 -> 0 | AK121: 0 | AL121: 0 | AM121: 225205 | AN121: 0 | AO121: 0 | AP121: 0 | AQ121: - | AR121: 35000 | AS121: 0 | AT121: 0 | AU121: 0 | AV121: - | AW121: 0 | AX121: 0 | AY121: 0 | AZ121: - | BA121: - | BB121: 0 | BC121: 0 | BD121: 0 | BE121: - | BF121: - | BG121: 260205 | BH121: 0 | BI121: 0 | BJ121: 0 | BK121: - | BL121: 16. Paz, justicia e instituciones sólidas | BM121: Justicia y Seguridad | BN121: Sec. Interior
K122: Descongestionar 9.000 procesos de las inspecciones iniciados antes del 2012 y que impiden la buena atención al ciudadano. | L122: - | M122: Número de procesos descongestionados de las inspecciones iniciados antes del 2012 y que impiden la buena atención al ciudadano. | N122: 0 | O122: 9000 | P122: 500 | Q122: 0.05555555556 | R122: 2833 | S122: 0.3147777778 | T122: 2833 | U122: 0.3147777778 | V122: 2834 | W122: 0.3148888889 | X122: 4254 | Y122: 0 | Z122: 0 | AA122: 0 | AB122: 8.508 | AC122: 1 | AD122: 0 | AE122: 0 | AF122: 0 | AG122: 0 | AH122: 0 | AI122: 0 | AJ122: 0.4726666667 | AK122: 0.4726666667 | AL122: 0.4726666667 | AM122: 704570 | AN122: 0 | AO122: 0 | AP122: 0 | AQ122: - | AR122: 0 | AS122: 0 | AT122: 0 | AU122: - | AV122: - | AW122: 0 | AX122: 0 | AY122: 0 | AZ122: - | BA122: - | BB122: 0 | BC122: 0 | BD122: 0 | BE122: - | BF122: - | BG122: 704570 | BH122: 0 | BI122: 0 | BJ122: 0 | BK122: - | BL122: 16. Paz, justicia e instituciones sólidas | BM122: Justicia y Seguridad | BN122: Sec. Interior
K123: Formular e implementar 1 plan de descongestión y gestión. | L123: - | M123: Número de planes de descongestión y gestión formulados e implementados. | N123: 1 | O123: 1 | P123: 1 | Q123: 0.25 | R123: 1 | S123: 0.25 | T123: 1 | U123: 0.25 | V123: 1 | W123: 0.25 | X123: 1 | Y123: 0 | Z123: 0 | AA123: 0 | AB123: 1 | AC123: 1 | AD123: 0 | AE123: 0 | AF123: 0 | AG123: 0 | AH123: 0 | AI123: 0 | AJ123: 0.25 | AK123: 0.25 | AL123: 0.25 | AM123: 0 | AN123: 0 | AO123: 0 | AP123: - | AQ123: - | AR123: 0 | AS123: 0 | AT123: 0 | AU123: - | AV123: - | AW123: 0 | AX123: 0 | AY123: 0 | AZ123: - | BA123: - | BB123: 0 | BC123: 0 | BD123: 0 | BE123: - | BF123: - | BG123: 0 | BH123: 0 | BI123: 0 | BJ123: - | BK123: - | BL123: 16. Paz, justicia e instituciones sólidas | BM123: Justicia y Seguridad | BN123: Sec. Interior
K124: Formular e implementar 1 estrategia robusta de transparencia en las inspecciones. | L124: - | M124: Número de estrategias robustas de transparencia en las inspecciones formulados e implementados. | N124: 0 | O124: 1 | P124: 1 | Q124: 0.25 | R124: 1 | S124: 0.25 | T124: 1 | U124: 0.25 | V124: 1 | W124: 0.25 | X124: 1 | Y124: 0 | Z124: 0 | AA124: 0 | AB124: 1 | AC124: 1 | AD124: 0 | AE124: 0 | AF124: 0 | AG124: 0 | AH124: 0 | AI124: 0 | AJ124: 0.25 | AK124: 0.25 | AL124: 0.25 | AM124: 0 | AN124: 0 | AO124: 0 | AP124: - | AQ124: - | AR124: 0 | AS124: 0 | AT124: 0 | AU124: - | AV124: - | AW124: 0 | AX124: 0 | AY124: 0 | AZ124: - | BA124: - | BB124: 0 | BC124: 0 | BD124: 0 | BE124: - | BF124: - | BG124: 0 | BH124: 0 | BI124: 0 | BJ124: - | BK124: - | BL124: 16. Paz, justicia e instituciones sólidas | BM124: Justicia y Seguridad | BN124: Sec. Interior
K125: Crear 4 cargos supernumerarios para la descongestión de las inspecciones municipales de policía. | L125: - | M125: Número de cargos supernumerarios creados para la descongestión de las inspecciones municipales de policía. | N125: 0 | O125: 4 | P125: 0 | Q125: 0 | R125: 4 | S125: 1 | T125: 0 | U125: 0 | V125: 0 | W125: 0 | X125: 0 | Y125: 0 | Z125: 0 | AA125: 0 | AB125: - | AC125: - | AD125: 0 | AE125: 0 | AF125: - | AG125: - | AH125: - | AI125: - | AJ125: =+SUM(X125:AA125)/O125 -> 0 | AK125: 0 | AL125: 0 | AM125: 0 | AN125: 0 | AO125: 0 | AP125: - | AQ125: - | AR125: 0 | AS125: 0 | AT125: 0 | AU125: - | AV125: - | AW125: 0 | AX125: 0 | AY125: 0 | AZ125: - | BA125: - | BB125: 0 | BC125: 0 | BD125: 0 | BE125: - | BF125: - | BG125: 0 | BH125: 0 | BI125: 0 | BJ125: - | BK125: - | BL125: 16. Paz, justicia e instituciones sólidas | BM125: Justicia y Seguridad | BN125: Sec. Interior
F126: Lograr la probabilidad del 75% de cumplir la función administrativa según INTEGRA. | G126: 0.6198 | H126: 0.75 | K126: Mejorar y equipar las 2 sedes de comisaría de familia (Norte y Joya). | L126: 2210264 | M126: Número de sedes de comisarías de familia (Norte y Joya) mejoradas y equipadas. | N126: 2 | O126: 2 | P126: 0 | Q126: 0 | R126: 2 | S126: 1 | T126: 0 | U126: 0 | V126: 0 | W126: 0 | X126: 0 | Y126: 0 | Z126: 0 | AA126: 0 | AB126: - | AC126: - | AD126: 0 | AE126: 0 | AF126: - | AG126: - | AH126: - | AI126: - | AJ126: 0 | AK126: 0 | AL126: 0 | AM126: 0 | AN126: 0 | AO126: 0 | AP126: - | AQ126: - | AR126: 400000 | AS126: 0 | AT126: 0 | AU126: 0 | AV126: - | AW126: 0 | AX126: 0 | AY126: 0 | AZ126: - | BA126: - | BB126: 0 | BC126: 0 | BD126: 0 | BE126: - | BF126: - | BG126: 400000 | BH126: 0 | BI126: 0 | BJ126: 0 | BK126: - | BL126: 16. Paz, justicia e instituciones sólidas | BM126: Justicia y Seguridad | BN126: Sec. Interior
K127: Adecuar y equipar las 2 sedes nuevas de comisaría de familia (Oriente y Sur). | L127: - | M127: Número de sedes nuevas de comisarías de familias (Oriente y Sur) adecuadas y equipadas. | N127: 0 | O127: 2 | P127: 0 | Q127: 0 | R127: 1 | S127: 0.5 | T127: 1 | U127: 0.5 | V127: 0 | W127: 0 | X127: 0 | Y127: 0 | Z127: 0 | AA127: 0 | AB127: - | AC127: - | AD127: 0 | AE127: 0 | AF127: 0 | AG127: 0 | AH127: - | AI127: - | AJ127: 0 | AK127: 0 | AL127: 0 | AM127: 0 | AN127: 0 | AO127: 0 | AP127: - | AQ127: - | AR127: 0 | AS127: 0 | AT127: 0 | AU127: - | AV127: - | AW127: 0 | AX127: 0 | AY127: 0 | AZ127: - | BA127: - | BB127: 0 | BC127: 0 | BD127: 0 | BE127: - | BF127: - | BG127: 0 | BH127: 0 | BI127: 0 | BJ127: - | BK127: - | BL127: 16. Paz, justicia e instituciones sólidas | BM127: Justicia y Seguridad | BN127: Sec. Interior
K128: Digitalizar y sistematizar el 100% el procedimiento del funcionamiento de las comisarías de familia. | L128: 0 | M128: Porcentaje de procedimientos de las comisarías de familia digitalizados y sistematizados, | N128: 0 | O128: 1 | P128: 0 | Q128: 0 | R128: 1 | S128: 1 | T128: 0 | U128: 0 | V128: 0 | W128: 0 | X128: 0 | Y128: 0 | Z128: 0 | AA128: 0 | AB128: - | AC128: - | AD128: 0 | AE128: 0 | AF128: - | AG128: - | AH128: - | AI128: - | AJ128: 0 | AK128: 0 | AL128: 0 | AM128: 91425 | AN128: 0 | AO128: 0 | AP128: 0 | AQ128: - | AR128: 0 | AS128: 0 | AT128: 0 | AU128: - | AV128: - | AW128: 0 | AX128: 0 | AY128: 0 | AZ128: - | BA128: - | BB128: 0 | BC128: 0 | BD128: 0 | BE128: - | BF128: - | BG128: 91425 | BH128: 0 | BI128: 0 | BJ128: 0 | BK128: - | BL128: 16. Paz, justicia e instituciones sólidas | BM128: Justicia y Seguridad | BN128: Sec. Interior
K129: Implementar y mantener 1 plan de mejoramiento en las comisarías de familia. | L129: - | M129: Número de planes de mejoramiento de las comisarías de familia implementadas y mantenidas. | N129: 1 | O129: 1 | P129: 1 | Q129: 0.25 | R129: 1 | S129: 0.25 | T129: 1 | U129: 0.25 | V129: 1 | W129: 0.25 | X129: 0 | Y129: 0 | Z129: 0 | AA129: 0 | AB129: 0 | AC129: 0 | AD129: 0 | AE129: 0 | AF129: 0 | AG129: 0 | AH129: 0 | AI129: 0 | AJ129: 0 | AK129: 0 | AL129: 0 | AM129: 98000 | AN129: 0 | AO129: 0 | AP129: 0 | AQ129: - | AR129: 0 | AS129: 0 | AT129: 0 | AU129: - | AV129: - | AW129: 0 | AX129: 0 | AY129: 0 | AZ129: - | BA129: - | BB129: 0 | BC129: 0 | BD129: 0 | BE129: - | BF129: - | BG129: 98000 | BH129: 0 | BI129: 0 | BJ129: 0 | BK129: - | BL129: 16. Paz, justicia e instituciones sólidas | BM129: Justicia y Seguridad | BN129: Sec. Interior
I130: =+RESUMEN!J26 -> 0.2247807018 | J130: CULTURA DE LA LEGALIDAD Y LA ÉTICA PÚBLICA | K130: Realizar 8 capacitaciones dirigidas a servidores públicos en lo atinente al régimen disciplinario de los servidores públicos. | L130: - | M130: Número de capacitaciones realizadas dirigidas a servidores públicos en lo atinente al régimen disciplinario de los servidores públicos. | N130: 8 | O130: 8 | P130: 2 | Q130: 0.25 | R130: 2 | S130: 0.25 | T130: 2 | U130: 0.25 | V130: 2 | W130: 0.25 | X130: 1 | Y130: 0 | Z130: 0 | AA130: 0 | AB130: 0.5 | AC130: 0.5 | AD130: 0 | AE130: 0 | AF130: 0 | AG130: 0 | AH130: 0 | AI130: 0 | AJ130: =+SUM(X130:AA130)/O130 -> 0.125 | AK130: 0.125 | AL130: 0.125 | AM130: 0 | AN130: 0 | AO130: 0 | AP130: - | AQ130: - | AR130: 0 | AS130: 0 | AT130: 0 | AU130: - | AV130: - | AW130: 0 | AX130: 0 | AY130: 0 | AZ130: - | BA130: - | BB130: 0 | BC130: 0 | BD130: 0 | BE130: - | BF130: - | BG130: 0 | BH130: 0 | BI130: 0 | BJ130: - | BK130: - | BL130: 16. Paz, justicia e instituciones sólidas | BM130: Justicia y Seguridad | BN130: Ofc. Control Interno Disciplinario
K131: Crear y mantener 1 base de datos que permita tener acceso ágil a la información de procesos que se adelantan. | L131: - | M131: Número de bases de datos creadas y mantenidas que permitan tener acceso ágil a la información de procesos que se adelantan. | N131: 0 | O131: 1 | P131: 1 | Q131: 0.25 | R131: 1 | S131: 0.25 | T131: 1 | U131: 0.25 | V131: 1 | W131: 0.25 | X131: 1 | Y131: 0 | Z131: 0 | AA131: 0 | AB131: 1 | AC131: 1 | AD131: 0 | AE131: 0 | AF131: 0 | AG131: 0 | AH131: 0 | AI131: 0 | AJ131: 0.25 | AK131: 0.25 | AL131: 0.25 | AM131: 0 | AN131: 0 | AO131: 0 | AP131: - | AQ131: - | AR131: 0 | AS131: 0 | AT131: 0 | AU131: - | AV131: - | AW131: 0 | AX131: 0 | AY131: 0 | AZ131: - | BA131: - | BB131: 0 | BC131: 0 | BD131: 0 | BE131: - | BF131: - | BG131: 0 | BH131: 0 | BI131: 0 | BJ131: - | BK131: - | BL131: 16. Paz, justicia e instituciones sólidas | BM131: Justicia y Seguridad | BN131: Ofc. Control Interno Disciplinario
K132: Mantener el seguimiento, asesoría y evaluación a los 19 procesos de la Administración Central. | L132: - | M132: Número de procesos de la Administración Central con seguimiento, asesoría y evaluación mantenidos. | N132: 19 | O132: 19 | P132: 19 | Q132: 0.25 | R132: 19 | S132: 0.25 | T132: 19 | U132: 0.25 | V132: 19 | W132: 0.25 | X132: 17 | Y132: 0 | Z132: 0 | AA132: 0 | AB132: 0.8947368421 | AC132: 0.8947368421 | AD132: 0 | AE132: 0 | AF132: 0 | AG132: 0 | AH132: 0 | AI132: 0 | AJ132: 0.2236842105 | AK132: 0.2236842105 | AL132: 0.2236842105 | AM132: 0 | AN132: 0 | AO132: 0 | AP132: - | AQ132: - | AR132: 0 | AS132: 0 | AT132: 0 | AU132: - | AV132: - | AW132: 0 | AX132: 0 | AY132: 0 | AZ132: - | BA132: - | BB132: 0 | BC132: 0 | BD132: 0 | BE132: - | BF132: - | BG132: 0 | BH132: 0 | BI132: 0 | BJ132: - | BK132: - | BL132: 16. Paz, justicia e instituciones sólidas | BM132: Justicia y Seguridad | BN132: Ofc. Control Interno
K133: Implementar y mantener 1 estrategia de gobierno para la promoción y adopción de la Cultura de la Legalidad y la Integridad para Colombia CLIC entre los servidores públicos y la ciudadanía. | L133: - | M133: Número de estrategias de gobierno implementadas y mantenidas para la promoción y adopción de la Cultura de la Legalidad y la Integridad para Colombia CLIC entre los servidores públicos y la ciudadanía. | N133: 0 | O133: 1 | P133: 1 | Q133: 0.25 | R133: 1 | S133: 0.25 | T133: 1 | U133: 0.25 | V133: 1 | W133: 0.25 | X133: 1 | Y133: 0 | Z133: 0 | AA133: 0 | AB133: 1 | AC133: 1 | AD133: 0 | AE133: 0 | AF133: 0 | AG133: 0 | AH133: 0 | AI133: 0 | AJ133: 0.25 | AK133: 0.25 | AL133: 0.25 | AM133: 0 | AN133: 0 | AO133: 0 | AP133: - | AQ133: - | AR133: 0 | AS133: 0 | AT133: 0 | AU133: - | AV133: - | AW133: 0 | AX133: 0 | AY133: 0 | AZ133: - | BA133: - | BB133: 0 | BC133: 0 | BD133: 0 | BE133: - | BF133: - | BG133: 0 | BH133: 0 | BI133: 0 | BJ133: - | BK133: - | BL133: 16. Paz, justicia e instituciones sólidas | BM133: Justicia y Seguridad | BN133: Sec. Jurídica
K134: Realizar 8 capacitaciones en materia de contratación estatal dirigida a servidores públicos. | L134: 0 | M134: Número de capacitaciones realizadas en materia de contratación estatal dirigida a servidores públicos. | N134: 0 | O134: 8 | P134: 2 | Q134: 0.25 | R134: 2 | S134: 0.25 | T134: 2 | U134: 0.25 | V134: 2 | W134: 0.25 | X134: 2 | Y134: 0 | Z134: 0 | AA134: 0 | AB134: 1 | AC134: 1 | AD134: 0 | AE134: 0 | AF134: 0 | AG134: 0 | AH134: 0 | AI134: 0 | AJ134: =+SUM(X134:AA134)/O134 -> 0.25 | AK134: 0.25 | AL134: 0.25 | AM134: 0 | AN134: 0 | AO134: 0 | AP134: - | AQ134: - | AR134: 50000 | AS134: 0 | AT134: 0 | AU134: 0 | AV134: - | AW134: 50000 | AX134: 0 | AY134: 0 | AZ134: 0 | BA134: - | BB134: 50000 | BC134: 0 | BD134: 0 | BE134: 0 | BF134: - | BG134: 150000 | BH134: 0 | BI134: 0 | BJ134: 0 | BK134: - | BL134: 16. Paz, justicia e instituciones sólidas | BM134: Justicia y Seguridad | BN134: Sec. Jurídica
K135: Implementar y mantener 1 estrategia de comunicaciones pedagógica para socializar y fortalecer el sentido de la ética en la gestión pública entre las diversas dependencias. | L135: - | M135: Número de estrategias de comunicaciones pedagógicas implementadas y mantenidas para socializar y fortalecer el sentido de la ética en la gestión pública entre las diversas dependencias. | N135: 0 | O135: 1 | P135: 1 | Q135: 0.25 | R135: 1 | S135: 0.25 | T135: 1 | U135: 0.25 | V135: 1 | W135: 0.25 | X135: 1 | Y135: 0 | Z135: 0 | AA135: 0 | AB135: 1 | AC135: 1 | AD135: 0 | AE135: 0 | AF135: 0 | AG135: 0 | AH135: 0 | AI135: 0 | AJ135: 0.25 | AK135: 0.25 | AL135: 0.25 | AM135: 0 | AN135: 0 | AO135: 0 | AP135: - | AQ135: - | AR135: 0 | AS135: 0 | AT135: 0 | AU135: - | AV135: - | AW135: 0 | AX135: 0 | AY135: 0 | AZ135: - | BA135: - | BB135: 0 | BC135: 0 | BD135: 0 | BE135: - | BF135: - | BG135: 0 | BH135: 0 | BI135: 0 | BJ135: - | BK135: - | BL135: 16. Paz, justicia e instituciones sólidas | BM135: Justicia y Seguridad | BN135: Sec. Jurídica
Q136: =+AVERAGE(Q78:Q135) -> 0.177394636 | S136: =+AVERAGE(S78:S135) -> 0.3638754789 | U136: 0.2618639847 | W136: 0.1968659004 | AC136: =+AVERAGE(AC78:AC135) -> 0.5696941071 | AE136: 0 | AG136: 0 | AI136: 0 | AK136: =+AVERAGE(AK78:AK135) -> 0.1155549002
D137: =+RESUMEN!J27 -> 0.1565427083 | E137: GOBIERNO MUNICIPAL EN LÍNEA | F137: Alcanzar un 85% de nivel de satisfacción en trámites electrónicos. | G137: 0.75 | H137: 0.85 | I137: =+RESUMEN!J28 -> 0.1196875 | J137: CIUDAD MODELO EN GOBIERNO EN LÍNEA | K137: Lograr y mantener el 100% de la implementación del componente TIC servicios. | L137: 2210289 | M137: Porcentaje de avance de la implementación del componente TIC servicios. | N137: 0.745 | O137: 1 | P137: 0.8 | Q137: 0.25 | R137: 1 | S137: 0.25 | T137: 1 | U137: 0.25 | V137: 1 | W137: 0.25 | X137: 0.745 | Y137: 0 | Z137: 0 | AA137: 0 | AB137: 0.93125 | AC137: 0.93125 | AD137: 0 | AE137: 0 | AF137: 0 | AG137: 0 | AH137: 0 | AI137: 0 | AJ137: 0.18625 | AK137: 0.18625 | AL137: 0.18625 | AM137: 0 | AN137: 0 | AO137: 0 | AP137: - | AQ137: - | AR137: 139000 | AS137: 0 | AT137: 0 | AU137: 0 | AV137: - | AW137: 140000 | AX137: 0 | AY137: 0 | AZ137: 0 | BA137: - | BB137: 126000 | BC137: 0 | BD137: 0 | BE137: 0 | BF137: - | BG137: 405000 | BH137: 0 | BI137: 0 | BJ137: 0 | BK137: - | BL137: 16. Paz, justicia e instituciones sólidas | BM137: Fortalecimiento insitucional | BN137: Ofc. Sistemas
K138: Lograr y mantener el 100% de la implementación del componente TIC gobierno abierto. | L138: 2210289 | M138: Porcentaje de avance de la implementación del componente TIC gobierno abierto. | N138: 0.44 | O138: 1 | P138: 0.8 | Q138: 0.25 | R138: 1 | S138: 0.25 | T138: 1 | U138: 0.25 | V138: 1 | W138: 0.25 | X138: 0.44 | Y138: 0 | Z138: 0 | AA138: 0 | AB138: 0.55 | AC138: 0.55 | AD138: 0 | AE138: 0 | AF138: 0 | AG138: 0 | AH138: 0 | AI138: 0 | AJ138: 0.11 | AK138: 0.11 | AL138: 0.11 | AM138: 0 | AN138: 0 | AO138: 0 | AP138: - | AQ138: - | AR138: 131000 | AS138: 0 | AT138: 0 | AU138: 0 | AV138: - | AW138: 131000 | AX138: 0 | AY138: 0 | AZ138: 0 | BA138: - | BB138: 118000 | BC138: 0 | BD138: 0 | BE138: 0 | BF138: - | BG138: 380000 | BH138: 0 | BI138: 0 | BJ138: 0 | BK138: - | BL138: 16. Paz, justicia e instituciones sólidas | BM138: Fortalecimiento insitucional | BN138: Ofc. Sistemas
K139: Lograr y mantener el 100% de la implementación del componente TIC gestión. | L139: 2210289 | M139: Porcentaje de avance de la implementación del componente TIC gestión. | N139: 0.43 | O139: 1 | P139: 0.5 | Q139: 0.25 | R139: 0.8 | S139: 0.25 | T139: 1 | U139: 0.25 | V139: 1 | W139: 0.25 | X139: 0.43 | Y139: 0 | Z139: 0 | AA139: 0 | AB139: 0.86 | AC139: 0.86 | AD139: 0 | AE139: 0 | AF139: 0 | AG139: 0 | AH139: 0 | AI139: 0 | AJ139: 0.1075 | AK139: 0.1075 | AL139: 0.1075 | AM139: 0 | AN139: 0 | AO139: 0 | AP139: - | AQ139: - | AR139: 533000 | AS139: 0 | AT139: 0 | AU139: 0 | AV139: - | AW139: 92000 | AX139: 0 | AY139: 0 | AZ139: 0 | BA139: - | BB139: 0 | BC139: 0 | BD139: 0 | BE139: - | BF139: - | BG139: 625000 | BH139: 0 | BI139: 0 | BJ139: 0 | BK139: - | BL139: 16. Paz, justicia e instituciones sólidas | BM139: Fortalecimiento insitucional | BN139: Ofc. Sistemas
K140: Lograr y mantener el 100% de la implementación del componente seguridad de la información y protección de datos. | L140: 2210289 | M140: Porcentaje de avance de la implementación del componente seguridad de la información y protección de datos. | N140: 0.15 | O140: 1 | P140: 0.4 | Q140: 0.25 | R140: 0.8 | S140: 0.25 | T140: 1 | U140: 0.25 | V140: 1 | W140: 0.25 | X140: 0.3 | Y140: 0 | Z140: 0 | AA140: 0 | AB140: =IF(P140=0," -",X140/P140) -> 0.75 | AC140: =IF(P140=0," -",IF(AB140>100%,100%,AB140)) -> 0.75 | AD140: =IF(R140=0," -",Y140/R140) -> 0 | AE140: =IF(R140=0," -",IF(AD140>100%,100%,AD140)) -> 0 | AF140: =IF(T140=0," -",Z140/T140) -> 0 | AG140: =IF(T140=0," -",IF(AF140>100%,100%,AF140)) -> 0 | AH140: =IF(V140=0," -",AA140/V140) -> 0 | AI140: =IF(V140=0," -",IF(AH140>100%,100%,AH140)) -> 0 | AJ140: =+AVERAGE(X140:AA140)/O140 -> 0.075 | AK140: =+IF(AJ140>100%,100%,AJ140) -> 0.075 | AL140: =+AK140 -> 0.075 | AM140: 0 | AN140: 0 | AO140: 0 | AP140: - | AQ140: - | AR140: 230000 | AS140: 0 | AT140: 0 | AU140: 0 | AV140: - | AW140: 230000 | AX140: 0 | AY140: 0 | AZ140: 0 | BA140: - | BB140: 240000 | BC140: 0 | BD140: 0 | BE140: 0 | BF140: - | BG140: 700000 | BH140: 0 | BI140: 0 | BJ140: 0 | BK140: - | BL140: 16. Paz, justicia e instituciones sólidas | BM140: Fortalecimiento insitucional | BN140: Ofc. Sistemas
I141: =+RESUMEN!J29 -> 0.3279 | J141: VIVE DIGITAL PARA LAS CIUDADANAS Y CIUDADANOS | K141: Adecuar y mantener en funcionamiento los 8 puntos VIVE DIGITAL. | L141: - | M141: Número de puntos VIVE DIGITAL adecuados y mantenidos en funcionamiento. | N141: 8 | O141: 8 | P141: 8 | Q141: 0.25 | R141: 8 | S141: 0.25 | T141: 8 | U141: 0.25 | V141: 8 | W141: 0.25 | X141: 8 | Y141: 0 | Z141: 0 | AA141: 0 | AB141: 1 | AC141: 1 | AD141: 0 | AE141: 0 | AF141: 0 | AG141: 0 | AH141: 0 | AI141: 0 | AJ141: 0.25 | AK141: 0.25 | AL141: 0.25 | AM141: 0 | AN141: 0 | AO141: 0 | AP141: =IF(AM141=0," -",AN141/AM141) -> - | AQ141: =IF(AO141=0," -",IF(AN141=0,100%,AO141/AN141)) -> - | AR141: 0 | AS141: 0 | AT141: 0 | AU141: =IF(AR141=0," -",AS141/AR141) -> - | AV141: =IF(AT141=0," -",IF(AS141=0,100%,AT141/AS141)) -> - | AW141: 0 | AX141: 0 | AY141: 0 | AZ141: =IF(AW141=0," -",AX141/AW141) -> - | BA141: =IF(AY141=0," -",IF(AX141=0,100%,AY141/AX141)) -> - | BB141: 0 | BC141: 0 | BD141: 0 | BE141: =IF(BB141=0," -",BC141/BB141) -> - | BF141: =IF(BD141=0," -",IF(BC141=0,100%,BD141/BC141)) -> - | BG141: =+AM141+AR141+AW141+BB141 -> 0 | BH141: =+AN141+AS141+AX141+BC141 -> 0 | BI141: =+AO141+AT141+AY141+BD141 -> 0 | BJ141: =IF(BG141=0," -",BH141/BG141) -> - | BK141: =IF(BI141=0," -",IF(BH141=0,100%,BI141/BH141)) -> - | BL141: 9. Industria, innovación e infraestructura | BM141: Fortalecimiento insitucional | BN141: Ofc. Sistemas
F142: Lograr que 10.000 ciudadanos usen datos públicos y participen por redes electrónicas. | G142: 0 | H142: 10000 | K142: Mantener en funcionamiento el VIVE LAB. | L142: - | M142: Número de VIVE LABS mantenidos en funcionamiento. | N142: 1 | O142: 1 | P142: 1 | Q142: 0.25 | R142: 1 | S142: 0.25 | T142: 1 | U142: 0.25 | V142: 1 | W142: 0.25 | X142: 1 | Y142: 0 | Z142: 0 | AA142: 0 | AB142: 1 | AC142: 1 | AD142: 0 | AE142: 0 | AF142: 0 | AG142: 0 | AH142: 0 | AI142: 0 | AJ142: 0.25 | AK142: 0.25 | AL142: 0.25 | AM142: 0 | AN142: 0 | AO142: 0 | AP142: - | AQ142: - | AR142: 0 | AS142: 0 | AT142: 0 | AU142: - | AV142: - | AW142: 0 | AX142: 0 | AY142: 0 | AZ142: - | BA142: - | BB142: 0 | BC142: 0 | BD142: 0 | BE142: - | BF142: - | BG142: 0 | BH142: 0 | BI142: 0 | BJ142: - | BK142: - | BL142: 16. Paz, justicia e instituciones sólidas | BM142: Fortalecimiento insitucional | BN142: Ofc. Sistemas
K143: Capacitar 5.000 ciudadanos en los puntos VIVE DIGITAL y VIVE LAB. | L143: - | M143: Número de ciudadanos capacitados en los puntos VIVE DIGITAL y VIVE LAB. | N143: 0 | O143: 5000 | P143: 250 | Q143: =+P143/O143 -> 0.05 | R143: 1550 | S143: =+R143/O143 -> 0.31 | T143: 1600 | U143: =+T143/O143 -> 0.32 | V143: 1600 | W143: =+V143/O143 -> 0.32 | X143: 702 | Y143: 0 | Z143: 0 | AA143: 0 | AB143: 2.808 | AC143: 1 | AD143: 0 | AE143: 0 | AF143: 0 | AG143: 0 | AH143: 0 | AI143: 0 | AJ143: =+SUM(X143:AA143)/O143 -> 0.1404 | AK143: 0.1404 | AL143: 0.1404 | AM143: 0 | AN143: 0 | AO143: 0 | AP143: - | AQ143: - | AR143: 0 | AS143: 0 | AT143: 0 | AU143: - | AV143: - | AW143: 0 | AX143: 0 | AY143: 0 | AZ143: - | BA143: - | BB143: 0 | BC143: 0 | BD143: 0 | BE143: - | BF143: - | BG143: 0 | BH143: 0 | BI143: 0 | BJ143: - | BK143: - | BL143: 16. Paz, justicia e instituciones sólidas | BM143: Fortalecimiento insitucional | BN143: Ofc. Sistemas
K144: Atender 30.000 ciudadanos en los puntos VIVE DIGITAL y VIVE LAB. | L144: - | M144: Número de ciudadanos atendidos en los puntos VIVE DIGITAL y VIVE LAB. | N144: 0 | O144: 30000 | P144: 3750 | Q144: 0.125 | R144: 8750 | S144: 0.2916666667 | T144: 8750 | U144: 0.2916666667 | V144: 8750 | W144: 0.2916666667 | X144: 29973 | Y144: 0 | Z144: 0 | AA144: 0 | AB144: 7.9928 | AC144: 1 | AD144: 0 | AE144: 0 | AF144: 0 | AG144: 0 | AH144: 0 | AI144: 0 | AJ144: 0.9991 | AK144: 0.9991 | AL144: 0.9991 | AM144: 0 | AN144: 0 | AO144: 0 | AP144: - | AQ144: - | AR144: 0 | AS144: 0 | AT144: 0 | AU144: - | AV144: - | AW144: 0 | AX144: 0 | AY144: 0 | AZ144: - | BA144: - | BB144: 0 | BC144: 0 | BD144: 0 | BE144: - | BF144: - | BG144: 0 | BH144: 0 | BI144: 0 | BJ144: - | BK144: - | BL144: 16. Paz, justicia e instituciones sólidas | BM144: Fortalecimiento insitucional | BN144: Ofc. Sistemas
K145: Construir y mantener 1 punto VIVE DIGITAL. | L145: 2210198 | M145: Número de puntos vive DIGITAL construidos y mantenidos. | N145: 8 | O145: 1 | P145: 1 | Q145: 0.25 | R145: 1 | S145: 0.25 | T145: 1 | U145: 0.25 | V145: 1 | W145: 0.25 | X145: 0 | Y145: 0 | Z145: 0 | AA145: 0 | AB145: 0 | AC145: 0 | AD145: 0 | AE145: 0 | AF145: 0 | AG145: 0 | AH145: 0 | AI145: 0 | AJ145: 0 | AK145: 0 | AL145: 0 | AM145: 200000 | AN145: 0 | AO145: 0 | AP145: 0 | AQ145: - | AR145: 0 | AS145: 0 | AT145: 0 | AU145: - | AV145: - | AW145: 0 | AX145: 0 | AY145: 0 | AZ145: - | BA145: - | BB145: 0 | BC145: 0 | BD145: 0 | BE145: - | BF145: - | BG145: 200000 | BH145: 0 | BI145: 0 | BJ145: 0 | BK145: - | BL145: 9. Industria, innovación e infraestructura | BM145: Promoción del Desarrollo | BN145: Sec. Infraestructura
I146: =+RESUMEN!J30 -> 0.0175 | J146: GESTIÓN Y MEJORAMIENTO DE LOS SISTEMAS DE INFORMACIÓN | K146: Crear y/o documentar 4 sistemas de información pertenecientes al Core de la Alcaldía. | L146: 0 | M146: Número de sistemas de información creados y/o documentados pertenecientes al Core de la Alcaldía. | N146: 1 | O146: 4 | P146: 1 | Q146: 0.25 | R146: 2 | S146: 0.5 | T146: 1 | U146: 0.25 | V146: 0 | W146: 0 | X146: 0.06 | Y146: 0 | Z146: 0 | AA146: 0 | AB146: 0.06 | AC146: 0.06 | AD146: 0 | AE146: 0 | AF146: 0 | AG146: 0 | AH146: - | AI146: - | AJ146: =+SUM(X146:AA146)/O146 -> 0.015 | AK146: 0.015 | AL146: 0.015 | AM146: 0 | AN146: 0 | AO146: 0 | AP146: - | AQ146: - | AR146: 200000 | AS146: 0 | AT146: 0 | AU146: 0 | AV146: - | AW146: 200000 | AX146: 0 | AY146: 0 | AZ146: 0 | BA146: - | BB146: 0 | BC146: 0 | BD146: 0 | BE146: - | BF146: - | BG146: 400000 | BH146: 0 | BI146: 0 | BJ146: 0 | BK146: - | BL146: 16. Paz, justicia e instituciones sólidas | BM146: Fortalecimiento insitucional | BN146: Ofc. Sistemas
F147: Lograr una calificación de 90 en el Índice de Gobierno Abierto - IGA. | G147: 77 | H147: 90 | K147: Implementar 1 ambiente de desarrollo y prueba para los sistemas de información de la Alcaldía. | L147: 0 | M147: Porcentaje de avance en la implementación del ambiente de desarrollo y prueba para los sistemas de información de la Alcaldía. | N147: 0 | O147: 1 | P147: 0.05 | Q147: 0.05 | R147: 0.7 | S147: 0.7 | T147: 0.25 | U147: 0.25 | V147: 0 | W147: 0 | X147: 0.02 | Y147: 0 | Z147: 0 | AA147: 0 | AB147: 0.4 | AC147: 0.4 | AD147: 0 | AE147: 0 | AF147: 0 | AG147: 0 | AH147: - | AI147: - | AJ147: 0.02 | AK147: 0.02 | AL147: 0.02 | AM147: 0 | AN147: 0 | AO147: 0 | AP147: - | AQ147: - | AR147: 60000 | AS147: 0 | AT147: 0 | AU147: 0 | AV147: - | AW147: 40000 | AX147: 0 | AY147: 0 | AZ147: 0 | BA147: - | BB147: 0 | BC147: 0 | BD147: 0 | BE147: - | BF147: - | BG147: 100000 | BH147: 0 | BI147: 0 | BJ147: 0 | BK147: - | BL147: 16. Paz, justicia e instituciones sólidas | BM147: Fortalecimiento insitucional | BN147: Ofc. Sistemas
I148: =+RESUMEN!J31 -> 0.1610833333 | J148: TECNOLOGÍA PARA LA INTERACCIÓN CIUDADANA | K148: Mantener actualizados 10 grupos de contenidos de información pública en el portal web. | L148: 0 | M148: Número de grupos de contenidos de información pública en el portal web mantenidos. | N148: 10 | O148: 10 | P148: 10 | Q148: 0.25 | R148: 10 | S148: 0.25 | T148: 10 | U148: 0.25 | V148: 10 | W148: 0.25 | X148: 4.78 | Y148: 0 | Z148: 0 | AA148: 0 | AB148: 0.478 | AC148: 0.478 | AD148: 0 | AE148: 0 | AF148: 0 | AG148: 0 | AH148: 0 | AI148: 0 | AJ148: 0.1195 | AK148: 0.1195 | AL148: 0.1195 | AM148: 0 | AN148: 0 | AO148: 0 | AP148: - | AQ148: - | AR148: 17000 | AS148: 0 | AT148: 0 | AU148: 0 | AV148: - | AW148: 17000 | AX148: 0 | AY148: 0 | AZ148: 0 | BA148: - | BB148: 17000 | BC148: 0 | BD148: 0 | BE148: 0 | BF148: - | BG148: 51000 | BH148: 0 | BI148: 0 | BJ148: 0 | BK148: - | BL148: 16. Paz, justicia e instituciones sólidas | BM148: Fortalecimiento insitucional | BN148: Ofc. Sistemas
K149: Formular y mantener 2 planes de implementación de Gobierno en Línea de los Institutos Descentralizados y las Instituciones Educativas Oficiales. | L149: 0 | M149: Número de planes de implementación de Gobierno en Línea formulados e implementados de los institutos descentralizados y las Instituciones Educativas Oficiales. | N149: 0 | O149: 2 | P149: 2 | Q149: 0.25 | R149: 2 | S149: 0.25 | T149: 2 | U149: 0.25 | V149: 2 | W149: 0.25 | X149: 0.75 | Y149: 0 | Z149: 0 | AA149: 0 | AB149: 0.375 | AC149: 0.375 | AD149: 0 | AE149: 0 | AF149: 0 | AG149: 0 | AH149: 0 | AI149: 0 | AJ149: 0.09375 | AK149: 0.09375 | AL149: 0.09375 | AM149: 0 | AN149: 0 | AO149: 0 | AP149: - | AQ149: - | AR149: 17000 | AS149: 0 | AT149: 0 | AU149: 0 | AV149: - | AW149: 17000 | AX149: 0 | AY149: 0 | AZ149: 0 | BA149: - | BB149: 17000 | BC149: 0 | BD149: 0 | BE149: 0 | BF149: - | BG149: 51000 | BH149: 0 | BI149: 0 | BJ149: 0 | BK149: - | BL149: 16. Paz, justicia e instituciones sólidas | BM149: Fortalecimiento insitucional | BN149: Ofc. Sistemas
K150: Rediseñar la web de portales web. | L150: - | M150: Número de portales web rediseñadas. | N150: 0 | O150: 1 | P150: 1 | Q150: 1 | R150: 0 | S150: 0 | T150: 0 | U150: 0 | V150: 0 | W150: 0 | X150: 0.27 | Y150: 0 | Z150: 0 | AA150: 0 | AB150: 0.27 | AC150: 0.27 | AD150: - | AE150: - | AF150: - | AG150: - | AH150: - | AI150: - | AJ150: =+SUM(X150:AA150)/O150 -> 0.27 | AK150: 0.27 | AL150: 0.27 | AM150: 0 | AN150: 0 | AO150: 0 | AP150: - | AQ150: - | AR150: 0 | AS150: 0 | AT150: 0 | AU150: - | AV150: - | AW150: 0 | AX150: 0 | AY150: 0 | AZ150: - | BA150: - | BB150: 0 | BC150: 0 | BD150: 0 | BE150: - | BF150: - | BG150: 0 | BH150: 0 | BI150: 0 | BJ150: - | BK150: - | BL150: 16. Paz, justicia e instituciones sólidas | BM150: Promoción del Desarrollo | BN150: Ofc. Sistemas
Q151: =+AVERAGE(Q137:Q150) -> 0.2660714286 | S151: =+AVERAGE(S137:S150) -> 0.2894047619 | U151: 0.2401190476 | W151: 0.2044047619 | AC151: =+AVERAGE(AC137:AC150) -> 0.6195892857 | AE151: 0 | AG151: 0 | AI151: 0 | AK151: =+AVERAGE(AK137:AK150) -> 0.1883214286
D152: =+RESUMEN!J32 -> 0.06684722222 | E152: GOBERNANZA URBANA | F152: Disminuir a 1.400 número de quejas presentadas por las obras que se ejecutan. | G152: 1536 | H152: 1400 | I152: =+RESUMEN!J33 -> 0.08611111111 | J152: ORDENAMIENTO TERRITORIAL EN MARHA | K152: Realizar visita de control de obra al 100% de las obras licenciadas por los curadores urbanos. | L152: 2210987 | M152: Porcentaje de la obras licenciadas por los curadores urbanos con control de obra. | N152: 0.9 | O152: 1 | P152: 1 | Q152: 0.25 | R152: 1 | S152: 0.25 | T152: 1 | U152: 0.25 | V152: 1 | W152: 0.25 | X152: 0.7 | Y152: 0 | Z152: 0 | AA152: 0 | AB152: 0.7 | AC152: 0.7 | AD152: 0 | AE152: 0 | AF152: 0 | AG152: 0 | AH152: 0 | AI152: 0 | AJ152: 0.175 | AK152: 0.175 | AL152: 0.175 | AM152: 233333 | AN152: 85878 | AO152: 0 | AP152: 0.3680490972 | AQ152: - | AR152: 233000 | AS152: 0 | AT152: 0 | AU152: 0 | AV152: - | AW152: 0 | AX152: 0 | AY152: 0 | AZ152: - | BA152: - | BB152: 0 | BC152: 0 | BD152: 0 | BE152: - | BF152: - | BG152: 466333 | BH152: 85878 | BI152: 0 | BJ152: 0.1841559572 | BK152: - | BL152: 16. Paz, justicia e instituciones sólidas | BM152: Fortalecimiento insitucional | BN152: Sec. Planeación
K153: Realizar visita de control de obra al 100% de las obras sin licencia. | L153: 2210987 | M153: Porcentaje de obras sin licencia con visita de control de obra. | N153: 0.7 | O153: 1 | P153: 1 | Q153: 0.25 | R153: 1 | S153: 0.25 | T153: 1 | U153: 0.25 | V153: 1 | W153: 0.25 | X153: 0.7 | Y153: 0 | Z153: 0 | AA153: 0 | AB153: 0.7 | AC153: 0.7 | AD153: 0 | AE153: 0 | AF153: 0 | AG153: 0 | AH153: 0 | AI153: 0 | AJ153: 0.175 | AK153: 0.175 | AL153: 0.175 | AM153: 233333 | AN153: 85878 | AO153: 0 | AP153: 0.3680490972 | AQ153: - | AR153: 233000 | AS153: 0 | AT153: 0 | AU153: 0 | AV153: - | AW153: 0 | AX153: 0 | AY153: 0 | AZ153: - | BA153: - | BB153: 0 | BC153: 0 | BD153: 0 | BE153: - | BF153: - | BG153: 466333 | BH153: 85878 | BI153: 0 | BJ153: 0.1841559572 | BK153: - | BL153: 16. Paz, justicia e instituciones sólidas | BM153: Fortalecimiento insitucional | BN153: Sec. Planeación
K154: Realizar visita de control de obra al 100% de las obras que presenten queja o solicitud. | L154: 2210987 | M154: Porcentaje de obras con visita de control de obra por queja o solicitud. | N154: 0.7 | O154: 1 | P154: 1 | Q154: 0.25 | R154: 1 | S154: 0.25 | T154: 1 | U154: 0.25 | V154: 1 | W154: 0.25 | X154: 0.7 | Y154: 0 | Z154: 0 | AA154: 0 | AB154: 0.7 | AC154: 0.7 | AD154: 0 | AE154: 0 | AF154: 0 | AG154: 0 | AH154: 0 | AI154: 0 | AJ154: 0.175 | AK154: 0.175 | AL154: 0.175 | AM154: 233333 | AN154: 85878 | AO154: 0 | AP154: 0.3680490972 | AQ154: - | AR154: 234000 | AS154: 0 | AT154: 0 | AU154: 0 | AV154: - | AW154: 0 | AX154: 0 | AY154: 0 | AZ154: - | BA154: - | BB154: 0 | BC154: 0 | BD154: 0 | BE154: - | BF154: - | BG154: 467333 | BH154: 85878 | BI154: 0 | BJ154: 0.1837619 | BK154: - | BL154: 16. Paz, justicia e instituciones sólidas | BM154: Fortalecimiento insitucional | BN154: Sec. Planeación
K155: Elaborar 1 documento guía para la aplicación de los elementos relevantes del POT. | L155: 2210906 | M155: Número de documentos guías elaborados para la aplicación de los elementos relevantes del POT. | N155: 0 | O155: 1 | P155: 0 | Q155: 0 | R155: 0 | S155: 0 | T155: 1 | U155: 1 | V155: 0 | W155: 0 | X155: 0 | Y155: 0 | Z155: 0 | AA155: 0 | AB155: - | AC155: - | AD155: - | AE155: - | AF155: 0 | AG155: 0 | AH155: - | AI155: - | AJ155: =+SUM(X155:AA155)/O155 -> 0 | AK155: 0 | AL155: 0 | AM155: 0 | AN155: 0 | AO155: 0 | AP155: - | AQ155: - | AR155: 0 | AS155: 0 | AT155: 0 | AU155: - | AV155: - | AW155: 20000 | AX155: 0 | AY155: 0 | AZ155: 0 | BA155: - | BB155: 0 | BC155: 0 | BD155: 0 | BE155: - | BF155: - | BG155: 20000 | BH155: 0 | BI155: 0 | BJ155: 0 | BK155: - | BL155: 16. Paz, justicia e instituciones sólidas | BM155: Promoción del Desarrollo | BN155: Sec. Planeación
K156: Desarrollar el plug-in para el POT on-line. | L156: 2210906 | M156: Número de plugs-in para el POT on-line desarrollados. | N156: 0 | O156: 1 | P156: 0 | Q156: 0 | R156: 0 | S156: 0 | T156: 1 | U156: 1 | V156: 0 | W156: 0 | X156: 0 | Y156: 0 | Z156: 0 | AA156: 0 | AB156: - | AC156: - | AD156: - | AE156: - | AF156: 0 | AG156: 0 | AH156: - | AI156: - | AJ156: 0 | AK156: 0 | AL156: 0 | AM156: 0 | AN156: 0 | AO156: 0 | AP156: - | AQ156: - | AR156: 0 | AS156: 0 | AT156: 0 | AU156: - | AV156: - | AW156: 370000 | AX156: 0 | AY156: 0 | AZ156: 0 | BA156: - | BB156: 0 | BC156: 0 | BD156: 0 | BE156: - | BF156: - | BG156: 370000 | BH156: 0 | BI156: 0 | BJ156: 0 | BK156: - | BL156: 16. Paz, justicia e instituciones sólidas | BM156: Promoción del Desarrollo | BN156: Sec. Planeación
K157: Realizar 1 estudio para aplicar la plusvalía en el municipio. | L157: 2210158 | M157: Porcentaje de avance en la realización del estudio para aplicar la plusvalía en el municipio. | N157: 0 | O157: 1 | P157: 0.1 | Q157: 0.1 | R157: 0.9 | S157: 0.9 | T157: 0 | U157: 0 | V157: 0 | W157: 0 | X157: 0 | Y157: 0 | Z157: 0 | AA157: 0 | AB157: 0 | AC157: 0 | AD157: 0 | AE157: 0 | AF157: - | AG157: - | AH157: - | AI157: - | AJ157: 0 | AK157: 0 | AL157: 0 | AM157: 70000 | AN157: 0 | AO157: 0 | AP157: 0 | AQ157: - | AR157: 600000 | AS157: 0 | AT157: 0 | AU157: 0 | AV157: - | AW157: 0 | AX157: 0 | AY157: 0 | AZ157: - | BA157: - | BB157: 0 | BC157: 0 | BD157: 0 | BE157: - | BF157: - | BG157: 670000 | BH157: 0 | BI157: 0 | BJ157: 0 | BK157: - | BL157: 16. Paz, justicia e instituciones sólidas | BM157: Promoción del Desarrollo | BN157: Sec. Planeación
F158: Lograr 10.000 M2 de espacio público efectivo por aportes de deberes urbanísticos. | G158: 0 | H158: 10000 | K158: Realizar 1 estudios de estructuración zonal. | L158: 2210158 | M158: Porcentaje de avance en la realización del estudio de estructuración zonal. | N158: 0 | O158: 1 | P158: 0 | Q158: 0 | R158: 0.4 | S158: 0.4 | T158: 0.6 | U158: 0.6 | V158: 0 | W158: 0 | X158: 0 | Y158: 0 | Z158: 0 | AA158: 0 | AB158: - | AC158: - | AD158: 0 | AE158: 0 | AF158: 0 | AG158: 0 | AH158: - | AI158: - | AJ158: 0 | AK158: 0 | AL158: 0 | AM158: 0 | AN158: 0 | AO158: 0 | AP158: - | AQ158: - | AR158: 500000 | AS158: 0 | AT158: 0 | AU158: 0 | AV158: - | AW158: 0 | AX158: 0 | AY158: 0 | AZ158: - | BA158: - | BB158: 0 | BC158: 0 | BD158: 0 | BE158: - | BF158: - | BG158: 500000 | BH158: 0 | BI158: 0 | BJ158: 0 | BK158: - | BL158: 16. Paz, justicia e instituciones sólidas | BM158: Promoción del Desarrollo | BN158: Sec. Planeación
K159: Mantener actualizado el expediente municipal. | L159: 2210906 | M159: Número de expedientes municipales actualizados. | N159: 1 | O159: 1 | P159: 1 | Q159: 0.25 | R159: 1 | S159: 0.25 | T159: 1 | U159: 0.25 | V159: 1 | W159: 0.25 | X159: 1 | Y159: 0 | Z159: 0 | AA159: 0 | AB159: 1 | AC159: 1 | AD159: 0 | AE159: 0 | AF159: 0 | AG159: 0 | AH159: 0 | AI159: 0 | AJ159: 0.25 | AK159: 0.25 | AL159: 0.25 | AM159: 32500 | AN159: 32500 | AO159: 0 | AP159: 1 | AQ159: - | AR159: 200000 | AS159: 0 | AT159: 0 | AU159: 0 | AV159: - | AW159: 0 | AX159: 0 | AY159: 0 | AZ159: - | BA159: - | BB159: 0 | BC159: 0 | BD159: 0 | BE159: - | BF159: - | BG159: 232500 | BH159: 32500 | BI159: 0 | BJ159: 0.1397849462 | BK159: - | BL159: 16. Paz, justicia e instituciones sólidas | BM159: Promoción del Desarrollo | BN159: Sec. Planeación
K160: Actualizar la lista indicativa de Bienes de Interés Cultural - BIC. | L160: - | M160: Número de listas indicativas de bienes de interés cultural actualizadas. | N160: 1 | O160: 1 | P160: 0 | Q160: 0 | R160: 1 | S160: 1 | T160: 0 | U160: 0 | V160: 0 | W160: 0 | X160: 0 | Y160: 0 | Z160: 0 | AA160: 0 | AB160: - | AC160: - | AD160: 0 | AE160: 0 | AF160: - | AG160: - | AH160: - | AI160: - | AJ160: =+SUM(X160:AA160)/O160 -> 0 | AK160: 0 | AL160: 0 | AM160: 0 | AN160: 0 | AO160: 0 | AP160: - | AQ160: - | AR160: 0 | AS160: 0 | AT160: 0 | AU160: - | AV160: - | AW160: 0 | AX160: 0 | AY160: 0 | AZ160: - | BA160: - | BB160: 0 | BC160: 0 | BD160: 0 | BE160: - | BF160: - | BG160: 0 | BH160: 0 | BI160: 0 | BJ160: - | BK160: - | BL160: 16. Paz, justicia e instituciones sólidas | BM160: Promoción del Desarrollo | BN160: Sec. Planeación
I161: =+RESUMEN!J34 -> 0.155 | J161: DISEÑO URBANO INTELIGENTE Y SUSTENTABLE | K161: Conformar y mantener el equipo de diseño del taller de arquitectura. | L161: 2210269 | M161: Número de equipos de diseño del taller de arquitectura conformados y mantenidos. | N161: 0 | O161: 1 | P161: 1 | Q161: 0.25 | R161: 1 | S161: 0.25 | T161: 1 | U161: 0.25 | V161: 1 | W161: 0.25 | X161: 1 | Y161: 0 | Z161: 0 | AA161: 0 | AB161: 1 | AC161: 1 | AD161: 0 | AE161: 0 | AF161: 0 | AG161: 0 | AH161: 0 | AI161: 0 | AJ161: 0.25 | AK161: 0.25 | AL161: 0.25 | AM161: 1000000 | AN161: 152750 | AO161: 0 | AP161: 0.15275 | AQ161: - | AR161: 800000 | AS161: 0 | AT161: 0 | AU161: 0 | AV161: - | AW161: 400000 | AX161: 0 | AY161: 0 | AZ161: 0 | BA161: - | BB161: 400000 | BC161: 0 | BD161: 0 | BE161: 0 | BF161: - | BG161: 2600000 | BH161: 152750 | BI161: 0 | BJ161: 0.05875 | BK161: - | BL161: 16. Paz, justicia e instituciones sólidas | BM161: Promoción del Desarrollo | BN161: Sec. Planeación
K162: Realizar 150 propuestas para proyectos básicos que contengan los lineamientos de diseño urbano. | L162: - | M162: Número de propuestas para proyectos básicos realizados que contengan los lineamientos de diseño urbano. | N162: 0 | O162: 150 | P162: 15 | Q162: 0.1 | R162: 60 | S162: 0.4 | T162: 50 | U162: 0.3333333333 | V162: 25 | W162: 0.1666666667 | X162: 9 | Y162: 0 | Z162: 0 | AA162: 0 | AB162: 0.6 | AC162: 0.6 | AD162: 0 | AE162: 0 | AF162: 0 | AG162: 0 | AH162: 0 | AI162: 0 | AJ162: =+SUM(X162:AA162)/O162 -> 0.06 | AK162: 0.06 | AL162: 0.06 | AM162: 0 | AN162: 0 | AO162: 0 | AP162: - | AQ162: - | AR162: 0 | AS162: 0 | AT162: 0 | AU162: - | AV162: - | AW162: 0 | AX162: 0 | AY162: 0 | AZ162: - | BA162: - | BB162: 0 | BC162: 0 | BD162: 0 | BE162: - | BF162: - | BG162: 0 | BH162: 0 | BI162: 0 | BJ162: - | BK162: - | BL162: 11. Ciudades y comunidades sostenibles | BM162: Promoción del Desarrollo | BN162: Sec. Planeación
I163: =+RESUMEN!J35 -> 0.053125 | J163: UNA CIUDAD QUE HACE Y EJECUTA PLANES | K163: Estructurar 1 Plan Integral Zonal - PIZ. | L163: 2210158 | M163: Porcentaje de avance de la estructuración del Plan Integral Zonal - PIZ. | N163: 0 | O163: 1 | P163: 0 | Q163: 0 | R163: 1 | S163: 1 | T163: 0 | U163: 0 | V163: 0 | W163: 0 | X163: 0 | Y163: 0 | Z163: 0 | AA163: 0 | AB163: - | AC163: - | AD163: 0 | AE163: 0 | AF163: - | AG163: - | AH163: - | AI163: - | AJ163: 0 | AK163: 0 | AL163: 0 | AM163: 300000 | AN163: 0 | AO163: 0 | AP163: 0 | AQ163: - | AR163: 900000 | AS163: 0 | AT163: 0 | AU163: 0 | AV163: - | AW163: 0 | AX163: 0 | AY163: 0 | AZ163: - | BA163: - | BB163: 0 | BC163: 0 | BD163: 0 | BE163: - | BF163: - | BG163: 1200000 | BH163: 0 | BI163: 0 | BJ163: 0 | BK163: - | BL163: 11. Ciudades y comunidades sostenibles | BM163: Promoción del Desarrollo | BN163: Sec. Planeación
F164: Lograr la evaluación del 100% del modelo territorial planteado en el Plan de Ordenamiento Territorial - POT. | G164: 0.3 | H164: 1 | K164: Ejecutar 1 Plan Integral Zonal. | L164: 2210158 | M164: Porcentaje de avance en la ejecución del Plan Integral Zonal - PIZ. | N164: 0 | O164: 1 | P164: 0 | Q164: 0 | R164: 0 | S164: 0 | T164: 0.5 | U164: 0.5 | V164: 0.5 | W164: 0.5 | X164: 0 | Y164: 0 | Z164: 0 | AA164: 0 | AB164: - | AC164: - | AD164: - | AE164: - | AF164: 0 | AG164: 0 | AH164: 0 | AI164: 0 | AJ164: 0 | AK164: 0 | AL164: 0 | AM164: 0 | AN164: 0 | AO164: 0 | AP164: - | AQ164: - | AR164: 0 | AS164: 0 | AT164: 0 | AU164: - | AV164: - | AW164: 100000 | AX164: 0 | AY164: 0 | AZ164: 0 | BA164: - | BB164: 100000 | BC164: 0 | BD164: 0 | BE164: 0 | BF164: - | BG164: 200000 | BH164: 0 | BI164: 0 | BJ164: 0 | BK164: - | BL164: 11. Ciudades y comunidades sostenibles | BM164: Promoción del Desarrollo | BN164: Sec. Planeación
K165: Realizar 1 estudio que contenga los lineamientos y directrices generales del gran bosque de los cerros orientales de escala metropolitana. | L165: 2210270 | M165: Porcentaje de avance de la realización del estudio que contenga los lineamientos y directrices generales del gran bosque de los cerros orientales de escala metropolitana. | N165: 0 | O165: 1 | P165: 0 | Q165: 0 | R165: 0.8 | S165: 0.8 | T165: 0.2 | U165: 0.2 | V165: 0 | W165: 0 | X165: 0 | Y165: 0 | Z165: 0 | AA165: 0 | AB165: - | AC165: - | AD165: 0 | AE165: 0 | AF165: 0 | AG165: 0 | AH165: - | AI165: - | AJ165: 0 | AK165: 0 | AL165: 0 | AM165: 0 | AN165: 0 | AO165: 0 | AP165: - | AQ165: - | AR165: 0 | AS165: 0 | AT165: 0 | AU165: - | AV165: - | AW165: 0 | AX165: 0 | AY165: 0 | AZ165: - | BA165: - | BB165: 0 | BC165: 0 | BD165: 0 | BE165: - | BF165: - | BG165: 0 | BH165: 0 | BI165: 0 | BJ165: - | BK165: - | BL165: 11. Ciudades y comunidades sostenibles | BM165: Equipamiento | BN165: Sec. Planeación
K166: Formular el Plan Maestro de Espacio Público. | L166: 2210158 | M166: Porcentaje de avance de la formulación del Plan Maestro de Espacio Público. | N166: 0 | O166: 1 | P166: 0 | Q166: 0 | R166: 1 | S166: 1 | T166: 0 | U166: 0 | V166: 0 | W166: 0 | X166: 0 | Y166: 0 | Z166: 0 | AA166: 0 | AB166: - | AC166: - | AD166: 0 | AE166: 0 | AF166: - | AG166: - | AH166: - | AI166: - | AJ166: 0 | AK166: 0 | AL166: 0 | AM166: 500000 | AN166: 0 | AO166: 0 | AP166: 0 | AQ166: - | AR166: 800000 | AS166: 0 | AT166: 0 | AU166: 0 | AV166: - | AW166: 0 | AX166: 0 | AY166: 0 | AZ166: - | BA166: - | BB166: 0 | BC166: 0 | BD166: 0 | BE166: - | BF166: - | BG166: 1300000 | BH166: 0 | BI166: 0 | BJ166: 0 | BK166: - | BL166: 11. Ciudades y comunidades sostenibles | BM166: Promoción del Desarrollo | BN166: Sec. Planeación
K167: Realizar el 100% de los diseños, estudios, consultorías e interventorías para ejecutar los proyectos y las obras del Plan de Desarrollo 2016 - 2019 y otros planes de ciudad. | L167: - | M167: Porcentaje de diseños, estudios, consultorías e interventorias realizadas para para ejecutar los proyectos y las obras del Plan de Desarrollo 2016 - 2019 y otros planes de ciudad. | N167: 1 | O167: 1 | P167: 1 | Q167: 0.25 | R167: 1 | S167: 0.25 | T167: 1 | U167: 0.25 | V167: 1 | W167: 0.25 | X167: 1 | Y167: 0 | Z167: 0 | AA167: 0 | AB167: 1 | AC167: 1 | AD167: 0 | AE167: 0 | AF167: 0 | AG167: 0 | AH167: 0 | AI167: 0 | AJ167: 0.25 | AK167: 0.25 | AL167: 0.25 | AM167: 257385 | AN167: 257365 | AO167: 0 | AP167: 0.9999222954 | AQ167: - | AR167: 0 | AS167: 0 | AT167: 0 | AU167: - | AV167: - | AW167: 0 | AX167: 0 | AY167: 0 | AZ167: - | BA167: - | BB167: 0 | BC167: 0 | BD167: 0 | BE167: - | BF167: - | BG167: 257385 | BH167: 257365 | BI167: 0 | BJ167: 0.9999222954 | BK167: - | BL167: 16. Paz, justicia e instituciones sólidas | BM167: Promoción del Desarrollo | BN167: Sec. Infraestructura
K168: Ajustar el Plan Local de Seguridad Vial. | L168: - | M168: Número de ajustes al Plan Local de Seguridad Vial realizados. | N168: 1 | O168: 1 | P168: 1 | Q168: 1 | R168: 0 | S168: 0 | T168: 0 | U168: 0 | V168: 0 | W168: 0 | X168: 0.5 | Y168: 0 | Z168: 0 | AA168: 0 | AB168: 0.5 | AC168: 0.5 | AD168: - | AE168: - | AF168: - | AG168: - | AH168: - | AI168: - | AJ168: 0.125 | AK168: 0.125 | AL168: 0.125 | AM168: 0 | AN168: 0 | AO168: 0 | AP168: - | AQ168: - | AR168: 0 | AS168: 0 | AT168: 0 | AU168: - | AV168: - | AW168: 0 | AX168: 0 | AY168: 0 | AZ168: - | BA168: - | BB168: 0 | BC168: 0 | BD168: 0 | BE168: - | BF168: - | BG168: 0 | BH168: 0 | BI168: 0 | BJ168: - | BK168: - | BL168: 11. Ciudades y comunidades sostenibles | BM168: Promoción del Desarrollo | BN168: Dir. Tránsito
K169: Formular e implementar el Plan Estratégico de Seguridad Vial en METROLÍNEA. | L169: 21032501 | M169: Número de Planes Estratégicos de Seguridad Vial en METROLÍNEA formulados e implementados. | N169: 0.01 | O169: 1 | P169: 1 | Q169: 0.25 | R169: 1 | S169: 0.25 | T169: 1 | U169: 0.25 | V169: 1 | W169: 0.25 | X169: 0.2 | Y169: 0 | Z169: 0 | AA169: 0 | AB169: 0.2 | AC169: 0.2 | AD169: 0 | AE169: 0 | AF169: 0 | AG169: 0 | AH169: 0 | AI169: 0 | AJ169: 0.05 | AK169: 0.05 | AL169: 0.05 | AM169: 0 | AN169: 0 | AO169: 0 | AP169: - | AQ169: - | AR169: 50000 | AS169: 0 | AT169: 0 | AU169: 0 | AV169: - | AW169: 50000 | AX169: 0 | AY169: 0 | AZ169: 0 | BA169: - | BB169: 50000 | BC169: 0 | BD169: 0 | BE169: 0 | BF169: - | BG169: 150000 | BH169: 0 | BI169: 0 | BJ169: 0 | BK169: - | BL169: 11. Ciudades y comunidades sostenibles | BM169: Transporte | BN169: METROLÍNEA
F170: Construir 20 obras de infraestructura de espacio público ideadas por el taller de arquitectura. | G170: 0 | H170: 20 | K170: Apoyar el proceso de formulación y ejecución del Plan Maestro Santander Life en coordinación con el Área Metropolitana de Bucaramanga. | L170: 0542900401 | M170: Número de Planes Maestros Santander Life apoyados en su proceso de formulación y ejecución en coordinación con el Área Metropolitana de Bucaramanga. | N170: 0 | O170: 1 | P170: 1 | Q170: 0.25 | R170: 1 | S170: 0.25 | T170: 1 | U170: 0.25 | V170: 1 | W170: 0.25 | X170: 0 | Y170: 0 | Z170: 0 | AA170: 0 | AB170: 0 | AC170: 0 | AD170: 0 | AE170: 0 | AF170: 0 | AG170: 0 | AH170: 0 | AI170: 0 | AJ170: 0 | AK170: 0 | AL170: 0 | AM170: 0 | AN170: 0 | AO170: 0 | AP170: - | AQ170: - | AR170: 0 | AS170: 0 | AT170: 0 | AU170: - | AV170: - | AW170: 0 | AX170: 0 | AY170: 0 | AZ170: - | BA170: - | BB170: 0 | BC170: 0 | BD170: 0 | BE170: - | BF170: - | BG170: 0 | BH170: 0 | BI170: 0 | BJ170: - | BK170: - | BL170: 11. Ciudades y comunidades sostenibles | BM170: Promoción del Desarrollo | BN170: IMEBU
I171: =+RESUMEN!J36 -> 0.04 | J171: TERRITORIOS VULNERABLES, TERRITORIOS VISIBLES | K171: Elaborar 1 documento guía que contenga la norma, lineamientos y procesos para la legalización de asentamientos. | L171: 2210159 | M171: Porcentaje de avance en la elaboración del documento guía que contenga la norma, lineamientos y procesos para la legalización de asentamientos. | N171: 0 | O171: 1 | P171: 0.1 | Q171: 0.1 | R171: 0.9 | S171: 0.9 | T171: 0 | U171: 0 | V171: 0 | W171: 0 | X171: 0.1 | Y171: 0 | Z171: 0 | AA171: 0 | AB171: 1 | AC171: 1 | AD171: 0 | AE171: 0 | AF171: - | AG171: - | AH171: - | AI171: - | AJ171: =+SUM(X171:AA171)/O171 -> 0.1 | AK171: 0.1 | AL171: 0.1 | AM171: 0 | AN171: 0 | AO171: 0 | AP171: - | AQ171: - | AR171: 18000 | AS171: 0 | AT171: 0 | AU171: 0 | AV171: - | AW171: 0 | AX171: 0 | AY171: 0 | AZ171: - | BA171: - | BB171: 0 | BC171: 0 | BD171: 0 | BE171: - | BF171: - | BG171: 18000 | BH171: 0 | BI171: 0 | BJ171: 0 | BK171: - | BL171: 11. Ciudades y comunidades sostenibles | BM171: Promoción del Desarrollo | BN171: Sec. Planeación
K172: Elaborar 1 documento guía que contenga el proceso para obtener la titularidad del predio en barrios legalizados. | L172: 2210159 | M172: Porcentaje de avance en la elaboración del documento guía que contenga el proceso para obtener la titularidad del predio en barrios legalizados. | N172: 0 | O172: 1 | P172: 0.1 | Q172: 0.1 | R172: 0.9 | S172: 0.9 | T172: 0 | U172: 0 | V172: 0 | W172: 0 | X172: 0.1 | Y172: 0 | Z172: 0 | AA172: 0 | AB172: 1 | AC172: 1 | AD172: 0 | AE172: 0 | AF172: - | AG172: - | AH172: - | AI172: - | AJ172: 0.1 | AK172: 0.1 | AL172: 0.1 | AM172: 0 | AN172: 0 | AO172: 0 | AP172: - | AQ172: - | AR172: 50000 | AS172: 0 | AT172: 0 | AU172: 0 | AV172: - | AW172: 0 | AX172: 0 | AY172: 0 | AZ172: - | BA172: - | BB172: 0 | BC172: 0 | BD172: 0 | BE172: - | BF172: - | BG172: 50000 | BH172: 0 | BI172: 0 | BJ172: 0 | BK172: - | BL172: 11. Ciudades y comunidades sostenibles | BM172: Promoción del Desarrollo | BN172: Sec. Planeación
K173: Revisar y asignar las nomenclaturas de 10 barrios legalizados. | L173: 2210159 | M173: Número de barrios legalizados con la revisión y asignación de nomenclaturas. | N173: 0 | O173: 10 | P173: 1 | Q173: 0.1 | R173: 3 | S173: 0.3 | T173: 4 | U173: 0.4 | V173: 2 | W173: 0.2 | X173: 0 | Y173: 0 | Z173: 0 | AA173: 0 | AB173: 0 | AC173: 0 | AD173: 0 | AE173: 0 | AF173: 0 | AG173: 0 | AH173: 0 | AI173: 0 | AJ173: 0 | AK173: 0 | AL173: 0 | AM173: 0 | AN173: 0 | AO173: 0 | AP173: - | AQ173: - | AR173: 125000 | AS173: 0 | AT173: 0 | AU173: 0 | AV173: - | AW173: 125000 | AX173: 0 | AY173: 0 | AZ173: 0 | BA173: - | BB173: 80000 | BC173: 0 | BD173: 0 | BE173: 0 | BF173: - | BG173: 330000 | BH173: 0 | BI173: 0 | BJ173: 0 | BK173: - | BL173: 11. Ciudades y comunidades sostenibles | BM173: Promoción del Desarrollo | BN173: Sec. Planeación
K174: Implementar y mantener 1 capítulo especial dentro del observatorio metropolitano para estudiar los territorios vulnerables y generar información sobre sus condiciones y problemáticas. | L174: - | M174: Número de capítulos especiales implementados y mantenidos dentro del observatorio metropolitano para estudiar los territorios vulnerables y generar información sobre sus condiciones y problemáticas. | N174: 0 | O174: 1 | P174: 0 | Q174: 0 | R174: 1 | S174: 0.33 | T174: 1 | U174: 0.33 | V174: 1 | W174: 0.34 | X174: 0 | Y174: 0 | Z174: 0 | AA174: 0 | AB174: - | AC174: - | AD174: 0 | AE174: 0 | AF174: 0 | AG174: 0 | AH174: 0 | AI174: 0 | AJ174: =+AVERAGE(Y174:AA174)/O174 -> 0 | AK174: 0 | AL174: 0 | AM174: 0 | AN174: 0 | AO174: 0 | AP174: - | AQ174: - | AR174: 0 | AS174: 0 | AT174: 0 | AU174: - | AV174: - | AW174: 0 | AX174: 0 | AY174: 0 | AZ174: - | BA174: - | BB174: 0 | BC174: 0 | BD174: 0 | BE174: - | BF174: - | BG174: 0 | BH174: 0 | BI174: 0 | BJ174: - | BK174: - | BL174: 11. Ciudades y comunidades sostenibles | BM174: Atención a grupos vulnerables - Promoción Social | BN174: Sec. Planeación
K175: Realizar 20 audiencias con representantes de las fuerzas vivas de la ciudad, la comunidad afectada y los medios de comunicación para dar a conocer y discutir la realidad de los territorios vulnerables. | L175: - | M175: Número de audiencias realizadas con representantes de las fuerzas vivas de la ciudad, la comunidad afectada y los medios de comunicación para dar a conocer y discutir la realidad de los territorios vulnerables. | N175: 0 | O175: 20 | P175: 5 | Q175: 0.25 | R175: 5 | S175: 0.25 | T175: 5 | U175: 0.25 | V175: 5 | W175: 0.25 | X175: 0 | Y175: 0 | Z175: 0 | AA175: 0 | AB175: 0 | AC175: 0 | AD175: 0 | AE175: 0 | AF175: 0 | AG175: 0 | AH175: 0 | AI175: 0 | AJ175: =+SUM(X175:AA175)/O175 -> 0 | AK175: 0 | AL175: 0 | AM175: 0 | AN175: 0 | AO175: 0 | AP175: - | AQ175: - | AR175: 0 | AS175: 0 | AT175: 0 | AU175: - | AV175: - | AW175: 0 | AX175: 0 | AY175: 0 | AZ175: - | BA175: - | BB175: 0 | BC175: 0 | BD175: 0 | BE175: - | BF175: - | BG175: 0 | BH175: 0 | BI175: 0 | BJ175: - | BK175: - | BL175: 16. Paz, justicia e instituciones sólidas | BM175: Atención a grupos vulnerables - Promoción Social | BN175: Sec. Planeación
F176: Construir 10 obras o proyectos de infraestructura pública en territorios limítrofes concertados con el Área. | G176: 0 | H176: 10 | I176: =+RESUMEN!J37 -> 0 | J176: TERRITORIOS METROPOLITANOS, PLANES CONJUNTOS | K176: Realizar el Plan Maestro Conjunto para el desarrollo del Valle del Río de Oro en coordinación con el Área Metropolitana de Bucaramanga y el municipio de Girón. | L176: - | M176: Número de Planes Maestros Conjuntos realizados para el desarrollo del Valle del Río de Oro en coordinación con el Área Metropolitana de Bucaramanga y el municipio de Girón. | N176: 0 | O176: 1 | P176: 1 | Q176: 1 | R176: 0 | S176: 0 | T176: 0 | U176: 0 | V176: 0 | W176: 0 | X176: 0 | Y176: 0 | Z176: 0 | AA176: 0 | AB176: 0 | AC176: 0 | AD176: - | AE176: - | AF176: - | AG176: - | AH176: - | AI176: - | AJ176: 0 | AK176: 0 | AL176: 0 | AM176: 0 | AN176: 0 | AO176: 0 | AP176: - | AQ176: - | AR176: 0 | AS176: 0 | AT176: 0 | AU176: - | AV176: - | AW176: 0 | AX176: 0 | AY176: 0 | AZ176: - | BA176: - | BB176: 0 | BC176: 0 | BD176: 0 | BE176: - | BF176: - | BG176: 0 | BH176: 0 | BI176: 0 | BJ176: - | BK176: - | BL176: 11. Ciudades y comunidades sostenibles | BM176: Ambiental | BN176: Sec. Planeación
K177: Formular 1 plan de acción conjunto para el desarrollo y el mejoramiento de la infraestructura pública en el sur de Bucaramanga, norte de Floridablanca en coordinación con el Área Metropolitana y la Alcaldía de dicho municipio. | L177: 0 | M177: Número de planes de acción formulados para el desarrollo y el mejoramiento de la infraestructura pública en el sur de Bucaramanga, norte de Floridablanca en coordinación con el Área Metropolitana y la Alcaldía de dicho municipio. | N177: 0 | O177: 1 | P177: 0 | Q177: 0 | R177: 1 | S177: 1 | T177: 0 | U177: 0 | V177: 0 | W177: 0 | X177: 0 | Y177: 0 | Z177: 0 | AA177: 0 | AB177: - | AC177: - | AD177: 0 | AE177: 0 | AF177: - | AG177: - | AH177: - | AI177: - | AJ177: 0 | AK177: 0 | AL177: 0 | AM177: 0 | AN177: 0 | AO177: 0 | AP177: - | AQ177: - | AR177: 200000 | AS177: 0 | AT177: 0 | AU177: 0 | AV177: - | AW177: 0 | AX177: 0 | AY177: 0 | AZ177: - | BA177: - | BB177: 0 | BC177: 0 | BD177: 0 | BE177: - | BF177: - | BG177: 200000 | BH177: 0 | BI177: 0 | BJ177: 0 | BK177: - | BL177: 11. Ciudades y comunidades sostenibles | BM177: Equipamiento | BN177: AMB
K178: Implementar y mantener 1 estrategia de mejoramiento del ornato en sectores limítrofes con los municipios de Girón y Floridablanca en coordinación con el Área Metropolitana de Bucaramanga. | L178: - | M178: Número de estrategias de mejoramiento del ornato implementadas y mantenidas en sectores limítrofes con los municipios de Girón y Floridablanca en coordinación con el Área Metropolitana de Bucaramanga. | N178: 0 | O178: 1 | P178: 1 | Q178: 0.25 | R178: 1 | S178: 0.25 | T178: 1 | U178: 0.25 | V178: 1 | W178: 0.25 | X178: 0 | Y178: 0 | Z178: 0 | AA178: 0 | AB178: 0 | AC178: 0 | AD178: 0 | AE178: 0 | AF178: 0 | AG178: 0 | AH178: 0 | AI178: 0 | AJ178: 0 | AK178: 0 | AL178: 0 | AM178: 0 | AN178: 0 | AO178: 0 | AP178: - | AQ178: - | AR178: 0 | AS178: 0 | AT178: 0 | AU178: - | AV178: - | AW178: 0 | AX178: 0 | AY178: 0 | AZ178: - | BA178: - | BB178: 0 | BC178: 0 | BD178: 0 | BE178: - | BF178: - | BG178: 0 | BH178: 0 | BI178: 0 | BJ178: - | BK178: - | BL178: 11. Ciudades y comunidades sostenibles | BM178: Promoción del Desarrollo | BN178: AMB
K179: Crear y mantener 1 centro de estudios urbanos y territoriales en el Área Metropolitana de Bucaramanga. | L179: - | M179: Número de centros de estudios urbanos y territoriales creados y mantenidos en el Área Metropolitana de Bucaramanga. | N179: 0 | O179: 1 | P179: 0 | Q179: 0 | R179: 1 | S179: 0.33 | T179: 1 | U179: 0.33 | V179: 1 | W179: 0.34 | X179: 0 | Y179: 0 | Z179: 0 | AA179: 0 | AB179: - | AC179: - | AD179: 0 | AE179: 0 | AF179: 0 | AG179: 0 | AH179: 0 | AI179: 0 | AJ179: =+AVERAGE(Y179:AA179)/O179 -> 0 | AK179: 0 | AL179: 0 | AM179: 0 | AN179: 0 | AO179: 0 | AP179: - | AQ179: - | AR179: 0 | AS179: 0 | AT179: 0 | AU179: - | AV179: - | AW179: 0 | AX179: 0 | AY179: 0 | AZ179: - | BA179: - | BB179: 0 | BC179: 0 | BD179: 0 | BE179: - | BF179: - | BG179: 0 | BH179: 0 | BI179: 0 | BJ179: - | BK179: - | BL179: 11. Ciudades y comunidades sostenibles | BM179: Promoción del Desarrollo | BN179: AMB
K180: Generar 8 espacios de encuentro entre gabinetes para el diálogo y coordinación institucional con el gobierno del municipio de Girón. | L180: - | M180: Número de espacios de encuentro generados entre gabinetes para el diálogo y coordinación institucional con el gobierno del municipio de Girón. | N180: 0 | O180: 8 | P180: 2 | Q180: 0.25 | R180: 2 | S180: 0.25 | T180: 2 | U180: 0.25 | V180: 2 | W180: 0.25 | X180: 0 | Y180: 0 | Z180: 0 | AA180: 0 | AB180: 0 | AC180: 0 | AD180: 0 | AE180: 0 | AF180: 0 | AG180: 0 | AH180: 0 | AI180: 0 | AJ180: =+SUM(X180:AA180)/O180 -> 0 | AK180: 0 | AL180: 0 | AM180: 0 | AN180: 0 | AO180: 0 | AP180: - | AQ180: - | AR180: 0 | AS180: 0 | AT180: 0 | AU180: - | AV180: - | AW180: 0 | AX180: 0 | AY180: 0 | AZ180: - | BA180: - | BB180: 0 | BC180: 0 | BD180: 0 | BE180: - | BF180: - | BG180: 0 | BH180: 0 | BI180: 0 | BJ180: - | BK180: - | BL180: 16. Paz, justicia e instituciones sólidas | BM180: Fortalecimiento insitucional | BN180: AMB
K181: Generar 8 espacios de encuentro entre gabinetes para el diálogo y coordinación institucional con el gobierno del municipio de Floridablanca. | L181: - | M181: Número de espacios de encuentro generados entre gabinetes para el diálogo y coordinación institucional con el gobierno del municipio de Floridablanca. | N181: 0 | O181: 8 | P181: 2 | Q181: 0.25 | R181: 2 | S181: 0.25 | T181: 2 | U181: 0.25 | V181: 2 | W181: 0.25 | X181: 0 | Y181: 0 | Z181: 0 | AA181: 0 | AB181: 0 | AC181: 0 | AD181: 0 | AE181: 0 | AF181: 0 | AG181: 0 | AH181: 0 | AI181: 0 | AJ181: 0 | AK181: 0 | AL181: 0 | AM181: 0 | AN181: 0 | AO181: 0 | AP181: - | AQ181: - | AR181: 0 | AS181: 0 | AT181: 0 | AU181: - | AV181: - | AW181: 0 | AX181: 0 | AY181: 0 | AZ181: - | BA181: - | BB181: 0 | BC181: 0 | BD181: 0 | BE181: - | BF181: - | BG181: 0 | BH181: 0 | BI181: 0 | BJ181: - | BK181: - | BL181: 16. Paz, justicia e instituciones sólidas | BM181: Fortalecimiento insitucional | BN181: AMB
Q182: =+AVERAGE(Q152:Q181) -> 0.1833333333 | S182: =+AVERAGE(S152:S181) -> 0.4086666667 | U182: 0.2564444444 | W182: 0.1515555556 | AC182: =+AVERAGE(AC152:AC181) -> 0.4421052632 | AE182: 0 | AG182: 0 | AI182: 0 | AK182: =+AVERAGE(AK152:AK181) -> 0.057
X186: 2016 | Y186: 2017 | Z186: 2018 | AA186: 2019 | AB186: CA
T187: Administrativa | X187: =+AVERAGE(AC30:AC31,AC67:AC68,AC75,AC78:AC81,AC85:AC93) -> 0.8 | Y187: =+AVERAGE(AE30:AE31,AE67:AE68,AE75,AE78:AE81,AE85:AE93) -> 0 | Z187: =+AVERAGE(AG30:AG31,AG67:AG68,AG75,AG78:AG81,AG85:AG93) -> 0 | AA187: =+AVERAGE(AI30:AI31,AI67:AI68,AI75,AI78:AI81,AI85:AI93) -> 0 | AB187: =+AVERAGE(AK30:AK31,AK67:AK68,AK75,AK78:AK81,AK85:AK93) -> 0.06111111111
T188: AMB | X188: =+AVERAGE(AC57:AC60,AC177:AC181) -> 0 | Y188: =+AVERAGE(AE57:AE60,AE177:AE181) -> 0 | Z188: =+AVERAGE(AG57:AG60,AG177:AG181) -> 0 | AA188: =+AVERAGE(AI57:AI60,AI177:AI181) -> 0 | AB188: =+AVERAGE(AK57:AK60,AK177:AK181) -> 0
T189: Bomberos | X189: =+AC97 -> 0 | Y189: =+AE97 -> 0 | Z189: =+AG97 -> 0 | AA189: =+AI97 -> 0 | AB189: =+AK97 -> 0
T190: Control Interno | X190: =+AC132 -> 0.8947368421 | Y190: =+AE132 -> 0 | Z190: =+AG132 -> 0 | AA190: =+AI132 -> 0 | AB190: =+AK132 -> 0.2236842105
T191: Control Interno Disciplinario | X191: =+AVERAGE(AC130:AC131) -> 0.75 | Y191: =+AVERAGE(AE130:AE131) -> 0 | Z191: =+AVERAGE(AG130:AG131) -> 0 | AA191: =+AVERAGE(AI130:AI131) -> 0 | AB191: =+AVERAGE(AK130:AK131) -> 0.1875
T192: DADEP | X192: =+AVERAGE(AC118:AC119) -> 0.12 | Y192: =+AVERAGE(AE118:AE119) -> 0 | Z192: =+AVERAGE(AG118:AG119) -> 0 | AA192: =+AVERAGE(AI118:AI119) -> 0 | AB192: =+AVERAGE(AK118:AK119) -> 0.015
T193: Desarrollo Social | X193: =+AVERAGE(AC12,AC18,AC25:AC29,AC35:AC43,AC96) -> 0.4357714286 | Y193: =+AVERAGE(AE12,AE18,AE25:AE29,AE35:AE43,AE96) -> 0 | Z193: =+AVERAGE(AG12,AG18,AG25:AG29,AG35:AG43,AG96) -> 0 | AA193: =+AVERAGE(AI12,AI18,AI25:AI29,AI35:AI43,AI96) -> 0 | AB193: =+AVERAGE(AK12,AK18,AK25:AK29,AK35:AK43,AK96) -> 0.08971764706
T194: Educación | X194: =+AC13 -> 0 | Y194: =+AE13 -> 0 | Z194: =+AG13 -> 0 | AA194: =+AI13 -> 0 | AB194: =+AK13 -> 0
T195: Hacienda | X195: =+AVERAGE(AC16,AC55,AC94,AC113:AC117) -> 0.5729166667 | Y195: =+AVERAGE(AE16,AE55,AE94,AE113:AE117) -> 0 | Z195: =+AVERAGE(AG16,AG55,AG94,AG113:AG117) -> 0 | AA195: =+AVERAGE(AI16,AI55,AI94,AI113:AI117) -> 0 | AB195: =+AVERAGE(AK16,AK55,AK94,AK113:AK117) -> 0.2463541667
T196: IMCT | X196: =+AVERAGE(AC56,AC110:AC112) -> 0 | Y196: =+AVERAGE(AE56,AE110:AE112) -> 0 | Z196: =+AVERAGE(AG56,AG110:AG112) -> 0 | AA196: =+AVERAGE(AI56,AI110:AI112) -> 0 | AB196: =+AVERAGE(AK56,AK110:AK112) -> 0
T197: IMEBU | X197: =+AC170 -> 0 | Y197: =+AE170 -> 0 | Z197: =+AG170 -> 0 | AA197: =+AI170 -> 0 | AB197: =+AK170 -> 0
T198: Infraestructura | X198: =+AVERAGE(AC19,AC45,AC120,AC145,AC167) -> 0.25 | Y198: =+AVERAGE(AE19,AE45,AE120,AE145,AE167) -> 0 | Z198: =+AVERAGE(AG19,AG45,AG120,AG145,AG167) -> 0 | AA198: =+AVERAGE(AI19,AI45,AI120,AI145,AI167) -> 0 | AB198: =+AVERAGE(AK19,AK45,AK120,AK145,AK167) -> 0.05
T199: Interior | X199: =+AVERAGE(AC11,AC32,AC121:AC129) -> 0.75 | Y199: =+AVERAGE(AE11,AE32,AE121:AE129) -> 0 | Z199: =+AVERAGE(AG11,AG32,AG121:AG129) -> 0 | AA199: =+AVERAGE(AI11,AI32,AI121:AI129) -> 0 | AB199: =+AVERAGE(AK11,AK32,AK121:AK129) -> 0.1149393939
T200: Jurídica | X200: =+AVERAGE(AC62:AC66,AC82:AC84,AC133:AC135) -> 0.65 | Y200: =+AVERAGE(AE62:AE66,AE82:AE84,AE133:AE135) -> 0 | Z200: =+AVERAGE(AG62:AG66,AG82:AG84,AG133:AG135) -> 0 | AA200: =+AVERAGE(AI62:AI66,AI82:AI84,AI133:AI135) -> 0 | AB200: =+AVERAGE(AK62:AK66,AK82:AK84,AK133:AK135) -> 0.1477272727
T201: Metrolínea | X201: =+AC169 -> 0.2 | Y201: =+AE169 -> 0 | Z201: =+AG169 -> 0 | AA201: =+AI169 -> 0 | AB201: =+AK169 -> 0.05
T202: Planeación | X202: =+AVERAGE(AC17,AC44,AC71,AC95,AC100:AC108,AC152:AC166,AC171:AC176) -> 0.635 | Y202: =+AVERAGE(AE17,AE44,AE71,AE95,AE100:AE108,AE152:AE166,AE171:AE176) -> 0 | Z202: =+AVERAGE(AG17,AG44,AG71,AG95,AG100:AG108,AG152:AG166,AG171:AG176) -> 0 | AA202: =+AVERAGE(AI17,AI44,AI71,AI95,AI100:AI108,AI152:AI166,AI171:AI176) -> 0 | AB202: =+AVERAGE(AK17,AK44,AK71,AK95,AK100:AK108,AK152:AK166,AK171:AK176) -> 0.07823529412
T203: Prensa | X203: =+AVERAGE(AC20:AC24,AC61,AC76) -> 0.8571428571 | Y203: =+AVERAGE(AE20:AE24,AE61,AE76) -> 0 | Z203: =+AVERAGE(AG20:AG24,AG61,AG76) -> 0 | AA203: =+AVERAGE(AI20:AI24,AI61,AI76) -> 0 | AB203: =+AVERAGE(AK20:AK24,AK61,AK76) -> 0.2857142857
T204: Salud y Ambiente | X204: =+AC109 -> 0.3 | Y204: =+AE109 -> 0 | Z204: =+AG109 -> 0 | AA204: =+AI109 -> 0 | AB204: =+AK109 -> 0.075
T205: Sistemas | X205: =+AVERAGE(AC33:AC34,AC46,AC48:AC70,AC72:AC74,AC98,AC137:AC144,AC146:AC150) -> 0.47135625 | Y205: =+AVERAGE(AE33:AE34,AE46,AE48:AE70,AE72:AE74,AE98,AE137:AE144,AE146:AE150) -> 0 | Z205: =+AVERAGE(AG33:AG34,AG46,AG48:AG70,AG72:AG74,AG98,AG137:AG144,AG146:AG150) -> 0 | AA205: =+AVERAGE(AI33:AI34,AI46,AI48:AI70,AI72:AI74,AI98,AI137:AI144,AI146:AI150) -> 0 | AB205: =+AVERAGE(AK33:AK34,AK46,AK48:AK70,AK72:AK74,AK98,AK137:AK144,AK146:AK150) -> 0.1205
T206: Tránsito | X206: =+AVERAGE(AC99,AC168) -> 0.65 | Y206: =+AVERAGE(AE99,AE168) -> 0 | Z206: =+AVERAGE(AG99,AG168) -> 0 | AA206: =+AVERAGE(AI99,AI168) -> 0 | AB206: =+AVERAGE(AK99,AK168) -> 0.1625
T207: UTSP | X207: =+AC47 -> 1 | Y207: =+AE47 -> 0 | Z207: =+AG47 -> 0 | AA207: =+AI47 -> 0 | AB207: =+AK47 -> 0.25

Sheet LÍNEA 2
B3: ALCALDÍA DE BUCARAMANGA
B4: PLAN DE DESARROLLO 2016 - 2019 "GOBIERNO DE LAS CIUDADANAS Y LOS CIUDADANOS"
B5: LÍNEA ESTRATÉGICA 2: INCLUSIÓN SOCIAL
B8: POND | C8: LÍNEA ESTRATÉGICA | D8: POND | E8: COMPONENTE | F8: META DE RESULTADO | G8: LÍNEA BASE | H8: RESULTADO CUATRIENIO | I8: POND | J8: PROGRAMA | K8: META DE PRODUCTO | L8: RUBRO PPTAL | M8: INDICADOR DE PRODUCTO | X8: LOGRO POR VIGENCIA | AB8: PORCENTAJE DE CUMPLIMIENTO | AM8: RECURSOS POR FUENTE DE FINANCIACIÓN PARA CADA VIGENCIA (Cifras en Miles de Pesos) | BL8: ODS | BM8: SECTOR
AM9: 2016 | AR9: 2017 | AW9: 2018 | BB9: 2019 | BG9: 2016 - 2019
M10: NOMBRE INDICADOR | N10: LÍNEA BASE | O10: ESPERADO CUATRIENIO | P10: 2016 | R10: 2017 | T10: 2018 | V10: 2019 | X10: 2016 | Y10: 2017 | Z10: 2018 | AA10: 2019 | AB10: 2016 | AD10: 2017 | AF10: 2018 | AH10: 2019 | AJ10: 2016 - 2019 | AM10: RECURSOS PROGRAMADOS | AN10: RECURSOS EJECUTADOS | AO10: RECURSOS GESTIONADOS | AP10: PORCENTAJE EJECUCIÓN | AQ10: NIVEL DE GESTIÓN | AR10: RECURSOS PROGRAMADOS | AS10: RECURSOS EJECUTADOS | AT10: RECURSOS GESTIONADOS | AU10: PORCENTAJE EJECUCIÓN | AV10: NIVEL DE GESTIÓN | AW10: RECURSOS PROGRAMADOS | AX10: RECURSOS EJECUTADOS | AY10: RECURSOS GESTIONADOS | AZ10: PORCENTAJE EJECUCIÓN | BA10: NIVEL DE GESTIÓN | BB10: RECURSOS PROGRAMADOS | BC10: RECURSOS EJECUTADOS | BD10: RECURSOS GESTIONADOS | BE10: PORCENTAJE EJECUCIÓN | BF10: NIVEL DE GESTIÓN | BG10: RECURSOS PROGRAMADOS | BH10: RECURSOS EJECUTADOS | BI10: RECURSOS GESTIONADOS | BJ10: PORCENTAJE EJECUCIÓN | BK10: NIVEL DE GESTIÓN | BN10: RESPONSABLE
B11: =+RESUMEN!J38 -> 0.1090579194 | C11: 2 - INCLUSIÓN SOCIAL | D11: =+RESUMEN!J39 -> 0.07701107804 | E11: ATENCIÓN PRIORITARIA Y FOCALIZADA A GRUPOS DE POBLACIÓN VULNERABLE | F11: Disminuir a 1,2% el índice de pobreza extrema. | G11: 0.013 | H11: 0.012 | I11: =+RESUMEN!J40 -> 0.1354166667 | J11: HABITANTE DE CALLE | K11: Realizar 16 brigadas extramurales de atención al habitante de calle. | L11: 2210713 | M11: Número de brigadas extramurales de atención al habitante de calle realizadas. | N11: 9 | O11: 16 | P11: 4 | Q11: =+P11/O11 -> 0.25 | R11: 4 | S11: =+R11/O11 -> 0.25 | T11: 4 | U11: =+T11/O11 -> 0.25 | V11: 4 | W11: =+V11/O11 -> 0.25 | X11: 1 | Y11: 0 | Z11: 0 | AA11: 0 | AB11: =IF(P11=0," -",X11/P11) -> 0.25 | AC11: =IF(P11=0," -",IF(AB11>100%,100%,AB11)) -> 0.25 | AD11: =IF(R11=0," -",Y11/R11) -> 0 | AE11: =IF(R11=0," -",IF(AD11>100%,100%,AD11)) -> 0 | AF11: =IF(T11=0," -",Z11/T11) -> 0 | AG11: =IF(T11=0," -",IF(AF11>100%,100%,AF11)) -> 0 | AH11: =IF(V11=0," -",AA11/V11) -> 0 | AI11: =IF(V11=0," -",IF(AH11>100%,100%,AH11)) -> 0 | AJ11: =+SUM(X11:AA11)/O11 -> 0.0625 | AK11: =+IF(AJ11>100%,100%,AJ11) -> 0.0625 | AL11: =+AK11 -> 0.0625 | AM11: 248000 | AN11: 95450 | AO11: 0 | AP11: =IF(AM11=0," -",AN11/AM11) -> 0.3848790323 | AQ11: =IF(AO11=0," -",IF(AN11=0,100%,AO11/AN11)) -> - | AR11: 40000 | AS11: 0 | AT11: 0 | AU11: =IF(AR11=0," -",AS11/AR11) -> 0 | AV11: =IF(AT11=0," -",IF(AS11=0,100%,AT11/AS11)) -> - | AW11: 40000 | AX11: 0 | AY11: 0 | AZ11: =IF(AW11=0," -",AX11/AW11) -> 0 | BA11: =IF(AY11=0," -",IF(AX11=0,100%,AY11/AX11)) -> - | BB11: 40000 | BC11: 0 | BD11: 0 | BE11: =IF(BB11=0," -",BC11/BB11) -> 0 | BF11: =IF(BD11=0," -",IF(BC11=0,100%,BD11/BC11)) -> - | BG11: =+AM11+AR11+AW11+BB11 -> 368000 | BH11: 95450 | BI11: 0 | BJ11: =IF(BG11=0," -",BH11/BG11) -> 0.259375 | BK11: =IF(BI11=0," -",IF(BH11=0,100%,BI11/BH11)) -> - | BL11: 2. Hambre cero | BM11: Atención a grupos vulnerables - Promoción Social | BN11: Sec. Desarrollo Social
K12: Mantener 500 cupos de servicios integrales intramurales y/o extramurales para habitantes de calle. | L12: 2210713 | M12: Número de cupos de servicios integrales intramurales y/o extramurales mantenidos para habitantes de calle. | N12: 321 | O12: 500 | P12: 500 | Q12: 0.25 | R12: 500 | S12: 0.25 | T12: 500 | U12: 0.25 | V12: 500 | W12: 0.25 | X12: 0 | Y12: 0 | Z12: 0 | AA12: 0 | AB12: =IF(P12=0," -",X12/P12) -> 0 | AC12: =IF(P12=0," -",IF(AB12>100%,100%,AB12)) -> 0 | AD12: =IF(R12=0," -",Y12/R12) -> 0 | AE12: =IF(R12=0," -",IF(AD12>100%,100%,AD12)) -> 0 | AF12: =IF(T12=0," -",Z12/T12) -> 0 | AG12: =IF(T12=0," -",IF(AF12>100%,100%,AF12)) -> 0 | AH12: =IF(V12=0," -",AA12/V12) -> 0 | AI12: =IF(V12=0," -",IF(AH12>100%,100%,AH12)) -> 0 | AJ12: =+AVERAGE(X12:AA12)/O12 -> 0 | AK12: =+IF(AJ12>100%,100%,AJ12) -> 0 | AL12: =+AK12 -> 0 | AM12: 433000 | AN12: 310500 | AO12: 0 | AP12: =IF(AM12=0," -",AN12/AM12) -> 0.7170900693 | AQ12: =IF(AO12=0," -",IF(AN12=0,100%,AO12/AN12)) -> - | AR12: 600000 | AS12: 0 | AT12: 0 | AU12: =IF(AR12=0," -",AS12/AR12) -> 0 | AV12: =IF(AT12=0," -",IF(AS12=0,100%,AT12/AS12)) -> - | AW12: 622500 | AX12: 0 | AY12: 0 | AZ12: =IF(AW12=0," -",AX12/AW12) -> 0 | BA12: =IF(AY12=0," -",IF(AX12=0,100%,AY12/AX12)) -> - | BB12: 646012 | BC12: 0 | BD12: 0 | BE12: =IF(BB12=0," -",BC12/BB12) -> 0 | BF12: =IF(BD12=0," -",IF(BC12=0,100%,BD12/BC12)) -> - | BG12: 2301512 | BH12: 310500 | BI12: 0 | BJ12: =IF(BG12=0," -",BH12/BG12) -> 0.1349113105 | BK12: =IF(BI12=0," -",IF(BH12=0,100%,BI12/BH12)) -> - | BL12: 2. Hambre cero | BM12: Atención a grupos vulnerables - Promoción Social | BN12: Sec. Desarrollo Social
K13: Brindar asistencia exequial al 100% de los habitantes de calle que se encuentran dentro del censo. | L13: 2210092 | M13: Porcentaje de habitantes de calle con asistencia exequial que se encuentran dentro del censo. | N13: 0.41 | O13: 1 | P13: 1 | Q13: 0.25 | R13: 1 | S13: 0.25 | T13: 1 | U13: 0.25 | V13: 1 | W13: 0.25 | X13: 0 | Y13: 0 | Z13: 0 | AA13: 0 | AB13: 0 | AC13: 0 | AD13: 0 | AE13: 0 | AF13: 0 | AG13: 0 | AH13: 0 | AI13: 0 | AJ13: 0 | AK13: 0 | AL13: 0 | AM13: 26000 | AN13: 15000 | AO13: 0 | AP13: =IF(AM13=0," -",AN13/AM13) -> 0.5769230769 | AQ13: =IF(AO13=0," -",IF(AN13=0,100%,AO13/AN13)) -> - | AR13: 30000 | AS13: 0 | AT13: 0 | AU13: =IF(AR13=0," -",AS13/AR13) -> 0 | AV13: =IF(AT13=0," -",IF(AS13=0,100%,AT13/AS13)) -> - | AW13: 30000 | AX13: 0 | AY13: 0 | AZ13: =IF(AW13=0," -",AX13/AW13) -> 0 | BA13: =IF(AY13=0," -",IF(AX13=0,100%,AY13/AX13)) -> - | BB13: 30000 | BC13: 0 | BD13: 0 | BE13: =IF(BB13=0," -",BC13/BB13) -> 0 | BF13: =IF(BD13=0," -",IF(BC13=0,100%,BD13/BC13)) -> - | BG13: =+AM13+AR13+AW13+BB13 -> 116000 | BH13: =+AN13+AS13+AX13+BC13 -> 15000 | BI13: =+AO13+AT13+AY13+BD13 -> 0 | BJ13: =IF(BG13=0," -",BH13/BG13) -> 0.1293103448 | BK13: =IF(BI13=0," -",IF(BH13=0,100%,BI13/BH13)) -> - | BL13: 2. Hambre cero | BM13: Atención a grupos vulnerables - Promoción Social | BN13: Sec. Desarrollo Social
K14: Implementar y mantener 1 estrategia en salud, alimentación y aseo para el habitante de calle. | L14: 2210713 | M14: Número de estrategias en salud, alimentación y aseo, implementadas y mantenidas para el habitante de calle. | N14: 1 | O14: 1 | P14: 1 | Q14: 0.25 | R14: 1 | S14: 0.25 | T14: 1 | U14: 0.25 | V14: 1 | W14: 0.25 | X14: 1 | Y14: 0 | Z14: 0 | AA14: 0 | AB14: 1 | AC14: 1 | AD14: 0 | AE14: 0 | AF14: 0 | AG14: 0 | AH14: 0 | AI14: 0 | AJ14: 0.25 | AK14: 0.25 | AL14: 0.25 | AM14: 149000 | AN14: 106000 | AO14: 0 | AP14: 0.711409396 | AQ14: - | AR14: 25000 | AS14: 0 | AT14: 0 | AU14: 0 | AV14: - | AW14: 25000 | AX14: 0 | AY14: 0 | AZ14: 0 | BA14: - | BB14: 25000 | BC14: 0 | BD14: 0 | BE14: 0 | BF14: - | BG14: 224000 | BH14: 106000 | BI14: 0 | BJ14: 0.4732142857 | BK14: - | BL14: 2. Hambre cero | BM14: Atención a grupos vulnerables - Promoción Social | BN14: Sec. Desarrollo Social
K15: Fortalecer la estrategia para la caracterización, atención y seguimiento de la situación de los habitantes de calle. | L15: 2210713 | M15: Número de estrategias fortalecidas para la caracterización, atención y seguimiento de la situación de los habitantes de calle. | N15: 1 | O15: 1 | P15: 1 | Q15: 0.25 | R15: 1 | S15: 0.25 | T15: 1 | U15: 0.25 | V15: 1 | W15: 0.25 | X15: 1 | Y15: 0 | Z15: 0 | AA15: 0 | AB15: 1 | AC15: 1 | AD15: 0 | AE15: 0 | AF15: 0 | AG15: 0 | AH15: 0 | AI15: 0 | AJ15: 0.25 | AK15: 0.25 | AL15: 0.25 | AM15: 45000 | AN15: 41500 | AO15: 0 | AP15: 0.9222222222 | AQ15: - | AR15: 0 | AS15: 0 | AT15: 0 | AU15: - | AV15: - | AW15: 0 | AX15: 0 | AY15: 0 | AZ15: - | BA15: - | BB15: 0 | BC15: 0 | BD15: 0 | BE15: - | BF15: - | BG15: 45000 | BH15: 41500 | BI15: 0 | BJ15: 0.9222222222 | BK15: - | BL15: 2. Hambre cero | BM15: Atención a grupos vulnerables - Promoción Social | BN15: Sec. Desarrollo Social
K16: Mantener 1 programa de plan retorno para habitante de calle. | L16: 2210713 | M16: Número de programas de plan retorno mantenidos para habitante de calle. | N16: 1 | O16: 1 | P16: 1 | Q16: 0.25 | R16: 1 | S16: 0.25 | T16: 1 | U16: 0.25 | V16: 1 | W16: 0.25 | X16: 1 | Y16: 0 | Z16: 0 | AA16: 0 | AB16: 1 | AC16: 1 | AD16: 0 | AE16: 0 | AF16: 0 | AG16: 0 | AH16: 0 | AI16: 0 | AJ16: 0.25 | AK16: 0.25 | AL16: 0.25 | AM16: 20000 | AN16: 0 | AO16: 0 | AP16: 0 | AQ16: - | AR16: 26125 | AS16: 0 | AT16: 0 | AU16: 0 | AV16: - | AW16: 27300 | AX16: 0 | AY16: 0 | AZ16: 0 | BA16: - | BB16: 28529 | BC16: 0 | BD16: 0 | BE16: 0 | BF16: - | BG16: 101954 | BH16: 0 | BI16: 0 | BJ16: 0 | BK16: - | BL16: 2. Hambre cero | BM16: Atención a grupos vulnerables - Promoción Social | BN16: Sec. Desarrollo Social
I17: =+RESUMEN!J41 -> 0.150875 | J17: POBLACIÓN CON DISCAPACIDAD | K17: Garantizar y mantener 200 cupos de atención integral en procesos de habilitación y rehabilitación a niñas, niños y adolescentes con discapacidad en extrema vulnerabilidad. | L17: 2210709 | M17: Número de cupos de atención integral garantizados en procesos de habilitación y rehabilitación a niñas, niños y adolescentes con discapacidad en extrema vulnerabilidad. | N17: 0 | O17: 200 | P17: 200 | Q17: 0.25 | R17: 200 | S17: 0.25 | T17: 200 | U17: 0.25 | V17: 200 | W17: 0.25 | X17: 186 | Y17: 0 | Z17: 0 | AA17: 0 | AB17: 0.93 | AC17: 0.93 | AD17: 0 | AE17: 0 | AF17: 0 | AG17: 0 | AH17: 0 | AI17: 0 | AJ17: 0.2325 | AK17: 0.2325 | AL17: 0.2325 | AM17: 563600 | AN17: 273200 | AO17: 0 | AP17: 0.484740951 | AQ17: - | AR17: 1050000 | AS17: 0 | AT17: 0 | AU17: 0 | AV17: - | AW17: 1095000 | AX17: 0 | AY17: 0 | AZ17: 0 | BA17: - | BB17: 167098 | BC17: 0 | BD17: 0 | BE17: 0 | BF17: - | BG17: 2875698 | BH17: 273200 | BI17: 0 | BJ17: 0.09500302188 | BK17: - | BL17: 10. Reducción de las desigualdades | BM17: Atención a grupos vulnerables - Promoción Social | BN17: Sec. Desarrollo Social
K18: Garantizar 210 cupos en programas de rehabilitación integral a personas adultas en extrema vulnerabilidad con discapacidad, física, visual, auditiva, cognitiva, psicosocial y múltiple. | L18: 2210709 | M18: Número de cupos garantizados en programas de rehabilitación integral a personas adultas en extrema vulnerabilidad con discapacidad, física, visual, auditiva, cognitiva, psicosocial y múltiple. | N18: 6 | O18: 210 | P18: 210 | Q18: 0.25 | R18: 210 | S18: 0.25 | T18: 210 | U18: 0.25 | V18: 210 | W18: 0.25 | X18: 0 | Y18: 0 | Z18: 0 | AA18: 0 | AB18: 0 | AC18: 0 | AD18: 0 | AE18: 0 | AF18: 0 | AG18: 0 | AH18: 0 | AI18: 0 | AJ18: 0 | AK18: 0 | AL18: 0 | AM18: 70000 | AN18: 51900 | AO18: 0 | AP18: 0.7414285714 | AQ18: - | AR18: 216000 | AS18: 0 | AT18: 0 | AU18: 0 | AV18: - | AW18: 223470 | AX18: 0 | AY18: 0 | AZ18: 0 | BA18: - | BB18: 231276 | BC18: 0 | BD18: 0 | BE18: 0 | BF18: - | BG18: 740746 | BH18: 51900 | BI18: 0 | BJ18: 0.07006450254 | BK18: - | BL18: 10. Reducción de las desigualdades | BM18: Atención a grupos vulnerables - Promoción Social | BN18: Sec. Desarrollo Social
K19: Crear y mantener 1 unidad generadora de datos que realice el registro de localización y caracterización de las personas con discapacidad. | L19: 2210709 | M19: Número de unidades generadoras de datos que realice el registro de localización y caracterización de las personas con discapacidad creados y mantenidos. | N19: 1 | O19: 1 | P19: 1 | Q19: 0.25 | R19: 1 | S19: 0.25 | T19: 1 | U19: 0.25 | V19: 1 | W19: 0.25 | X19: 1 | Y19: 0 | Z19: 0 | AA19: 0 | AB19: 1 | AC19: 1 | AD19: 0 | AE19: 0 | AF19: 0 | AG19: 0 | AH19: 0 | AI19: 0 | AJ19: 0.25 | AK19: 0.25 | AL19: 0.25 | AM19: 5000 | AN19: 0 | AO19: 0 | AP19: 0 | AQ19: - | AR19: 0 | AS19: 0 | AT19: 0 | AU19: - | AV19: - | AW19: 0 | AX19: 0 | AY19: 0 | AZ19: - | BA19: - | BB19: 0 | BC19: 0 | BD19: 0 | BE19: - | BF19: - | BG19: 5000 | BH19: 0 | BI19: 0 | BJ19: 0 | BK19: - | BL19: 10. Reducción de las desigualdades | BM19: Atención a grupos vulnerables - Promoción Social | BN19: Sec. Desarrollo Social
K20: Implementar y mantener la estrategia de rehabilitación basada en la comunidad en las instituciones que ofrecen los servicios de habilitación y rehabilitación a través del Comité Local de RBC. | L20: - | M20: Número de estrategias de rehabilitación basada en la comunidad en las instituciones que ofrecen los servicios de habilitación y rehabilitación a través del Comité Local de RBC implementadas y mantenidas. | N20: 0 | O20: 1 | P20: 1 | Q20: 0.25 | R20: 1 | S20: 0.25 | T20: 1 | U20: 0.25 | V20: 1 | W20: 0.25 | X20: 0 | Y20: 0 | Z20: 0 | AA20: 0 | AB20: 0 | AC20: 0 | AD20: 0 | AE20: 0 | AF20: 0 | AG20: 0 | AH20: 0 | AI20: 0 | AJ20: 0 | AK20: 0 | AL20: 0 | AM20: 0 | AN20: 0 | AO20: 0 | AP20: - | AQ20: - | AR20: 0 | AS20: 0 | AT20: 0 | AU20: - | AV20: - | AW20: 0 | AX20: 0 | AY20: 0 | AZ20: - | BA20: - | BB20: 0 | BC20: 0 | BD20: 0 | BE20: - | BF20: - | BG20: 0 | BH20: 0 | BI20: 0 | BJ20: - | BK20: - | BL20: 10. Reducción de las desigualdades | BM20: Atención a grupos vulnerables - Promoción Social | BN20: Sec. Desarrollo Social
K21: Mantener el banco de ayudas técnicas, tecnológicas e informáticas BATI. | L21: 2210709 | M21: Número de bancos de ayudas técnicas, tecnológicas e informáticas BATI mantenidos. | N21: 1 | O21: 1 | P21: 1 | Q21: 0.25 | R21: 1 | S21: 0.25 | T21: 1 | U21: 0.25 | V21: 1 | W21: 0.25 | X21: 0 | Y21: 0 | Z21: 0 | AA21: 0 | AB21: 0 | AC21: 0 | AD21: 0 | AE21: 0 | AF21: 0 | AG21: 0 | AH21: 0 | AI21: 0 | AJ21: 0 | AK21: 0 | AL21: 0 | AM21: 284400 | AN21: 51900 | AO21: 0 | AP21: 0.1824894515 | AQ21: - | AR21: 261250 | AS21: 0 | AT21: 0 | AU21: 0 | AV21: - | AW21: 273006 | AX21: 0 | AY21: 0 | AZ21: 0 | BA21: - | BB21: 285291 | BC21: 0 | BD21: 0 | BE21: 0 | BF21: - | BG21: 1103947 | BH21: 51900 | BI21: 0 | BJ21: 0.04701312654 | BK21: - | BL21: 10. Reducción de las desigualdades | BM21: Atención a grupos vulnerables - Promoción Social | BN21: Sec. Desarrollo Social
K22: Implementar y mantener 1 programa de orientación ocupacional y proyecto de vida a personas con discapacidad física, auditiva, visual, cognitiva, psicosocial y múltiple. | L22: - | M22: Número de programas de orientación ocupacional y proyecto de vida implementadas y mantenidas a personas con discapacidad física, auditiva, visual, cognitiva, psicosocial y múltiple. | N22: 0 | O22: 1 | P22: 1 | Q22: 0.25 | R22: 1 | S22: 0.25 | T22: 1 | U22: 0.25 | V22: 1 | W22: 0.25 | X22: 1 | Y22: 0 | Z22: 0 | AA22: 0 | AB22: 1 | AC22: 1 | AD22: 0 | AE22: 0 | AF22: 0 | AG22: 0 | AH22: 0 | AI22: 0 | AJ22: 0.25 | AK22: 0.25 | AL22: 0.25 | AM22: 70000 | AN22: 70000 | AO22: 0 | AP22: 1 | AQ22: - | AR22: 0 | AS22: 0 | AT22: 0 | AU22: - | AV22: - | AW22: 0 | AX22: 0 | AY22: 0 | AZ22: - | BA22: - | BB22: 0 | BC22: 0 | BD22: 0 | BE22: - | BF22: - | BG22: 70000 | BH22: 70000 | BI22: 0 | BJ22: 1 | BK22: - | BL22: 10. Reducción de las desigualdades | BM22: Atención a grupos vulnerables - Promoción Social | BN22: Sec. Desarrollo Social
K23: Mantener 1 intérprete de lengua de señas colombiana que garantice a la población con discapacidad auditiva el acceso a la información, las comunicaciones y los servicios que ofrece la administración municipal. | L23: - | M23: Número de intérpretes de lengua de señas colombianas mantenidas que garantice a la población con discapacidad auditiva el acceso a la información, las comunicaciones y los servicios que ofrece la administración municipal. | N23: 0 | O23: 1 | P23: 1 | Q23: 0.25 | R23: 1 | S23: 0.25 | T23: 1 | U23: 0.25 | V23: 1 | W23: 0.25 | X23: 1 | Y23: 0 | Z23: 0 | AA23: 0 | AB23: 1 | AC23: 1 | AD23: 0 | AE23: 0 | AF23: 0 | AG23: 0 | AH23: 0 | AI23: 0 | AJ23: 0.25 | AK23: 0.25 | AL23: 0.25 | AM23: 0 | AN23: 0 | AO23: 0 | AP23: - | AQ23: - | AR23: 0 | AS23: 0 | AT23: 0 | AU23: - | AV23: - | AW23: 0 | AX23: 0 | AY23: 0 | AZ23: - | BA23: - | BB23: 0 | BC23: 0 | BD23: 0 | BE23: - | BF23: - | BG23: 0 | BH23: 0 | BI23: 0 | BJ23: - | BK23: - | BL23: 10. Reducción de las desigualdades | BM23: Atención a grupos vulnerables - Promoción Social | BN23: Sec. Desarrollo Social
K24: Realizar 4 conmemoraciones del día nacional de las personas con discapacidad. | L24: 2210709 | M24: Número de conmemoraciones del día nacional de las personas con discapacidad realizados. | N24: 4 | O24: 4 | P24: 1 | Q24: =+P24/O24 -> 0.25 | R24: 1 | S24: =+R24/O24 -> 0.25 | T24: 1 | U24: =+T24/O24 -> 0.25 | V24: 1 | W24: =+V24/O24 -> 0.25 | X24: 0 | Y24: 0 | Z24: 0 | AA24: 0 | AB24: 0 | AC24: 0 | AD24: 0 | AE24: 0 | AF24: 0 | AG24: 0 | AH24: 0 | AI24: 0 | AJ24: =+SUM(X24:AA24)/O24 -> 0 | AK24: 0 | AL24: 0 | AM24: 12000 | AN24: 0 | AO24: 0 | AP24: 0 | AQ24: - | AR24: 10000 | AS24: 0 | AT24: 0 | AU24: 0 | AV24: - | AW24: 10450 | AX24: 0 | AY24: 0 | AZ24: 0 | BA24: - | BB24: 10920 | BC24: 0 | BD24: 0 | BE24: 0 | BF24: - | BG24: 43370 | BH24: 0 | BI24: 0 | BJ24: 0 | BK24: - | BL24: 10. Reducción de las desigualdades | BM24: Atención a grupos vulnerables - Promoción Social | BN24: Sec. Desarrollo Social
K25: Brindar 24.000 entradas a personas con discapacidad a espacios de recreación, deporte y cultura. | L25: - | M25: Número de entradas brindadas a personas con discapacidad espacios de recreación, deporte y cultura. | N25: 8666 | O25: 24000 | P25: 6000 | Q25: 0.25 | R25: 6000 | S25: 0.25 | T25: 6000 | U25: 0.25 | V25: 6000 | W25: 0.25 | X25: 114 | Y25: 0 | Z25: 0 | AA25: 0 | AB25: 0.019 | AC25: 0.019 | AD25: 0 | AE25: 0 | AF25: 0 | AG25: 0 | AH25: 0 | AI25: 0 | AJ25: =+SUM(X25:AA25)/O25 -> 0.00475 | AK25: 0.00475 | AL25: 0.00475 | AM25: 50000 | AN25: 50000 | AO25: 0 | AP25: 1 | AQ25: - | AR25: 0 | AS25: 0 | AT25: 0 | AU25: - | AV25: - | AW25: 0 | AX25: 0 | AY25: 0 | AZ25: - | BA25: - | BB25: 0 | BC25: 0 | BD25: 0 | BE25: - | BF25: - | BG25: 50000 | BH25: 50000 | BI25: 0 | BJ25: 1 | BK25: - | BL25: 10. Reducción de las desigualdades | BM25: Atención a grupos vulnerables - Promoción Social | BN25: Sec. Desarrollo Social
K26: Mantener a 400 niñas, niños y adolescentes con discapacidad cognitiva, visual, física, auditiva y múltiple, que no se encuentran incluidos en instituciones educativas oficiales con atención integral en habilitación y rehabilitación. | L26: - | M26: Número de niñas, niños y adolescentes con discapacidad cognitiva, visual, física, auditiva y múltiple que no se encuentran incluidos en instituciones educativas oficiales con atención integral en habilitación y rehabilitación. | N26: 1500 | O26: 400 | P26: 400 | Q26: 0.25 | R26: 400 | S26: 0.25 | T26: 400 | U26: 0.25 | V26: 400 | W26: 0.25 | X26: 400 | Y26: 0 | Z26: 0 | AA26: 0 | AB26: 1 | AC26: 1 | AD26: 0 | AE26: 0 | AF26: 0 | AG26: 0 | AH26: 0 | AI26: 0 | AJ26: 0.25 | AK26: 0.25 | AL26: 0.25 | AM26: 0 | AN26: 0 | AO26: 0 | AP26: - | AQ26: - | AR26: 0 | AS26: 0 | AT26: 0 | AU26: - | AV26: - | AW26: 0 | AX26: 0 | AY26: 0 | AZ26: - | BA26: - | BB26: 0 | BC26: 0 | BD26: 0 | BE26: - | BF26: - | BG26: 0 | BH26: 0 | BI26: 0 | BJ26: - | BK26: - | BL26: 10. Reducción de las desigualdades | BM26: Atención a grupos vulnerables - Promoción Social | BN26: Sec. Desarrollo Social
K27: Mantener 11 personas como apoyos de modelo lingüístico e intérpretes de lengua de señas colombiana en instituciones educativas oficiales para la atención de niñas, niños y adolescentes con discapacidad auditiva. | L27: 2210709 | M27: Número de personas como apoyo de modelo lingüístico e intérpretes de lengua de señas colombiana en instituciones educativas oficiales mantenidos para la atención de niñas, niños y adolescentes con discapacidad auditiva. | N27: 11 | O27: 11 | P27: 11 | Q27: 0.25 | R27: 11 | S27: 0.25 | T27: 11 | U27: 0.25 | V27: 11 | W27: 0.25 | X27: 11 | Y27: 0 | Z27: 0 | AA27: 0 | AB27: 1 | AC27: 1 | AD27: 0 | AE27: 0 | AF27: 0 | AG27: 0 | AH27: 0 | AI27: 0 | AJ27: 0.25 | AK27: 0.25 | AL27: 0.25 | AM27: 102500 | AN27: 88833 | AO27: 0 | AP27: 0.8666634146 | AQ27: - | AR27: 0 | AS27: 0 | AT27: 0 | AU27: - | AV27: - | AW27: 0 | AX27: 0 | AY27: 0 | AZ27: - | BA27: - | BB27: 0 | BC27: 0 | BD27: 0 | BE27: - | BF27: - | BG27: 102500 | BH27: 88833 | BI27: 0 | BJ27: 0.8666634146 | BK27: - | BL27: 10. Reducción de las desigualdades | BM27: Atención a grupos vulnerables - Promoción Social | BN27: Sec. Desarrollo Social
K28: Mantener la atención a 300 niñas, niños y adolescentes en condición de discapacidad auditiva mediante los apoyos del modelo lingüísticos e intérpretes en lenguas de señas Colombiana. | L28: - | M28: Número de niñas, niños y adolescentes en condición de discapacidad auditiva mantenidos mediante los apoyos del modelo lingüísticos e intérpretes en lenguas de señas Colombiana. | N28: 300 | O28: 300 | P28: 300 | Q28: 0.25 | R28: 300 | S28: 0.25 | T28: 300 | U28: 0.25 | V28: 300 | W28: 0.25 | X28: 300 | Y28: 0 | Z28: 0 | AA28: 0 | AB28: 1 | AC28: 1 | AD28: 0 | AE28: 0 | AF28: 0 | AG28: 0 | AH28: 0 | AI28: 0 | AJ28: 0.25 | AK28: 0.25 | AL28: 0.25 | AM28: 0 | AN28: 0 | AO28: 0 | AP28: - | AQ28: - | AR28: 0 | AS28: 0 | AT28: 0 | AU28: - | AV28: - | AW28: 0 | AX28: 0 | AY28: 0 | AZ28: - | BA28: - | BB28: 0 | BC28: 0 | BD28: 0 | BE28: - | BF28: - | BG28: 0 | BH28: 0 | BI28: 0 | BJ28: - | BK28: - | BL28: 10. Reducción de las desigualdades | BM28: Atención a grupos vulnerables - Promoción Social | BN28: Sec. Desarrollo Social
K29: Mantener el Plan Municipal de Discapacidad. | L29: 2210273 | M29: Número de Planes Municipales de Discapacidad mantenidos. | N29: 1 | O29: 1 | P29: 1 | Q29: 0.25 | R29: 1 | S29: 0.25 | T29: 1 | U29: 0.25 | V29: 1 | W29: 0.25 | X29: 0.5 | Y29: 0 | Z29: 0 | AA29: 0 | AB29: 0.5 | AC29: 0.5 | AD29: 0 | AE29: 0 | AF29: 0 | AG29: 0 | AH29: 0 | AI29: 0 | AJ29: 0.125 | AK29: 0.125 | AL29: 0.125 | AM29: 168750 | AN29: 32500 | AO29: 0 | AP29: 0.1925925926 | AQ29: - | AR29: 205865 | AS29: 0 | AT29: 0 | AU29: 0 | AV29: - | AW29: 215129 | AX29: 0 | AY29: 0 | AZ29: 0 | BA29: - | BB29: 224810 | BC29: 0 | BD29: 0 | BE29: 0 | BF29: - | BG29: 814554 | BH29: 32500 | BI29: 0 | BJ29: 0.03989913499 | BK29: - | BL29: 10. Reducción de las desigualdades | BM29: Atención a grupos vulnerables - Promoción Social | BN29: Sec. Salud y Ambiente
F30: Disminuir a 0,397 el coeficiente de Gini. | G30: 0.407 | H30: 0.397 | K30: Desarrollar 4 eventos deportivos y recreativos dirigido a población con discapacidad. | L30: 0 | M30: Número de eventos deportivos y recreativos desarrollados dirigidos a población con discapacidad. | N30: 4 | O30: 4 | P30: 1 | Q30: 0.25 | R30: 1 | S30: 0.25 | T30: 1 | U30: 0.25 | V30: 1 | W30: 0.25 | X30: 1 | Y30: 0 | Z30: 0 | AA30: 0 | AB30: 1 | AC30: 1 | AD30: 0 | AE30: 0 | AF30: 0 | AG30: 0 | AH30: 0 | AI30: 0 | AJ30: =+SUM(X30:AA30)/O30 -> 0.25 | AK30: 0.25 | AL30: 0.25 | AM30: 0 | AN30: 0 | AO30: 0 | AP30: - | AQ30: - | AR30: 104500 | AS30: 0 | AT30: 0 | AU30: 0 | AV30: - | AW30: 109201 | AX30: 0 | AY30: 0 | AZ30: 0 | BA30: - | BB30: 114117 | BC30: 0 | BD30: 0 | BE30: 0 | BF30: - | BG30: 327818 | BH30: 0 | BI30: 0 | BJ30: 0 | BK30: - | BL30: 10. Reducción de las desigualdades | BM30: Deporte y recreación | BN30: INDERBU
I31: =+RESUMEN!J42 -> 0.125 | J31: MINORÍAS ÉTNICAS | K31: Implementar y mantener 1 sistema de orientación, capacitación, apoyo y asesoría con enfoque diferencial para minorías étnicas. | L31: - | M31: Número de sistemas de orientación, capacitación, apoyo y asesoría implementados con enfoque diferencial para minorías étnicas. | N31: 0 | O31: 1 | P31: 1 | Q31: 0.25 | R31: 1 | S31: 0.25 | T31: 1 | U31: 0.25 | V31: 1 | W31: 0.25 | X31: 1 | Y31: 0 | Z31: 0 | AA31: 0 | AB31: 1 | AC31: 1 | AD31: 0 | AE31: 0 | AF31: 0 | AG31: 0 | AH31: 0 | AI31: 0 | AJ31: 0.25 | AK31: 0.25 | AL31: 0.25 | AM31: 0 | AN31: 0 | AO31: 0 | AP31: - | AQ31: - | AR31: 0 | AS31: 0 | AT31: 0 | AU31: - | AV31: - | AW31: 0 | AX31: 0 | AY31: 0 | AZ31: - | BA31: - | BB31: 0 | BC31: 0 | BD31: 0 | BE31: - | BF31: - | BG31: 0 | BH31: 0 | BI31: 0 | BJ31: - | BK31: - | BL31: 10. Reducción de las desigualdades | BM31: Atención a grupos vulnerables - Promoción Social | BN31: Sec. Desarrollo Social
K32: Apoyar 4 campañas de sensibilización social contra la discriminación étnica. | L32: 0 | M32: Número de campañas de sensibilización social contra la discriminación étnica apoyadas. | N32: 0 | O32: 4 | P32: 1 | Q32: 0.25 | R32: 1 | S32: 0.25 | T32: 1 | U32: 0.25 | V32: 1 | W32: 0.25 | X32: 0 | Y32: 0 | Z32: 0 | AA32: 0 | AB32: 0 | AC32: 0 | AD32: 0 | AE32: 0 | AF32: 0 | AG32: 0 | AH32: 0 | AI32: 0 | AJ32: =+SUM(X32:AA32)/O32 -> 0 | AK32: 0 | AL32: 0 | AM32: 0 | AN32: 0 | AO32: 0 | AP32: - | AQ32: - | AR32: 26125 | AS32: 0 | AT32: 0 | AU32: 0 | AV32: - | AW32: 27300 | AX32: 0 | AY32: 0 | AZ32: 0 | BA32: - | BB32: 28529 | BC32: 0 | BD32: 0 | BE32: 0 | BF32: - | BG32: 81954 | BH32: 0 | BI32: 0 | BJ32: 0 | BK32: - | BL32: 10. Reducción de las desigualdades | BM32: Atención a grupos vulnerables - Promoción Social | BN32: Sec. Desarrollo Social
I33: =+RESUMEN!J43 -> 0.125 | J33: COMUNIDADES LGTBI | K33: Desarrollar 4 campañas de sensibilización social contra la discriminación social y para la prevención de infecciones de transmisión sexual. | L33: 2210233 | M33: Número de campañas de sensibilización social desarrolladas contra la discriminación social y para la prevención de infecciones de transmisión sexual. | N33: 1 | O33: 4 | P33: 1 | Q33: 0.25 | R33: 1 | S33: 0.25 | T33: 1 | U33: 0.25 | V33: 1 | W33: 0.25 | X33: 0.5 | Y33: 0 | Z33: 0 | AA33: 0 | AB33: 0.5 | AC33: 0.5 | AD33: 0 | AE33: 0 | AF33: 0 | AG33: 0 | AH33: 0 | AI33: 0 | AJ33: =+SUM(X33:AA33)/O33 -> 0.125 | AK33: 0.125 | AL33: 0.125 | AM33: 5000 | AN33: 3000 | AO33: 0 | AP33: 0.6 | AQ33: - | AR33: 0 | AS33: 0 | AT33: 0 | AU33: - | AV33: - | AW33: 0 | AX33: 0 | AY33: 0 | AZ33: - | BA33: - | BB33: 0 | BC33: 0 | BD33: 0 | BE33: - | BF33: - | BG33: 5000 | BH33: 3000 | BI33: 0 | BJ33: 0.6 | BK33: - | BL33: 10. Reducción de las desigualdades | BM33: Atención a grupos vulnerables - Promoción Social | BN33: Sec. Salud y Ambiente
K34: Realizar 4 mesas de trabajo con comunidades LGTBI para determinar el diagnóstico poblacional. | L34: 0 | M34: Número de mesas de trabajo realizadas con comunidades LGTBI para determinar el diagnóstico poblacional. | N34: 2 | O34: 4 | P34: 1 | Q34: 0.25 | R34: 1 | S34: 0.25 | T34: 1 | U34: 0.25 | V34: 1 | W34: 0.25 | X34: 1 | Y34: 0 | Z34: 0 | AA34: 0 | AB34: 1 | AC34: 1 | AD34: 0 | AE34: 0 | AF34: 0 | AG34: 0 | AH34: 0 | AI34: 0 | AJ34: =+SUM(X34:AA34)/O34 -> 0.25 | AK34: 0.25 | AL34: 0.25 | AM34: 0 | AN34: 0 | AO34: 0 | AP34: - | AQ34: - | AR34: 5225 | AS34: 0 | AT34: 0 | AU34: 0 | AV34: - | AW34: 5460 | AX34: 0 | AY34: 0 | AZ34: 0 | BA34: - | BB34: 5706 | BC34: 0 | BD34: 0 | BE34: 0 | BF34: - | BG34: 16391 | BH34: 0 | BI34: 0 | BJ34: 0 | BK34: - | BL34: 10. Reducción de las desigualdades | BM34: Atención a grupos vulnerables - Promoción Social | BN34: Sec. Desarrollo Social
K35: Formular e implementar 1 Política Pública para las comunidades LGTBI. | L35: - | M35: Número de Políticas Públicas formuladas e implementadas para las comunidades LGTBI. | N35: 0 | O35: 1 | P35: 1 | Q35: 0.25 | R35: 1 | S35: 0.25 | T35: 1 | U35: 0.25 | V35: 1 | W35: 0.25 | X35: 0 | Y35: 0 | Z35: 0 | AA35: 0 | AB35: 0 | AC35: 0 | AD35: 0 | AE35: 0 | AF35: 0 | AG35: 0 | AH35: 0 | AI35: 0 | AJ35: 0 | AK35: 0 | AL35: 0 | AM35: 0 | AN35: 0 | AO35: 0 | AP35: - | AQ35: - | AR35: 0 | AS35: 0 | AT35: 0 | AU35: - | AV35: - | AW35: 0 | AX35: 0 | AY35: 0 | AZ35: - | BA35: - | BB35: 0 | BC35: 0 | BD35: 0 | BE35: - | BF35: - | BG35: 0 | BH35: 0 | BI35: 0 | BJ35: - | BK35: - | BL35: 10. Reducción de las desigualdades | BM35: Atención a grupos vulnerables - Promoción Social | BN35: Sec. Desarrollo Social
I36: =+RESUMEN!J44 -> 0 | J36: PREVENCIÓN Y ATENCIÓN A POBLACIÓN EN CONDICIÓN DE ADICCIÓN A SUSTANCIAS PSICOACTIVAS | K36: Realizar 4 campaña de prevención del consumo de sustancias psicoactivas con énfasis en población escolar. | L36: 2210262 | M36: Número de campañas de prevención del consumo de sustancias psicoactivas con énfasis en población escolar realizadas. | N36: 0 | O36: 4 | P36: 1 | Q36: 0.25 | R36: 1 | S36: 0.25 | T36: 1 | U36: 0.25 | V36: 1 | W36: 0.25 | X36: 0 | Y36: 0 | Z36: 0 | AA36: 0 | AB36: 0 | AC36: 0 | AD36: 0 | AE36: 0 | AF36: 0 | AG36: 0 | AH36: 0 | AI36: 0 | AJ36: =+SUM(X36:AA36)/O36 -> 0 | AK36: 0 | AL36: 0 | AM36: 40000 | AN36: 0 | AO36: 0 | AP36: 0 | AQ36: - | AR36: 120000 | AS36: 0 | AT36: 0 | AU36: 0 | AV36: - | AW36: 125400 | AX36: 0 | AY36: 0 | AZ36: 0 | BA36: - | BB36: 131043 | BC36: 0 | BD36: 0 | BE36: 0 | BF36: - | BG36: 416443 | BH36: 0 | BI36: 0 | BJ36: 0 | BK36: - | BL36: 3. Salud y bienestar | BM36: Atención a grupos vulnerables - Promoción Social | BN36: Sec. Desarrollo Social
K37: Implementar y mantener 1 estrategia basada en grupos de apoyo de pares en los colegios para acompañar a los jóvenes en condición de adicción a sustancias psicoactivas. | L37: 2210262 | M37: Número de estrategias basadas en grupos de apoyo de pares implementadas y mantenidas en los colegios para acompañar a los jóvenes en condición de adicción a sustancias psicoactivas. | N37: 0 | O37: 1 | P37: 1 | Q37: 0.25 | R37: 1 | S37: 0.25 | T37: 1 | U37: 0.25 | V37: 1 | W37: 0.25 | X37: 0 | Y37: 0 | Z37: 0 | AA37: 0 | AB37: 0 | AC37: 0 | AD37: 0 | AE37: 0 | AF37: 0 | AG37: 0 | AH37: 0 | AI37: 0 | AJ37: 0 | AK37: 0 | AL37: 0 | AM37: 30000 | AN37: 0 | AO37: 0 | AP37: 0 | AQ37: - | AR37: 30000 | AS37: 0 | AT37: 0 | AU37: 0 | AV37: - | AW37: 31350 | AX37: 0 | AY37: 0 | AZ37: 0 | BA37: - | BB37: 32760 | BC37: 0 | BD37: 0 | BE37: 0 | BF37: - | BG37: 124110 | BH37: 0 | BI37: 0 | BJ37: 0 | BK37: - | BL37: 3. Salud y bienestar | BM37: Atención a grupos vulnerables - Promoción Social | BN37: Sec. Desarrollo Social
K38: Implementar y mantener 1 programa de atención inicial virtual y/o presencial con apoyo terapéutico para la población en condición de adicción a sustancias psicoactivas. | L38: 2210262 | M38: Número de programas de atención inicial virtual y/o presencial con apoyo terapéutico implementadas y mantenidas para la población en condición de adicción a sustancias psicoactivas. | N38: 0 | O38: 1 | P38: 1 | Q38: 0.25 | R38: 1 | S38: 0.25 | T38: 1 | U38: 0.25 | V38: 1 | W38: 0.25 | X38: 0 | Y38: 0 | Z38: 0 | AA38: 0 | AB38: 0 | AC38: 0 | AD38: 0 | AE38: 0 | AF38: 0 | AG38: 0 | AH38: 0 | AI38: 0 | AJ38: 0 | AK38: 0 | AL38: 0 | AM38: 15000 | AN38: 0 | AO38: 0 | AP38: 0 | AQ38: - | AR38: 50000 | AS38: 0 | AT38: 0 | AU38: 0 | AV38: - | AW38: 52250 | AX38: 0 | AY38: 0 | AZ38: 0 | BA38: - | BB38: 54601 | BC38: 0 | BD38: 0 | BE38: 0 | BF38: - | BG38: 171851 | BH38: 0 | BI38: 0 | BJ38: 0 | BK38: - | BL38: 3. Salud y bienestar | BM38: Atención a grupos vulnerables - Promoción Social | BN38: Sec. Desarrollo Social
I39: =+RESUMEN!J45 -> 0.03571428571 | J39: TRABAJADORAS Y TRABAJADORES SEXUALES | K39: Realizar 7 jornadas de promoción de la salud, prevención de infecciones de transmisión sexual en trabajadoras y trabajadores sexuales. | L39: 2210263 | M39: Número de jornadas de promoción de la salud, prevención de infecciones de transmisión sexual realizadas en trabajadoras y trabajadores sexuales. | N39: 0 | O39: 7 | P39: 1 | Q39: 0.1428571429 | R39: 2 | S39: 0.2857142857 | T39: 2 | U39: 0.2857142857 | V39: 2 | W39: 0.2857142857 | X39: 1 | Y39: 0 | Z39: 0 | AA39: 0 | AB39: 1 | AC39: 1 | AD39: 0 | AE39: 0 | AF39: 0 | AG39: 0 | AH39: 0 | AI39: 0 | AJ39: =+SUM(X39:AA39)/O39 -> 0.1428571429 | AK39: 0.1428571429 | AL39: 0.1428571429 | AM39: 10000 | AN39: 0 | AO39: 0 | AP39: 0 | AQ39: - | AR39: 5000 | AS39: 0 | AT39: 0 | AU39: 0 | AV39: - | AW39: 5000 | AX39: 0 | AY39: 0 | AZ39: 0 | BA39: - | BB39: 5000 | BC39: 0 | BD39: 0 | BE39: 0 | BF39: - | BG39: 25000 | BH39: 0 | BI39: 0 | BJ39: 0 | BK39: - | BL39: 10. Reducción de las desigualdades | BM39: Atención a grupos vulnerables - Promoción Social | BN39: Sec. Desarrollo Social
K40: Realizar 1 censo de la población trabajadora sexual. | L40: 2210263 | M40: Número de censos de la población trabajadora sexual realizados. | N40: 0 | O40: 1 | P40: 1 | Q40: 1 | R40: 0 | S40: 0 | T40: 0 | U40: 0 | V40: 0 | W40: 0 | X40: 0 | Y40: 0 | Z40: 0 | AA40: 0 | AB40: 0 | AC40: 0 | AD40: - | AE40: - | AF40: - | AG40: - | AH40: - | AI40: - | AJ40: =+SUM(X40:AA40)/O40 -> 0 | AK40: 0 | AL40: 0 | AM40: 20000 | AN40: 0 | AO40: 0 | AP40: 0 | AQ40: - | AR40: 0 | AS40: 0 | AT40: 0 | AU40: - | AV40: - | AW40: 0 | AX40: 0 | AY40: 0 | AZ40: - | BA40: - | BB40: 0 | BC40: 0 | BD40: 0 | BE40: - | BF40: - | BG40: 20000 | BH40: 0 | BI40: 0 | BJ40: 0 | BK40: - | BL40: 10. Reducción de las desigualdades | BM40: Atención a grupos vulnerables - Promoción Social | BN40: Sec. Desarrollo Social
K41: Implementar y mantener la ruta de atención a la población trabajadora sexual. | L41: - | M41: Número de rutas de atención a la población trabajadora sexual implementadas y mantenidas. | N41: 0 | O41: 1 | P41: 1 | Q41: 0.25 | R41: 1 | S41: 0.25 | T41: 1 | U41: 0.25 | V41: 1 | W41: 0.25 | X41: 0 | Y41: 0 | Z41: 0 | AA41: 0 | AB41: 0 | AC41: 0 | AD41: 0 | AE41: 0 | AF41: 0 | AG41: 0 | AH41: 0 | AI41: 0 | AJ41: 0 | AK41: 0 | AL41: 0 | AM41: 0 | AN41: 0 | AO41: 0 | AP41: - | AQ41: - | AR41: 0 | AS41: 0 | AT41: 0 | AU41: - | AV41: - | AW41: 0 | AX41: 0 | AY41: 0 | AZ41: - | BA41: - | BB41: 0 | BC41: 0 | BD41: 0 | BE41: - | BF41: - | BG41: 0 | BH41: 0 | BI41: 0 | BJ41: - | BK41: - | BL41: 10. Reducción de las desigualdades | BM41: Atención a grupos vulnerables - Promoción Social | BN41: Sec. Desarrollo Social
K42: Formular e implementar la Política Pública para la población trabajadora sexual. | L42: - | M42: Número de Políticas Públicas para la población trabajadora sexual formuladas e implementadas. | N42: 0 | O42: 1 | P42: 0 | Q42: 0 | R42: 1 | S42: 0.33 | T42: 1 | U42: 0.33 | V42: 1 | W42: 0.34 | X42: 0 | Y42: 0 | Z42: 0 | AA42: 0 | AB42: - | AC42: - | AD42: 0 | AE42: 0 | AF42: 0 | AG42: 0 | AH42: 0 | AI42: 0 | AJ42: =+AVERAGE(Y42:AA42)/O42 -> 0 | AK42: 0 | AL42: 0 | AM42: 0 | AN42: 0 | AO42: 0 | AP42: - | AQ42: - | AR42: 0 | AS42: 0 | AT42: 0 | AU42: - | AV42: - | AW42: 0 | AX42: 0 | AY42: 0 | AZ42: - | BA42: - | BB42: 0 | BC42: 0 | BD42: 0 | BE42: - | BF42: - | BG42: 0 | BH42: 0 | BI42: 0 | BJ42: - | BK42: - | BL42: 10. Reducción de las desigualdades | BM42: Atención a grupos vulnerables - Promoción Social | BN42: Sec. Desarrollo Social
I43: =+RESUMEN!J46 -> 0.07109375 | J43: VÍCTIMAS DEL CONFLICTO INTERNO ARMADO | K43: Mantener la ruta de seguridad para prevenir riesgos y proteger a víctimas del conflicto interno armado. | L43: 0 | M43: Número de rutas de seguridad para prevenir riesgos y proteger a víctimas del conflicto interno armado. | N43: 1 | O43: 1 | P43: 1 | Q43: 0.25 | R43: 1 | S43: 0.25 | T43: 1 | U43: 0.25 | V43: 1 | W43: 0.25 | X43: 1 | Y43: 0 | Z43: 0 | AA43: 0 | AB43: 1 | AC43: 1 | AD43: 0 | AE43: 0 | AF43: 0 | AG43: 0 | AH43: 0 | AI43: 0 | AJ43: 0.25 | AK43: 0.25 | AL43: 0.25 | AM43: 100000 | AN43: 100000 | AO43: 0 | AP43: 1 | AQ43: - | AR43: 50000 | AS43: 0 | AT43: 0 | AU43: 0 | AV43: - | AW43: 50000 | AX43: 0 | AY43: 0 | AZ43: 0 | BA43: - | BB43: 50000 | BC43: 0 | BD43: 0 | BE43: 0 | BF43: - | BG43: 250000 | BH43: 100000 | BI43: 0 | BJ43: 0.4 | BK43: - | BL43: 10. Reducción de las desigualdades | BM43: Atención a grupos vulnerables - Promoción Social | BN43: Sec. Interior
K44: Mantener actualizado el PAT, mapa de riesgos, plan de prevención y protección y el plan de contingencia. | L44: 0 | M44: Número de PAT, mapa de riesgos, plan de prevención y protección y el plan de contingencia mantenidos actualizados. | N44: 4 | O44: 4 | P44: 4 | Q44: 0.25 | R44: 4 | S44: 0.25 | T44: 4 | U44: 0.25 | V44: 4 | W44: 0.25 | X44: 1 | Y44: 0 | Z44: 0 | AA44: 0 | AB44: 0.25 | AC44: 0.25 | AD44: 0 | AE44: 0 | AF44: 0 | AG44: 0 | AH44: 0 | AI44: 0 | AJ44: 0.0625 | AK44: 0.0625 | AL44: 0.0625 | AM44: 270000 | AN44: 148100 | AO44: 0 | AP44: 0.5485185185 | AQ44: - | AR44: 35000 | AS44: 0 | AT44: 0 | AU44: 0 | AV44: - | AW44: 35000 | AX44: 0 | AY44: 0 | AZ44: 0 | BA44: - | BB44: 35000 | BC44: 0 | BD44: 0 | BE44: 0 | BF44: - | BG44: 375000 | BH44: 148100 | BI44: 0 | BJ44: 0.3949333333 | BK44: - | BL44: 10. Reducción de las desigualdades | BM44: Atención a grupos vulnerables - Promoción Social | BN44: Sec. Interior
K45: Realizar y mantener actualizada la caracterización de las víctimas. | L45: 0 | M45: Número de caracterizaciones de las víctimas realizadas y mantenidas actualizadas. | N45: 1 | O45: 1 | P45: 1 | Q45: 0.25 | R45: 1 | S45: 0.25 | T45: 1 | U45: 0.25 | V45: 1 | W45: 0.25 | X45: 0 | Y45: 0 | Z45: 0 | AA45: 0 | AB45: 0 | AC45: 0 | AD45: 0 | AE45: 0 | AF45: 0 | AG45: 0 | AH45: 0 | AI45: 0 | AJ45: 0 | AK45: 0 | AL45: 0 | AM45: 0 | AN45: 0 | AO45: 0 | AP45: - | AQ45: - | AR45: 155000 | AS45: 0 | AT45: 0 | AU45: 0 | AV45: - | AW45: 150000 | AX45: 0 | AY45: 0 | AZ45: 0 | BA45: - | BB45: 150000 | BC45: 0 | BD45: 0 | BE45: 0 | BF45: - | BG45: 455000 | BH45: 0 | BI45: 0 | BJ45: 0 | BK45: - | BL45: 10. Reducción de las desigualdades | BM45: Atención a grupos vulnerables - Promoción Social | BN45: Sec. Interior
K46: Mantener el fortalecimiento a la mesa de participación de víctimas. | L46: 0 | M46: Número de mesas de participación a víctimas con el fortalecimiento mantenido. | N46: 1 | O46: 1 | P46: 1 | Q46: 0.25 | R46: 1 | S46: 0.25 | T46: 1 | U46: 0.25 | V46: 1 | W46: 0.25 | X46: 0 | Y46: 0 | Z46: 0 | AA46: 0 | AB46: 0 | AC46: 0 | AD46: 0 | AE46: 0 | AF46: 0 | AG46: 0 | AH46: 0 | AI46: 0 | AJ46: 0 | AK46: 0 | AL46: 0 | AM46: 100000 | AN46: 0 | AO46: 0 | AP46: 0 | AQ46: - | AR46: 65000 | AS46: 0 | AT46: 0 | AU46: 0 | AV46: - | AW46: 65000 | AX46: 0 | AY46: 0 | AZ46: 0 | BA46: - | BB46: 65000 | BC46: 0 | BD46: 0 | BE46: 0 | BF46: - | BG46: 295000 | BH46: 0 | BI46: 0 | BJ46: 0 | BK46: - | BL46: 10. Reducción de las desigualdades | BM46: Atención a grupos vulnerables - Promoción Social | BN46: Sec. Interior
K47: Mantener la ayuda humanitaria de urgencia y en transición incluyendo asistencia exequial al 100% de la población víctima del conflicto interno armado según requisitos de ley. | L47: 0 | M47: Porcentaje de población víctima del conflicto interno armado que cumpla con los requisitos de ley con ayuda humanitaria de urgencia y en transición incluyendo asistencia exequial garantizada. | N47: 1 | O47: 1 | P47: 1 | Q47: 0.25 | R47: 1 | S47: 0.25 | T47: 1 | U47: 0.25 | V47: 1 | W47: 0.25 | X47: 1 | Y47: 0 | Z47: 0 | AA47: 0 | AB47: 1 | AC47: 1 | AD47: 0 | AE47: 0 | AF47: 0 | AG47: 0 | AH47: 0 | AI47: 0 | AJ47: 0.25 | AK47: 0.25 | AL47: 0.25 | AM47: 305000 | AN47: 164088 | AO47: 0 | AP47: 0.5379934426 | AQ47: - | AR47: 425000 | AS47: 0 | AT47: 0 | AU47: 0 | AV47: - | AW47: 430000 | AX47: 0 | AY47: 0 | AZ47: 0 | BA47: - | BB47: 435000 | BC47: 0 | BD47: 0 | BE47: 0 | BF47: - | BG47: 1595000 | BH47: 164088 | BI47: 0 | BJ47: 0.102876489 | BK47: - | BL47: 10. Reducción de las desigualdades | BM47: Atención a grupos vulnerables - Promoción Social | BN47: Sec. Interior
F48: Mantener al 100% la cobertura en salud a la población víctima del conflicto interno armado. | G48: 1 | H48: 1 | K48: Mantener el 100% de los procesos de retorno y reubicación a la población víctima del conflicto interno armado que se presente. | L48: 2210979 | M48: Porcentaje de procesos de retorno y reubicación a la población víctima del conflicto interno armado mantenidos. | N48: 1 | O48: 1 | P48: 1 | Q48: 0.25 | R48: 1 | S48: 0.25 | T48: 1 | U48: 0.25 | V48: 1 | W48: 0.25 | X48: 0 | Y48: 0 | Z48: 0 | AA48: 0 | AB48: 0 | AC48: 0 | AD48: 0 | AE48: 0 | AF48: 0 | AG48: 0 | AH48: 0 | AI48: 0 | AJ48: 0 | AK48: 0 | AL48: 0 | AM48: 0 | AN48: 0 | AO48: 0 | AP48: - | AQ48: - | AR48: 30000 | AS48: 0 | AT48: 0 | AU48: 0 | AV48: - | AW48: 30000 | AX48: 0 | AY48: 0 | AZ48: 0 | BA48: - | BB48: 30000 | BC48: 0 | BD48: 0 | BE48: 0 | BF48: - | BG48: 90000 | BH48: 0 | BI48: 0 | BJ48: 0 | BK48: - | BL48: 10. Reducción de las desigualdades | BM48: Atención a grupos vulnerables - Promoción Social | BN48: Sec. Interior
K49: Apoyar 7 iniciativas encaminadas a generar garantías de no repetición y reparación simbólica a víctimas del conflicto interno armado. | L49: 2210979 | M49: Número de iniciativas encaminadas a generar garantías de no repetición y reparación simbólica a víctimas del conflicto interno armado apoyados. | N49: 0 | O49: 7 | P49: 0 | Q49: 0 | R49: 3 | S49: 0.4285714286 | T49: 2 | U49: 0.2857142857 | V49: 2 | W49: 0.2857142857 | X49: 0 | Y49: 0 | Z49: 0 | AA49: 0 | AB49: - | AC49: - | AD49: 0 | AE49: 0 | AF49: 0 | AG49: 0 | AH49: 0 | AI49: 0 | AJ49: =+SUM(X49:AA49)/O49 -> 0 | AK49: 0 | AL49: 0 | AM49: 0 | AN49: 0 | AO49: 0 | AP49: - | AQ49: - | AR49: 50000 | AS49: 0 | AT49: 0 | AU49: 0 | AV49: - | AW49: 50000 | AX49: 0 | AY49: 0 | AZ49: 0 | BA49: - | BB49: 50000 | BC49: 0 | BD49: 0 | BE49: 0 | BF49: - | BG49: 150000 | BH49: 0 | BI49: 0 | BJ49: 0 | BK49: - | BL49: 10. Reducción de las desigualdades | BM49: Atención a grupos vulnerables - Promoción Social | BN49: Sec. Interior
K50: Conmemorar el día de memoria y de solidaridad con las víctimas del conflicto interno armado. | L50: 2210979 | M50: Número de días de memoria y de solidaridad con las víctimas del conflicto interno armado conmemorados. | N50: 4 | O50: 1 | P50: 1 | Q50: 0.25 | R50: 1 | S50: 0.25 | T50: 1 | U50: 0.25 | V50: 1 | W50: 0.25 | X50: 1 | Y50: 0 | Z50: 0 | AA50: 0 | AB50: 1 | AC50: 1 | AD50: 0 | AE50: 0 | AF50: 0 | AG50: 0 | AH50: 0 | AI50: 0 | AJ50: 0.25 | AK50: 0.25 | AL50: 0.25 | AM50: 0 | AN50: 0 | AO50: 0 | AP50: - | AQ50: - | AR50: 10000 | AS50: 0 | AT50: 0 | AU50: 0 | AV50: - | AW50: 10000 | AX50: 0 | AY50: 0 | AZ50: 0 | BA50: - | BB50: 10000 | BC50: 0 | BD50: 0 | BE50: 0 | BF50: - | BG50: 30000 | BH50: 0 | BI50: 0 | BJ50: 0 | BK50: - | BL50: 10. Reducción de las desigualdades | BM50: Atención a grupos vulnerables - Promoción Social | BN50: Sec. Interior
K51: Mantener el apoyo logístico para la realización del comité territorial de justicia transicional con sus mesas temáticas. | L51: 2210979 | M51: Número de apoyo logístico mantenidos para la realización del comité territorial de justicia transicional con sus mesas temáticas. | N51: 1 | O51: 1 | P51: 1 | Q51: 0.25 | R51: 1 | S51: 0.25 | T51: 1 | U51: 0.25 | V51: 1 | W51: 0.25 | X51: 0 | Y51: 0 | Z51: 0 | AA51: 0 | AB51: 0 | AC51: 0 | AD51: 0 | AE51: 0 | AF51: 0 | AG51: 0 | AH51: 0 | AI51: 0 | AJ51: 0 | AK51: 0 | AL51: 0 | AM51: 20000 | AN51: 0 | AO51: 0 | AP51: 0 | AQ51: - | AR51: 50000 | AS51: 0 | AT51: 0 | AU51: 0 | AV51: - | AW51: 50000 | AX51: 0 | AY51: 0 | AZ51: 0 | BA51: - | BB51: 50000 | BC51: 0 | BD51: 0 | BE51: 0 | BF51: - | BG51: 170000 | BH51: 0 | BI51: 0 | BJ51: 0 | BK51: - | BL51: 10. Reducción de las desigualdades | BM51: Atención a grupos vulnerables - Promoción Social | BN51: Sec. Interior
K52: Mantener y mejorar el Centro de Atención Integral para las Víctimas del conflicto interno. | L52: 2210979 | M52: Número de Centros de Atención Integral para las Víctimas del conflicto interno mantenidos y mejorados. | N52: 1 | O52: 1 | P52: 1 | Q52: 0.25 | R52: 1 | S52: 0.25 | T52: 1 | U52: 0.25 | V52: 1 | W52: 0.25 | X52: 1 | Y52: 0 | Z52: 0 | AA52: 0 | AB52: 1 | AC52: 1 | AD52: 0 | AE52: 0 | AF52: 0 | AG52: 0 | AH52: 0 | AI52: 0 | AJ52: 0.25 | AK52: 0.25 | AL52: 0.25 | AM52: 5000 | AN52: 0 | AO52: 0 | AP52: 0 | AQ52: - | AR52: 500000 | AS52: 0 | AT52: 0 | AU52: 0 | AV52: - | AW52: 0 | AX52: 0 | AY52: 0 | AZ52: - | BA52: - | BB52: 0 | BC52: 0 | BD52: 0 | BE52: - | BF52: - | BG52: 505000 | BH52: 0 | BI52: 0 | BJ52: 0 | BK52: - | BL52: 10. Reducción de las desigualdades | BM52: Atención a grupos vulnerables - Promoción Social | BN52: Sec. Interior
K53: Crear, dotar y mantener 1 Oficina para la Paz. | L53: 2210979 | M53: Número de oficinas para la Paz creada, dotadas y mantenidas. | N53: 0 | O53: 1 | P53: 0 | Q53: 0 | R53: 1 | S53: 0.33 | T53: 1 | U53: 0.33 | V53: 1 | W53: 0.34 | X53: 0 | Y53: 0 | Z53: 0 | AA53: 0 | AB53: - | AC53: - | AD53: 0 | AE53: 0 | AF53: 0 | AG53: 0 | AH53: 0 | AI53: 0 | AJ53: =+AVERAGE(Y53:AA53)/O53 -> 0 | AK53: 0 | AL53: 0 | AM53: 0 | AN53: 0 | AO53: 0 | AP53: - | AQ53: - | AR53: 50000 | AS53: 0 | AT53: 0 | AU53: 0 | AV53: - | AW53: 50000 | AX53: 0 | AY53: 0 | AZ53: 0 | BA53: - | BB53: 50000 | BC53: 0 | BD53: 0 | BE53: 0 | BF53: - | BG53: 150000 | BH53: 0 | BI53: 0 | BJ53: 0 | BK53: - | BL53: 10. Reducción de las desigualdades | BM53: Atención a grupos vulnerables - Promoción Social | BN53: Sec. Interior
K54: Realizar 1 actividad enfocada a la participación de las organizaciones sociales de víctimas en torno a la agenda de paz y la reparación integral. | L54: - | M54: Número de actividades enfocadas a la organización y participación de las organizaciones sociales de víctimas realizadas en torno a la agenda de paz y la reparación integral. | N54: 0 | O54: 1 | P54: 0 | Q54: 0 | R54: 1 | S54: 1 | T54: 0 | U54: 0 | V54: 0 | W54: 0 | X54: 0 | Y54: 0 | Z54: 0 | AA54: 0 | AB54: - | AC54: - | AD54: 0 | AE54: 0 | AF54: - | AG54: - | AH54: - | AI54: - | AJ54: =+SUM(X54:AA54)/O54 -> 0 | AK54: 0 | AL54: 0 | AM54: 0 | AN54: 0 | AO54: 0 | AP54: - | AQ54: - | AR54: 0 | AS54: 0 | AT54: 0 | AU54: - | AV54: - | AW54: 0 | AX54: 0 | AY54: 0 | AZ54: - | BA54: - | BB54: 0 | BC54: 0 | BD54: 0 | BE54: - | BF54: - | BG54: 0 | BH54: 0 | BI54: 0 | BJ54: - | BK54: - | BL54: 10. Reducción de las desigualdades | BM54: Atención a grupos vulnerables - Promoción Social | BN54: Sec. Interior
K55: Realizar 6 encuentros para la participación de mujeres víctimas del conflicto interno armado como sujetos de derechos en entornos familiares y escenarios de decisión. | L55: 0 | M55: Número de encuentros realizados para la participación de mujeres víctimas del conflicto interno armado como sujetos de derechos en entornos familiares y escenarios de decisión. | N55: 0 | O55: 6 | P55: 0 | Q55: 0 | R55: 2 | S55: 0.3333333333 | T55: 2 | U55: 0.3333333333 | V55: 2 | W55: 0.3333333333 | X55: 0 | Y55: 0 | Z55: 0 | AA55: 0 | AB55: - | AC55: - | AD55: 0 | AE55: 0 | AF55: 0 | AG55: 0 | AH55: 0 | AI55: 0 | AJ55: =+SUM(X55:AA55)/O55 -> 0 | AK55: 0 | AL55: 0 | AM55: 0 | AN55: 0 | AO55: 0 | AP55: - | AQ55: - | AR55: 10000 | AS55: 0 | AT55: 0 | AU55: 0 | AV55: - | AW55: 10000 | AX55: 0 | AY55: 0 | AZ55: 0 | BA55: - | BB55: 10000 | BC55: 0 | BD55: 0 | BE55: 0 | BF55: - | BG55: 30000 | BH55: 0 | BI55: 0 | BJ55: 0 | BK55: - | BL55: 10. Reducción de las desigualdades | BM55: Atención a grupos vulnerables - Promoción Social | BN55: Sec. Desarrollo Social
K56: Formular e implementar el Plan de acción intersectorial de entornos saludables PAIE con población víctima del conflicto interno armado. | L56: 2210917 2210244 | M56: Número de Planes de acción intersectoriales de entornos saludables PAIE formulados e implementados con población víctima del conflicto interno armado. | N56: 1 | O56: 1 | P56: 1 | Q56: 0.25 | R56: 1 | S56: 0.25 | T56: 1 | U56: 0.25 | V56: 1 | W56: 0.25 | X56: 0.3 | Y56: 0 | Z56: 0 | AA56: 0 | AB56: 0.3 | AC56: 0.3 | AD56: 0 | AE56: 0 | AF56: 0 | AG56: 0 | AH56: 0 | AI56: 0 | AJ56: 0.075 | AK56: 0.075 | AL56: 0.075 | AM56: 363230 | AN56: 25500 | AO56: 0 | AP56: 0.07020345236 | AQ56: - | AR56: 380380 | AS56: 0 | AT56: 0 | AU56: 0 | AV56: - | AW56: 397498 | AX56: 0 | AY56: 0 | AZ56: 0 | BA56: - | BB56: 415385 | BC56: 0 | BD56: 0 | BE56: 0 | BF56: - | BG56: 1556493 | BH56: 25500 | BI56: 0 | BJ56: 0.01638298405 | BK56: - | BL56: 10. Reducción de las desigualdades | BM56: Atención a grupos vulnerables - Promoción Social | BN56: Sec. Salud y Ambiente
K57: Desarrollar 4 eventos deportivos y recreativos dirigidos a la población víctimas del conflicto interno armado. | L57: 0 | M57: Número de eventos deportivos y recreativos desarrollados dirigidos a la población víctimas del conflicto interno armado. | N57: 4 | O57: 4 | P57: 0 | Q57: 0 | R57: 1 | S57: 0.25 | T57: 2 | U57: 0.5 | V57: 1 | W57: 0.25 | X57: 0 | Y57: 0 | Z57: 0 | AA57: 0 | AB57: - | AC57: - | AD57: 0 | AE57: 0 | AF57: 0 | AG57: 0 | AH57: 0 | AI57: 0 | AJ57: =+SUM(X57:AA57)/O57 -> 0 | AK57: 0 | AL57: 0 | AM57: 0 | AN57: 0 | AO57: 0 | AP57: - | AQ57: - | AR57: 31350 | AS57: 0 | AT57: 0 | AU57: 0 | AV57: - | AW57: 32760 | AX57: 0 | AY57: 0 | AZ57: 0 | BA57: - | BB57: 34235 | BC57: 0 | BD57: 0 | BE57: 0 | BF57: - | BG57: 98345 | BH57: 0 | BI57: 0 | BJ57: 0 | BK57: - | BL57: 10. Reducción de las desigualdades | BM57: Deporte y recreación | BN57: INDERBU
K58: Apoyar 7 proyectos productivos para generación de ingresos en población víctimas del conflicto interno armado. | L58: 0 | M58: Número de proyectos productivos para generación de ingresos en población víctimas del conflicto interno armado apoyados. | N58: 0 | O58: 7 | P58: 0 | Q58: 0 | R58: 3 | S58: 0.4285714286 | T58: 2 | U58: 0.2857142857 | V58: 2 | W58: 0.2857142857 | X58: 0 | Y58: 0 | Z58: 0 | AA58: 0 | AB58: - | AC58: - | AD58: 0 | AE58: 0 | AF58: 0 | AG58: 0 | AH58: 0 | AI58: 0 | AJ58: =+SUM(X58:AA58)/O58 -> 0 | AK58: 0 | AL58: 0 | AM58: 0 | AN58: 0 | AO58: 0 | AP58: - | AQ58: - | AR58: 200000 | AS58: 0 | AT58: 0 | AU58: 0 | AV58: - | AW58: 200000 | AX58: 0 | AY58: 0 | AZ58: 0 | BA58: - | BB58: 200000 | BC58: 0 | BD58: 0 | BE58: 0 | BF58: - | BG58: 600000 | BH58: 0 | BI58: 0 | BJ58: 0 | BK58: - | BL58: 10. Reducción de las desigualdades | BM58: Atención a grupos vulnerables - Promoción Social | BN58: IMEBU
I59: =+RESUMEN!J47 -> 0 | J59: POBLACIÓN EN PROCESO DE REINTEGRACIÓN | K59: Mantener 1 programa de temas de emprendimiento a personas en proceso de reintegración. | L59: 0 | M59: Número de programas mantenidos en temas de emprendimiento a personas en procesos de reintegración. | N59: 1 | O59: 1 | P59: 1 | Q59: 0.25 | R59: 1 | S59: 0.25 | T59: 1 | U59: 0.25 | V59: 1 | W59: 0.25 | X59: 0 | Y59: 0 | Z59: 0 | AA59: 0 | AB59: 0 | AC59: 0 | AD59: 0 | AE59: 0 | AF59: 0 | AG59: 0 | AH59: 0 | AI59: 0 | AJ59: 0 | AK59: 0 | AL59: 0 | AM59: 0 | AN59: 0 | AO59: 0 | AP59: - | AQ59: - | AR59: 78000 | AS59: 0 | AT59: 0 | AU59: 0 | AV59: - | AW59: 78000 | AX59: 0 | AY59: 0 | AZ59: 0 | BA59: - | BB59: 78000 | BC59: 0 | BD59: 0 | BE59: 0 | BF59: - | BG59: 234000 | BH59: 0 | BI59: 0 | BJ59: 0 | BK59: - | BL59: 10. Reducción de las desigualdades | BM59: Atención a grupos vulnerables - Promoción Social | BN59: Sec. Interior
K60: Implementar y mantener 1 estrategia de apoyo a las iniciativas y programas de la Agencia Colombiana para la Reintegración - ACR. | L60: - | M60: Número de estrategias de apoyo a las iniciativas y programas de la Agencia Colombiana para la Reintegración - ACR implementadas y mantenidas. | N60: 1 | O60: 1 | P60: 0 | Q60: 0 | R60: 1 | S60: 0.33 | T60: 1 | U60: 0.33 | V60: 1 | W60: 0.34 | X60: 0 | Y60: 0 | Z60: 0 | AA60: 0 | AB60: - | AC60: - | AD60: 0 | AE60: 0 | AF60: 0 | AG60: 0 | AH60: 0 | AI60: 0 | AJ60: =+AVERAGE(Y60:AA60)/O60 -> 0 | AK60: 0 | AL60: 0 | AM60: 0 | AN60: 0 | AO60: 0 | AP60: - | AQ60: - | AR60: 0 | AS60: 0 | AT60: 0 | AU60: - | AV60: - | AW60: 0 | AX60: 0 | AY60: 0 | AZ60: - | BA60: - | BB60: 0 | BC60: 0 | BD60: 0 | BE60: - | BF60: - | BG60: 0 | BH60: 0 | BI60: 0 | BJ60: - | BK60: - | BL60: 10. Reducción de las desigualdades | BM60: Atención a grupos vulnerables - Promoción Social | BN60: Sec. Interior
K61: Implementar y mantener 1 estrategia para la inclusión laboral de actores del conflicto. | L61: - | M61: Número de estrategias implementadas y mantenidas para la inclusión laboral de actores del conflicto. | N61: 0 | O61: 1 | P61: 0 | Q61: 0 | R61: 1 | S61: 0.33 | T61: 1 | U61: 0.33 | V61: 1 | W61: 0.34 | X61: 0 | Y61: 0 | Z61: 0 | AA61: 0 | AB61: - | AC61: - | AD61: 0 | AE61: 0 | AF61: 0 | AG61: 0 | AH61: 0 | AI61: 0 | AJ61: =+AVERAGE(Y61:AA61)/O61 -> 0 | AK61: 0 | AL61: 0 | AM61: 0 | AN61: 0 | AO61: 0 | AP61: - | AQ61: - | AR61: 0 | AS61: 0 | AT61: 0 | AU61: - | AV61: - | AW61: 0 | AX61: 0 | AY61: 0 | AZ61: - | BA61: - | BB61: 0 | BC61: 0 | BD61: 0 | BE61: - | BF61: - | BG61: 0 | BH61: 0 | BI61: 0 | BJ61: - | BK61: - | BL61: 10. Reducción de las desigualdades | BM61: Atención a grupos vulnerables - Promoción Social | BN61: IMEBU
I62: =+RESUMEN!J48 -> 0.05 | J62: POBLACIÓN CARCELARIA Y POSPENADOS | K62: Mantener el apoyo dotacional a los 2 centros de reclusión. | L62: 2210813 | M62: Número de centros de reclusión con apoyo dotacional mantenido. | N62: 2 | O62: 2 | P62: 2 | Q62: 0.25 | R62: 2 | S62: 0.25 | T62: 2 | U62: 0.25 | V62: 2 | W62: 0.25 | X62: 0 | Y62: 0 | Z62: 0 | AA62: 0 | AB62: 0 | AC62: 0 | AD62: 0 | AE62: 0 | AF62: 0 | AG62: 0 | AH62: 0 | AI62: 0 | AJ62: 0 | AK62: 0 | AL62: 0 | AM62: 100000 | AN62: 0 | AO62: 0 | AP62: 0 | AQ62: - | AR62: 99500 | AS62: 0 | AT62: 0 | AU62: 0 | AV62: - | AW62: 104202 | AX62: 0 | AY62: 0 | AZ62: 0 | BA62: - | BB62: 108891 | BC62: 0 | BD62: 0 | BE62: 0 | BF62: - | BG62: 412593 | BH62: 0 | BI62: 0 | BJ62: 0 | BK62: - | BL62: 10. Reducción de las desigualdades | BM62: Centros de Reclusión | BN62: Sec. Desarrollo Social
K63: Implementar y mantener 1 estrategia basadas en valores para apoyar a la población carcelaria en el proceso de resocialización social y familiar. | L63: - | M63: Número de estrategias basadas en valores implementadas y mantenidas para apoyar a la población carcelaria en el proceso de resocialización social y familiar. | N63: 0 | O63: 1 | P63: 0 | Q63: 0 | R63: 1 | S63: 0.33 | T63: 1 | U63: 0.33 | V63: 1 | W63: 0.34 | X63: 0 | Y63: 0 | Z63: 0 | AA63: 0 | AB63: - | AC63: - | AD63: 0 | AE63: 0 | AF63: 0 | AG63: 0 | AH63: 0 | AI63: 0 | AJ63: =+AVERAGE(Y63:AA63)/O63 -> 0 | AK63: 0 | AL63: 0 | AM63: 0 | AN63: 0 | AO63: 0 | AP63: - | AQ63: - | AR63: 0 | AS63: 0 | AT63: 0 | AU63: - | AV63: - | AW63: 0 | AX63: 0 | AY63: 0 | AZ63: - | BA63: - | BB63: 0 | BC63: 0 | BD63: 0 | BE63: - | BF63: - | BG63: 0 | BH63: 0 | BI63: 0 | BJ63: - | BK63: - | BL63: 10. Reducción de las desigualdades | BM63: Centros de Reclusión | BN63: Sec. Desarrollo Social
K64: Realizar 3 brigadas de ayuda humanitaria dirigida a la población carcelaria en los diferentes centros de reclusión. | L64: 2210266 | M64: Número de brigadas de ayuda humanitaria realizadas dirigidas a la población carcelaria en los diferentes centros de reclusión. | N64: 1 | O64: 3 | P64: 0 | Q64: 0 | R64: 1 | S64: 0.3333333333 | T64: 1 | U64: 0.3333333333 | V64: 1 | W64: 0.3333333333 | X64: 0 | Y64: 0 | Z64: 0 | AA64: 0 | AB64: - | AC64: - | AD64: 0 | AE64: 0 | AF64: 0 | AG64: 0 | AH64: 0 | AI64: 0 | AJ64: =+SUM(X64:AA64)/O64 -> 0 | AK64: 0 | AL64: 0 | AM64: 60000 | AN64: 0 | AO64: 0 | AP64: 0 | AQ64: - | AR64: 150000 | AS64: 0 | AT64: 0 | AU64: 0 | AV64: - | AW64: 180000 | AX64: 0 | AY64: 0 | AZ64: 0 | BA64: - | BB64: 200000 | BC64: 0 | BD64: 0 | BE64: 0 | BF64: - | BG64: 590000 | BH64: 0 | BI64: 0 | BJ64: 0 | BK64: - | BL64: 10. Reducción de las desigualdades | BM64: Centros de Reclusión | BN64: Sec. Interior
K65: Implementar y mantener 1 estrategia de apoyo a la generación de ingresos para pospenados. | L65: - | M65: Número de estrategias de apoyo a la generación de ingresos para pospenados implementadas y mantenidas. | N65: 0 | O65: 1 | P65: 0 | Q65: 0 | R65: 1 | S65: 0.33 | T65: 1 | U65: 0.33 | V65: 1 | W65: 0.34 | X65: 0 | Y65: 0 | Z65: 0 | AA65: 0 | AB65: - | AC65: - | AD65: 0 | AE65: 0 | AF65: 0 | AG65: 0 | AH65: 0 | AI65: 0 | AJ65: =+AVERAGE(Y65:AA65)/O65 -> 0 | AK65: 0 | AL65: 0 | AM65: 40000 | AN65: 0 | AO65: 0 | AP65: 0 | AQ65: - | AR65: 0 | AS65: 0 | AT65: 0 | AU65: - | AV65: - | AW65: 0 | AX65: 0 | AY65: 0 | AZ65: - | BA65: - | BB65: 0 | BC65: 0 | BD65: 0 | BE65: - | BF65: - | BG65: 40000 | BH65: 0 | BI65: 0 | BJ65: 0 | BK65: - | BL65: 10. Reducción de las desigualdades | BM65: Centros de Reclusión | BN65: Sec. Interior
K66: Desarrollar 8 eventos deportivos y recreativos dirigidos a la población carcelaria. | L66: 0 | M66: Número de eventos deportivos y recreativos desarrollados dirigidos a la población carcelaria. | N66: 8 | O66: 8 | P66: 2 | Q66: 0.25 | R66: 2 | S66: 0.25 | T66: 2 | U66: 0.25 | V66: 2 | W66: 0.25 | X66: 2 | Y66: 0 | Z66: 0 | AA66: 0 | AB66: 1 | AC66: 1 | AD66: 0 | AE66: 0 | AF66: 0 | AG66: 0 | AH66: 0 | AI66: 0 | AJ66: =+SUM(X66:AA66)/O66 -> 0.25 | AK66: 0.25 | AL66: 0.25 | AM66: 0 | AN66: 0 | AO66: 0 | AP66: - | AQ66: - | AR66: 43890 | AS66: 0 | AT66: 0 | AU66: 0 | AV66: - | AW66: 45864 | AX66: 0 | AY66: 0 | AZ66: 0 | BA66: - | BB66: 47928 | BC66: 0 | BD66: 0 | BE66: 0 | BF66: - | BG66: 137682 | BH66: 0 | BI66: 0 | BJ66: 0 | BK66: - | BL66: 10. Reducción de las desigualdades | BM66: Deporte y recreación | BN66: INDERBU
Q67: =+AVERAGE(Q11:Q66) -> 0.2079081633 | S67: =+AVERAGE(S11:S66) -> 0.2774914966 | U67: 0.2589965986 | W67: 0.2556037415 | AC67: =+AVERAGE(AC11:AC66) -> 0.4715681818 | AE67: 0 | AG67: 0 | AI67: 0 | AK67: =+AVERAGE(AK11:AK66) -> 0.09071619898
D68: =+RESUMEN!J49 -> 0.07137918534 | E68: LOS CAMINOS DE LA VIDA | F68: Mantener por debajo de 10 la tasa de mortalidad en niñas y niños menores de 5 años. | G68: 10.5 | H68: 10 | I68: =+RESUMEN!J49+RESUMEN!J50 -> 0.1017363282 | J68: INICIO FELIZ (PRIMERA INFANCIA) | K68: Fortalecer 1.500 padres, madres y otros cuidadores en capacidades para la crianza, la construcción de vínculos afectivos y su ejercicio de corresponsabilidad. | L68: 2210707 | M68: Número de padres, madres y otros cuidadores fortalecidos en capacidades para la crianza, la construcción de vínculos afectivos y su ejercicio de corresponsabilidad. | N68: 600 | O68: 1500 | P68: 300 | Q68: 0.2 | R68: 400 | S68: 0.2666666667 | T68: 400 | U68: 0.2666666667 | V68: 400 | W68: 0.2666666667 | X68: 0 | Y68: 0 | Z68: 0 | AA68: 0 | AB68: 0 | AC68: 0 | AD68: 0 | AE68: 0 | AF68: 0 | AG68: 0 | AH68: 0 | AI68: 0 | AJ68: =+SUM(X68:AA68)/O68 -> 0 | AK68: 0 | AL68: 0 | AM68: 273000 | AN68: 125000 | AO68: 0 | AP68: 0.4578754579 | AQ68: - | AR68: 70000 | AS68: 0 | AT68: 0 | AU68: 0 | AV68: - | AW68: 100000 | AX68: 0 | AY68: 0 | AZ68: 0 | BA68: - | BB68: 104500 | BC68: 0 | BD68: 0 | BE68: 0 | BF68: - | BG68: 547500 | BH68: 125000 | BI68: 0 | BJ68: 0.2283105023 | BK68: - | BL68: 1. Fin de la pobreza | BM68: Atención a grupos vulnerables - Promoción Social | BN68: Sec. Desarrollo Social
K69: Realizar el acompañamiento al 30% de las adolescentes gestantes y madres adolescentes. | L69: 2210707 | M69: Porcentaje de las adolescentes gestantes y madres adolescentes con acompañamiento. | N69: 0.3 | O69: 0.3 | P69: 0.3 | Q69: 0.25 | R69: 0.3 | S69: 0.25 | T69: 0.3 | U69: 0.25 | V69: 0.3 | W69: 0.25 | X69: 0 | Y69: 0 | Z69: 0 | AA69: 0 | AB69: 0 | AC69: 0 | AD69: 0 | AE69: 0 | AF69: 0 | AG69: 0 | AH69: 0 | AI69: 0 | AJ69: 0 | AK69: 0 | AL69: 0 | AM69: 85000 | AN69: 0 | AO69: 0 | AP69: 0 | AQ69: - | AR69: 104500 | AS69: 0 | AT69: 0 | AU69: 0 | AV69: - | AW69: 109202 | AX69: 0 | AY69: 0 | AZ69: 0 | BA69: - | BB69: 70000 | BC69: 0 | BD69: 0 | BE69: 0 | BF69: - | BG69: 368702 | BH69: 0 | BI69: 0 | BJ69: 0 | BK69: - | BL69: 1. Fin de la pobreza | BM69: Atención a grupos vulnerables - Promoción Social | BN69: Sec. Desarrollo Social
K70: Brindar atención psicosocial especializada al 100% de las familias en condiciones de vulnerabilidad con niñas y niños con enfermedades crónicas y terminales que lo requieran. | L70: 2210707 | M70: Porcentaje de familias en condiciones de vulnerabilidad con niñas y niños con enfermedades crónicas y terminales con atención psicosocial especializada de acuerdo a lo requerido. | N70: 1 | O70: 1 | P70: 1 | Q70: 0.25 | R70: 1 | S70: 0.25 | T70: 1 | U70: 0.25 | V70: 1 | W70: 0.25 | X70: 0 | Y70: 0 | Z70: 0 | AA70: 0 | AB70: 0 | AC70: 0 | AD70: 0 | AE70: 0 | AF70: 0 | AG70: 0 | AH70: 0 | AI70: 0 | AJ70: 0 | AK70: 0 | AL70: 0 | AM70: 90000 | AN70: 0 | AO70: 0 | AP70: 0 | AQ70: - | AR70: 90000 | AS70: 0 | AT70: 0 | AU70: 0 | AV70: - | AW70: 120000 | AX70: 0 | AY70: 0 | AZ70: 0 | BA70: - | BB70: 125400 | BC70: 0 | BD70: 0 | BE70: 0 | BF70: - | BG70: 425400 | BH70: 0 | BI70: 0 | BJ70: 0 | BK70: - | BL70: 1. Fin de la pobreza | BM70: Atención a grupos vulnerables - Promoción Social | BN70: Sec. Desarrollo Social
K71: Realizar 4 jornadas de conmemoración del día de la niñez | L71: 2210707 | M71: Número de jornadas de conmemoración del día de la niñez realizadas. | N71: 4 | O71: 4 | P71: 1 | Q71: 0.25 | R71: 1 | S71: 0.25 | T71: 1 | U71: 0.25 | V71: 1 | W71: 0.25 | X71: 0 | Y71: 0 | Z71: 0 | AA71: 0 | AB71: 0 | AC71: 0 | AD71: 0 | AE71: 0 | AF71: 0 | AG71: 0 | AH71: 0 | AI71: 0 | AJ71: =+SUM(X71:AA71)/O71 -> 0 | AK71: 0 | AL71: 0 | AM71: 52000 | AN71: 0 | AO71: 0 | AP71: 0 | AQ71: - | AR71: 90000 | AS71: 0 | AT71: 0 | AU71: 0 | AV71: - | AW71: 120000 | AX71: 0 | AY71: 0 | AZ71: 0 | BA71: - | BB71: 125400 | BC71: 0 | BD71: 0 | BE71: 0 | BF71: - | BG71: 387400 | BH71: 0 | BI71: 0 | BJ71: 0 | BK71: - | BL71: 1. Fin de la pobreza | BM71: Atención a grupos vulnerables - Promoción Social | BN71: Sec. Desarrollo Social
K72: Realizar 8 jornadas "Mi nombre - mi ciudadanía" para la garantía del derecho a la identidad en alianza con la Registraduría. | L72: 2210707 | M72: Número de jornadas "Mi nombre - mi ciudadanía" realizadas para la garantía del derecho a la identidad en alianza con la Registraduría. | N72: 4 | O72: 8 | P72: 2 | Q72: 0.25 | R72: 2 | S72: 0.25 | T72: 2 | U72: 0.25 | V72: 2 | W72: 0.25 | X72: 0 | Y72: 0 | Z72: 0 | AA72: 0 | AB72: 0 | AC72: 0 | AD72: 0 | AE72: 0 | AF72: 0 | AG72: 0 | AH72: 0 | AI72: 0 | AJ72: =+SUM(X72:AA72)/O72 -> 0 | AK72: 0 | AL72: 0 | AM72: 10000 | AN72: 0 | AO72: 0 | AP72: 0 | AQ72: - | AR72: 20900 | AS72: 0 | AT72: 0 | AU72: 0 | AV72: - | AW72: 21840 | AX72: 0 | AY72: 0 | AZ72: 0 | BA72: - | BB72: 22823 | BC72: 0 | BD72: 0 | BE72: 0 | BF72: - | BG72: 75563 | BH72: 0 | BI72: 0 | BJ72: 0 | BK72: - | BL72: 1. Fin de la pobreza | BM72: Atención a grupos vulnerables - Promoción Social | BN72: Sec. Desarrollo Social
K73: Realizar 4 dotaciones de material pedagógico, didáctico y lúdico a programas y/o centros de atención de primera infancia. | L73: 2210707 | M73: Número de dotaciones de material pedagógica, didáctico y lúdico realizados a programas y/o centros de atención de primera infancia. | N73: 0 | O73: 4 | P73: 1 | Q73: 0.25 | R73: 1 | S73: 0.25 | T73: 1 | U73: 0.25 | V73: 1 | W73: 0.25 | X73: 0 | Y73: 0 | Z73: 0 | AA73: 0 | AB73: 0 | AC73: 0 | AD73: 0 | AE73: 0 | AF73: 0 | AG73: 0 | AH73: 0 | AI73: 0 | AJ73: =+SUM(X73:AA73)/O73 -> 0 | AK73: 0 | AL73: 0 | AM73: 180000 | AN73: 0 | AO73: 0 | AP73: 0 | AQ73: - | AR73: 120000 | AS73: 0 | AT73: 0 | AU73: 0 | AV73: - | AW73: 180000 | AX73: 0 | AY73: 0 | AZ73: 0 | BA73: - | BB73: 188100 | BC73: 0 | BD73: 0 | BE73: 0 | BF73: - | BG73: 668100 | BH73: 0 | BI73: 0 | BJ73: 0 | BK73: - | BL73: 1. Fin de la pobreza | BM73: Atención a grupos vulnerables - Promoción Social | BN73: Sec. Desarrollo Social
K74: Activar las rutas de atención para garantizar la inclusión social del 100% niñas y niños en situación de vulnerabilidad y/o riesgo con enfoque diferencial (discapacidad, víctimas, minorías étnicas, afrodescendientes). | L74: 2210707 | M74: Porcentaje de niñas y niños en situación de vulnerabilidad y/o riesgo con enfoque diferencial (discapacidad, víctimas, minorías étnicas, afrodescendientes) con rutas de atención activadas. | N74: 0 | O74: 1 | P74: 1 | Q74: 0.25 | R74: 1 | S74: 0.25 | T74: 1 | U74: 0.25 | V74: 1 | W74: 0.25 | X74: 0.5 | Y74: 0 | Z74: 0 | AA74: 0 | AB74: 0.5 | AC74: 0.5 | AD74: 0 | AE74: 0 | AF74: 0 | AG74: 0 | AH74: 0 | AI74: 0 | AJ74: 0.125 | AK74: 0.125 | AL74: 0.125 | AM74: 150000 | AN74: 90000 | AO74: 0 | AP74: 0.6 | AQ74: - | AR74: 0 | AS74: 0 | AT74: 0 | AU74: - | AV74: - | AW74: 0 | AX74: 0 | AY74: 0 | AZ74: - | BA74: - | BB74: 0 | BC74: 0 | BD74: 0 | BE74: - | BF74: - | BG74: 150000 | BH74: 90000 | BI74: 0 | BJ74: 0.6 | BK74: - | BL74: 1. Fin de la pobreza | BM74: Atención a grupos vulnerables - Promoción Social | BN74: Sec. Desarrollo Social
F75: Mantener por debajo de 10 la tasa de mortalidad en niñas y niños menores de 1 años. | G75: 10.3 | H75: 10 | K75: Implementar y mantener 1 centro de atención integral nocturno "Casa búho" para niñas y niños de 0 a 5 años. | L75: 2210707 | M75: Número de centros de atención integral nocturno "Casa búho" implementadas y mantenidas para niñas y niños de 0 a 5 años. | N75: 0 | O75: 1 | P75: 1 | Q75: 0.25 | R75: 1 | S75: 0.25 | T75: 1 | U75: 0.25 | V75: 1 | W75: 0.25 | X75: 0 | Y75: 0 | Z75: 0 | AA75: 0 | AB75: 0 | AC75: 0 | AD75: 0 | AE75: 0 | AF75: 0 | AG75: 0 | AH75: 0 | AI75: 0 | AJ75: 0 | AK75: 0 | AL75: 0 | AM75: 200000 | AN75: 0 | AO75: 0 | AP75: 0 | AQ75: - | AR75: 150000 | AS75: 0 | AT75: 0 | AU75: 0 | AV75: - | AW75: 200000 | AX75: 0 | AY75: 0 | AZ75: 0 | BA75: - | BB75: 209000 | BC75: 0 | BD75: 0 | BE75: 0 | BF75: - | BG75: 759000 | BH75: 0 | BI75: 0 | BJ75: 0 | BK75: - | BL75: 1. Fin de la pobreza | BM75: Atención a grupos vulnerables - Promoción Social | BN75: Sec. Desarrollo Social
K76: Actualizar la política pública de primera infancia, infancia, adolescencia y fortalecimiento familiar. | L76: 2210707 | M76: Número de políticas públicas de primera infancia, infancia, adolescencia y fortalecimiento familiar actualizadas. | N76: 1 | O76: 1 | P76: 1 | Q76: 1 | R76: 0 | S76: 0 | T76: 0 | U76: 0 | V76: 0 | W76: 0 | X76: 0 | Y76: 0 | Z76: 0 | AA76: 0 | AB76: =IF(P76=0," -",X76/P76) -> 0 | AC76: =IF(P76=0," -",IF(AB76>100%,100%,AB76)) -> 0 | AD76: =IF(R76=0," -",Y76/R76) -> - | AE76: =IF(R76=0," -",IF(AD76>100%,100%,AD76)) -> - | AF76: =IF(T76=0," -",Z76/T76) -> - | AG76: =IF(T76=0," -",IF(AF76>100%,100%,AF76)) -> - | AH76: =IF(V76=0," -",AA76/V76) -> - | AI76: =IF(V76=0," -",IF(AH76>100%,100%,AH76)) -> - | AJ76: =+SUM(X76:AA76)/O76 -> 0 | AK76: =+IF(AJ76>100%,100%,AJ76) -> 0 | AL76: =+AK76 -> 0 | AM76: 8000 | AN76: 0 | AO76: 0 | AP76: 0 | AQ76: - | AR76: 0 | AS76: 0 | AT76: 0 | AU76: - | AV76: - | AW76: 0 | AX76: 0 | AY76: 0 | AZ76: - | BA76: - | BB76: 0 | BC76: 0 | BD76: 0 | BE76: - | BF76: - | BG76: 8000 | BH76: 0 | BI76: 0 | BJ76: 0 | BK76: - | BL76: 1. Fin de la pobreza | BM76: Atención a grupos vulnerables - Promoción Social | BN76: Sec. Desarrollo Social
K77: Mantener el servicio exequial a niñas y niños de familias con extrema vulnerabilidad que así lo requieran. | L77: 2210869 | M77: Número de servicios exequiales a niñas y niños de familias con extrema vulnerabilidad mantenidos de acuerdo a lo requerido. | N77: 1 | O77: 1 | P77: 1 | Q77: 0.25 | R77: 1 | S77: 0.25 | T77: 1 | U77: 0.25 | V77: 1 | W77: 0.25 | X77: 0 | Y77: 0 | Z77: 0 | AA77: 0 | AB77: 0 | AC77: 0 | AD77: 0 | AE77: 0 | AF77: 0 | AG77: 0 | AH77: 0 | AI77: 0 | AJ77: =+AVERAGE(X77:AA77)/O77 -> 0 | AK77: 0 | AL77: 0 | AM77: 20000 | AN77: 0 | AO77: 0 | AP77: =IF(AM77=0," -",AN77/AM77) -> 0 | AQ77: =IF(AO77=0," -",IF(AN77=0,100%,AO77/AN77)) -> - | AR77: 20900 | AS77: 0 | AT77: 0 | AU77: =IF(AR77=0," -",AS77/AR77) -> 0 | AV77: =IF(AT77=0," -",IF(AS77=0,100%,AT77/AS77)) -> - | AW77: 21480 | AX77: 0 | AY77: 0 | AZ77: =IF(AW77=0," -",AX77/AW77) -> 0 | BA77: =IF(AY77=0," -",IF(AX77=0,100%,AY77/AX77)) -> - | BB77: 22823 | BC77: 0 | BD77: 0 | BE77: =IF(BB77=0," -",BC77/BB77) -> 0 | BF77: =IF(BD77=0," -",IF(BC77=0,100%,BD77/BC77)) -> - | BG77: =+AM77+AR77+AW77+BB77 -> 85203 | BH77: =+AN77+AS77+AX77+BC77 -> 0 | BI77: =+AO77+AT77+AY77+BD77 -> 0 | BJ77: =IF(BG77=0," -",BH77/BG77) -> 0 | BK77: =IF(BI77=0," -",IF(BH77=0,100%,BI77/BH77)) -> - | BL77: 1. Fin de la pobreza | BM77: Atención a grupos vulnerables - Promoción Social | BN77: Sec. Desarrollo Social
K78: Implementar y mantener la estrategia "Mil días de vida" en IPS de atención materno infantil. | L78: 2210943 | M78: Número de estrategias "Mil días de vida" implementadas y mantenidas en IPS de atención materno infantil. | N78: 0 | O78: 1 | P78: 1 | Q78: 0.25 | R78: 1 | S78: 0.25 | T78: 1 | U78: 0.25 | V78: 1 | W78: 0.25 | X78: 0 | Y78: 0 | Z78: 0 | AA78: 0 | AB78: 0 | AC78: 0 | AD78: 0 | AE78: 0 | AF78: 0 | AG78: 0 | AH78: 0 | AI78: 0 | AJ78: 0 | AK78: 0 | AL78: 0 | AM78: 6700 | AN78: 0 | AO78: 0 | AP78: 0 | AQ78: - | AR78: 62700 | AS78: 0 | AT78: 0 | AU78: 0 | AV78: - | AW78: 65522 | AX78: 0 | AY78: 0 | AZ78: 0 | BA78: - | BB78: 68470 | BC78: 0 | BD78: 0 | BE78: 0 | BF78: - | BG78: 203392 | BH78: 0 | BI78: 0 | BJ78: 0 | BK78: - | BL78: 3. Salud y bienestar | BM78: Atención a grupos vulnerables - Promoción Social | BN78: Sec. Salud y Ambiente
K79: Implementar y mantener 5 salas ERA en IPS públicas. | L79: 2210943 | M79: Número de salas ERA implementadas y mantenidas en IPS públicas. | N79: 0 | O79: 5 | P79: 5 | Q79: 0.25 | R79: 5 | S79: 0.25 | T79: 5 | U79: 0.25 | V79: 5 | W79: 0.25 | X79: 0 | Y79: 0 | Z79: 0 | AA79: 0 | AB79: 0 | AC79: 0 | AD79: 0 | AE79: 0 | AF79: 0 | AG79: 0 | AH79: 0 | AI79: 0 | AJ79: 0 | AK79: 0 | AL79: 0 | AM79: 6400 | AN79: 0 | AO79: 0 | AP79: 0 | AQ79: - | AR79: 135850 | AS79: 0 | AT79: 0 | AU79: 0 | AV79: - | AW79: 141963 | AX79: 0 | AY79: 0 | AZ79: 0 | BA79: - | BB79: 148352 | BC79: 0 | BD79: 0 | BE79: 0 | BF79: - | BG79: 432565 | BH79: 0 | BI79: 0 | BJ79: 0 | BK79: - | BL79: 3. Salud y bienestar | BM79: Atención a grupos vulnerables - Promoción Social | BN79: Sec. Salud y Ambiente
K80: Mantener al 100% de los casos por desnutrición en la niñez unidad de análisis. | L80: 2210943 | M80: Porcentaje de casos por desnutrición en la niñez con unidad de análisis. | N80: 0 | O80: 1 | P80: 1 | Q80: 0.25 | R80: 1 | S80: 0.25 | T80: 1 | U80: 0.25 | V80: 1 | W80: 0.25 | X80: 1 | Y80: 0 | Z80: 0 | AA80: 0 | AB80: 1 | AC80: 1 | AD80: 0 | AE80: 0 | AF80: 0 | AG80: 0 | AH80: 0 | AI80: 0 | AJ80: 0.25 | AK80: 0.25 | AL80: 0.25 | AM80: 1742 | AN80: 1161 | AO80: 0 | AP80: 0.6664753157 | AQ80: - | AR80: 73150 | AS80: 0 | AT80: 0 | AU80: 0 | AV80: - | AW80: 76442 | AX80: 0 | AY80: 0 | AZ80: 0 | BA80: - | BB80: 79881 | BC80: 0 | BD80: 0 | BE80: 0 | BF80: - | BG80: 231215 | BH80: 1161 | BI80: 0 | BJ80: 0.005021300521 | BK80: - | BL80: 3. Salud y bienestar | BM80: Atención a grupos vulnerables - Promoción Social | BN80: Sec. Salud y Ambiente
K81: Mantener la estrategia AIEPI e IAMI en las IPS materno infantil. | L81: 2210943 | M81: Número de estrategias AIEPI e IAMI mantenidas en las IPS materno infantil. | N81: 1 | O81: 1 | P81: 1 | Q81: 0.25 | R81: 1 | S81: 0.25 | T81: 1 | U81: 0.25 | V81: 1 | W81: 0.25 | X81: 0.2 | Y81: 0 | Z81: 0 | AA81: 0 | AB81: 0.2 | AC81: 0.2 | AD81: 0 | AE81: 0 | AF81: 0 | AG81: 0 | AH81: 0 | AI81: 0 | AJ81: 0.05 | AK81: 0.05 | AL81: 0.05 | AM81: 151884 | AN81: 2323 | AO81: 0 | AP81: 0.01529456691 | AQ81: - | AR81: 153897 | AS81: 0 | AT81: 0 | AU81: 0 | AV81: - | AW81: 160827 | AX81: 0 | AY81: 0 | AZ81: 0 | BA81: - | BB81: 168060 | BC81: 0 | BD81: 0 | BE81: 0 | BF81: - | BG81: 634668 | BH81: 2323 | BI81: 0 | BJ81: 0.003660181386 | BK81: - | BL81: 3. Salud y bienestar | BM81: Atención a grupos vulnerables - Promoción Social | BN81: Sec. Salud y Ambiente
F82: Lograr y mantener el 100% de la población pobre de niñas y niños afiliados al régimen subsidiado. | G82: 0.98 | H82: 1 | I82: =+RESUMEN!J51 -> 0.02832 | J82: JUGANDO Y APRENDIENDO (INFANCIA) | K82: Realizar 8 jornadas de promoción de los derechos de niñas, niños y adolescentes. | L82: 0 | M82: Número de jornadas de promoción de los derechos de niñas y niños y adolescentes realizados. | N82: 1 | O82: 8 | P82: 2 | Q82: =+P82/O82 -> 0.25 | R82: 2 | S82: =+R82/O82 -> 0.25 | T82: 2 | U82: =+T82/O82 -> 0.25 | V82: 2 | W82: =+V82/O82 -> 0.25 | X82: 0 | Y82: 0 | Z82: 0 | AA82: 0 | AB82: 0 | AC82: 0 | AD82: 0 | AE82: 0 | AF82: 0 | AG82: 0 | AH82: 0 | AI82: 0 | AJ82: =+SUM(X82:AA82)/O82 -> 0 | AK82: 0 | AL82: 0 | AM82: 20000 | AN82: 0 | AO82: 0 | AP82: 0 | AQ82: - | AR82: 0 | AS82: 0 | AT82: 0 | AU82: - | AV82: - | AW82: 0 | AX82: 0 | AY82: 0 | AZ82: - | BA82: - | BB82: 0 | BC82: 0 | BD82: 0 | BE82: - | BF82: - | BG82: 20000 | BH82: 0 | BI82: 0 | BJ82: 0 | BK82: - | BL82: 1. Fin de la pobreza | BM82: Atención a grupos vulnerables - Promoción Social | BN82: Sec. Desarrollo Social
K83: Brindar a 4.000 niñas y niños de 6 a 11 años programas para potenciar el desarrollo del aprendizaje, juego, desarrollo psicomotor, la creatividad y las habilidades relacionales. | L83: 0 | M83: Número de niñas y niños de 6 a 11 años beneficiados con programas para potenciar el desarrollo del aprendizaje, juego, desarrollo psicomotor, la creatividad y las habilidades relacionales. | N83: 2400 | O83: 4000 | P83: 600 | Q83: 0.15 | R83: 1000 | S83: 0.25 | T83: 1200 | U83: 0.3 | V83: 1200 | W83: 0.3 | X83: 0 | Y83: 0 | Z83: 0 | AA83: 0 | AB83: 0 | AC83: 0 | AD83: 0 | AE83: 0 | AF83: 0 | AG83: 0 | AH83: 0 | AI83: 0 | AJ83: =+SUM(X83:AA83)/O83 -> 0 | AK83: 0 | AL83: 0 | AM83: 100000 | AN83: 0 | AO83: 0 | AP83: 0 | AQ83: - | AR83: 80000 | AS83: 0 | AT83: 0 | AU83: 0 | AV83: - | AW83: 100000 | AX83: 0 | AY83: 0 | AZ83: 0 | BA83: - | BB83: 104500 | BC83: 0 | BD83: 0 | BE83: 0 | BF83: - | BG83: 384500 | BH83: 0 | BI83: 0 | BJ83: 0 | BK83: - | BL83: 1. Fin de la pobreza | BM83: Atención a grupos vulnerables - Promoción Social | BN83: Sec. Desarrollo Social
K84: Promover la participación y movilización social de 4.000 niñas, niños y adolescentes dentro de la vida comunitaria. | L84: 0 | M84: Número de niñas, niños y adolescentes con participación y movilización promovidas dentro de la vida comunitaria. | N84: 2400 | O84: 4000 | P84: 600 | Q84: 0.15 | R84: 1000 | S84: 0.25 | T84: 1200 | U84: 0.3 | V84: 1200 | W84: 0.3 | X84: 0 | Y84: 0 | Z84: 0 | AA84: 0 | AB84: 0 | AC84: 0 | AD84: 0 | AE84: 0 | AF84: 0 | AG84: 0 | AH84: 0 | AI84: 0 | AJ84: =+SUM(X84:AA84)/O84 -> 0 | AK84: 0 | AL84: 0 | AM84: 100000 | AN84: 0 | AO84: 0 | AP84: 0 | AQ84: - | AR84: 144675 | AS84: 0 | AT84: 0 | AU84: 0 | AV84: - | AW84: 168035 | AX84: 0 | AY84: 0 | AZ84: 0 | BA84: - | BB84: 175596 | BC84: 0 | BD84: 0 | BE84: 0 | BF84: - | BG84: 588306 | BH84: 0 | BI84: 0 | BJ84: 0 | BK84: - | BL84: 1. Fin de la pobreza | BM84: Atención a grupos vulnerables - Promoción Social | BN84: Sec. Desarrollo Social
K85: Mantener 1 estrategia de prevención del maltrato infantil, violencia sexual y violencia intrafamiliar. | L85: 0 | M85: Número de estrategias de prevención del maltrato infantil, violencia sexual y violencia intrafamiliar implementadas y mantenidas. | N85: 1 | O85: 1 | P85: 1 | Q85: 0.25 | R85: 1 | S85: 0.25 | T85: 1 | U85: 0.25 | V85: 1 | W85: 0.25 | X85: 0 | Y85: 0 | Z85: 0 | AA85: 0 | AB85: 0 | AC85: 0 | AD85: 0 | AE85: 0 | AF85: 0 | AG85: 0 | AH85: 0 | AI85: 0 | AJ85: 0 | AK85: 0 | AL85: 0 | AM85: 200000 | AN85: 0 | AO85: 0 | AP85: 0 | AQ85: - | AR85: 170000 | AS85: 0 | AT85: 0 | AU85: 0 | AV85: - | AW85: 180000 | AX85: 0 | AY85: 0 | AZ85: 0 | BA85: - | BB85: 188100 | BC85: 0 | BD85: 0 | BE85: 0 | BF85: - | BG85: 738100 | BH85: 0 | BI85: 0 | BJ85: 0 | BK85: - | BL85: 1. Fin de la pobreza | BM85: Atención a grupos vulnerables - Promoción Social | BN85: Sec. Desarrollo Social
K86: Mantener actualizada y validada la base de datos de identificación de niñas y niños en situación o riesgo de trabajo infantil de acuerdo con los lineamientos de política nacional de erradicación del trabajo infantil. | L86: 0 | M86: Número de bases de datos de identificación de niñas y niños en situación o riesgo de trabajo infantil mantenidos actualizados de acuerdo con los lineamientos de política nacional de erradicación del trabajo infantil. | N86: 1 | O86: 1 | P86: 1 | Q86: 0.25 | R86: 1 | S86: 0.25 | T86: 1 | U86: 0.25 | V86: 1 | W86: 0.25 | X86: 0 | Y86: 0 | Z86: 0 | AA86: 0 | AB86: 0 | AC86: 0 | AD86: 0 | AE86: 0 | AF86: 0 | AG86: 0 | AH86: 0 | AI86: 0 | AJ86: 0 | AK86: 0 | AL86: 0 | AM86: 100000 | AN86: 0 | AO86: 0 | AP86: 0 | AQ86: - | AR86: 104500 | AS86: 0 | AT86: 0 | AU86: 0 | AV86: - | AW86: 109202 | AX86: 0 | AY86: 0 | AZ86: 0 | BA86: - | BB86: 114116 | BC86: 0 | BD86: 0 | BE86: 0 | BF86: - | BG86: 427818 | BH86: 0 | BI86: 0 | BJ86: 0 | BK86: - | BL86: 1. Fin de la pobreza | BM86: Atención a grupos vulnerables - Promoción Social | BN86: Sec. Desarrollo Social
K87: Mantener 1 estrategia comunitaria y familiar para la erradicación de trabajo infantil en niñas, niños y adolescentes caracterizados. | L87: 0 | M87: Número de estrategias comunitarias y familiares mantenidas para la erradicación de trabajo infantil en niñas, niños y adolescentes caracterizados. | N87: 1 | O87: 1 | P87: 1 | Q87: 0.25 | R87: 1 | S87: 0.25 | T87: 1 | U87: 0.25 | V87: 1 | W87: 0.25 | X87: 1 | Y87: 0 | Z87: 0 | AA87: 0 | AB87: 1 | AC87: 1 | AD87: 0 | AE87: 0 | AF87: 0 | AG87: 0 | AH87: 0 | AI87: 0 | AJ87: 0.25 | AK87: 0.25 | AL87: 0.25 | AM87: 150000 | AN87: 0 | AO87: 0 | AP87: 0 | AQ87: - | AR87: 156750 | AS87: 0 | AT87: 0 | AU87: 0 | AV87: - | AW87: 163802 | AX87: 0 | AY87: 0 | AZ87: 0 | BA87: - | BB87: 171174 | BC87: 0 | BD87: 0 | BE87: 0 | BF87: - | BG87: 641726 | BH87: 0 | BI87: 0 | BJ87: 0 | BK87: - | BL87: 1. Fin de la pobreza | BM87: Atención a grupos vulnerables - Promoción Social | BN87: Sec. Desarrollo Social
F88: Mantener por debajo de 28 la razón de mortalidad materna por 1.000 nacidos vivos por causas directas e indirectas. | G88: 28 | H88: 28 | K88: Mantener atención integral a 33 niños en la modalidad de semi-internado (refugio social). | L88: 0 | M88: Número de niños mantenidos con atención integral en la modalidad de semi-internado (refugio social). | N88: 33 | O88: 33 | P88: 33 | Q88: 0.25 | R88: 33 | S88: 0.25 | T88: 33 | U88: 0.25 | V88: 33 | W88: 0.25 | X88: 0 | Y88: 0 | Z88: 0 | AA88: 0 | AB88: 0 | AC88: 0 | AD88: 0 | AE88: 0 | AF88: 0 | AG88: 0 | AH88: 0 | AI88: 0 | AJ88: 0 | AK88: 0 | AL88: 0 | AM88: 120000 | AN88: 0 | AO88: 0 | AP88: 0 | AQ88: - | AR88: 100000 | AS88: 0 | AT88: 0 | AU88: 0 | AV88: - | AW88: 130000 | AX88: 0 | AY88: 0 | AZ88: 0 | BA88: - | BB88: 100000 | BC88: 0 | BD88: 0 | BE88: 0 | BF88: - | BG88: 450000 | BH88: 0 | BI88: 0 | BJ88: 0 | BK88: - | BL88: 1. Fin de la pobreza | BM88: Atención a grupos vulnerables - Promoción Social | BN88: Sec. Desarrollo Social
K89: Brindar y atender a 75.000 niñas, niños y adolescentes con acceso gratuito en espacios de recreación y cultura. | L89: - | M89: Número de niñas, niños y adolescentes con acceso gratuito en espacios de recreación y cultura mantenidos. | N89: 32427 | O89: 75000 | P89: 75000 | Q89: 0.25 | R89: 75000 | S89: 0.25 | T89: 75000 | U89: 0.25 | V89: 75000 | W89: 0.25 | X89: 1464 | Y89: 0 | Z89: 0 | AA89: 0 | AB89: 0.01952 | AC89: 0.01952 | AD89: 0 | AE89: 0 | AF89: 0 | AG89: 0 | AH89: 0 | AI89: 0 | AJ89: 0.00488 | AK89: 0.00488 | AL89: 0.00488 | AM89: 155000 | AN89: 155000 | AO89: 0 | AP89: 1 | AQ89: - | AR89: 0 | AS89: 0 | AT89: 0 | AU89: - | AV89: - | AW89: 0 | AX89: 0 | AY89: 0 | AZ89: - | BA89: - | BB89: 0 | BC89: 0 | BD89: 0 | BE89: - | BF89: - | BG89: 155000 | BH89: 155000 | BI89: 0 | BJ89: 1 | BK89: - | BL89: 1. Fin de la pobreza | BM89: Atención a grupos vulnerables - Promoción Social | BN89: Sec. Desarrollo Social
K90: Realizar 4 jornadas de promoción de los derechos humanos para prevenir la violencia contra niñas y niños. | L90: 2210153 | M90: Número de jornadas de promoción de los derechos humanos para prevenir la violencia contra niñas y niños realizadas. | N90: 4 | O90: 4 | P90: 1 | Q90: 0.25 | R90: 1 | S90: 0.25 | T90: 1 | U90: 0.25 | V90: 1 | W90: 0.25 | X90: 0 | Y90: 0 | Z90: 0 | AA90: 0 | AB90: 0 | AC90: 0 | AD90: 0 | AE90: 0 | AF90: 0 | AG90: 0 | AH90: 0 | AI90: 0 | AJ90: =+SUM(X90:AA90)/O90 -> 0 | AK90: 0 | AL90: 0 | AM90: 0 | AN90: 0 | AO90: 0 | AP90: - | AQ90: - | AR90: 30000 | AS90: 0 | AT90: 0 | AU90: 0 | AV90: - | AW90: 30000 | AX90: 0 | AY90: 0 | AZ90: 0 | BA90: - | BB90: 30000 | BC90: 0 | BD90: 0 | BE90: 0 | BF90: - | BG90: 90000 | BH90: 0 | BI90: 0 | BJ90: 0 | BK90: - | BL90: 16. Paz, justicia e instituciones sólidas | BM90: Atención a grupos vulnerables - Promoción Social | BN90: Sec. Interior
I91: =+RESUMEN!J52 -> 0.0625 | J91: CRECIENDO Y CONSTRUYENDO (ADOLESCENCIA) | K91: Implementar y mantener 1 estrategia para la promoción de habilidades para la vida en el marco de la estrategia de atención integral a niños, niñas y adolescentes con énfasis en prevención de embarazo en adolescentes. | L91: 2210260 | M91: Número de estrategias implementadas y mantenidas para la promoción de habilidades para la vida en el marco de la estrategia de atención integral a niños, niñas y adolescentes con énfasis en prevención de embarazo en adolescentes. | N91: 0 | O91: 1 | P91: 1 | Q91: 0.25 | R91: 1 | S91: 0.25 | T91: 1 | U91: 0.25 | V91: 1 | W91: 0.25 | X91: 0 | Y91: 0 | Z91: 0 | AA91: 0 | AB91: 0 | AC91: 0 | AD91: 0 | AE91: 0 | AF91: 0 | AG91: 0 | AH91: 0 | AI91: 0 | AJ91: 0 | AK91: 0 | AL91: 0 | AM91: 93500 | AN91: 0 | AO91: 0 | AP91: 0 | AQ91: - | AR91: 60000 | AS91: 0 | AT91: 0 | AU91: 0 | AV91: - | AW91: 62700 | AX91: 0 | AY91: 0 | AZ91: 0 | BA91: - | BB91: 65520 | BC91: 0 | BD91: 0 | BE91: 0 | BF91: - | BG91: 281720 | BH91: 0 | BI91: 0 | BJ91: 0 | BK91: - | BL91: 16. Paz, justicia e instituciones sólidas | BM91: Atención a grupos vulnerables - Promoción Social | BN91: Sec. Desarrollo Social
K92: Implementar y mantener la estrategia "Trayectos y proyectos" para potenciar capacidades, proyectos de vida, emprendimientos juveniles. | L92: 2210260 | M92: Número de estrategias "Trayectos y proyectos" implementadas y mantenidas para potenciar capacidades, proyectos de vida, emprendimientos juveniles. | N92: 0 | O92: 1 | P92: 1 | Q92: 0.25 | R92: 1 | S92: 0.25 | T92: 1 | U92: 0.25 | V92: 1 | W92: 0.25 | X92: 0 | Y92: 0 | Z92: 0 | AA92: 0 | AB92: 0 | AC92: 0 | AD92: 0 | AE92: 0 | AF92: 0 | AG92: 0 | AH92: 0 | AI92: 0 | AJ92: 0 | AK92: 0 | AL92: 0 | AM92: 129000 | AN92: 0 | AO92: 0 | AP92: 0 | AQ92: - | AR92: 80000 | AS92: 0 | AT92: 0 | AU92: 0 | AV92: - | AW92: 83600 | AX92: 0 | AY92: 0 | AZ92: 0 | BA92: - | BB92: 87362 | BC92: 0 | BD92: 0 | BE92: 0 | BF92: - | BG92: 379962 | BH92: 0 | BI92: 0 | BJ92: 0 | BK92: - | BL92: 16. Paz, justicia e instituciones sólidas | BM92: Atención a grupos vulnerables - Promoción Social | BN92: Sec. Desarrollo Social
K93: Implementar y mantener la estrategia "Me protejo, me protegen" rutas de acompañamiento y protección integral para adolescentes ante inobservancia, amenaza o vulneración de derechos. | L93: 2210260 | M93: Número de estrategias "Me protejo, me protegen" rutas de acompañamiento y protección integral implementadas y mantenidas para adolescentes ante inobservancia, amenaza o vulneración de derechos. | N93: 1 | O93: 1 | P93: 1 | Q93: 0.25 | R93: 1 | S93: 0.25 | T93: 1 | U93: 0.25 | V93: 1 | W93: 0.25 | X93: 0 | Y93: 0 | Z93: 0 | AA93: 0 | AB93: 0 | AC93: 0 | AD93: 0 | AE93: 0 | AF93: 0 | AG93: 0 | AH93: 0 | AI93: 0 | AJ93: 0 | AK93: 0 | AL93: 0 | AM93: 144000 | AN93: 0 | AO93: 0 | AP93: 0 | AQ93: - | AR93: 73150 | AS93: 0 | AT93: 0 | AU93: 0 | AV93: - | AW93: 76440 | AX93: 0 | AY93: 0 | AZ93: 0 | BA93: - | BB93: 79881 | BC93: 0 | BD93: 0 | BE93: 0 | BF93: - | BG93: 373471 | BH93: 0 | BI93: 0 | BJ93: 0 | BK93: - | BL93: 16. Paz, justicia e instituciones sólidas | BM93: Atención a grupos vulnerables - Promoción Social | BN93: Sec. Desarrollo Social
F94: Aumentar al 98% la cobertura útil de vacunación. | G94: 0.95 | H94: 0.98 | K94: Mantener la atención integral al 100% de los menores infractores (SRPA). | L94: 2210675 | M94: Porcentaje de menores infractores con atención integral mantenida. | N94: 1 | O94: 1 | P94: 1 | Q94: 0.25 | R94: 1 | S94: 0.25 | T94: 1 | U94: 0.25 | V94: 1 | W94: 0.25 | X94: 1 | Y94: 0 | Z94: 0 | AA94: 0 | AB94: 1 | AC94: 1 | AD94: 0 | AE94: 0 | AF94: 0 | AG94: 0 | AH94: 0 | AI94: 0 | AJ94: 0.25 | AK94: 0.25 | AL94: 0.25 | AM94: 526944 | AN94: 526944 | AO94: 0 | AP94: 1 | AQ94: - | AR94: 1000000 | AS94: 0 | AT94: 0 | AU94: 0 | AV94: - | AW94: 1000000 | AX94: 0 | AY94: 0 | AZ94: 0 | BA94: - | BB94: 1000000 | BC94: 0 | BD94: 0 | BE94: 0 | BF94: - | BG94: 3526944 | BH94: 526944 | BI94: 0 | BJ94: 0.1494052642 | BK94: - | BL94: 16. Paz, justicia e instituciones sólidas | BM94: Atención a grupos vulnerables - Promoción Social | BN94: Sec. Interior
K95: Incluir al 100% de los jóvenes infractores del SRPA en la estrategia de justicia juvenil restaurativa. | L95: 2210675 | M95: Porcentaje de jóvenes infractores incluidos a la justicia juvenil restaurativa. | N95: 1 | O95: 1 | P95: 1 | Q95: 0.25 | R95: 1 | S95: 0.25 | T95: 1 | U95: 0.25 | V95: 1 | W95: 0.25 | X95: 1 | Y95: 0 | Z95: 0 | AA95: 0 | AB95: 1 | AC95: 1 | AD95: 0 | AE95: 0 | AF95: 0 | AG95: 0 | AH95: 0 | AI95: 0 | AJ95: 0.25 | AK95: 0.25 | AL95: 0.25 | AM95: 0 | AN95: 0 | AO95: 0 | AP95: - | AQ95: - | AR95: 342280 | AS95: 0 | AT95: 0 | AU95: 0 | AV95: - | AW95: 350000 | AX95: 0 | AY95: 0 | AZ95: 0 | BA95: - | BB95: 350000 | BC95: 0 | BD95: 0 | BE95: 0 | BF95: - | BG95: 1042280 | BH95: 0 | BI95: 0 | BJ95: 0 | BK95: - | BL95: 16. Paz, justicia e instituciones sólidas | BM95: Atención a grupos vulnerables - Promoción Social | BN95: Sec. Interior
K96: Garantizar 1 hogar de paso para las niñas, niños y adolescentes en riesgo y/o vulnerabilidad. | L96: 2210268 | M96: Número de hogares de paso para las niñas, niños y adolescentes en riesgo garantizado. | N96: 1 | O96: 1 | P96: 1 | Q96: 0.25 | R96: 1 | S96: 0.25 | T96: 1 | U96: 0.25 | V96: 1 | W96: 0.25 | X96: 0 | Y96: 0 | Z96: 0 | AA96: 0 | AB96: 0 | AC96: 0 | AD96: 0 | AE96: 0 | AF96: 0 | AG96: 0 | AH96: 0 | AI96: 0 | AJ96: 0 | AK96: 0 | AL96: 0 | AM96: 80000 | AN96: 0 | AO96: 0 | AP96: 0 | AQ96: - | AR96: 200000 | AS96: 0 | AT96: 0 | AU96: 0 | AV96: - | AW96: 200000 | AX96: 0 | AY96: 0 | AZ96: 0 | BA96: - | BB96: 200000 | BC96: 0 | BD96: 0 | BE96: 0 | BF96: - | BG96: 680000 | BH96: 0 | BI96: 0 | BJ96: 0 | BK96: - | BL96: 16. Paz, justicia e instituciones sólidas | BM96: Atención a grupos vulnerables - Promoción Social | BN96: Sec. Interior
K97: Realizar 1 convenio interinstitucional para la construcción y dotación de un centro de atención especializado para la atención de los adolescentes en conflicto con la ley, acorde a los requerimientos de la ley de infancia y adolescencia. | L97: - | M97: Número de convenios realizados para la construcción y dotación de un centro de atención especializado para la atención de los adolescentes en conflicto con la ley, acorde a los requerimientos de la ley de infancia y adolescencia. | N97: 0 | O97: 1 | P97: 0 | Q97: 0.25 | R97: 1 | S97: 0.25 | T97: 0 | U97: 0.25 | V97: 0 | W97: 0.25 | X97: 0 | Y97: 0 | Z97: 0 | AA97: 0 | AB97: - | AC97: - | AD97: 0 | AE97: 0 | AF97: - | AG97: - | AH97: - | AI97: - | AJ97: 0 | AK97: 0 | AL97: 0 | AM97: 0 | AN97: 0 | AO97: 0 | AP97: - | AQ97: - | AR97: 0 | AS97: 0 | AT97: 0 | AU97: - | AV97: - | AW97: 0 | AX97: 0 | AY97: 0 | AZ97: - | BA97: - | BB97: 0 | BC97: 0 | BD97: 0 | BE97: - | BF97: - | BG97: 0 | BH97: 0 | BI97: 0 | BJ97: - | BK97: - | BL97: 16. Paz, justicia e instituciones sólidas | BM97: Atención a grupos vulnerables - Promoción Social | BN97: Sec. Interior
K98: Implementar y mantener 1 estrategia en las instituciones educativas para el uso de internet de manera segura y responsable. | L98: - | M98: Número de estrategias implementadas y mantenidas en las instituciones educativas para el uso de internet de manera segura y responsable. | N98: 0 | O98: 1 | P98: 1 | Q98: 0.25 | R98: 1 | S98: 0.25 | T98: 1 | U98: 0.25 | V98: 1 | W98: 0.25 | X98: 0 | Y98: 0 | Z98: 0 | AA98: 0 | AB98: 0 | AC98: 0 | AD98: 0 | AE98: 0 | AF98: 0 | AG98: 0 | AH98: 0 | AI98: 0 | AJ98: 0 | AK98: 0 | AL98: 0 | AM98: 0 | AN98: 0 | AO98: 0 | AP98: - | AQ98: - | AR98: 0 | AS98: 0 | AT98: 0 | AU98: - | AV98: - | AW98: 0 | AX98: 0 | AY98: 0 | AZ98: - | BA98: - | BB98: 0 | BC98: 0 | BD98: 0 | BE98: - | BF98: - | BG98: 0 | BH98: 0 | BI98: 0 | BJ98: - | BK98: - | BL98: 4. Educación de calidad | BM98: Educación | BN98: Sec. Educación
I99: =+RESUMEN!J53 -> 0.08635714286 | J99: JÓVENES VITALES | K99: Mantener las 6 casas de la juventud con una oferta programática del uso adecuado del tiempo libre. | L99: 2,4,1,3,1,1 | M99: Número de casas de la juventud mantenidas con una oferta programática del uso adecuado del tiempo libre. | N99: 6 | O99: 6 | P99: 6 | Q99: 0.25 | R99: 6 | S99: 0.25 | T99: 6 | U99: 0.25 | V99: 6 | W99: 0.25 | X99: 4 | Y99: 0 | Z99: 0 | AA99: 0 | AB99: 0.6666666667 | AC99: 0.6666666667 | AD99: 0 | AE99: 0 | AF99: 0 | AG99: 0 | AH99: 0 | AI99: 0 | AJ99: 0.1666666667 | AK99: 0.1666666667 | AL99: 0.1666666667 | AM99: 69000 | AN99: 0 | AO99: 0 | AP99: 0 | AQ99: - | AR99: 120384 | AS99: 0 | AT99: 0 | AU99: 0 | AV99: - | AW99: 125800 | AX99: 0 | AY99: 0 | AZ99: 0 | BA99: - | BB99: 131461 | BC99: 0 | BD99: 0 | BE99: 0 | BF99: - | BG99: 446645 | BH99: 0 | BI99: 0 | BJ99: 0 | BK99: - | BL99: 16. Paz, justicia e instituciones sólidas | BM99: Deporte y recreación | BN99: INDERBU
F100: Reducir por debajo del 15% la proporción de madres - niñas, adolescentes (10 a 19 años). | G100: 0.17 | H100: 0.15 | K100: Vincular 3.000 jóvenes en los diferentes procesos democráticos de participación ciudadana. | L100: 2,4,1,3,1,2 | M100: Número de jóvenes vinculados en los diferentes procesos democráticos de participación ciudadana. | N100: 2000 | O100: 3000 | P100: 500 | Q100: 0.1666666667 | R100: 1000 | S100: 0.3333333333 | T100: 1000 | U100: 0.3333333333 | V100: 500 | W100: 0.1666666667 | X100: 250 | Y100: 0 | Z100: 0 | AA100: 0 | AB100: 0.5 | AC100: 0.5 | AD100: 0 | AE100: 0 | AF100: 0 | AG100: 0 | AH100: 0 | AI100: 0 | AJ100: =+SUM(X100:AA100)/O100 -> 0.08333333333 | AK100: 0.08333333333 | AL100: 0.08333333333 | AM100: 39000 | AN100: 0 | AO100: 0 | AP100: 0 | AQ100: - | AR100: 63221 | AS100: 0 | AT100: 0 | AU100: 0 | AV100: - | AW100: 66066 | AX100: 0 | AY100: 0 | AZ100: 0 | BA100: - | BB100: 69039 | BC100: 0 | BD100: 0 | BE100: 0 | BF100: - | BG100: 237326 | BH100: 0 | BI100: 0 | BJ100: 0 | BK100: - | BL100: 16. Paz, justicia e instituciones sólidas | BM100: Deporte y recreación | BN100: INDERBU
K101: Vincular 5.000 jóvenes en procesos de formación en diferentes competencias de inclusión laboral, social, valores humanos, ambientales y organización juvenil. | L101: 2,4,1,3,1,3 | M101: Número de jóvenes vinculados en procesos de formación en diferentes competencias de inclusión laboral, social, valores humanos, ambientales y organización juvenil. | N101: 5000 | O101: 5000 | P101: 500 | Q101: 0.1 | R101: 2000 | S101: 0.4 | T101: 2000 | U101: 0.4 | V101: 500 | W101: 0.1 | X101: 360 | Y101: 0 | Z101: 0 | AA101: 0 | AB101: 0.72 | AC101: 0.72 | AD101: 0 | AE101: 0 | AF101: 0 | AG101: 0 | AH101: 0 | AI101: 0 | AJ101: =+SUM(X101:AA101)/O101 -> 0.072 | AK101: 0.072 | AL101: 0.072 | AM101: 68000 | AN101: 0 | AO101: 0 | AP101: 0 | AQ101: - | AR101: 216303 | AS101: 0 | AT101: 0 | AU101: 0 | AV101: - | AW101: 226037 | AX101: 0 | AY101: 0 | AZ101: 0 | BA101: - | BB101: 236208 | BC101: 0 | BD101: 0 | BE101: 0 | BF101: - | BG101: 746548 | BH101: 0 | BI101: 0 | BJ101: 0 | BK101: - | BL101: 8. Trabajo decente y crecimiento económico | BM101: Deporte y recreación | BN101: INDERBU
K102: Implementar 10 procesos de comunicación estratégica mediante campañas de innovación para la promoción y prevención de flagelos juveniles. | L102: 2,4,1,3,1,4 | M102: Número de procesos de comunicación estratégica implementados mediante campañas de innovación para la promoción y prevención de flagelos juveniles. | N102: 12 | O102: 10 | P102: 2 | Q102: 0.2 | R102: 3 | S102: 0.3 | T102: 3 | U102: 0.3 | V102: 2 | W102: 0.2 | X102: 2 | Y102: 0 | Z102: 0 | AA102: 0 | AB102: 1 | AC102: 1 | AD102: 0 | AE102: 0 | AF102: 0 | AG102: 0 | AH102: 0 | AI102: 0 | AJ102: =+SUM(X102:AA102)/O102 -> 0.2 | AK102: 0.2 | AL102: 0.2 | AM102: 28000 | AN102: 7000 | AO102: 0 | AP102: 0.25 | AQ102: - | AR102: 172925 | AS102: 0 | AT102: 0 | AU102: 0 | AV102: - | AW102: 180707 | AX102: 0 | AY102: 0 | AZ102: 0 | BA102: - | BB102: 188839 | BC102: 0 | BD102: 0 | BE102: 0 | BF102: - | BG102: 570471 | BH102: 7000 | BI102: 0 | BJ102: 0.01227056239 | BK102: - | BL102: 16. Paz, justicia e instituciones sólidas | BM102: Deporte y recreación | BN102: INDERBU
K103: Reactivar y mantener el Consejo Municipal de Juventud. | L103: - | M103: Número de Consejos Municipales de Juventud reactivados y mantenidos. | N103: 0 | O103: 1 | P103: 0 | Q103: 0.25 | R103: 1 | S103: 0.25 | T103: 1 | U103: 0.25 | V103: 1 | W103: 0.25 | X103: 0 | Y103: 0 | Z103: 0 | AA103: 0 | AB103: - | AC103: - | AD103: 0 | AE103: 0 | AF103: 0 | AG103: 0 | AH103: 0 | AI103: 0 | AJ103: =+AVERAGE(Y103:AA103)/O103 -> 0 | AK103: 0 | AL103: 0 | AM103: 0 | AN103: 0 | AO103: 0 | AP103: - | AQ103: - | AR103: 0 | AS103: 0 | AT103: 0 | AU103: - | AV103: - | AW103: 0 | AX103: 0 | AY103: 0 | AZ103: - | BA103: - | BB103: 0 | BC103: 0 | BD103: 0 | BE103: - | BF103: - | BG103: 0 | BH103: 0 | BI103: 0 | BJ103: - | BK103: - | BL103: 16. Paz, justicia e instituciones sólidas | BM103: Deporte y recreación | BN103: INDERBU
K104: Actualizar y mantener la política pública de juventud. | L104: - | M104: Número de políticas públicas de juventud actualizadas y mantenidas. | N104: 1 | O104: 1 | P104: 1 | Q104: 0.25 | R104: 1 | S104: 0.25 | T104: 1 | U104: 0.25 | V104: 1 | W104: 0.25 | X104: 0.33 | Y104: 0 | Z104: 0 | AA104: 0 | AB104: 0.33 | AC104: 0.33 | AD104: 0 | AE104: 0 | AF104: 0 | AG104: 0 | AH104: 0 | AI104: 0 | AJ104: 0.0825 | AK104: 0.0825 | AL104: 0.0825 | AM104: 0 | AN104: 0 | AO104: 0 | AP104: - | AQ104: - | AR104: 0 | AS104: 0 | AT104: 0 | AU104: - | AV104: - | AW104: 0 | AX104: 0 | AY104: 0 | AZ104: - | BA104: - | BB104: 0 | BC104: 0 | BD104: 0 | BE104: - | BF104: - | BG104: 0 | BH104: 0 | BI104: 0 | BJ104: - | BK104: - | BL104: 16. Paz, justicia e instituciones sólidas | BM104: Deporte y recreación | BN104: INDERBU
K105: Formular e implementar 1 programa de prevención e inclusión social en jóvenes frente al consumo de sustancias psicoactivas y conductas disfuncionales en los ámbitos comunitario, familiar y escolar. | L105: 2210980 | M105: Número de programas de prevención e inclusión social en jóvenes formulados e implementados frente al consumo de sustancias psicoactivas y conductas disfuncionales en los ámbito comunitario, familiar y escolar. | N105: 0 | O105: 1 | P105: 0 | Q105: 0 | R105: 1 | S105: 0.33 | T105: 1 | U105: 0.33 | V105: 1 | W105: 0.34 | X105: 0 | Y105: 0 | Z105: 0 | AA105: 0 | AB105: - | AC105: - | AD105: 0 | AE105: 0 | AF105: 0 | AG105: 0 | AH105: 0 | AI105: 0 | AJ105: =+AVERAGE(Y105:AA105)/O105 -> 0 | AK105: 0 | AL105: 0 | AM105: 0 | AN105: 0 | AO105: 0 | AP105: - | AQ105: - | AR105: 85026 | AS105: 0 | AT105: 0 | AU105: 0 | AV105: - | AW105: 100000 | AX105: 0 | AY105: 0 | AZ105: 0 | BA105: - | BB105: 120000 | BC105: 0 | BD105: 0 | BE105: 0 | BF105: - | BG105: 305026 | BH105: 0 | BI105: 0 | BJ105: 0 | BK105: - | BL105: 3. Salud y bienestar | BM105: Atención a grupos vulnerables - Promoción Social | BN105: Sec. Interior
I106: =+RESUMEN!J54 -> 0.1 | J106: PRIMERO MI FAMILIA | K106: Mantener el apoyo logístico a las familias beneficiadas del programa Familias en Acción. | L106: 2210946 | M106: Número de apoyos logísticos mantenidos a las familias beneficiadas del programa Familias en Acción. | N106: 1 | O106: 1 | P106: 1 | Q106: 0.25 | R106: 1 | S106: 0.25 | T106: 1 | U106: 0.25 | V106: 1 | W106: 0.25 | X106: 1 | Y106: 0 | Z106: 0 | AA106: 0 | AB106: 1 | AC106: 1 | AD106: 0 | AE106: 0 | AF106: 0 | AG106: 0 | AH106: 0 | AI106: 0 | AJ106: 0.25 | AK106: 0.25 | AL106: 0.25 | AM106: 222000 | AN106: 221012 | AO106: 0 | AP106: 0.9955495495 | AQ106: - | AR106: 0 | AS106: 0 | AT106: 0 | AU106: - | AV106: - | AW106: 0 | AX106: 0 | AY106: 0 | AZ106: - | BA106: - | BB106: 0 | BC106: 0 | BD106: 0 | BE106: - | BF106: - | BG106: 222000 | BH106: 221012 | BI106: 0 | BJ106: 0.9955495495 | BK106: - | BL106: 1. Fin de la pobreza | BM106: Atención a grupos vulnerables - Promoción Social | BN106: Sec. Desarrollo Social
F107: Reducir a 0 la tasa de mortalidad por enfermedad diarréica aguda (EDA) en menores de 5 años. | G107: 2.86 | H107: 0 | K107: Brindar al 100% de la personas beneficiadas del programa Familias en Acción acceso gratuito en espacios de recreación y cultura. | L107: - | M107: Porcentaje de personas del programa Familias en Acción beneficiadas con acceso gratuito en espacios de recreación y cultura. | N107: 1 | O107: 1 | P107: 1 | Q107: 0.25 | R107: 1 | S107: 0.25 | T107: 1 | U107: 0.25 | V107: 1 | W107: 0.25 | X107: 0 | Y107: 0 | Z107: 0 | AA107: 0 | AB107: 0 | AC107: 0 | AD107: 0 | AE107: 0 | AF107: 0 | AG107: 0 | AH107: 0 | AI107: 0 | AJ107: 0 | AK107: 0 | AL107: 0 | AM107: 0 | AN107: 0 | AO107: 0 | AP107: - | AQ107: - | AR107: 0 | AS107: 0 | AT107: 0 | AU107: - | AV107: - | AW107: 0 | AX107: 0 | AY107: 0 | AZ107: - | BA107: - | BB107: 0 | BC107: 0 | BD107: 0 | BE107: - | BF107: - | BG107: 0 | BH107: 0 | BI107: 0 | BJ107: - | BK107: - | BL107: 1. Fin de la pobreza | BM107: Atención a grupos vulnerables - Promoción Social | BN107: Sec. Desarrollo Social
K108: Formular e implementar la política pública de familia. | L108: - | M108: Número de políticas públicas de familia formuladas e implementadas. | N108: 0 | O108: 1 | P108: 0 | Q108: 0 | R108: 1 | S108: 0.33 | T108: 1 | U108: 0.33 | V108: 1 | W108: 0.34 | X108: 0 | Y108: 0 | Z108: 0 | AA108: 0 | AB108: - | AC108: - | AD108: 0 | AE108: 0 | AF108: 0 | AG108: 0 | AH108: 0 | AI108: 0 | AJ108: =+AVERAGE(Y108:AA108)/O108 -> 0 | AK108: 0 | AL108: 0 | AM108: 0 | AN108: 0 | AO108: 0 | AP108: - | AQ108: - | AR108: 0 | AS108: 0 | AT108: 0 | AU108: - | AV108: - | AW108: 0 | AX108: 0 | AY108: 0 | AZ108: - | BA108: - | BB108: 0 | BC108: 0 | BD108: 0 | BE108: - | BF108: - | BG108: 0 | BH108: 0 | BI108: 0 | BJ108: - | BK108: - | BL108: 16. Paz, justicia e instituciones sólidas | BM108: Atención a grupos vulnerables - Promoción Social | BN108: Sec. Desarrollo Social
K109: Formular e implementar la política pública de libertad religiosa y de cultos. | L109: - | M109: Número de políticas públicas de libertad religiosa y de cultos formuladas e implementadas. | N109: 0 | O109: 1 | P109: 0 | Q109: 0 | R109: 1 | S109: 0.33 | T109: 1 | U109: 0.33 | V109: 1 | W109: 0.34 | X109: 0 | Y109: 0 | Z109: 0 | AA109: 0 | AB109: - | AC109: - | AD109: 0 | AE109: 0 | AF109: 0 | AG109: 0 | AH109: 0 | AI109: 0 | AJ109: =+AVERAGE(Y109:AA109)/O109 -> 0 | AK109: 0 | AL109: 0 | AM109: 0 | AN109: 0 | AO109: 0 | AP109: - | AQ109: - | AR109: 0 | AS109: 0 | AT109: 0 | AU109: - | AV109: - | AW109: 0 | AX109: 0 | AY109: 0 | AZ109: - | BA109: - | BB109: 0 | BC109: 0 | BD109: 0 | BE109: - | BF109: - | BG109: 0 | BH109: 0 | BI109: 0 | BJ109: - | BK109: - | BL109: 10. Reducción de las desigualdades | BM109: Atención a grupos vulnerables - Promoción Social | BN109: Sec. Desarrollo Social
K110: Implementar y mantener el programa "Bucaramanga y la familia al parque" (retretas, cultura y ciencia, mercadillo cultural - en los parque emblemáticos). | L110: 2210946 | M110: Número de programas "Bucaramanga y la familia al parque" (retretas, cultura y ciencia, mercadillo cultural - en los parque emblemáticos) implementados y mantenidos. | N110: 0 | O110: 1 | P110: 1 | Q110: 0.25 | R110: 1 | S110: 0.25 | T110: 1 | U110: 0.25 | V110: 1 | W110: 0.25 | X110: 1 | Y110: 0 | Z110: 0 | AA110: 0 | AB110: 1 | AC110: 1 | AD110: 0 | AE110: 0 | AF110: 0 | AG110: 0 | AH110: 0 | AI110: 0 | AJ110: 0.25 | AK110: 0.25 | AL110: 0.25 | AM110: 700000 | AN110: 700000 | AO110: 600 | AP110: 1 | AQ110: 0.0008571428571 | AR110: 100000 | AS110: 0 | AT110: 0 | AU110: 0 | AV110: - | AW110: 125000 | AX110: 0 | AY110: 0 | AZ110: 0 | BA110: - | BB110: 130625 | BC110: 0 | BD110: 0 | BE110: 0 | BF110: - | BG110: 1055625 | BH110: 700000 | BI110: 600 | BJ110: 0.6631142688 | BK110: 0.0008571428571 | BL110: 3. Salud y bienestar | BM110: Atención a grupos vulnerables - Promoción Social | BN110: Sec. Desarrollo Social
I111: =+RESUMEN!J55 -> 0.1207408263 | J111: ADULTO MAYOR Y DIGNO | K111: Mantener a 560 adultos mayores adscritos a los centros vida del municipio en suministro de alimentación y nutrición. | L111: 2210874 | M111: Número de adultos mayores adscritos a los centros vida del municipio mantenidos con el suministro de alimentación y nutrición. | N111: 560 | O111: 560 | P111: 560 | Q111: 0.25 | R111: 560 | S111: 0.25 | T111: 560 | U111: 0.25 | V111: 560 | W111: 0.25 | X111: 2216 | Y111: 0 | Z111: 0 | AA111: 0 | AB111: 3.957142857 | AC111: 1 | AD111: 0 | AE111: 0 | AF111: 0 | AG111: 0 | AH111: 0 | AI111: 0 | AJ111: 0.9892857143 | AK111: 0.9892857143 | AL111: 0.9892857143 | AM111: 4500000 | AN111: 3110106 | AO111: 0 | AP111: 0.6911346667 | AQ111: - | AR111: 1128600 | AS111: 0 | AT111: 0 | AU111: 0 | AV111: - | AW111: 1179360 | AX111: 0 | AY111: 0 | AZ111: 0 | BA111: - | BB111: 1232460 | BC111: 0 | BD111: 0 | BE111: 0 | BF111: - | BG111: 8040420 | BH111: 3110106 | BI111: 0 | BJ111: 0.386808898 | BK111: - | BL111: 3. Salud y bienestar | BM111: Atención a grupos vulnerables - Promoción Social | BN111: Sec. Desarrollo Social
K112: Mantener a 560 adultos mayores el servicio de transporte para asistir a los centros vida. | L112: 2210874 | M112: Número de adultos mayores mantenidos con el servicio de transporte para asistir a los centros vida. | N112: 560 | O112: 560 | P112: 560 | Q112: 0.25 | R112: 560 | S112: 0.25 | T112: 560 | U112: 0.25 | V112: 560 | W112: 0.25 | X112: 0 | Y112: 0 | Z112: 0 | AA112: 0 | AB112: 0 | AC112: 0 | AD112: 0 | AE112: 0 | AF112: 0 | AG112: 0 | AH112: 0 | AI112: 0 | AJ112: 0 | AK112: 0 | AL112: 0 | AM112: 448000 | AN112: 0 | AO112: 0 | AP112: 0 | AQ112: - | AR112: 1000000 | AS112: 0 | AT112: 0 | AU112: 0 | AV112: - | AW112: 1000000 | AX112: 0 | AY112: 0 | AZ112: 0 | BA112: - | BB112: 1000000 | BC112: 0 | BD112: 0 | BE112: 0 | BF112: - | BG112: 3448000 | BH112: 0 | BI112: 0 | BJ112: 0 | BK112: - | BL112: 3. Salud y bienestar | BM112: Atención a grupos vulnerables - Promoción Social | BN112: Sec. Desarrollo Social
K113: Beneficiar y mantener a 600 adultos mayores en el programa de alimentación "compartamos Bucaramanga". | L113: 2210874 | M113: Número de adultos mayores beneficiados y mantenidos en el programa de alimentación "compartamos Bucaramanga". | N113: 0 | O113: 600 | P113: 600 | Q113: 0.25 | R113: 600 | S113: 0.25 | T113: 600 | U113: 0.25 | V113: 600 | W113: 0.25 | X113: 0 | Y113: 0 | Z113: 0 | AA113: 0 | AB113: 0 | AC113: 0 | AD113: 0 | AE113: 0 | AF113: 0 | AG113: 0 | AH113: 0 | AI113: 0 | AJ113: 0 | AK113: 0 | AL113: 0 | AM113: 240000 | AN113: 0 | AO113: 0 | AP113: 0 | AQ113: - | AR113: 677232 | AS113: 0 | AT113: 0 | AU113: 0 | AV113: - | AW113: 707760 | AX113: 0 | AY113: 0 | AZ113: 0 | BA113: - | BB113: 739584 | BC113: 0 | BD113: 0 | BE113: 0 | BF113: - | BG113: 2364576 | BH113: 0 | BI113: 0 | BJ113: 0 | BK113: - | BL113: 3. Salud y bienestar | BM113: Atención a grupos vulnerables - Promoción Social | BN113: Sec. Desarrollo Social
F114: Mantener por debajo de 15 la tasa de mortalidad por infección respiratoria aguda (IRA) en menores de 5 años. | G114: 22.53 | H114: 15 | K114: Realizar 6 actividades de dotación a los Centros Vida. | L114: 2210874 | M114: Número de actividades de dotación realizadas en los Centros Vida. | N114: 3 | O114: 6 | P114: 3 | Q114: 0.5 | R114: 3 | S114: 0.5 | T114: 0 | U114: 0 | V114: 0 | W114: 0 | X114: 0 | Y114: 0 | Z114: 0 | AA114: 0 | AB114: 0 | AC114: 0 | AD114: 0 | AE114: 0 | AF114: - | AG114: - | AH114: - | AI114: - | AJ114: =+SUM(X114:AA114)/O114 -> 0 | AK114: 0 | AL114: 0 | AM114: 390000 | AN114: 0 | AO114: 0 | AP114: 0 | AQ114: - | AR114: 250000 | AS114: 0 | AT114: 0 | AU114: 0 | AV114: - | AW114: 0 | AX114: 0 | AY114: 0 | AZ114: - | BA114: - | BB114: 114566 | BC114: 0 | BD114: 0 | BE114: 0 | BF114: - | BG114: 754566 | BH114: 0 | BI114: 0 | BJ114: 0 | BK114: - | BL114: 16. Paz, justicia e instituciones sólidas | BM114: Atención a grupos vulnerables - Promoción Social | BN114: Sec. Desarrollo Social
K115: Realizar 4 actividades de celebración del día del adulto mayor. | L115: 2210710 | M115: Número de actividades de celebración del día del adulto mayor realizados. | N115: 4 | O115: 4 | P115: 1 | Q115: 0.25 | R115: 1 | S115: 0.25 | T115: 1 | U115: 0.25 | V115: 1 | W115: 0.25 | X115: 0 | Y115: 0 | Z115: 0 | AA115: 0 | AB115: 0 | AC115: 0 | AD115: 0 | AE115: 0 | AF115: 0 | AG115: 0 | AH115: 0 | AI115: 0 | AJ115: =+SUM(X115:AA115)/O115 -> 0 | AK115: 0 | AL115: 0 | AM115: 81946 | AN115: 0 | AO115: 0 | AP115: 0 | AQ115: - | AR115: 104500 | AS115: 0 | AT115: 0 | AU115: 0 | AV115: - | AW115: 109202 | AX115: 0 | AY115: 0 | AZ115: 0 | BA115: - | BB115: 114116 | BC115: 0 | BD115: 0 | BE115: 0 | BF115: - | BG115: 409764 | BH115: 0 | BI115: 0 | BJ115: 0 | BK115: - | BL115: 3. Salud y bienestar | BM115: Atención a grupos vulnerables - Promoción Social | BN115: Sec. Desarrollo Social
K116: Mantener a 560 adultos mayores la atención primaria en salud y orientación psicosocial. | L116: 2210710 2210874 | M116: Número de adultos mayores mantenidos con la atención primaria en salud y la orientación psicosocial. | N116: 560 | O116: 560 | P116: 560 | Q116: 0.25 | R116: 560 | S116: 0.25 | T116: 560 | U116: 0.25 | V116: 560 | W116: 0.25 | X116: 560 | Y116: 0 | Z116: 0 | AA116: 0 | AB116: 1 | AC116: 1 | AD116: 0 | AE116: 0 | AF116: 0 | AG116: 0 | AH116: 0 | AI116: 0 | AJ116: 0.25 | AK116: 0.25 | AL116: 0.25 | AM116: 311000 | AN116: 90236 | AO116: 0 | AP116: 0.29014791 | AQ116: - | AR116: 133926 | AS116: 0 | AT116: 0 | AU116: 0 | AV116: - | AW116: 139952 | AX116: 0 | AY116: 0 | AZ116: 0 | BA116: - | BB116: 146250 | BC116: 0 | BD116: 0 | BE116: 0 | BF116: - | BG116: 731128 | BH116: 90236 | BI116: 0 | BJ116: 0.1234202493 | BK116: - | BL116: 3. Salud y bienestar | BM116: Atención a grupos vulnerables - Promoción Social | BN116: Sec. Desarrollo Social
K117: Realizar 3 campañas de sensibilización a la comunidad en los derechos del adulto mayor y promoción de redes de apoyo. | L117: 0 | M117: Número de campañas de sensibilización realizadas a la comunidad en los derechos del adulto mayor y promoción de redes de apoyo. | N117: 0 | O117: 3 | P117: 0 | Q117: 0 | R117: 1 | S117: 0.3333333333 | T117: 1 | U117: 0.3333333333 | V117: 1 | W117: 0.3333333333 | X117: 0 | Y117: 0 | Z117: 0 | AA117: 0 | AB117: - | AC117: - | AD117: 0 | AE117: 0 | AF117: 0 | AG117: 0 | AH117: 0 | AI117: 0 | AJ117: =+SUM(X117:AA117)/O117 -> 0 | AK117: 0 | AL117: 0 | AM117: 0 | AN117: 0 | AO117: 0 | AP117: - | AQ117: - | AR117: 50000 | AS117: 0 | AT117: 0 | AU117: 0 | AV117: - | AW117: 52250 | AX117: 0 | AY117: 0 | AZ117: 0 | BA117: - | BB117: 54601 | BC117: 0 | BD117: 0 | BE117: 0 | BF117: - | BG117: 156851 | BH117: 0 | BI117: 0 | BJ117: 0 | BK117: - | BL117: 1. Hambre cero | BM117: Atención a grupos vulnerables - Promoción Social | BN117: Sec. Desarrollo Social
K118: Implementar y mantener 1 programa que incentive la actividad productiva del adulto mayor. | L118: 2210710 2210874 | M118: Número de programas implementados y mantenidos que incentive la actividad productiva del adulto mayor. | N118: 0 | O118: 1 | P118: 1 | Q118: 0.25 | R118: 1 | S118: 0.25 | T118: 1 | U118: 0.25 | V118: 1 | W118: 0.25 | X118: 1 | Y118: 0 | Z118: 0 | AA118: 0 | AB118: 1 | AC118: 1 | AD118: 0 | AE118: 0 | AF118: 0 | AG118: 0 | AH118: 0 | AI118: 0 | AJ118: 0.25 | AK118: 0.25 | AL118: 0.25 | AM118: 313000 | AN118: 90236 | AO118: 0 | AP118: 0.2882939297 | AQ118: - | AR118: 85000 | AS118: 0 | AT118: 0 | AU118: 0 | AV118: - | AW118: 73150 | AX118: 0 | AY118: 0 | AZ118: 0 | BA118: - | BB118: 76441 | BC118: 0 | BD118: 0 | BE118: 0 | BF118: - | BG118: 547591 | BH118: 90236 | BI118: 0 | BJ118: 0.1647872226 | BK118: - | BL118: 8. Trabajo decente y crecimiento económico | BM118: Atención a grupos vulnerables - Promoción Social | BN118: Sec. Desarrollo Social
K119: Mantener a 560 adultos mayores adscritos a los centros vida el auxilio exequial. | L119: 2210710 | M119: Número de adultos mayores adscritos a los centros vida mantenidos con el auxilio exequial. | N119: 560 | O119: 560 | P119: 560 | Q119: 0.25 | R119: 560 | S119: 0.25 | T119: 560 | U119: 0.25 | V119: 560 | W119: 0.25 | X119: 0 | Y119: 0 | Z119: 0 | AA119: 0 | AB119: 0 | AC119: 0 | AD119: 0 | AE119: 0 | AF119: 0 | AG119: 0 | AH119: 0 | AI119: 0 | AJ119: 0 | AK119: 0 | AL119: 0 | AM119: 35000 | AN119: 0 | AO119: 0 | AP119: 0 | AQ119: - | AR119: 60000 | AS119: 0 | AT119: 0 | AU119: 0 | AV119: - | AW119: 62700 | AX119: 0 | AY119: 0 | AZ119: 0 | BA119: - | BB119: 65521 | BC119: 0 | BD119: 0 | BE119: 0 | BF119: - | BG119: 223221 | BH119: 0 | BI119: 0 | BJ119: 0 | BK119: - | BL119: 1. Fin de la pobreza | BM119: Atención a grupos vulnerables - Promoción Social | BN119: Sec. Desarrollo Social
K120: Realizar 4 encuentros intergeneracionales para el adulto mayor en los Centros Vida y los corregimientos del Municipio. | L120: 2210710 2210874 | M120: Número de encuentros intergeneracionales realizados para el adulto mayor en los Centros Vida y los corregimientos del Municipio. | N120: 1 | O120: 4 | P120: 1 | Q120: 0.25 | R120: 1 | S120: 0.25 | T120: 1 | U120: 0.25 | V120: 1 | W120: 0.25 | X120: 0 | Y120: 0 | Z120: 0 | AA120: 0 | AB120: 0 | AC120: 0 | AD120: 0 | AE120: 0 | AF120: 0 | AG120: 0 | AH120: 0 | AI120: 0 | AJ120: =+SUM(X120:AA120)/O120 -> 0 | AK120: 0 | AL120: 0 | AM120: 253161 | AN120: 0 | AO120: 0 | AP120: 0 | AQ120: - | AR120: 41800 | AS120: 0 | AT120: 0 | AU120: 0 | AV120: - | AW120: 43681 | AX120: 0 | AY120: 0 | AZ120: 0 | BA120: - | BB120: 45646 | BC120: 0 | BD120: 0 | BE120: 0 | BF120: - | BG120: 384288 | BH120: 0 | BI120: 0 | BJ120: 0 | BK120: - | BL120: 1. Fin de la pobreza | BM120: Atención a grupos vulnerables - Promoción Social | BN120: Sec. Desarrollo Social
F121: Disminuir a 8,9% el índice de pobreza. | G121: 0.091 | H121: 0.089 | K121: Beneficiar y mantener a 10.000 adultos mayores con el programa "Colombia mayor". | L121: - | M121: Número de adultos mayores beneficiados con el programa "Colombia mayor". | N121: 9199 | O121: 10000 | P121: 10000 | Q121: 0.25 | R121: 10000 | S121: 0.25 | T121: 10000 | U121: 0.25 | V121: 10000 | W121: 0.25 | X121: 9199 | Y121: 0 | Z121: 0 | AA121: 0 | AB121: 0.9199 | AC121: 0.9199 | AD121: 0 | AE121: 0 | AF121: 0 | AG121: 0 | AH121: 0 | AI121: 0 | AJ121: 0.229975 | AK121: 0.229975 | AL121: 0.229975 | AM121: 75000 | AN121: 71179 | AO121: 0 | AP121: 0.9490533333 | AQ121: - | AR121: 0 | AS121: 0 | AT121: 0 | AU121: - | AV121: - | AW121: 0 | AX121: 0 | AY121: 0 | AZ121: - | BA121: - | BB121: 0 | BC121: 0 | BD121: 0 | BE121: - | BF121: - | BG121: 75000 | BH121: 71179 | BI121: 0 | BJ121: 0.9490533333 | BK121: - | BL121: 1. Fin de la pobreza | BM121: Atención a grupos vulnerables - Promoción Social | BN121: Sec. Desarrollo Social
K122: Actualizar la política pública del adulto mayor. | L122: - | M122: Número de políticas públicas actualizadas del adulto mayor. | N122: 1 | O122: 1 | P122: 0 | Q122: 0 | R122: 1 | S122: 1 | T122: 0 | U122: 0 | V122: 0 | W122: 0 | X122: 0 | Y122: 0 | Z122: 0 | AA122: 0 | AB122: - | AC122: - | AD122: 0 | AE122: 0 | AF122: - | AG122: - | AH122: - | AI122: - | AJ122: =+SUM(X122:AA122)/O122 -> 0 | AK122: 0 | AL122: 0 | AM122: 0 | AN122: 0 | AO122: 0 | AP122: - | AQ122: - | AR122: 0 | AS122: 0 | AT122: 0 | AU122: - | AV122: - | AW122: 0 | AX122: 0 | AY122: 0 | AZ122: - | BA122: - | BB122: 0 | BC122: 0 | BD122: 0 | BE122: - | BF122: - | BG122: 0 | BH122: 0 | BI122: 0 | BJ122: - | BK122: - | BL122: 16. Paz, justicia e instituciones sólidas | BM122: Atención a grupos vulnerables - Promoción Social | BN122: Sec. Desarrollo Social
K123: Beneficiar al 100% de los adultos mayores el acceso gratuito en espacios de recreación y cultura. | L123: - | M123: Porcentaje de adultos mayores beneficiados con el acceso gratuito en espacios de recreación y cultura. | N123: 1 | O123: 1 | P123: 1 | Q123: 0.25 | R123: 1 | S123: 0.25 | T123: 1 | U123: 0.25 | V123: 1 | W123: 0.25 | X123: 1 | Y123: 0 | Z123: 0 | AA123: 0 | AB123: 1 | AC123: 1 | AD123: 0 | AE123: 0 | AF123: 0 | AG123: 0 | AH123: 0 | AI123: 0 | AJ123: 0.25 | AK123: 0.25 | AL123: 0.25 | AM123: 70000 | AN123: 70000 | AO123: 0 | AP123: 1 | AQ123: - | AR123: 0 | AS123: 0 | AT123: 0 | AU123: - | AV123: - | AW123: 0 | AX123: 0 | AY123: 0 | AZ123: - | BA123: - | BB123: 0 | BC123: 0 | BD123: 0 | BE123: - | BF123: - | BG123: 70000 | BH123: 70000 | BI123: 0 | BJ123: 1 | BK123: - | BL123: 3. Salud y bienestar | BM123: Atención a grupos vulnerables - Promoción Social | BN123: Sec. Desarrollo Social
K124: Beneficiar 1.000 adultos mayores en situación de extrema vulnerabilidad con mercados de sustento y/o complementos nutricionales. | L124: 2210874 | M124: Número de adultos mayores en situación de extrema vulnerabilidad beneficiados con mercados de sustento y/o complementos nutricionales. | N124: 8000 | O124: 1000 | P124: 250 | Q124: 0.25 | R124: 250 | S124: 0.25 | T124: 250 | U124: 0.25 | V124: 250 | W124: 0.25 | X124: 0 | Y124: 0 | Z124: 0 | AA124: 0 | AB124: 0 | AC124: 0 | AD124: 0 | AE124: 0 | AF124: 0 | AG124: 0 | AH124: 0 | AI124: 0 | AJ124: =+SUM(X124:AA124)/O124 -> 0 | AK124: 0 | AL124: 0 | AM124: 160000 | AN124: 0 | AO124: 0 | AP124: 0 | AQ124: - | AR124: 600000 | AS124: 0 | AT124: 0 | AU124: 0 | AV124: - | AW124: 600000 | AX124: 0 | AY124: 0 | AZ124: 0 | BA124: - | BB124: 600000 | BC124: 0 | BD124: 0 | BE124: 0 | BF124: - | BG124: 1960000 | BH124: 0 | BI124: 0 | BJ124: 0 | BK124: - | BL124: 1. Hambre cero | BM124: Atención a grupos vulnerables - Promoción Social | BN124: Sec. Desarrollo Social
K125: Implementar 1 ruta turística a nivel local para la reacreación del adulto mayor. | L125: 0 | M125: Número de rutas turísticas a nivel local implementadas para la recreación del adulto mayor. | N125: 0 | O125: 1 | P125: 1 | Q125: 0.25 | R125: 1 | S125: 0.25 | T125: 1 | U125: 0.25 | V125: 1 | W125: 0.25 | X125: 0 | Y125: 0 | Z125: 0 | AA125: 0 | AB125: 0 | AC125: 0 | AD125: 0 | AE125: 0 | AF125: 0 | AG125: 0 | AH125: 0 | AI125: 0 | AJ125: 0 | AK125: 0 | AL125: 0 | AM125: 0 | AN125: 0 | AO125: 0 | AP125: - | AQ125: - | AR125: 50000 | AS125: 0 | AT125: 0 | AU125: 0 | AV125: - | AW125: 50000 | AX125: 0 | AY125: 0 | AZ125: 0 | BA125: - | BB125: 50000 | BC125: 0 | BD125: 0 | BE125: 0 | BF125: - | BG125: 150000 | BH125: 0 | BI125: 0 | BJ125: 0 | BK125: - | BL125: 3. Salud y bienestar | BM125: Atención a grupos vulnerables - Promoción Social | BN125: Sec. Desarrollo Social
K126: Destinar 6 consultoruos rosados para la atención prioritaria de mujeres adultas mayores. | L126: 2210289 2210244 | M126: Número de consultorios rosados destinados para la atención prioritaria de mujeres adultas mayores. | N126: 0 | O126: 6 | P126: 6 | Q126: 1 | R126: 0 | S126: 0 | T126: 0 | U126: 0 | V126: 0 | W126: 0 | X126: 0.5 | Y126: 0 | Z126: 0 | AA126: 0 | AB126: 0.08333333333 | AC126: 0.08333333333 | AD126: - | AE126: - | AF126: - | AG126: - | AH126: - | AI126: - | AJ126: =+SUM(X126:AA126)/O126 -> 0.08333333333 | AK126: 0.08333333333 | AL126: 0.08333333333 | AM126: 62500 | AN126: 15000 | AO126: 0 | AP126: 0.24 | AQ126: - | AR126: 0 | AS126: 0 | AT126: 0 | AU126: - | AV126: - | AW126: 0 | AX126: 0 | AY126: 0 | AZ126: - | BA126: - | BB126: 0 | BC126: 0 | BD126: 0 | BE126: - | BF126: - | BG126: 62500 | BH126: 15000 | BI126: 0 | BJ126: 0.24 | BK126: - | BL126: 3. Salud y bienestar | BM126: Atención a grupos vulnerables - Promoción Social | BN126: Sec. Salud y Ambiente
K127: Adecuar y/o Readecuar 3 Centros Vida. | L127: 2210333 | M127: Número de Centros vida adecuados y/o readecuados. | N127: 3 | O127: 3 | P127: 1 | Q127: 0.3333333333 | R127: 1 | S127: 0.3333333333 | T127: 1 | U127: 0.3333333333 | V127: 0 | W127: 0 | X127: 0 | Y127: 0 | Z127: 0 | AA127: 0 | AB127: 0 | AC127: 0 | AD127: 0 | AE127: 0 | AF127: 0 | AG127: 0 | AH127: - | AI127: - | AJ127: =+SUM(X127:AA127)/O127 -> 0 | AK127: 0 | AL127: 0 | AM127: 454049 | AN127: 0 | AO127: 0 | AP127: 0 | AQ127: - | AR127: 1000000 | AS127: 0 | AT127: 0 | AU127: 0 | AV127: - | AW127: 1000000 | AX127: 0 | AY127: 0 | AZ127: 0 | BA127: - | BB127: 0 | BC127: 0 | BD127: 0 | BE127: - | BF127: - | BG127: 2454049 | BH127: 0 | BI127: 0 | BJ127: 0 | BK127: - | BL127: 9. Industria, innovación e infraestructura | BM127: Atención a grupos vulnerables - Promoción Social | BN127: Sec. Infraestructura
Q128: =+AVERAGE(Q68:Q127) -> 0.2508333333 | S128: =+AVERAGE(S68:S127) -> 0.2701111111 | U128: 0.2467777778 | W128: 0.2322777778 | AC128: =+AVERAGE(AC68:AC127) -> 0.2818758491 | AE128: 0 | AG128: 0 | AI128: 0 | AK128: =+AVERAGE(AK68:AK127) -> 0.07228290079
D129: =+RESUMEN!J56 -> 0.1058201058 | E129: MUJERES Y EQUIDAD DE GÉNERO | F129: Disminuir a 717 los casos de violencia entre pareja. | G129: 844 | H129: 717 | I129: =+RESUMEN!J57 -> 0.08333333333 | J129: VIDA LIBRE DE VIOLENCIAS | K129: Conformar 34 grupos de mujeres para la red comunitaria de prevención contra la violencia. | L129: 2210708 | M129: Número de grupos de mujeres conformados para la red comunitaria de prevención contra la violencia. | N129: 0 | O129: 34 | P129: 0 | Q129: 0 | R129: 10 | S129: 0.2941176471 | T129: 12 | U129: 0.3529411765 | V129: 12 | W129: 0.3529411765 | X129: 0 | Y129: 0 | Z129: 0 | AA129: 0 | AB129: - | AC129: - | AD129: 0 | AE129: 0 | AF129: 0 | AG129: 0 | AH129: 0 | AI129: 0 | AJ129: =+SUM(X129:AA129)/O129 -> 0 | AK129: 0 | AL129: 0 | AM129: 0 | AN129: 0 | AO129: 0 | AP129: - | AQ129: - | AR129: 100000 | AS129: 0 | AT129: 0 | AU129: 0 | AV129: - | AW129: 104500 | AX129: 0 | AY129: 0 | AZ129: 0 | BA129: - | BB129: 120000 | BC129: 0 | BD129: 0 | BE129: 0 | BF129: - | BG129: 324500 | BH129: 0 | BI129: 0 | BJ129: 0 | BK129: - | BL129: 5. Igualdad de género | BM129: Atención a grupos vulnerables - Promoción Social | BN129: Sec. Desarrollo Social
K130: Brindar al 100% de las mujeres víctimas de violencia atención jurídica y psicológica virtualmente y en el centro integral de la mujer. | L130: 2210708 | M130: Porcentaje de mujeres víctimas de violencia con atención jurídica y psicológica virtualmente y en el centro integral de la mujer. | N130: 1 | O130: 1 | P130: 1 | Q130: 0.25 | R130: 1 | S130: 0.25 | T130: 1 | U130: 0.25 | V130: 1 | W130: 0.25 | X130: 1 | Y130: 0 | Z130: 0 | AA130: 0 | AB130: 1 | AC130: 1 | AD130: 0 | AE130: 0 | AF130: 0 | AG130: 0 | AH130: 0 | AI130: 0 | AJ130: 0.25 | AK130: 0.25 | AL130: 0.25 | AM130: 27500 | AN130: 27500 | AO130: 0 | AP130: 1 | AQ130: - | AR130: 12118 | AS130: 0 | AT130: 0 | AU130: 0 | AV130: - | AW130: 15000 | AX130: 0 | AY130: 0 | AZ130: 0 | BA130: - | BB130: 15675 | BC130: 0 | BD130: 0 | BE130: 0 | BF130: - | BG130: 70293 | BH130: 27500 | BI130: 0 | BJ130: 0.3912196093 | BK130: - | BL130: 5. Igualdad de género | BM130: Atención a grupos vulnerables - Promoción Social | BN130: Sec. Desarrollo Social
K131: Realizar 3 eventos de formación con las comisarías de familia. | L131: 2210708 | M131: Número de evento de formación realizados con las comisarías de familia. | N131: 0 | O131: 3 | P131: 0 | Q131: 0 | R131: 1 | S131: 0.3333333333 | T131: 1 | U131: 0.3333333333 | V131: 1 | W131: 0.3333333333 | X131: 0 | Y131: 0 | Z131: 0 | AA131: 0 | AB131: - | AC131: - | AD131: 0 | AE131: 0 | AF131: 0 | AG131: 0 | AH131: 0 | AI131: 0 | AJ131: =+SUM(X131:AA131)/O131 -> 0 | AK131: 0 | AL131: 0 | AM131: 20000 | AN131: 0 | AO131: 0 | AP131: 0 | AQ131: - | AR131: 5000 | AS131: 0 | AT131: 0 | AU131: 0 | AV131: - | AW131: 5225 | AX131: 0 | AY131: 0 | AZ131: 0 | BA131: - | BB131: 5460 | BC131: 0 | BD131: 0 | BE131: 0 | BF131: - | BG131: 35685 | BH131: 0 | BI131: 0 | BJ131: 0 | BK131: - | BL131: 5. Igualdad de género | BM131: Atención a grupos vulnerables - Promoción Social | BN131: Sec. Desarrollo Social
K132: Mantener la atención al 100% de las mujeres víctimas de violencia y en extremo riesgo en la Casa Refugio según solicitud. | L132: 2210708 | M132: Porcentaje de mujeres víctimas de violencia y en extremo riesgo atendidas en la Casa Refugio que lo soliciten. | N132: 1 | O132: 1 | P132: 1 | Q132: 0.25 | R132: 1 | S132: 0.25 | T132: 1 | U132: 0.25 | V132: 1 | W132: 0.25 | X132: 0 | Y132: 0 | Z132: 0 | AA132: 0 | AB132: 0 | AC132: 0 | AD132: 0 | AE132: 0 | AF132: 0 | AG132: 0 | AH132: 0 | AI132: 0 | AJ132: 0 | AK132: 0 | AL132: 0 | AM132: 60000 | AN132: 0 | AO132: 0 | AP132: 0 | AQ132: - | AR132: 120000 | AS132: 0 | AT132: 0 | AU132: 0 | AV132: - | AW132: 125400 | AX132: 0 | AY132: 0 | AZ132: 0 | BA132: - | BB132: 131043 | BC132: 0 | BD132: 0 | BE132: 0 | BF132: - | BG132: 436443 | BH132: 0 | BI132: 0 | BJ132: 0 | BK132: - | BL132: 5. Igualdad de género | BM132: Atención a grupos vulnerables - Promoción Social | BN132: Sec. Desarrollo Social
K133: Implementar y mantener 1 programa integral e interinstitucional que garanticen la seguridad y el goce efectivo de los derechos de las mujeres. | L133: - | M133: Número de programas integrales e interinstitucionales implementados y mantenidos que garanticen la seguridad y el goce efectivo de los derechos de las mujeres. | N133: 0 | O133: 1 | P133: 0 | Q133: 0 | R133: 1 | S133: 0.33 | T133: 1 | U133: 0.33 | V133: 1 | W133: 0.34 | X133: 0 | Y133: 0 | Z133: 0 | AA133: 0 | AB133: - | AC133: - | AD133: 0 | AE133: 0 | AF133: 0 | AG133: 0 | AH133: 0 | AI133: 0 | AJ133: =+AVERAGE(Y133:AA133)/O133 -> 0 | AK133: 0 | AL133: 0 | AM133: 0 | AN133: 0 | AO133: 0 | AP133: - | AQ133: - | AR133: 0 | AS133: 0 | AT133: 0 | AU133: - | AV133: - | AW133: 0 | AX133: 0 | AY133: 0 | AZ133: - | BA133: - | BB133: 0 | BC133: 0 | BD133: 0 | BE133: - | BF133: - | BG133: 0 | BH133: 0 | BI133: 0 | BJ133: - | BK133: - | BL133: 5. Igualdad de género | BM133: Atención a grupos vulnerables - Promoción Social | BN133: Sec. Desarrollo Social
K134: Realizar 8 eventos de formación y sensibilización con los funcionarios públicos de las entidades encargadas, de atender los casos de violencia contra la mujer. | L134: 2210708 | M134: Número de eventos de formación y sensibilización realizados con los funcionarios públicos de las entidades encargadas, de atender los casos de violencia contra la mujer. | N134: 0 | O134: 8 | P134: 2 | Q134: 0.25 | R134: 2 | S134: 0.25 | T134: 2 | U134: 0.25 | V134: 2 | W134: 0.25 | X134: 1 | Y134: 0 | Z134: 0 | AA134: 0 | AB134: 0.5 | AC134: 0.5 | AD134: 0 | AE134: 0 | AF134: 0 | AG134: 0 | AH134: 0 | AI134: 0 | AJ134: =+SUM(X134:AA134)/O134 -> 0.125 | AK134: 0.125 | AL134: 0.125 | AM134: 29000 | AN134: 0 | AO134: 0 | AP134: 0 | AQ134: - | AR134: 0 | AS134: 0 | AT134: 0 | AU134: - | AV134: - | AW134: 0 | AX134: 0 | AY134: 0 | AZ134: - | BA134: - | BB134: 0 | BC134: 0 | BD134: 0 | BE134: - | BF134: - | BG134: 29000 | BH134: 0 | BI134: 0 | BJ134: 0 | BK134: - | BL134: 5. Igualdad de género | BM134: Atención a grupos vulnerables - Promoción Social | BN134: Sec. Desarrollo Social
K135: Implementar y mantener 1 estrategias de formación enfocada a los hombres para la transformación de las perspectivas de género. | L135: 2210708 | M135: Número de estrategias de formación enfocadas a los hombres para la transformación de las perspectivas de género implementadas y mantenidas. | N135: 0 | O135: 1 | P135: 0 | Q135: 0 | R135: 1 | S135: 0.33 | T135: 1 | U135: 0.33 | V135: 1 | W135: 0.34 | X135: 0 | Y135: 0 | Z135: 0 | AA135: 0 | AB135: - | AC135: - | AD135: 0 | AE135: 0 | AF135: 0 | AG135: 0 | AH135: 0 | AI135: 0 | AJ135: =+AVERAGE(Y135:AA135)/O135 -> 0 | AK135: 0 | AL135: 0 | AM135: 10000 | AN135: 0 | AO135: 0 | AP135: 0 | AQ135: - | AR135: 0 | AS135: 0 | AT135: 0 | AU135: - | AV135: - | AW135: 0 | AX135: 0 | AY135: 0 | AZ135: - | BA135: - | BB135: 0 | BC135: 0 | BD135: 0 | BE135: - | BF135: - | BG135: 10000 | BH135: 0 | BI135: 0 | BJ135: 0 | BK135: - | BL135: 5. Igualdad de género | BM135: Atención a grupos vulnerables - Promoción Social | BN135: Sec. Desarrollo Social
K136: Realizar 8 capacitaciones a los comisarios de familia en justicia con equidad. | L136: - | M136: Número de capacitaciones realizadas a los comisarios de familia en justicia con equidad. | N136: 0 | O136: 8 | P136: 2 | Q136: 0.25 | R136: 2 | S136: 0.25 | T136: 2 | U136: 0.25 | V136: 2 | W136: 0.25 | X136: 1 | Y136: 0 | Z136: 0 | AA136: 0 | AB136: 0.5 | AC136: 0.5 | AD136: 0 | AE136: 0 | AF136: 0 | AG136: 0 | AH136: 0 | AI136: 0 | AJ136: =+SUM(X136:AA136)/O136 -> 0.125 | AK136: 0.125 | AL136: 0.125 | AM136: 0 | AN136: 0 | AO136: 0 | AP136: - | AQ136: - | AR136: 0 | AS136: 0 | AT136: 0 | AU136: - | AV136: - | AW136: 0 | AX136: 0 | AY136: 0 | AZ136: - | BA136: - | BB136: 0 | BC136: 0 | BD136: 0 | BE136: - | BF136: - | BG136: 0 | BH136: 0 | BI136: 0 | BJ136: - | BK136: - | BL136: 5. Igualdad de género | BM136: Atención a grupos vulnerables - Promoción Social | BN136: Sec. Interior
K137: Implementar 4 iniciativas de promoción de los derechos humanos para prevenir la violencia contra la mujer y violencia intrafamiliar. | L137: 2210153 | M137: Número de iniciativas de promoción de los derechos humanos para prevenir la violencia contra la mujer y violencia intrafamiliar implementadas. | N137: 4 | O137: 4 | P137: 1 | Q137: 0.25 | R137: 1 | S137: 0.25 | T137: 1 | U137: 0.25 | V137: 1 | W137: 0.25 | X137: 1 | Y137: 0 | Z137: 0 | AA137: 0 | AB137: 1 | AC137: 1 | AD137: 0 | AE137: 0 | AF137: 0 | AG137: 0 | AH137: 0 | AI137: 0 | AJ137: =+SUM(X137:AA137)/O137 -> 0.25 | AK137: 0.25 | AL137: 0.25 | AM137: 0 | AN137: 0 | AO137: 0 | AP137: - | AQ137: - | AR137: 10450 | AS137: 0 | AT137: 0 | AU137: 0 | AV137: - | AW137: 10920 | AX137: 0 | AY137: 0 | AZ137: 0 | BA137: - | BB137: 11411 | BC137: 0 | BD137: 0 | BE137: 0 | BF137: - | BG137: 32781 | BH137: 0 | BI137: 0 | BJ137: 0 | BK137: - | BL137: 5. Igualdad de género | BM137: Atención a grupos vulnerables - Promoción Social | BN137: Sec. Interior
I138: =+RESUMEN!J58 -> 0.123015873 | J138: FORTALECIMIENTO DE LA PARTICIPACIÓN POLÍTICA, ECONÓMICA Y SOCIAL DE LAS MUJERES | K138: Apoyar 9 iniciativas de grupos de mujeres para la participación política. | L138: 2210708 | M138: Número de iniciativas apoyadas de grupos de mujeres para la participación política. | N138: 1 | O138: 9 | P138: 0 | Q138: 0 | R138: 3 | S138: 0.3333333333 | T138: 3 | U138: 0.3333333333 | V138: 3 | W138: 0.3333333333 | X138: 1 | Y138: 0 | Z138: 0 | AA138: 0 | AB138: - | AC138: - | AD138: 0 | AE138: 0 | AF138: 0 | AG138: 0 | AH138: 0 | AI138: 0 | AJ138: =+SUM(X138:AA138)/O138 -> 0.1111111111 | AK138: 0.1111111111 | AL138: 0.1111111111 | AM138: 63000 | AN138: 0 | AO138: 0 | AP138: 0 | AQ138: - | AR138: 45000 | AS138: 0 | AT138: 0 | AU138: 0 | AV138: - | AW138: 110235 | AX138: 0 | AY138: 0 | AZ138: 0 | BA138: - | BB138: 90000 | BC138: 0 | BD138: 0 | BE138: 0 | BF138: - | BG138: 308235 | BH138: 0 | BI138: 0 | BJ138: 0 | BK138: - | BL138: 5. Igualdad de género | BM138: Atención a grupos vulnerables - Promoción Social | BN138: Sec. Desarrollo Social
K139: Mantener el funcionamiento del Consejo Comunitario de Mujeres. | L139: 2210708 | M139: Número de Consejos Comunitarios de Mujeres mantenidos. | N139: 1 | O139: 1 | P139: 1 | Q139: 0.25 | R139: 1 | S139: 0.25 | T139: 1 | U139: 0.25 | V139: 1 | W139: 0.25 | X139: 1 | Y139: 0 | Z139: 0 | AA139: 0 | AB139: 1 | AC139: 1 | AD139: 0 | AE139: 0 | AF139: 0 | AG139: 0 | AH139: 0 | AI139: 0 | AJ139: 0.25 | AK139: 0.25 | AL139: 0.25 | AM139: 7000 | AN139: 0 | AO139: 0 | AP139: 0 | AQ139: - | AR139: 10000 | AS139: 0 | AT139: 0 | AU139: 0 | AV139: - | AW139: 10000 | AX139: 0 | AY139: 0 | AZ139: 0 | BA139: - | BB139: 10000 | BC139: 0 | BD139: 0 | BE139: 0 | BF139: - | BG139: 37000 | BH139: 0 | BI139: 0 | BJ139: 0 | BK139: - | BL139: 5. Igualdad de género | BM139: Atención a grupos vulnerables - Promoción Social | BN139: Sec. Desarrollo Social
K140: Realizar 48 talleres para la generación de ingresos dirigidas a mujeres. | L140: 2210708 | M140: Número de talleres realizados para la generación de ingresos dirigidas a mujeres. | N140: 0 | O140: 48 | P140: 12 | Q140: 0.25 | R140: 12 | S140: 0.25 | T140: 12 | U140: 0.25 | V140: 12 | W140: 0.25 | X140: 12 | Y140: 0 | Z140: 0 | AA140: 0 | AB140: =IF(P140=0," -",X140/P140) -> 1 | AC140: =IF(P140=0," -",IF(AB140>100%,100%,AB140)) -> 1 | AD140: =IF(R140=0," -",Y140/R140) -> 0 | AE140: =IF(R140=0," -",IF(AD140>100%,100%,AD140)) -> 0 | AF140: =IF(T140=0," -",Z140/T140) -> 0 | AG140: =IF(T140=0," -",IF(AF140>100%,100%,AF140)) -> 0 | AH140: =IF(V140=0," -",AA140/V140) -> 0 | AI140: =IF(V140=0," -",IF(AH140>100%,100%,AH140)) -> 0 | AJ140: =+SUM(X140:AA140)/O140 -> 0.25 | AK140: =+IF(AJ140>100%,100%,AJ140) -> 0.25 | AL140: =+AK140 -> 0.25 | AM140: 0 | AN140: 0 | AO140: 0 | AP140: - | AQ140: - | AR140: 45000 | AS140: 0 | AT140: 0 | AU140: 0 | AV140: - | AW140: 60000 | AX140: 0 | AY140: 0 | AZ140: 0 | BA140: - | BB140: 50000 | BC140: 0 | BD140: 0 | BE140: 0 | BF140: - | BG140: 155000 | BH140: 0 | BI140: 0 | BJ140: 0 | BK140: - | BL140: 5. Igualdad de género | BM140: Atención a grupos vulnerables - Promoción Social | BN140: Sec. Desarrollo Social
K141: Implementar y mantener 1 estrategia de formación para la participación e incidencia política de las mujeres. | L141: - | M141: Número de estrategias de formación implementadas y mantenidas para la participación e incidencia política de las mujeres. | N141: 0 | O141: 1 | P141: 0 | Q141: =+P141/O141 -> 0 | R141: 1 | S141: 0.33 | T141: 1 | U141: 0.33 | V141: 1 | W141: 0.34 | X141: 0 | Y141: 0 | Z141: 0 | AA141: 0 | AB141: - | AC141: - | AD141: 0 | AE141: 0 | AF141: 0 | AG141: 0 | AH141: 0 | AI141: 0 | AJ141: =+AVERAGE(Y141:AA141)/O141 -> 0 | AK141: 0 | AL141: 0 | AM141: 0 | AN141: 0 | AO141: 0 | AP141: =IF(AM141=0," -",AN141/AM141) -> - | AQ141: =IF(AO141=0," -",IF(AN141=0,100%,AO141/AN141)) -> - | AR141: 0 | AS141: 0 | AT141: 0 | AU141: =IF(AR141=0," -",AS141/AR141) -> - | AV141: =IF(AT141=0," -",IF(AS141=0,100%,AT141/AS141)) -> - | AW141: 0 | AX141: 0 | AY141: 0 | AZ141: =IF(AW141=0," -",AX141/AW141) -> - | BA141: =IF(AY141=0," -",IF(AX141=0,100%,AY141/AX141)) -> - | BB141: 0 | BC141: 0 | BD141: 0 | BE141: =IF(BB141=0," -",BC141/BB141) -> - | BF141: =IF(BD141=0," -",IF(BC141=0,100%,BD141/BC141)) -> - | BG141: =+AM141+AR141+AW141+BB141 -> 0 | BH141: =+AN141+AS141+AX141+BC141 -> 0 | BI141: =+AO141+AT141+AY141+BD141 -> 0 | BJ141: =IF(BG141=0," -",BH141/BG141) -> - | BK141: =IF(BI141=0," -",IF(BH141=0,100%,BI141/BH141)) -> - | BL141: 5. Igualdad de género | BM141: Atención a grupos vulnerables - Promoción Social | BN141: Sec. Desarrollo Social
